Workbook

Sheet Cover

Sheet 1.0 Guidance
A1: Overview of Sheets in the Tool
A7: Sheet No. | B7: Title | C7: Explanation
A8: 1 | B8: Guidance | C8: Lists and explains the purpose of different sheets.
A9: 2 | B9: Companies | C9: Lists the 24 companies analysed in the model [in sheets 8.0 to 31.0]. Data on each firm is presented, including its headquarters, market capitalisation, Bloomberg bond ticker, and credit rating with Moody’s and S&P.
A10: 3 | B10: Sum Ratios | C10: Summarises EBITDA/Revenue and Net debt/EBITDA ratios for 24 firms. On the left hand side of the sheet, static credit ratios are presented under the assumption that companies do not face water TEVs. On the right hand side, ratios are drawn from the company sheets; so as the analyst adjusts the assumptions made on any, or all, of the company sheets, so ratios resulting from these assumptions are shows on this sheet.
A11: 4 | B11: Graphs Ratios | C11: Shows the water consumption, average shadow prices and the credit ratios before and after adding water cost. Graphs the change in ratios for all companies.
A12: 5 | B12: Graph Financials | C12: Allows analysts to graph data from any of the companies included on the model, for the years 2013 to 2017. This graphing facility allows analysts can visually to see how different elements of each company’s operations change over time.
A13: 6 | B13: New Company | C13: Where analysts enter a new company (see ‘How to Add New Companies to the Model’ in the accompanying report). Data on locations and longitude/latitude is automatically included in the “New Co Location Data” tab where water stress data is sourced from the WRI Aqueduct database and shadow prices are calculated.
A14: 7 | B14: Blank Sheet
A15: 8 | B15: Anglo American | C15: Pre-populated sheet
A16: 9 | B16: Barrick | C16: Pre-populated sheet
A17: 10 | B17: BHP | C17: Pre-populated sheet
A18: 11 | B18: Fortescue | C18: Pre-populated sheet
A19: 12 | B19: Glencore | C19: Pre-populated sheet
A20: 13 | B20: Rio | C20: Pre-populated sheet
A21: 14 | B21: Vale | C21: Pre-populated sheet
A22: 15 | B22: Vedanta | C22: Pre-populated sheet
A23: 16 | B23: Console | C23: Pre-populated sheet
A24: 17 | B24: EDF | C24: Pre-populated sheet
A25: 18 | B25: Eskom | C25: Pre-populated sheet
A26: 19 | B26: GdF | C26: Pre-populated sheet
A27: 20 | B27: RWE | C27: Pre-populated sheet
A28: 21 | B28: Sempra | C28: Pre-populated sheet
A29: 22 | B29: Southern | C29: Pre-populated sheet
A30: 23 | B30: Vattenfall | C30: Pre-populated sheet
A31: 24 | B31: Anheuser Busch | C31: Pre-populated sheet
A32: 25 | B32: Carlsberg | C32: Pre-populated sheet
A33: 26 | B33: Diageo | C33: Pre-populated sheet
A34: 27 | B34: Femsa | C34: Pre-populated sheet
A35: 28 | B35: Heineken | C35: Pre-populated sheet
A36: 29 | B36: Nestle | C36: Pre-populated sheet
A37: 30 | B37: Pernod Ricard | C37: Pre-populated sheet
A38: 31 | B38: SABMiller | C38: Pre-populated sheet
A39: 32 | B39: Location Data | C39: Data for the 24 companies analysed by the model are held on the sheet. Data are pulled in from the World Resources Institute onto this sheet, using a macro.
A40: 33 | B40: New Co Location Data | C40: New location data. This tab links to the “New Location” tab and a macro pulls in the water stress data from WRI’s Aqueduct database for each location entered. It includes a formula to calculate the shadow prices for each of these locations, which is then displayed on the “New Location” tab alongside the locational information at the bottom.
A41: 34 | B41: Country Data | C41: This sheet has calculated 2010, 2020, 2030 and 2040 shadow prices for countries, as opposed to for specific locations on the map. This is necessary because for the beverages sector we use country shadow prices, not specific locational shadow prices.

Sheet 2.0 Companies
A1: Overview of Companies in the Tool
A3: Sheet Number | B3: Sector | C3: Company | D3: Bloomberg Equity | E3: HQ | F3: Market Cap (Bn) | G3: Bond Ticker | H3: Moodys | I3: S&P
A4: 8 | B4: Mining | C4: Anglo American | D4: AAL_LN Equity | E4: London, UK | F4: £12.4 | G4: AALLN | H4: Baa2 Neg | I4: BBB-
A5: 9 | B5: Mining | C5: Barrick Gold | D5: ABX_US Equity | E5: Toronto, Canada | F5: $10.7 | G5: ABXCN | H5: Baa2 Neg | I5: BBB-
A6: 10 | B6: Mining | C6: BHP Billiton | D6: BHP_US Equity | E6: Melbourne, Australia | F6: £67.3 | G6: BHP | H6: A1 | I6: A+ Neg
A7: 11 | B7: Mining | C7: Fortescue Metals | D7: FMG_AU Equity | E7: Perth, Australia | F7: AUD 5.3 | G7: FMGAU | H7: Ba2 Neg | I7: BB Neg
A8: 12 | B8: Mining | C8: Glencore | D8: GLEN_LN Equity | E8: Zug, Switzerland | F8: £31.9 | G8: GLENLN | H8: NR | I8: BBB
A9: 13 | B9: Mining | C9: Rio Tinto | D9: RIO_LN Equity | E9: London, UK | F9: £47.4 | G9: RIOLN | H9: A3 | I9: A-
A10: 14 | B10: Mining | C10: Vale | D10: VALE_US Equity | E10: Rio de Janeiro, Brazil | F10: £27.4 | G10: VALEBZ | H10: Baa2 Neg | I10: BBB Neg
A11: 15 | B11: Mining | C11: Vedanta | D11: VED_LN Equity | E11: Mumbai, India | F11: £1.3 | G11: VEDLN | H11: Ba3 Neg | I11: BB- Neg
A12: 16 | B12: Power Gen/Utility | C12: Consol Energy | D12: CNX_US Equity | E12: Canonsburg, PA, USA | F12: $4.2 | G12: CNX | H12: B1 | I12: BB
A13: 17 | B13: Power Gen/Utility | C13: EDF | D13: EDF_FP Equity | E13: Paris, France | F13: £40.2 | G13: EDF | H13: A1 Neg | I13: A+ Neg
A14: 18 | B14: Power Gen/Utility | C14: Eskom | D14: 1001Z_SJ Equity | E14: South Africa | F14: Not listed | G14: ESKOM | H14: Ba1 | I14: BB+Neg
A15: 19 | B15: Power Gen/Utility | C15: GdF | D15: GSZ_FP Equity | E15: Paris, France | F15: £43.2 | G15: GdF | H15: A1 Neg | I15: A
A16: 20 | B16: Power Gen/Utility | C16: RWE | D16: RWE_GY Equity | E16: Dusseldorf, Germany | F16: £12.1 | G16: RWE | H16: Baa1 Neg | I16: BBB+ Neg
A17: 21 | B17: Power Gen/Utility | C17: Sempra Energy | D17: SRE_US Equity | E17: San Diego, USA | F17: $25.7 | G17: SRE | H17: Baa1 | I17: BBB+
A18: 22 | B18: Power Gen/Utility | C18: Southern Company | D18: SO_US Equity | E18: Atlanta, GA, USA | F18: $39.9 | G18: SO | H18: Baa1 | I18: A Cwn
A19: 23 | B19: Power Gen/Utility | C19: Vattenfall | D19: VATT_SS Equity | E19: Stockholm, Sweden | F19: Not listed | G19: VATFAL | H19: A3 | I19: A-
A20: 24 | B20: Beverages/Food | C20: Anheuser-Busch | D20: ABI_BB Equity | E20: Leuven, Belgium | F20: £190.5 | G20: ABIBB | H20: A2 Pos | I20: A
A21: 25 | B21: Beverages/Food | C21: Carlsberg | D21: CARLB_DC Equity | E21: Copenhagen, Denmark | F21: DKK96.8 | G21: CARLB | H21: Baa2 Neg | I21: NR
A22: 26 | B22: Beverages/Food | C22: Diageo | D22: DGE_LN Equity | E22: London, UK | F22: £48.7 | G22: DGELN | H22: A3 | I22: A-
A23: 27 | B23: Beverages/Food | C23: FEMSA (Fomento Economico Mexicanos) | D23: FEMSAUBD_MM Equity | E23: Monterrey, Mexico | F23: MXN512.9 | G23: FEMSA | H23: NR | I23: A-
A24: 28 | B24: Beverages/Food | C24: Heineken | D24: HEIA_NA Equity | E24: Amsterdam, Netherlands | F24: £42.2 | G24: HEIANA | H24: Baa1 | I24: BBB+
A25: 29 | B25: Beverages/Food | C25: Nestle | D25: NESN_VX Equity | E25: Vevey, Switzerland | F25: CHF232 | G25: NESNVX | H25: Aa2 | I25: AA
A26: 30 | B26: Beverages/Food | C26: Pernod Ricard | D26: RI_FP Equity | E26: Paris, France | F26: £29.2 | G26: RIFP | H26: Baa3 Pos | I26: BBB-
A27: 31 | B27: Beverages/Food | C27: SABMiller | D27: SAB_LN Equity | E27: London, UK | F27: £56.8 | G27: SABLN | H27: A3 | I27: A-
I28: Data at 17 July 2015
A29: Exchange Rates
A31: 1 US dollar = | B31: USD | C31: 1
A32: 1 US dollar = | B32: EUR | C32: 0.8812
A33: 1 US dollar = | B33: CHF | C33: 0.949
A34: 1 US dollar = | B34: SEK | C34: 8.3632
A35: 1 US dollar = | B35: ZAR | C35: 11.4835
A36: 1 US dollar = | B36: DKK | C36: 6.579
A37: 1 US dollar = | B37: AED | C37: 3.6729
A38: 1 US dollar = | B38: CAD | C38: 1.2441
A39: 1 US dollar = | B39: GBP | C39: 0.64605
A40: 1 US dollar = | B40: MXN | C40: 14.92
A42: Exchange rates can be changed by the user
Z106: 0.991898268 | AA106: 0.8666225589 | AB106: 0.03951441167 | AC106: 0.9486061871 | AD106: 0.8284101643 | AE106: 0.07640772983 | AF106: 0.9486061871 | AG106: 0.8284101643 | AH106: 0.07640772983 | AI106: 0.9813600265 | AJ106: 0.8573480392 | AK106: 0.03654949638 | AL106: 0.980742567 | AM106: 0.8567627318 | AN106: 0.05913743159 | AO106: 0.980742567 | AP106: 0.8567627318 | AQ106: 0.05913743159 | AR106: 1.002107095 | AS106: 0.8756071668 | AT106: 0.04603344065 | AU106: 0.9940622474 | AV106: 0.868514122 | AW106: 0.0569883602 | AX106: 0.9940622474 | AY106: 0.868514122 | AZ106: 0.0569883602 | BA106: 0.9764248512 | BB106: 1.043248925 | BC106: 0.02401130985 | BD106: 0.9807867427 | BE106: 1.078717526 | BF106: 0.05698034452 | BG106: 0.9807867427 | BH106: 1.078717526 | BI106: 0.05698034452 | BJ106: 0.9743266732 | BK106: 1.041228714 | BL106: 0.04132404701 | BM106: 0.9519607207 | BN106: 1.047130857 | BO106: 0.06101978182 | BP106: 0.9519607207 | BQ106: 1.047130857 | BR106: 0.06101978182 | BS106: 0.9603307357 | BT106: 1.026114657 | BU106: 0.03644577342 | BV106: 0.9421064153 | BW106: 1.036136258 | BX106: 0.05222602081 | BY106: 0.9421064153 | BZ106: 1.036136258 | CA106: 0.05222602081 | CB106: 1.476708256 | CC106: 0.0002840174627 | CD106: 0 | CE106: 1.474871076 | CF106: 0.0003460340294 | CG106: 0 | CH106: 1.46250647 | CI106: 0.0006031242067 | CJ106: 0 | CK106: 1.909839488 | CL106: 0.003371194852 | CM106: 0 | CN106: 1.898892214 | CO106: 0.003381147344 | CP106: 0 | CQ106: 1.905484291 | CR106: 0.003836096878 | CS106: 0 | CT106: 2.23363565 | CU106: 0.00567907781 | CV106: 0 | CW106: 2.229453957 | CX106: 0.005747284922 | CY106: 0 | CZ106: 2.287009609 | DA106: 0.006620572469 | DB106: 0 | DC106: 1.488769871 | DD106: 0.0003277291362 | DE106: 0 | DF106: 1.554776994 | DG106: 0.0004177085751 | DH106: 0 | DI106: 1.541742496 | DJ106: 0.0007280502252 | DK106: 0 | DL106: 1.946115021 | DM106: 0.003932119394 | DN106: 0 | DO106: 1.936178033 | DP106: 0.003946422059 | DQ106: 0 | DR106: 1.942899548 | DS106: 0.004477432007 | DT106: 0 | DU106: 2.228939063 | DV106: 0.00648587406 | DW106: 0 | DX106: 2.242770976 | DY106: 0.006617376479 | DZ106: 0 | EA106: 2.300670421 | EB106: 0.00762287256 | EC106: 0
Z107: 1.048264145 | AA107: 0.6097497113 | AB107: 0.0590455561 | AC107: 1.026758358 | AD107: 0.5973647227 | AE107: 0.07941552977 | AF107: 1.026758358 | AG107: 0.5973647227 | AH107: 0.07941552977 | AI107: 1.013201746 | AJ107: 0.5894838002 | AK107: 0.07487264241 | AL107: 1.005979724 | AM107: 0.5853196178 | AN107: 0.06855739971 | AO107: 1.005979724 | AP107: 0.5853196178 | AQ107: 0.06855739971 | AR107: 0.9748223906 | AS107: 0.5673007026 | AT107: 0.1011625615 | AU107: 0.9693828711 | AV107: 0.5641048967 | AW107: 0.1074562731 | AX107: 0.9693828711 | AY107: 0.5641048967 | AZ107: 0.1074562731 | BA107: 0.9975402212 | BB107: 0.5501578313 | BC107: 0.05233970114 | BD107: 1.01675839 | BE107: 0.5698832765 | BF107: 0.05014916478 | BG107: 1.01675839 | BH107: 0.5698832765 | BI107: 0.05014916478 | BJ107: 1.003176299 | BK107: 0.5531371051 | BL107: 0.05482197525 | BM107: 1.028830622 | BN107: 0.5765980997 | BO107: 0.05664815725 | BP107: 1.028830622 | BQ107: 0.5765980997 | BR107: 0.05664815725 | BS107: 1.023638793 | BT107: 0.5644032672 | BU107: 0.05534480595 | BV107: 1.048641692 | BW107: 0.5875411267 | BX107: 0.07000449364 | BY107: 1.048641692 | BZ107: 0.5875411267 | CA107: 0.07000449364 | CB107: 1.089096934 | CC107: 0 | CD107: 0 | CE107: 1.08919805 | CF107: 0 | CG107: 0 | CH107: 1.060111535 | CI107: 0 | CJ107: 0 | CK107: 1.159908133 | CL107: 0 | CM107: 0 | CN107: 1.160021741 | CO107: 0 | CP107: 0 | CQ107: 1.069630433 | CR107: 0 | CS107: 0 | CT107: 1.201143078 | CU107: 0 | CV107: 0 | CW107: 1.201144891 | CX107: 0 | CY107: 0 | CZ107: 1.050479004 | DA107: 0 | DB107: 0 | DC107: 1.038952767 | DD107: 0 | DE107: 0 | DF107: 1.060812451 | DG107: 0 | DH107: 0 | DI107: 1.032483959 | DJ107: 0 | DK107: 0 | DL107: 1.144794842 | DM107: 0 | DN107: 0 | DO107: 1.153126363 | DP107: 0 | DQ107: 0 | DR107: 1.063272357 | DS107: 0 | DT107: 0 | DU107: 1.232166074 | DV107: 0 | DW107: 0 | DX107: 1.239082025 | DY107: 0 | DZ107: 0 | EA107: 1.083657485 | EB107: 0 | EC107: 0
Z108: 1.035999862 | AA108: 6.590866598 | AB108: 0.07249985766 | AC108: 0.9777587825 | AD108: 6.214935836 | AE108: 0.05546075908 | AF108: 0.9777587825 | AG108: 6.214935836 | AH108: 0.05546075908 | AI108: 1.034095863 | AJ108: 6.578532394 | AK108: 0.08429874308 | AL108: 0.9997108293 | AM108: 6.355802076 | AN108: 0.08726480455 | AO108: 0.9997108293 | AP108: 6.355802076 | AQ108: 0.08726480455 | AR108: 1.001579879 | AS108: 6.36789222 | AT108: 0.1060860103 | AU108: 0.9884025899 | AV108: 6.283237127 | AW108: 0.1092087107 | AX108: 0.9884025899 | AY108: 6.283237127 | AZ108: 0.1092087107 | BA108: 0.9996378329 | BB108: 0.5676795528 | BC108: 0.1106953541 | BD108: 1.000832674 | BE108: 0.5799458348 | BF108: 0.04850964944 | BG108: 1.000832674 | BH108: 0.5799458348 | BI108: 0.04850964944 | BJ108: 0.9969851631 | BK108: 0.5670837928 | BL108: 0.0952826937 | BM108: 0.9674517081 | BN108: 0.5602891309 | BO108: 0.08202438517 | BP108: 0.9674517081 | BQ108: 0.5602891309 | BR108: 0.08202438517 | BS108: 0.9847002461 | BT108: 0.5604719642 | BU108: 0.1131141216 | BV108: 0.9829902404 | BW108: 0.5696413035 | BX108: 0.1503066757 | BY108: 0.9829902404 | BZ108: 0.5696413035 | CA108: 0.1503066757 | CB108: 1.037513712 | CC108: 0.4346039275 | CD108: 0 | CE108: 1.037612164 | CF108: 0.4346647088 | CG108: 0 | CH108: 1.008820165 | CI108: 0.4234443788 | CJ108: 0 | CK108: 1.072369946 | CL108: 0.4449139081 | CM108: 0 | CN108: 1.072440303 | CO108: 0.4449669204 | CP108: 0 | CQ108: 0.9742301562 | CR108: 0.4132591598 | CS108: 0 | CT108: 1.103946047 | CU108: 0.4542536721 | CV108: 0 | CW108: 1.104047189 | CX108: 0.4543162815 | CY108: 0 | CZ108: 0.9256594948 | DA108: 0.3989572607 | DB108: 0 | DC108: 1.001814087 | DD108: 0.06694448953 | DE108: 0 | DF108: 1.062081467 | DG108: 0.07107315606 | DH108: 0 | DI108: 1.03247081 | DJ108: 0.06922893054 | DK108: 0 | DL108: 1.037908758 | DM108: 0.06869828274 | DN108: 0 | DO108: 1.073995267 | DP108: 0.07115608019 | DQ108: 0 | DR108: 0.9750364267 | DS108: 0.06604378123 | DT108: 0 | DU108: 1.103817121 | DV108: 0.07252537849 | DW108: 0 | DX108: 1.118800454 | DY108: 0.07353120286 | DZ108: 0 | EA108: 0.9371703308 | EB108: 0.06451113405 | EC108: 0
Z109: 1.211006495 | AA109: 0.001000418806 | AB109: 0.5949200544 | AC109: 1.056854719 | AD109: 0.0009028943242 | AE109: 0.5804935331 | AF109: 1.056854719 | AG109: 0.0009028943242 | AH109: 0.5804935331 | AI109: 0.9858937709 | AJ109: 0.0008564550218 | AK109: 0.3050415542 | AL109: 1.170689238 | AM109: 0.0009778128564 | AN109: 0.668970742 | AO109: 1.170689238 | AP109: 0.0009778128564 | AQ109: 0.668970742 | AR109: 0.9731767823 | AS109: 0.0008483222704 | AT109: 0.2262846776 | AU109: 1.181470323 | AV109: 0.0009849082709 | AW109: 0.6150219228 | AX109: 1.181470323 | AY109: 0.0009849082709 | AZ109: 0.6150219228 | BA109: 1.019252105 | BB109: 0.6880059928 | BC109: 0.1955516079 | BD109: 1.022410658 | BE109: 0.6938397109 | BF109: 0.1976730915 | BG109: 1.022410658 | BH109: 0.6938397109 | BI109: 0.1976730915 | BJ109: 1.019671988 | BK109: 0.6889274858 | BL109: 0.175565039 | BM109: 1.035241287 | BN109: 0.7003452307 | BO109: 0.2323045243 | BP109: 1.035241287 | BQ109: 0.7003452307 | BR109: 0.2323045243 | BS109: 1.029772041 | BT109: 0.6960148387 | BU109: 0.1699779114 | BV109: 1.059513139 | BW109: 0.716788469 | BX109: 0.2217621915 | BY109: 1.059513139 | BZ109: 0.716788469 | CA109: 0.2217621915 | CB109: 1.373203837 | CC109: 0 | CD109: 0 | CE109: 1.372756223 | CF109: 0 | CG109: 0 | CH109: 1.484266353 | CI109: 0 | CJ109: 0 | CK109: 2.498387931 | CL109: 0 | CM109: 0 | CN109: 2.491482096 | CO109: 0 | CP109: 0 | CQ109: 2.897376467 | CR109: 0 | CS109: 0 | CT109: 3.731998567 | CU109: 0.0002964139792 | CV109: 0 | CW109: 3.737123751 | CX109: 0.0003068497322 | CY109: 0 | CZ109: 4.26446442 | DA109: 0.0008188036922 | DB109: 0 | DC109: 1.13393598 | DD109: 0 | DE109: 0 | DF109: 1.298907218 | DG109: 0 | DH109: 0 | DI109: 1.404418532 | DJ109: 0 | DK109: 0 | DL109: 2.53413502 | DM109: 0 | DN109: 0 | DO109: 2.12821816 | DP109: 0 | DQ109: 0 | DR109: 2.474932179 | DS109: 0 | DT109: 0 | DU109: 3.834861903 | DV109: 0.3494119977 | DW109: 0 | DX109: 3.163112672 | DY109: 0.3115515843 | DZ109: 0 | EA109: 3.609455385 | EB109: 0.8313502043 | EC109: 0
Z110: 0.9803634946 | AA110: 1.11700515 | AB110: 0.1060287508 | AC110: 0.9728957744 | AD110: 1.108939146 | AE110: 0.1179123639 | AF110: 0.9728957744 | AG110: 1.108939146 | AH110: 0.1179123639 | AI110: 0.9787852435 | AJ110: 1.11521973 | AK110: 0.1641944209 | AL110: 0.9823475293 | AM110: 1.119498385 | AN110: 0.1853547343 | AO110: 0.9823475293 | AP110: 1.119498385 | AQ110: 0.1853547343 | AR110: 1.011488353 | AS110: 1.152215606 | AT110: 0.1462169592 | AU110: 0.989093314 | AV110: 1.127034589 | AW110: 0.1576316852 | AX110: 0.989093314 | AY110: 1.127034589 | AZ110: 0.1576316852 | BA110: 0.978307193 | BB110: 0.5617669014 | BC110: 0.09514453727 | BD110: 0.9685004815 | BE110: 0.5755633729 | BF110: 0.07231357925 | BG110: 0.9685004815 | BH110: 0.5755633729 | BI110: 0.07231357925 | BJ110: 0.9767792889 | BK110: 0.5615125258 | BL110: 0.09302911933 | BM110: 0.912939278 | BN110: 0.5423836931 | BO110: 0.1052544974 | BP110: 0.912939278 | BQ110: 0.5423836931 | BR110: 0.1052544974 | BS110: 0.961537633 | BT110: 0.5522310574 | BU110: 0.09435616476 | BV110: 0.9211485335 | BW110: 0.5475731411 | BX110: 0.08199832033 | BY110: 0.9211485335 | BZ110: 0.5475731411 | CA110: 0.08199832033 | CB110: 1.623555945 | CC110: 0.001546927143 | CD110: 0 | CE110: 1.623422719 | CF110: 0.001547124907 | CG110: 0 | CH110: 1.621175583 | CI110: 0.001733650482 | CJ110: 0 | CK110: 2.132912179 | CL110: 0.002377682104 | CM110: 0 | CN110: 2.132553748 | CO110: 0.002377593111 | CP110: 0 | CQ110: 2.169947329 | CR110: 0.002668597135 | CS110: 0 | CT110: 2.459054161 | CU110: 0.002909616439 | CV110: 0 | CW110: 2.458852021 | CX110: 0.002909833979 | CY110: 0 | CZ110: 2.605171288 | DA110: 0.003410091547 | DB110: 0 | DC110: 1.656105959 | DD110: 0.001386373131 | DE110: 0 | DF110: 1.66868436 | DG110: 0.001396646109 | DH110: 0 | DI110: 1.666350074 | DJ110: 0.001565006932 | DK110: 0 | DL110: 2.179191243 | DM110: 0.002134327837 | DN110: 0 | DO110: 2.170920512 | DP110: 0.00212608043 | DQ110: 0 | DR110: 2.208932033 | DS110: 0.002386242579 | DT110: 0 | DU110: 2.431155055 | DV110: 0.002527867493 | DW110: 0 | DX110: 2.486011558 | DY110: 0.002584599364 | DZ110: 0 | EA110: 2.633865706 | EB110: 0.003028850939 | EC110: 0
Z111: 1.008145274 | AA111: 0.3780642547 | AB111: 0.04410899961 | AC111: 0.9622572707 | AD111: 0.3605949012 | AE111: 0.1006001563 | AF111: 0.9622572707 | AG111: 0.3605949012 | AH111: 0.1006001563 | AI111: 1.006490587 | AJ111: 0.3774333783 | AK111: 0.05326418145 | AL111: 0.9954798519 | AM111: 0.3732384932 | AN111: 0.0709752918 | AO111: 0.9954798519 | AP111: 0.3732384932 | AQ111: 0.0709752918 | AR111: 1.009704211 | AS111: 0.3786586247 | AT111: 0.05619574685 | AU111: 1.005451587 | AV111: 0.3770334586 | AW111: 0.06738312854 | AX111: 1.005451587 | AY111: 0.3770334586 | AZ111: 0.06738312854 | BA111: 0.957845028 | BB111: 1.000115882 | BC111: 0.09211814737 | BD111: 0.9553895154 | BE111: 1.015767881 | BF111: 0.09122215766 | BG111: 0.9553895154 | BH111: 1.015767881 | BI111: 0.09122215766 | BJ111: 0.9499840972 | BK111: 0.9915571561 | BL111: 0.08867216163 | BM111: 0.930052247 | BN111: 0.9892670527 | BO111: 0.08245568713 | BP111: 0.930052247 | BQ111: 0.9892670527 | BR111: 0.08245568713 | BS111: 0.9578250083 | BT111: 1.000322523 | BU111: 0.06153678315 | BV111: 0.9205293777 | BW111: 0.9793318512 | BX111: 0.09061707975 | BY111: 0.9205293777 | BZ111: 0.9793318512 | CA111: 0.09061707975 | CB111: 1.079761464 | CC111: 0 | CD111: 0 | CE111: 1.08234438 | CF111: 0 | CG111: 0 | CH111: 1.037670356 | CI111: 0 | CJ111: 0 | CK111: 1.190941428 | CL111: 0 | CM111: 0 | CN111: 1.190166976 | CO111: 0 | CP111: 0 | CQ111: 1.092872225 | CR111: 0 | CS111: 0 | CT111: 1.265471841 | CU111: 0 | CV111: 0 | CW111: 1.26664161 | CX111: 0 | CY111: 0 | CZ111: 1.144626975 | DA111: 0 | DB111: 0 | DC111: 1.07103757 | DD111: 0 | DE111: 0 | DF111: 1.1247973 | DG111: 0 | DH111: 0 | DI111: 1.078371022 | DJ111: 0 | DK111: 0 | DL111: 1.183261367 | DM111: 0 | DN111: 0 | DO111: 1.195571134 | DP111: 0 | DQ111: 0 | DR111: 1.0978346 | DS111: 0 | DT111: 0 | DU111: 1.253309462 | DV111: 0 | DW111: 0 | DX111: 1.259773843 | DY111: 0 | DZ111: 0 | EA111: 1.138420776 | EB111: 0 | EC111: 0
Z112: 1.016201712 | AA112: 0.8700363968 | AB112: 0.07112306879 | AC112: 0.9940439945 | AD112: 0.8512499823 | AE112: 0.07994898793 | AF112: 0.9940439945 | AG112: 0.8512499823 | AH112: 0.07994898793 | AI112: 1.017367359 | AJ112: 0.871023614 | AK112: 0.06609676133 | AL112: 0.9980902951 | AM112: 0.8546907972 | AN112: 0.1099978099 | AO112: 0.9980902951 | AP112: 0.8546907972 | AQ112: 0.1099978099 | AR112: 1.014384742 | AS112: 0.8684975563 | AT112: 0.06176248796 | AU112: 0.9831351766 | AV112: 0.8419735526 | AW112: 0.1260945511 | AX112: 0.9831351766 | AY112: 0.8419735526 | AZ112: 0.1260945511 | BA112: 1.006046575 | BB112: 1.239004495 | BC112: 0.05117065757 | BD112: 1.001815542 | BE112: 1.237211222 | BF112: 0.02982668191 | BG112: 1.001815542 | BH112: 1.237211222 | BI112: 0.02982668191 | BJ112: 1.00404733 | BK112: 1.236632657 | BL112: 0.05251563145 | BM112: 1.001390919 | BN112: 1.236661309 | BO112: 0.02904727437 | BP112: 1.001390919 | BQ112: 1.236661309 | BR112: 0.02904727437 | BS112: 0.9989889534 | BT112: 1.230396675 | BU112: 0.04783706688 | BV112: 1.016731332 | BW112: 1.255483755 | BX112: 0.05606573279 | BY112: 1.016731332 | BZ112: 1.255483755 | CA112: 0.05606573279 | CB112: 0.8974012752 | CC112: 0 | CD112: 0 | CE112: 0.90364334 | CF112: 0 | CG112: 0 | CH112: 0.9104311664 | CI112: 0 | CJ112: 0 | CK112: 0.7944920609 | CL112: 0 | CM112: 0 | CN112: 0.8023770616 | CO112: 0 | CP112: 0 | CQ112: 0.8224506888 | CR112: 0 | CS112: 0 | CT112: 0.6929583872 | CU112: 0 | CV112: 0 | CW112: 0.7003225087 | CX112: 0 | CY112: 0 | CZ112: 0.7423542322 | DA112: 0 | DB112: 0 | DC112: 0.8830936461 | DD112: 0 | DE112: 0 | DF112: 0.9090576926 | DG112: 0 | DH112: 0 | DI112: 0.9158861896 | DJ112: 0 | DK112: 0 | DL112: 0.7809293801 | DM112: 0 | DN112: 0 | DO112: 0.8039122968 | DP112: 0 | DQ112: 0 | DR112: 0.8240243321 | DS112: 0 | DT112: 0 | DU112: 0.6831317138 | DV112: 0 | DW112: 0 | DX112: 0.7123359283 | DY112: 0 | DZ112: 0 | EA112: 0.7550886693 | EB112: 0 | EC112: 0
Z113: 0.981590893 | AA113: 0.7159921153 | AB113: 0.07772000077 | AC113: 0.9885479297 | AD113: 0.7210739567 | AE113: 0.09399514108 | AF113: 0.9885479297 | AG113: 0.7210739567 | AH113: 0.09399514108 | AI113: 1.012178393 | AJ113: 0.7383265644 | AK113: 0.0817451892 | AL113: 1.013327115 | AM113: 0.7391630868 | AN113: 0.0844205016 | AO113: 1.013327115 | AP113: 0.7391630868 | AQ113: 0.0844205016 | AR113: 1.027495729 | AS113: 0.7495110108 | AT113: 0.07870249032 | AU113: 1.015241436 | AV113: 0.7405605663 | AW113: 0.0853544743 | AX113: 1.015241436 | AY113: 0.7405605663 | AZ113: 0.0853544743 | BA113: 1.020251604 | BB113: 1.13857356 | BC113: 0.03639103652 | BD113: 1.021679998 | BE113: 1.149023145 | BF113: 0.03889107927 | BG113: 1.021679998 | BH113: 1.149023145 | BI113: 0.03889107927 | BJ113: 1.026657072 | BK113: 1.145795995 | BL113: 0.0304660666 | BM113: 1.027304535 | BN113: 1.155545933 | BO113: 0.03195333832 | BP113: 1.027304535 | BQ113: 1.155545933 | BR113: 0.03195333832 | BS113: 1.035518785 | BT113: 1.155732999 | BU113: 0.02818426332 | BV113: 1.035870793 | BW113: 1.165076147 | BX113: 0.04246792619 | BY113: 1.035870793 | BZ113: 1.165076147 | CA113: 0.04246792619 | CB113: 0.9798191999 | CC113: 0.004154793193 | CD113: 0 | CE113: 0.9945033373 | CF113: 0.004221940544 | CG113: 0 | CH113: 0.9955217262 | CI113: 0.004224907804 | CJ113: 0 | CK113: 0.9568202613 | CL113: 0.004099951245 | CM113: 0 | CN113: 0.9839826084 | CO113: 0.004196683924 | CP113: 0 | CQ113: 0.9927809644 | CR113: 0.004218327468 | CS113: 0 | CT113: 0.9441496175 | CU113: 0.004069737555 | CV113: 0 | CW113: 0.999331094 | CX113: 0.004233530313 | CY113: 0 | CZ113: 1.0223114 | DA113: 0.00428922753 | DB113: 0 | DC113: 0.99819508 | DD113: 0.005802847691 | DE113: 0 | DF113: 1.006024399 | DG113: 0.005855072846 | DH113: 0 | DI113: 1.007054586 | DJ113: 0.005859187903 | DK113: 0 | DL113: 0.9453079298 | DM113: 0.005553032279 | DN113: 0 | DO113: 0.9710414279 | DP113: 0.00567761567 | DQ113: 0 | DR113: 0.9797240693 | DS113: 0.005706896819 | DT113: 0 | DU113: 0.9188842262 | DV113: 0.005429856929 | DW113: 0 | DX113: 0.984328514 | DY113: 0.005716656416 | DZ113: 0 | EA113: 1.006963825 | EB113: 0.005791865953 | EC113: 0
Z114: 0.981590893 | AA114: 0.7159921153 | AB114: 0.07772000077 | AC114: 0.9885479297 | AD114: 0.7210739567 | AE114: 0.09399514108 | AF114: 0.9885479297 | AG114: 0.7210739567 | AH114: 0.09399514108 | AI114: 1.012178393 | AJ114: 0.7383265644 | AK114: 0.0817451892 | AL114: 1.013327115 | AM114: 0.7391630868 | AN114: 0.0844205016 | AO114: 1.013327115 | AP114: 0.7391630868 | AQ114: 0.0844205016 | AR114: 1.027495729 | AS114: 0.7495110108 | AT114: 0.07870249032 | AU114: 1.015241436 | AV114: 0.7405605663 | AW114: 0.0853544743 | AX114: 1.015241436 | AY114: 0.7405605663 | AZ114: 0.0853544743 | BA114: 1.020251604 | BB114: 1.13857356 | BC114: 0.03639103652 | BD114: 1.021679998 | BE114: 1.149023145 | BF114: 0.03889107927 | BG114: 1.021679998 | BH114: 1.149023145 | BI114: 0.03889107927 | BJ114: 1.026657072 | BK114: 1.145795995 | BL114: 0.0304660666 | BM114: 1.027304535 | BN114: 1.155545933 | BO114: 0.03195333832 | BP114: 1.027304535 | BQ114: 1.155545933 | BR114: 0.03195333832 | BS114: 1.035518785 | BT114: 1.155732999 | BU114: 0.02818426332 | BV114: 1.035870793 | BW114: 1.165076147 | BX114: 0.04246792619 | BY114: 1.035870793 | BZ114: 1.165076147 | CA114: 0.04246792619 | CB114: 0.9798191999 | CC114: 0.004154793193 | CD114: 0 | CE114: 0.9945033373 | CF114: 0.004221940544 | CG114: 0 | CH114: 0.9955217262 | CI114: 0.004224907804 | CJ114: 0 | CK114: 0.9568202613 | CL114: 0.004099951245 | CM114: 0 | CN114: 0.9839826084 | CO114: 0.004196683924 | CP114: 0 | CQ114: 0.9927809644 | CR114: 0.004218327468 | CS114: 0 | CT114: 0.9441496175 | CU114: 0.004069737555 | CV114: 0 | CW114: 0.999331094 | CX114: 0.004233530313 | CY114: 0 | CZ114: 1.0223114 | DA114: 0.00428922753 | DB114: 0 | DC114: 0.99819508 | DD114: 0.005802847691 | DE114: 0 | DF114: 1.006024399 | DG114: 0.005855072846 | DH114: 0 | DI114: 1.007054586 | DJ114: 0.005859187903 | DK114: 0 | DL114: 0.9453079298 | DM114: 0.005553032279 | DN114: 0 | DO114: 0.9710414279 | DP114: 0.00567761567 | DQ114: 0 | DR114: 0.9797240693 | DS114: 0.005706896819 | DT114: 0 | DU114: 0.9188842262 | DV114: 0.005429856929 | DW114: 0 | DX114: 0.984328514 | DY114: 0.005716656416 | DZ114: 0 | EA114: 1.006963825 | EB114: 0.005791865953 | EC114: 0
Z115: 1.038567056 | AA115: 0.7887846225 | AB115: 0.3132882293 | AC115: 1.106203179 | AD115: 0.8413563667 | AE115: 0.1378458511 | AF115: 1.106203179 | AG115: 0.8413563667 | AH115: 0.1378458511 | AI115: 1.094392431 | AJ115: 0.8316547308 | AK115: 0.250827771 | AL115: 1.108817278 | AM115: 0.8433793684 | AN115: 0.1675372854 | AO115: 1.108817278 | AP115: 0.8433793684 | AQ115: 0.1675372854 | AR115: 1.088201245 | AS115: 0.8269003194 | AT115: 0.1111673692 | AU115: 1.132105808 | AV115: 0.8614019207 | AW115: 0.1721532522 | AX115: 1.132105808 | AY115: 0.8614019207 | AZ115: 0.1721532522 | BA115: 1.019271458 | BB115: 0.3789189775 | BC115: 0.09018253292 | BD115: 0.9932009981 | BE115: 0.3650239686 | BF115: 0.1166269359 | BG115: 0.9932009981 | BH115: 0.3650239686 | BI115: 0.1166269359 | BJ115: 1.024177055 | BK115: 0.380821463 | BL115: 0.0941592991 | BM115: 0.9912842884 | BN115: 0.3650623537 | BO115: 0.09398255662 | BP115: 0.9912842884 | BQ115: 0.3650623537 | BR115: 0.09398255662 | BS115: 1.034920723 | BT115: 0.3831373747 | BU115: 0.1357253735 | BV115: 1.014211892 | BW115: 0.3730195009 | BX115: 0.1145452659 | BY115: 1.014211892 | BZ115: 0.3730195009 | CA115: 0.1145452659 | CB115: 0.9731126269 | CC115: 0 | CD115: 0 | CE115: 0.9663051623 | CF115: 0 | CG115: 0 | CH115: 0.9731435442 | CI115: 0 | CJ115: 0 | CK115: 0.9281770583 | CL115: 0 | CM115: 0 | CN115: 0.9505882662 | CO115: 0 | CP115: 0 | CQ115: 0.972069811 | CR115: 0 | CS115: 0 | CT115: 0.897234653 | CU115: 0 | CV115: 0 | CW115: 0.9209580523 | CX115: 0 | CY115: 0 | CZ115: 0.9596864384 | DA115: 0 | DB115: 0 | DC115: 0.9369762132 | DD115: 0 | DE115: 0 | DF115: 0.8735331632 | DG115: 0 | DH115: 0 | DI115: 0.879715013 | DJ115: 0 | DK115: 0 | DL115: 0.8481208676 | DM115: 0 | DN115: 0 | DO115: 0.8572992908 | DP115: 0 | DQ115: 0 | DR115: 0.8766726765 | DS115: 0 | DT115: 0 | DU115: 0.8245116946 | DV115: 0 | DW115: 0 | DX115: 0.8134911474 | DY115: 0 | DZ115: 0 | EA115: 0.8477003051 | EB115: 0 | EC115: 0
Z116: 1.013079228 | AA116: 0.7738681957 | AB116: 0.06763301801 | AC116: 1.013495114 | AD116: 0.7742734253 | AE116: 0.1929825485 | AF116: 1.013495114 | AG116: 0.7742734253 | AH116: 0.1929825485 | AI116: 1.004440279 | AJ116: 0.7672795581 | AK116: 0.1473358468 | AL116: 0.9915963035 | AM116: 0.7574290582 | AN116: 0.2031838339 | AO116: 0.9915963035 | AP116: 0.7574290582 | AQ116: 0.2031838339 | AR116: 0.990495404 | AS116: 0.7566442675 | AT116: 0.1589722877 | AU116: 0.9906940018 | AV116: 0.756735016 | AW116: 0.1800729681 | AX116: 0.9906940018 | AY116: 0.756735016 | AZ116: 0.1800729681 | BA116: 1.015382183 | BB116: 1.425735312 | BC116: 0.05592533676 | BD116: 0.9915959426 | BE116: 1.393848098 | BF116: 0.04417848961 | BG116: 0.9915959426 | BH116: 1.393848098 | BI116: 0.04417848961 | BJ116: 1.026861114 | BK116: 1.441998887 | BL116: 0.05623873618 | BM116: 1.000426976 | BN116: 1.406221781 | BO116: 0.04119653011 | BP116: 1.000426976 | BQ116: 1.406221781 | BR116: 0.04119653011 | BS116: 1.022464227 | BT116: 1.435851652 | BU116: 0.06383223675 | BV116: 1.027340242 | BW116: 1.443083532 | BX116: 0.06725146529 | BY116: 1.027340242 | BZ116: 1.443083532 | CA116: 0.06725146529 | CB116: 2.164335141 | CC116: 0.006242201103 | CD116: 0 | CE116: 2.171288932 | CF116: 0.006261669607 | CG116: 0 | CH116: 2.176744898 | CI116: 0.006477228365 | CJ116: 0 | CK116: 2.229064547 | CL116: 0.006439003861 | CM116: 0 | CN116: 2.248137385 | CO116: 0.006495278458 | CP116: 0 | CQ116: 2.300163097 | CR116: 0.00686013313 | CS116: 0 | CT116: 2.254972801 | CU116: 0.006517775103 | CV116: 0 | CW116: 2.287766099 | CX116: 0.006615744362 | CY116: 0 | CZ116: 2.393811228 | DA116: 0.007150676305 | DB116: 0 | DC116: 2.136392774 | DD116: 0.008066232903 | DE116: 0 | DF116: 2.142377305 | DG116: 0.008087155522 | DH116: 0 | DI116: 2.147760623 | DJ116: 0.00836555686 | DK116: 0 | DL116: 2.219210633 | DM116: 0.008391991932 | DN116: 0 | DO116: 2.267190163 | DP116: 0.008575428138 | DQ116: 0 | DR116: 2.319656789 | DS116: 0.009057129583 | DT116: 0 | DU116: 2.276611069 | DV116: 0.008614054692 | DW116: 0 | DX116: 2.309256032 | DY116: 0.008742484782 | DZ116: 0 | EA116: 2.416297286 | EB116: 0.009449379445 | EC116: 0
Z117: 0.9765628364 | AA117: 2.759345328 | AB117: 0.08449894023 | AC117: 1.02891911 | AD117: 2.907151714 | AE117: 0.1046162772 | AF117: 1.02891911 | AG117: 2.907151714 | AH117: 0.1046162772 | AI117: 0.998793809 | AJ117: 2.822400053 | AK117: 0.1208205031 | AL117: 1.033403424 | AM117: 2.919763149 | AN117: 0.1196351103 | AO117: 1.033403424 | AP117: 2.919763149 | AQ117: 0.1196351103 | AR117: 1.026088605 | AS117: 2.899817531 | AT117: 0.1171446447 | AU117: 1.018602972 | AV117: 2.878139185 | AW117: 0.1675226151 | AX117: 1.018602972 | AY117: 2.878139185 | AZ117: 0.1675226151 | BA117: 1.014786257 | BB117: 1.162596874 | BC117: 0.05506538846 | BD117: 0.9949263567 | BE117: 1.146958852 | BF117: 0.02690370593 | BG117: 0.9949263567 | BH117: 1.146958852 | BI117: 0.02690370593 | BJ117: 1.021982337 | BK117: 1.170889074 | BL117: 0.05386482636 | BM117: 1.007719973 | BN117: 1.161590616 | BO117: 0.0430120085 | BP117: 1.007719973 | BQ117: 1.161590616 | BR117: 0.0430120085 | BS117: 1.043610034 | BT117: 1.195278072 | BU117: 0.06137458229 | BV117: 1.025177517 | BW117: 1.18129528 | BX117: 0.06198378916 | BY117: 1.025177517 | BZ117: 1.18129528 | CA117: 0.06198378916 | CB117: 1.304503307 | CC117: 0.01797911064 | CD117: 0 | CE117: 1.305234882 | CF117: 0.01796268279 | CG117: 0 | CH117: 1.310596704 | CI117: 0.01810786502 | CJ117: 0 | CK117: 1.29997999 | CL117: 0.01792193803 | CM117: 0 | CN117: 1.309194437 | CO117: 0.01801268562 | CP117: 0 | CQ117: 1.330567457 | CR117: 0.01836073314 | CS117: 0 | CT117: 1.294368067 | CU117: 0.01785100595 | CV117: 0 | CW117: 1.314789262 | CX117: 0.01808333927 | CY117: 0 | CZ117: 1.358258597 | DA117: 0.01871135621 | DB117: 0 | DC117: 1.340240846 | DD117: 0.006551856857 | DE117: 0 | DF117: 1.272417844 | DG117: 0.006211201953 | DH117: 0 | DI117: 1.277650267 | DJ117: 0.006261430102 | DK117: 0 | DL117: 1.305769211 | DM117: 0.006384615408 | DN117: 0 | DO117: 1.270841622 | DP117: 0.006202082141 | DQ117: 0 | DR117: 1.29160293 | DS117: 0.006321991327 | DT117: 0 | DU117: 1.265463931 | DV117: 0.006189131743 | DW117: 0 | DX117: 1.295121654 | DY117: 0.006317944795 | DZ117: 0 | EA117: 1.337973602 | EB117: 0.006537520815 | EC117: 0
Z118: 0.981590893 | AA118: 0.7159921153 | AB118: 0.07772000077 | AC118: 0.9885479297 | AD118: 0.7210739567 | AE118: 0.09399514108 | AF118: 0.9885479297 | AG118: 0.7210739567 | AH118: 0.09399514108 | AI118: 1.012178393 | AJ118: 0.7383265644 | AK118: 0.0817451892 | AL118: 1.013327115 | AM118: 0.7391630868 | AN118: 0.0844205016 | AO118: 1.013327115 | AP118: 0.7391630868 | AQ118: 0.0844205016 | AR118: 1.027495729 | AS118: 0.7495110108 | AT118: 0.07870249032 | AU118: 1.015241436 | AV118: 0.7405605663 | AW118: 0.0853544743 | AX118: 1.015241436 | AY118: 0.7405605663 | AZ118: 0.0853544743 | BA118: 1.020251604 | BB118: 1.13857356 | BC118: 0.03639103652 | BD118: 1.021679998 | BE118: 1.149023145 | BF118: 0.03889107927 | BG118: 1.021679998 | BH118: 1.149023145 | BI118: 0.03889107927 | BJ118: 1.026657072 | BK118: 1.145795995 | BL118: 0.0304660666 | BM118: 1.027304535 | BN118: 1.155545933 | BO118: 0.03195333832 | BP118: 1.027304535 | BQ118: 1.155545933 | BR118: 0.03195333832 | BS118: 1.035518785 | BT118: 1.155732999 | BU118: 0.02818426332 | BV118: 1.035870793 | BW118: 1.165076147 | BX118: 0.04246792619 | BY118: 1.035870793 | BZ118: 1.165076147 | CA118: 0.04246792619 | CB118: 0.9798191999 | CC118: 0.004154793193 | CD118: 0 | CE118: 0.9945033373 | CF118: 0.004221940544 | CG118: 0 | CH118: 0.9955217262 | CI118: 0.004224907804 | CJ118: 0 | CK118: 0.9568202613 | CL118: 0.004099951245 | CM118: 0 | CN118: 0.9839826084 | CO118: 0.004196683924 | CP118: 0 | CQ118: 0.9927809644 | CR118: 0.004218327468 | CS118: 0 | CT118: 0.9441496175 | CU118: 0.004069737555 | CV118: 0 | CW118: 0.999331094 | CX118: 0.004233530313 | CY118: 0 | CZ118: 1.0223114 | DA118: 0.00428922753 | DB118: 0 | DC118: 0.99819508 | DD118: 0.005802847691 | DE118: 0 | DF118: 1.006024399 | DG118: 0.005855072846 | DH118: 0 | DI118: 1.007054586 | DJ118: 0.005859187903 | DK118: 0 | DL118: 0.9453079298 | DM118: 0.005553032279 | DN118: 0 | DO118: 0.9710414279 | DP118: 0.00567761567 | DQ118: 0 | DR118: 0.9797240693 | DS118: 0.005706896819 | DT118: 0 | DU118: 0.9188842262 | DV118: 0.005429856929 | DW118: 0 | DX118: 0.984328514 | DY118: 0.005716656416 | DZ118: 0 | EA118: 1.006963825 | EB118: 0.005791865953 | EC118: 0
Z119: 0.9995339675 | AA119: 0.67102907 | AB119: 0.1402235121 | AC119: 0.9825071728 | AD119: 0.6596923829 | AE119: 0.1337505381 | AF119: 0.9825071728 | AG119: 0.6596923829 | AH119: 0.1337505381 | AI119: 0.9573690487 | AJ119: 0.6427151419 | AK119: 0.1494767465 | AL119: 1.013853797 | AM119: 0.680568172 | AN119: 0.1427070514 | AO119: 1.013853797 | AP119: 0.680568172 | AQ119: 0.1427070514 | AR119: 0.9804715637 | AS119: 0.6582285822 | AT119: 0.1547020599 | AU119: 0.9843888703 | AV119: 0.6609455296 | AW119: 0.1748536359 | AX119: 0.9843888703 | AY119: 0.6609455296 | AZ119: 0.1748536359 | BA119: 1.015641845 | BB119: 1.061933259 | BC119: 0.05266105657 | BD119: 1.000593028 | BE119: 1.063812909 | BF119: 0.0317386816 | BG119: 1.000593028 | BH119: 1.063812909 | BI119: 0.0317386816 | BJ119: 1.023535579 | BK119: 1.070056704 | BL119: 0.05794119628 | BM119: 0.9845051992 | BN119: 1.046949405 | BO119: 0.03268794354 | BP119: 0.9845051992 | BQ119: 1.046949405 | BR119: 0.03268794354 | BS119: 1.041320701 | BT119: 1.088712353 | BU119: 0.04974647283 | BV119: 0.9935269963 | BW119: 1.056336374 | BX119: 0.03057495676 | BY119: 0.9935269963 | BZ119: 1.056336374 | CA119: 0.03057495676 | CB119: 1.15511106 | CC119: 0.002514061127 | CD119: 0 | CE119: 1.153012908 | CF119: 0.002754669414 | CG119: 0 | CH119: 1.180630176 | CI119: 0.003700777154 | CJ119: 0 | CK119: 1.256426074 | CL119: 0.003685822275 | CM119: 0 | CN119: 1.253185685 | CO119: 0.003925543749 | CP119: 0 | CQ119: 1.322359119 | CR119: 0.005397893939 | CS119: 0 | CT119: 1.307827699 | CU119: 0.004280308958 | CV119: 0 | CW119: 1.315333708 | CX119: 0.00465196391 | CY119: 0 | CZ119: 1.428351175 | DA119: 0.006667083505 | DB119: 0 | DC119: 1.15564963 | DD119: 0.003746575581 | DE119: 0 | DF119: 1.173541466 | DG119: 0.004175687769 | DH119: 0 | DI119: 1.201650439 | DJ119: 0.005609852789 | DK119: 0 | DL119: 1.312373819 | DM119: 0.005734768072 | DN119: 0 | DO119: 1.23606154 | DP119: 0.005768038987 | DQ119: 0 | DR119: 1.304289754 | DS119: 0.007931452221 | DT119: 0 | DU119: 1.333876216 | DV119: 0.006502769819 | DW119: 0 | DX119: 1.336193193 | DY119: 0.007038346885 | DZ119: 0 | EA119: 1.45100297 | EB119: 0.01008719056 | EC119: 0
Z120: 0.977674192 | AA120: 0.5050187737 | AB120: 0.1376613315 | AC120: 0.9993595964 | AD120: 0.5163550072 | AE120: 0.09539033918 | AF120: 0.9993595964 | AG120: 0.5163550072 | AH120: 0.09539033918 | AI120: 0.9679532788 | AJ120: 0.4999380077 | AK120: 0.1327939954 | AL120: 1.052524047 | AM120: 0.5439706707 | AN120: 0.1280293209 | AO120: 1.052524047 | AP120: 0.5439706707 | AQ120: 0.1280293209 | AR120: 1.031052628 | AS120: 0.5329177312 | AT120: 0.1278077226 | AU120: 1.012206029 | AV120: 0.5230279392 | AW120: 0.1522925182 | AX120: 1.012206029 | AY120: 0.5230279392 | AZ120: 0.1522925182 | BA120: 0.9878656481 | BB120: 1.206259187 | BC120: 0.04653304578 | BD120: 1.007342704 | BE120: 1.22880792 | BF120: 0.02385132538 | BG120: 1.007342704 | BH120: 1.22880792 | BI120: 0.02385132538 | BJ120: 0.9927830849 | BK120: 1.212312873 | BL120: 0.04378590015 | BM120: 0.9945151353 | BN120: 1.21319323 | BO120: 0.02976811124 | BP120: 0.9945151353 | BQ120: 1.21319323 | BR120: 0.02976811124 | BS120: 1.026164313 | BT120: 1.252858575 | BU120: 0.04364191855 | BV120: 0.9926086817 | BW120: 1.21107828 | BX120: 0.03477126015 | BY120: 0.9926086817 | BZ120: 1.21107828 | CA120: 0.03477126015 | CB120: 1.02424855 | CC120: 0.04770068804 | CD120: 0 | CE120: 1.023256724 | CF120: 0.04785575933 | CG120: 0 | CH120: 1.023100479 | CI120: 0.04692642105 | CJ120: 0 | CK120: 1.02141252 | CL120: 0.04759573346 | CM120: 0 | CN120: 1.021426334 | CO120: 0.04778784755 | CP120: 0 | CQ120: 1.030463694 | CR120: 0.04719625237 | CS120: 0 | CT120: 1.000049066 | CU120: 0.04680512406 | CV120: 0 | CW120: 1.001898908 | CX120: 0.04706333411 | CY120: 0 | CZ120: 1.027579851 | DA120: 0.04709057146 | DB120: 0 | DC120: 1.047637913 | DD120: 0.09445329663 | DE120: 0 | DF120: 1.023912442 | DG120: 0.09267995598 | DH120: 0 | DI120: 1.023756096 | DJ120: 0.09088015105 | DK120: 0 | DL120: 1.055229154 | DM120: 0.09520327065 | DN120: 0 | DO120: 0.9704541543 | DP120: 0.08785004435 | DQ120: 0 | DR120: 0.9790405236 | DS120: 0.08676249457 | DT120: 0 | DU120: 0.9699301848 | DV120: 0.08782804798 | DW120: 0 | DX120: 0.9898171704 | DY120: 0.08998244757 | DZ120: 0 | EA120: 1.015188431 | EB120: 0.09003452384 | EC120: 0
Z121: 0.9494554867 | AA121: 0.3130619177 | AB121: 0.1602193631 | AC121: 0.997844424 | AD121: 0.3291146344 | AE121: 0.1120372957 | AF121: 0.997844424 | AG121: 0.3291146344 | AH121: 0.1120372957 | AI121: 0.9123071799 | AJ121: 0.3007436272 | AK121: 0.2034472024 | AL121: 1.018811388 | AM121: 0.3359985615 | AN121: 0.1482127293 | AO121: 1.018811388 | AP121: 0.3359985615 | AQ121: 0.1482127293 | AR121: 0.9520323809 | AS121: 0.3139164097 | AT121: 0.2057034981 | AU121: 0.9540462454 | AV121: 0.3147347045 | AW121: 0.207953185 | AX121: 0.9540462454 | AY121: 0.3147347045 | AZ121: 0.207953185 | BA121: 0.9996157069 | BB121: 1.132790461 | BC121: 0.04501967536 | BD121: 1.009323239 | BE121: 1.143501915 | BF121: 0.03762959107 | BG121: 1.009323239 | BH121: 1.143501915 | BI121: 0.03762959107 | BJ121: 1.005076709 | BK121: 1.139206527 | BL121: 0.04396875323 | BM121: 0.9936810138 | BN121: 1.125991688 | BO121: 0.04217598924 | BP121: 0.9936810138 | BQ121: 1.125991688 | BR121: 0.04217598924 | BS121: 1.031148289 | BT121: 1.168304001 | BU121: 0.04943668164 | BV121: 1.007012523 | BW121: 1.141069557 | BX121: 0.03730734205 | BY121: 1.007012523 | BZ121: 1.141069557 | CA121: 0.03730734205 | CB121: 1.056443323 | CC121: 0.0153341385 | CD121: 0 | CE121: 1.053642502 | CF121: 0.01548963391 | CG121: 0 | CH121: 1.064750958 | CI121: 0.01591509484 | CJ121: 0 | CK121: 1.074313687 | CL121: 0.01562721022 | CM121: 0 | CN121: 1.08711994 | CO121: 0.01604194326 | CP121: 0 | CQ121: 1.118617852 | CR121: 0.01681010712 | CS121: 0 | CT121: 1.084125855 | CU121: 0.01578812853 | CV121: 0 | CW121: 1.104319554 | CX121: 0.01632570176 | CY121: 0 | CZ121: 1.160359018 | DA121: 0.01750364733 | DB121: 0 | DC121: 1.112683362 | DD121: 0.04898116835 | DE121: 0 | DF121: 1.055918615 | DG121: 0.04706455531 | DH121: 0 | DI121: 1.067051068 | DJ121: 0.04835729917 | DK121: 0 | DL121: 1.177578902 | DM121: 0.05196189981 | DN121: 0 | DO121: 1.0670473 | DP121: 0.04774408315 | DQ121: 0 | DR121: 1.097963632 | DS121: 0.05003029491 | DT121: 0 | DU121: 1.138748929 | DV121: 0.05029405293 | DW121: 0 | DX121: 1.157511556 | DY121: 0.05187131108 | DZ121: 0 | EA121: 1.216250285 | EB121: 0.05561397291 | EC121: 0
Z122: 0.9019090539 | AA122: 0.3008318183 | AB122: 0.5045126607 | AC122: 1.029497816 | AD122: 0.3373488781 | AE122: 0.4128709335 | AF122: 1.029497816 | AG122: 0.3373488781 | AH122: 0.4128709335 | AI122: 1.007042707 | AJ122: 0.3309860932 | AK122: 0.5436471002 | AL122: 1.019162845 | AM122: 0.3344118602 | AN122: 0.4866112069 | AO122: 1.019162845 | AP122: 0.3344118602 | AQ122: 0.4866112069 | AR122: 0.9860101966 | AS122: 0.3249535806 | AT122: 0.6013481228 | AU122: 1.083187067 | AV122: 0.3526064243 | AW122: 0.607967764 | AX122: 1.083187067 | AY122: 0.3526064243 | AZ122: 0.607967764 | BA122: 1.010849099 | BB122: 1.160907523 | BC122: 0.1327170194 | BD122: 1.02797166 | BE122: 1.178752983 | BF122: 0.07872215989 | BG122: 1.02797166 | BH122: 1.178752983 | BI122: 0.07872215989 | BJ122: 1.014535598 | BK122: 1.166334286 | BL122: 0.09583431708 | BM122: 1.038576015 | BN122: 1.190517329 | BO122: 0.08886384162 | BP122: 1.038576015 | BQ122: 1.190517329 | BR122: 0.08886384162 | BS122: 1.032821664 | BT122: 1.187521272 | BU122: 0.09811325444 | BV122: 1.03617929 | BW122: 1.18400528 | BX122: 0.1365638217 | BY122: 1.03617929 | BZ122: 1.18400528 | CA122: 0.1365638217 | CB122: 1.035812427 | CC122: 0 | CD122: 0 | CE122: 1.037171667 | CF122: 0 | CG122: 0 | CH122: 1.04471523 | CI122: 0 | CJ122: 0 | CK122: 1.047480146 | CL122: 0 | CM122: 0 | CN122: 1.056981075 | CO122: 0 | CP122: 0 | CQ122: 1.080426977 | CR122: 0.001787807988 | CS122: 0 | CT122: 1.048147127 | CU122: 0 | CV122: 0 | CW122: 1.063054293 | CX122: 0 | CY122: 0 | CZ122: 1.106824161 | DA122: 0.004069829641 | DB122: 0 | DC122: 1.148466603 | DD122: 0 | DE122: 0 | DF122: 1.007453975 | DG122: 0 | DH122: 0 | DI122: 1.014781395 | DJ122: 0 | DK122: 0 | DL122: 1.040154642 | DM122: 0 | DN122: 0 | DO122: 1.037107151 | DP122: 0 | DQ122: 0 | DR122: 1.06011221 | DS122: 0.005346126143 | DT122: 0 | DU122: 1.063018548 | DV122: 0 | DW122: 0 | DX122: 0.9814133911 | DY122: 0 | DZ122: 0 | EA122: 1.021821802 | EB122: 0.01154213129 | EC122: 0
Z123: 1.038367504 | AA123: 0.3961479825 | AB123: 0.1916425614 | AC123: 0.9964946291 | AD123: 0.3804318961 | AE123: 0.2064972247 | AF123: 0.9964946291 | AG123: 0.3804318961 | AH123: 0.2064972247 | AI123: 1.00688613 | AJ123: 0.3843316627 | AK123: 0.1743601118 | AL123: 1.075911494 | AM123: 0.4102266012 | AN123: 0.1731228571 | AO123: 1.075911494 | AP123: 0.4102266012 | AQ123: 0.1731228571 | AR123: 0.9730566633 | AS123: 0.3716340025 | AT123: 0.1218301424 | AU123: 1.023843127 | AV123: 0.3906921906 | AW123: 0.1637531028 | AX123: 1.023843127 | AY123: 0.3906921906 | AZ123: 0.1637531028 | BA123: 1.018912801 | BB123: 0.5038517921 | BC123: 0.1008472532 | BD123: 1.048842452 | BE123: 0.5072667787 | BF123: 0.06336785649 | BG123: 1.048842452 | BH123: 0.5072667787 | BI123: 0.06336785649 | BJ123: 1.030143658 | BK123: 0.5096024138 | BL123: 0.0869926697 | BM123: 1.05380781 | BN123: 0.5095375084 | BO123: 0.07955016404 | BP123: 1.05380781 | BQ123: 0.5095375084 | BR123: 0.07955016404 | BS123: 1.03800084 | BT123: 0.5137332133 | BU123: 0.06694363005 | BV123: 1.06980717 | BW123: 0.5175063813 | BX123: 0.07790018529 | BY123: 1.06980717 | BZ123: 0.5175063813 | CA123: 0.07790018529 | CB123: 1.047149956 | CC123: 0.006202284258 | CD123: 0 | CE123: 1.047982053 | CF123: 0.006866827919 | CG123: 0 | CH123: 1.060634163 | CI123: 0.007317702759 | CJ123: 0 | CK123: 1.075511546 | CL123: 0.006597729512 | CM123: 0 | CN123: 1.078481664 | CO123: 0.00730180751 | CP123: 0 | CQ123: 1.113006789 | CR123: 0.008071504354 | CS123: 0 | CT123: 1.101220403 | CU123: 0.006956187746 | CV123: 0 | CW123: 1.133958234 | CX123: 0.008093003697 | CY123: 0 | CZ123: 1.194319574 | DA123: 0.009241842977 | DB123: 0 | DC123: 1.008457942 | DD123: 0.01565648326 | DE123: 0 | DF123: 1.051668541 | DG123: 0.01805008463 | DH123: 0 | DI123: 1.064365158 | DJ123: 0.01923525034 | DK123: 0 | DL123: 1.068156085 | DM123: 0.01716676026 | DN123: 0 | DO123: 1.00238883 | DP123: 0.01779944911 | DQ123: 0 | DR123: 1.034478017 | DS123: 0.01967572149 | DT123: 0 | DU123: 1.131712515 | DV123: 0.01871784524 | DW123: 0 | DX123: 1.107550761 | DY123: 0.0207145264 | DZ123: 0 | EA123: 1.166506413 | EB123: 0.02365504917 | EC123: 0
Z124: 1.030314234 | AA124: 0.4722328086 | AB124: 0.06911200527 | AC124: 1.041928382 | AD124: 0.4774229499 | AE124: 0.1453965836 | AF124: 1.041928382 | AG124: 0.4774229499 | AH124: 0.1453965836 | AI124: 1.047598541 | AJ124: 0.4800483156 | AK124: 0.1028550987 | AL124: 1.0585405 | AM124: 0.4849101563 | AN124: 0.1448014004 | AO124: 1.0585405 | AP124: 0.4849101563 | AQ124: 0.1448014004 | AR124: 1.063849267 | AS124: 0.487396464 | AT124: 0.07598692013 | AU124: 1.062971958 | AV124: 0.4869074473 | AW124: 0.1581488071 | AX124: 1.062971958 | AY124: 0.4869074473 | AZ124: 0.1581488071 | BA124: 1.016150332 | BB124: 1.350426937 | BC124: 0.0568179909 | BD124: 0.9981003972 | BE124: 1.327404128 | BF124: 0.03628846879 | BG124: 0.9981003972 | BH124: 1.327404128 | BI124: 0.03628846879 | BJ124: 1.033349189 | BK124: 1.373373003 | BL124: 0.06755271078 | BM124: 1.004087019 | BN124: 1.335442491 | BO124: 0.04292339571 | BP124: 1.004087019 | BQ124: 1.335442491 | BR124: 0.04292339571 | BS124: 1.040880351 | BT124: 1.383422473 | BU124: 0.06118809575 | BV124: 1.026042895 | BW124: 1.363934529 | BX124: 0.05913356664 | BY124: 1.026042895 | BZ124: 1.363934529 | CA124: 0.05913356664 | CB124: 2.174315094 | CC124: 0.0055226953 | CD124: 0 | CE124: 2.185371327 | CF124: 0.005553800717 | CG124: 0 | CH124: 2.190951695 | CI124: 0.005743185223 | CJ124: 0 | CK124: 2.222203783 | CL124: 0.005662504942 | CM124: 0 | CN124: 2.249757672 | CO124: 0.005741751079 | CP124: 0 | CQ124: 2.300252247 | CR124: 0.006068173841 | CS124: 0 | CT124: 2.244588127 | CU124: 0.005727855388 | CV124: 0 | CW124: 2.278047032 | CX124: 0.00582433063 | CY124: 0 | CZ124: 2.381453647 | DA124: 0.006309613892 | DB124: 0 | DC124: 2.110341702 | DD124: 0.01169485728 | DE124: 0 | DF124: 2.097429502 | DG124: 0.01163287336 | DH124: 0 | DI124: 2.10278531 | DJ124: 0.01202955414 | DK124: 0 | DL124: 2.121236041 | DM124: 0.01179569797 | DN124: 0 | DO124: 2.125339248 | DP124: 0.01184085547 | DQ124: 0 | DR124: 2.173041321 | DS124: 0.0125140168 | DT124: 0 | DU124: 2.109874206 | DV124: 0.01175194285 | DW124: 0 | DX124: 2.143092313 | DY124: 0.01196188447 | DZ124: 0 | EA124: 2.240372975 | EB124: 0.01295854875 | EC124: 0
Z125: 0.981590893 | AA125: 0.7159921153 | AB125: 0.07772000077 | AC125: 0.9885479297 | AD125: 0.7210739567 | AE125: 0.09399514108 | AF125: 0.9885479297 | AG125: 0.7210739567 | AH125: 0.09399514108 | AI125: 1.012178393 | AJ125: 0.7383265644 | AK125: 0.0817451892 | AL125: 1.013327115 | AM125: 0.7391630868 | AN125: 0.0844205016 | AO125: 1.013327115 | AP125: 0.7391630868 | AQ125: 0.0844205016 | AR125: 1.027495729 | AS125: 0.7495110108 | AT125: 0.07870249032 | AU125: 1.015241436 | AV125: 0.7405605663 | AW125: 0.0853544743 | AX125: 1.015241436 | AY125: 0.7405605663 | AZ125: 0.0853544743 | BA125: 1.020251604 | BB125: 1.13857356 | BC125: 0.03639103652 | BD125: 1.021679998 | BE125: 1.149023145 | BF125: 0.03889107927 | BG125: 1.021679998 | BH125: 1.149023145 | BI125: 0.03889107927 | BJ125: 1.026657072 | BK125: 1.145795995 | BL125: 0.0304660666 | BM125: 1.027304535 | BN125: 1.155545933 | BO125: 0.03195333832 | BP125: 1.027304535 | BQ125: 1.155545933 | BR125: 0.03195333832 | BS125: 1.035518785 | BT125: 1.155732999 | BU125: 0.02818426332 | BV125: 1.035870793 | BW125: 1.165076147 | BX125: 0.04246792619 | BY125: 1.035870793 | BZ125: 1.165076147 | CA125: 0.04246792619 | CB125: 0.9798191999 | CC125: 0.004154793193 | CD125: 0 | CE125: 0.9945033373 | CF125: 0.004221940544 | CG125: 0 | CH125: 0.9955217262 | CI125: 0.004224907804 | CJ125: 0 | CK125: 0.9568202613 | CL125: 0.004099951245 | CM125: 0 | CN125: 0.9839826084 | CO125: 0.004196683924 | CP125: 0 | CQ125: 0.9927809644 | CR125: 0.004218327468 | CS125: 0 | CT125: 0.9441496175 | CU125: 0.004069737555 | CV125: 0 | CW125: 0.999331094 | CX125: 0.004233530313 | CY125: 0 | CZ125: 1.0223114 | DA125: 0.00428922753 | DB125: 0 | DC125: 0.99819508 | DD125: 0.005802847691 | DE125: 0 | DF125: 1.006024399 | DG125: 0.005855072846 | DH125: 0 | DI125: 1.007054586 | DJ125: 0.005859187903 | DK125: 0 | DL125: 0.9453079298 | DM125: 0.005553032279 | DN125: 0 | DO125: 0.9710414279 | DP125: 0.00567761567 | DQ125: 0 | DR125: 0.9797240693 | DS125: 0.005706896819 | DT125: 0 | DU125: 0.9188842262 | DV125: 0.005429856929 | DW125: 0 | DX125: 0.984328514 | DY125: 0.005716656416 | DZ125: 0 | EA125: 1.006963825 | EB125: 0.005791865953 | EC125: 0
Z126: 0.970744498 | AA126: 0.1975216217 | AB126: 0.3060318315 | AC126: 1.140320417 | AD126: 0.231120748 | AE126: 0.2821993636 | AF126: 1.140320417 | AG126: 0.231120748 | AH126: 0.2821993636 | AI126: 1.03682323 | AJ126: 0.2107428607 | AK126: 0.4338963801 | AL126: 1.123293612 | AM126: 0.2277540331 | AN126: 0.3509217741 | AO126: 1.123293612 | AP126: 0.2277540331 | AQ126: 0.3509217741 | AR126: 1.141483216 | AS126: 0.2316835576 | AT126: 0.4643750082 | AU126: 1.164238405 | AV126: 0.2358500582 | AW126: 0.422617133 | AX126: 1.164238405 | AY126: 0.2358500582 | AZ126: 0.422617133 | BA126: 1.017044238 | BB126: 1.033907342 | BC126: 0.09791077173 | BD126: 1.009597782 | BE126: 1.025439181 | BF126: 0.09601255291 | BG126: 1.009597782 | BH126: 1.025439181 | BI126: 0.09601255291 | BJ126: 1.012030638 | BK126: 1.031102105 | BL126: 0.06675885578 | BM126: 1.031979453 | BN126: 1.047222995 | BO126: 0.1018541722 | BP126: 1.031979453 | BQ126: 1.047222995 | BR126: 0.1018541722 | BS126: 1.026020824 | BT126: 1.043335093 | BU126: 0.09963003575 | BV126: 1.059581136 | BW126: 1.072642678 | BX126: 0.1317565391 | BY126: 1.059581136 | BZ126: 1.072642678 | CA126: 0.1317565391 | CB126: 1.062372411 | CC126: 0.0288142834 | CD126: 0 | CE126: 1.063374306 | CF126: 0.02875517926 | CG126: 0 | CH126: 1.06466125 | CI126: 0.02832319753 | CJ126: 0 | CK126: 1.052584864 | CL126: 0.02855070501 | CM126: 0 | CN126: 1.060012445 | CO126: 0.02866478469 | CP126: 0 | CQ126: 1.071254513 | CR126: 0.02849898889 | CS126: 0 | CT126: 1.025973712 | CU126: 0.02783406731 | CV126: 0 | CW126: 1.041538375 | CX126: 0.02816804916 | CY126: 0 | CZ126: 1.069420787 | DA126: 0.02845009759 | DB126: 0 | DC126: 1.09438932 | DD126: 0.1458791354 | DE126: 0 | DF126: 0.932522377 | DG126: 0.1244162608 | DH126: 0 | DI126: 0.9336509578 | DJ126: 0.122547187 | DK126: 0 | DL126: 1.015201853 | DM126: 0.1354764992 | DN126: 0 | DO126: 0.9436646256 | DP126: 0.1258585163 | DQ126: 0 | DR126: 0.9536727548 | DS126: 0.1251305564 | DT126: 0 | DU126: 0.8988075311 | DV126: 0.1201382938 | DW126: 0 | DX126: 0.8946091884 | DY126: 0.1194320212 | DZ126: 0 | EA126: 0.918558246 | EB126: 0.1206279015 | EC126: 0
Z127: 0.7446766537 | AA127: 0.07549770743 | AB127: 0.3011716108 | AC127: 0.9050964492 | AD127: 0.09118358524 | AE127: 0.3326313842 | AF127: 0.9050964492 | AG127: 0.09118358524 | AH127: 0.3326313842 | AI127: 0.8146974556 | AJ127: 0.08216510972 | AK127: 0.3530449274 | AL127: 0.9391877704 | AM127: 0.09428225536 | AN127: 0.3496475234 | AO127: 0.9391877704 | AP127: 0.09428225536 | AQ127: 0.3496475234 | AR127: 0.8603945128 | AS127: 0.08651639757 | AT127: 0.4916422076 | AU127: 0.9807773775 | AV127: 0.09806246886 | AW127: 0.5512072625 | AX127: 0.9807773775 | AY127: 0.09806246886 | AZ127: 0.5512072625 | BA127: 0.9911952594 | BB127: 1.166848512 | BC127: 0.1133706463 | BD127: 1.026541654 | BE127: 1.22896365 | BF127: 0.1389548383 | BG127: 1.026541654 | BH127: 1.22896365 | BI127: 0.1389548383 | BJ127: 0.9923781472 | BK127: 1.16900057 | BL127: 0.1142536075 | BM127: 1.045277742 | BN127: 1.254526361 | BO127: 0.1139410642 | BP127: 1.045277742 | BQ127: 1.254526361 | BR127: 0.1139410642 | BS127: 1.062348624 | BT127: 1.248995478 | BU127: 0.1327400329 | BV127: 1.053618507 | BW127: 1.265676891 | BX127: 0.1366269618 | BY127: 1.053618507 | BZ127: 1.265676891 | CA127: 0.1366269618 | CB127: 2.491429554 | CC127: 0.01629755835 | CD127: 0 | CE127: 2.451947136 | CF127: 0.01602113978 | CG127: 0 | CH127: 2.453945168 | CI127: 0.0160981841 | CJ127: 0 | CK127: 2.453717872 | CL127: 0.01603954808 | CM127: 0 | CN127: 2.44072606 | CO127: 0.01594438952 | CP127: 0 | CQ127: 2.465590725 | CR127: 0.01617805143 | CS127: 0 | CT127: 2.435107023 | CU127: 0.0159122191 | CV127: 0 | CW127: 2.45151721 | CX127: 0.01601819916 | CY127: 0 | CZ127: 2.51116104 | DA127: 0.01649058085 | DB127: 0 | DC127: 3.34565283 | DD127: 0.2158682548 | DE127: 0 | DF127: 2.709045139 | DG127: 0.1757020163 | DH127: 0 | DI127: 2.711252674 | DJ127: 0.1765469526 | DK127: 0 | DL127: 3.011814821 | DM127: 0.1952111807 | DN127: 0 | DO127: 2.598762608 | DP127: 0.1691133656 | DQ127: 0 | DR127: 2.625237255 | DS127: 0.1715916889 | DT127: 0 | DU127: 2.83022147 | DV127: 0.1839214247 | DW127: 0 | DX127: 2.499565412 | DY127: 0.1633468884 | DZ127: 0 | EA127: 2.560378224 | EB127: 0.1681640391 | EC127: 0
Z128: 0.9470061798 | AA128: 6.281061614 | AB128: 0.1312354931 | AC128: 0.9712818549 | AD128: 6.444930283 | AE128: 0.1175440191 | AF128: 0.9712818549 | AG128: 6.444930283 | AH128: 0.1175440191 | AI128: 0.9602103213 | AJ128: 6.369829743 | AK128: 0.1652805158 | AL128: 1.014693308 | AM128: 6.735762696 | AN128: 0.1096038084 | AO128: 1.014693308 | AP128: 6.735762696 | AQ128: 0.1096038084 | AR128: 1.008938966 | AS128: 6.69742019 | AT128: 0.1958937557 | AU128: 1.012231291 | AV128: 6.719268561 | AW128: 0.1912556231 | AX128: 1.012231291 | AY128: 6.719268561 | AZ128: 0.1912556231 | BA128: 1.006022771 | BB128: 1.100603554 | BC128: 0.04142095676 | BD128: 1.010161028 | BE128: 1.09894928 | BF128: 0.04343682355 | BG128: 1.010161028 | BH128: 1.09894928 | BI128: 0.04343682355 | BJ128: 1.008372698 | BK128: 1.102670851 | BL128: 0.0501052148 | BM128: 1.009465421 | BN128: 1.098270497 | BO128: 0.04058299556 | BP128: 1.009465421 | BQ128: 1.098270497 | BR128: 0.04058299556 | BS128: 1.038127439 | BT128: 1.135679705 | BU128: 0.04588931256 | BV128: 1.025760841 | BW128: 1.116425813 | BX128: 0.03527241824 | BY128: 1.025760841 | BZ128: 1.116425813 | CA128: 0.03527241824 | CB128: 1.1672952 | CC128: 0.05749904424 | CD128: 0 | CE128: 1.148235039 | CF128: 0.05686152704 | CG128: 0 | CH128: 1.149033485 | CI128: 0.05689376106 | CJ128: 0 | CK128: 1.14691887 | CL128: 0.05667767377 | CM128: 0 | CN128: 1.138219957 | CO128: 0.05645720902 | CP128: 0 | CQ128: 1.147485879 | CR128: 0.05683128278 | CS128: 0 | CT128: 1.137115723 | CU128: 0.05628250861 | CV128: 0 | CW128: 1.134434729 | CX128: 0.05630439591 | CY128: 0 | CZ128: 1.158121975 | DA128: 0.05726067171 | DB128: 0 | DC128: 1.237465057 | DD128: 0.009332235368 | DE128: 0 | DF128: 1.186335689 | DG128: 0.00898925741 | DH128: 0 | DI128: 1.18717297 | DJ128: 0.008994449833 | DK128: 0 | DL128: 1.198940368 | DM128: 0.009068908003 | DN128: 0 | DO128: 1.125127934 | DP128: 0.008535126966 | DQ128: 0 | DR128: 1.134323572 | DS128: 0.008591956198 | DT128: 0 | DU128: 1.130504989 | DV128: 0.008558369681 | DW128: 0 | DX128: 1.124387183 | DY128: 0.008535512806 | DZ128: 0 | EA128: 1.147936391 | EB128: 0.008681028311 | EC128: 0
Z129: 0.9401754902 | AA129: 3.537527583 | AB129: 0.133598897 | AC129: 0.9704848025 | AD129: 3.653326571 | AE129: 0.1171973805 | AF129: 0.9704848025 | AG129: 3.653326571 | AH129: 0.1171973805 | AI129: 0.9554350283 | AJ129: 3.595573398 | AK129: 0.1675791072 | AL129: 1.014117731 | AM129: 3.818555069 | AN129: 0.1131671484 | AO129: 1.014117731 | AP129: 3.818555069 | AQ129: 0.1131671484 | AR129: 1.003027481 | AS129: 3.776610512 | AT129: 0.1999268137 | AU129: 1.011467079 | AV129: 3.808517621 | AW129: 0.2029331765 | AX129: 1.011467079 | AY129: 3.808517621 | AZ129: 0.2029331765 | BA129: 1.009032552 | BB129: 1.058108615 | BC129: 0.04501982305 | BD129: 1.008831632 | BE129: 1.04991202 | BF129: 0.04462847946 | BG129: 1.008831632 | BH129: 1.04991202 | BI129: 0.04462847946 | BJ129: 1.011235323 | BK129: 1.059936118 | BL129: 0.05517189305 | BM129: 1.009803855 | BN129: 1.05095839 | BO129: 0.04449621909 | BP129: 1.009803855 | BQ129: 1.05095839 | BR129: 0.04449621909 | BS129: 1.04320823 | BT129: 1.093876547 | BU129: 0.04744436822 | BV129: 1.031293044 | BW129: 1.073683541 | BX129: 0.03726323925 | BY129: 1.031293044 | BZ129: 1.073683541 | CA129: 0.03726323925 | CB129: 1.329247784 | CC129: 0.02687360951 | CD129: 0 | CE129: 1.314806205 | CF129: 0.02635246563 | CG129: 0 | CH129: 1.31869709 | CI129: 0.02649447577 | CJ129: 0 | CK129: 1.321370464 | CL129: 0.02671151626 | CM129: 0 | CN129: 1.311868634 | CO129: 0.02629230284 | CP129: 0 | CQ129: 1.32962995 | CR129: 0.02671867952 | CS129: 0 | CT129: 1.311452824 | CU129: 0.0265074389 | CV129: 0 | CW129: 1.313041549 | CX129: 0.02631632467 | CY129: 0 | CZ129: 1.351020787 | DA129: 0.02715734845 | DB129: 0 | DC129: 1.422780152 | DD129: 0.007790169694 | DE129: 0 | DF129: 1.362224081 | DG129: 0.007389808857 | DH129: 0 | DI129: 1.366270554 | DJ129: 0.007429716742 | DK129: 0 | DL129: 1.391400206 | DM129: 0.007616020749 | DN129: 0 | DO129: 1.299849466 | DP129: 0.007048959508 | DQ129: 0 | DR129: 1.317491956 | DS129: 0.007163510881 | DT129: 0 | DU129: 1.314238699 | DV129: 0.007188476273 | DW129: 0 | DX129: 1.304935961 | DY129: 0.007077191254 | DZ129: 0 | EA129: 1.342766696 | EB129: 0.007303836286 | EC129: 0
Z130: 0.9494554867 | AA130: 0.3130619177 | AB130: 0.1602193631 | AC130: 0.997844424 | AD130: 0.3291146344 | AE130: 0.1120372957 | AF130: 0.997844424 | AG130: 0.3291146344 | AH130: 0.1120372957 | AI130: 0.9123071799 | AJ130: 0.3007436272 | AK130: 0.2034472024 | AL130: 1.018811388 | AM130: 0.3359985615 | AN130: 0.1482127293 | AO130: 1.018811388 | AP130: 0.3359985615 | AQ130: 0.1482127293 | AR130: 0.9520323809 | AS130: 0.3139164097 | AT130: 0.2057034981 | AU130: 0.9540462454 | AV130: 0.3147347045 | AW130: 0.207953185 | AX130: 0.9540462454 | AY130: 0.3147347045 | AZ130: 0.207953185 | BA130: 0.9996157069 | BB130: 1.132790461 | BC130: 0.04501967536 | BD130: 1.009323239 | BE130: 1.143501915 | BF130: 0.03762959107 | BG130: 1.009323239 | BH130: 1.143501915 | BI130: 0.03762959107 | BJ130: 1.005076709 | BK130: 1.139206527 | BL130: 0.04396875323 | BM130: 0.9936810138 | BN130: 1.125991688 | BO130: 0.04217598924 | BP130: 0.9936810138 | BQ130: 1.125991688 | BR130: 0.04217598924 | BS130: 1.031148289 | BT130: 1.168304001 | BU130: 0.04943668164 | BV130: 1.007012523 | BW130: 1.141069557 | BX130: 0.03730734205 | BY130: 1.007012523 | BZ130: 1.141069557 | CA130: 0.03730734205 | CB130: 1.056443323 | CC130: 0.0153341385 | CD130: 0 | CE130: 1.053642502 | CF130: 0.01548963391 | CG130: 0 | CH130: 1.064750958 | CI130: 0.01591509484 | CJ130: 0 | CK130: 1.074313687 | CL130: 0.01562721022 | CM130: 0 | CN130: 1.08711994 | CO130: 0.01604194326 | CP130: 0 | CQ130: 1.118617852 | CR130: 0.01681010712 | CS130: 0 | CT130: 1.084125855 | CU130: 0.01578812853 | CV130: 0 | CW130: 1.104319554 | CX130: 0.01632570176 | CY130: 0 | CZ130: 1.160359018 | DA130: 0.01750364733 | DB130: 0 | DC130: 1.112683362 | DD130: 0.04898116835 | DE130: 0 | DF130: 1.055918615 | DG130: 0.04706455531 | DH130: 0 | DI130: 1.067051068 | DJ130: 0.04835729917 | DK130: 0 | DL130: 1.177578902 | DM130: 0.05196189981 | DN130: 0 | DO130: 1.0670473 | DP130: 0.04774408315 | DQ130: 0 | DR130: 1.097963632 | DS130: 0.05003029491 | DT130: 0 | DU130: 1.138748929 | DV130: 0.05029405293 | DW130: 0 | DX130: 1.157511556 | DY130: 0.05187131108 | DZ130: 0 | EA130: 1.216250285 | EB130: 0.05561397291 | EC130: 0
Z131: 1.038567056 | AA131: 0.7887846225 | AB131: 0.3132882293 | AC131: 1.106203179 | AD131: 0.8413563667 | AE131: 0.1378458511 | AF131: 1.106203179 | AG131: 0.8413563667 | AH131: 0.1378458511 | AI131: 1.094392431 | AJ131: 0.8316547308 | AK131: 0.250827771 | AL131: 1.108817278 | AM131: 0.8433793684 | AN131: 0.1675372854 | AO131: 1.108817278 | AP131: 0.8433793684 | AQ131: 0.1675372854 | AR131: 1.088201245 | AS131: 0.8269003194 | AT131: 0.1111673692 | AU131: 1.132105808 | AV131: 0.8614019207 | AW131: 0.1721532522 | AX131: 1.132105808 | AY131: 0.8614019207 | AZ131: 0.1721532522 | BA131: 1.019271458 | BB131: 0.3789189775 | BC131: 0.09018253292 | BD131: 0.9932009981 | BE131: 0.3650239686 | BF131: 0.1166269359 | BG131: 0.9932009981 | BH131: 0.3650239686 | BI131: 0.1166269359 | BJ131: 1.024177055 | BK131: 0.380821463 | BL131: 0.0941592991 | BM131: 0.9912842884 | BN131: 0.3650623537 | BO131: 0.09398255662 | BP131: 0.9912842884 | BQ131: 0.3650623537 | BR131: 0.09398255662 | BS131: 1.034920723 | BT131: 0.3831373747 | BU131: 0.1357253735 | BV131: 1.014211892 | BW131: 0.3730195009 | BX131: 0.1145452659 | BY131: 1.014211892 | BZ131: 0.3730195009 | CA131: 0.1145452659 | CB131: 0.9731126269 | CC131: 0 | CD131: 0 | CE131: 0.9663051623 | CF131: 0 | CG131: 0 | CH131: 0.9731435442 | CI131: 0 | CJ131: 0 | CK131: 0.9281770583 | CL131: 0 | CM131: 0 | CN131: 0.9505882662 | CO131: 0 | CP131: 0 | CQ131: 0.972069811 | CR131: 0 | CS131: 0 | CT131: 0.897234653 | CU131: 0 | CV131: 0 | CW131: 0.9209580523 | CX131: 0 | CY131: 0 | CZ131: 0.9596864384 | DA131: 0 | DB131: 0 | DC131: 0.9369762132 | DD131: 0 | DE131: 0 | DF131: 0.8735331632 | DG131: 0 | DH131: 0 | DI131: 0.879715013 | DJ131: 0 | DK131: 0 | DL131: 0.8481208676 | DM131: 0 | DN131: 0 | DO131: 0.8572992908 | DP131: 0 | DQ131: 0 | DR131: 0.8766726765 | DS131: 0 | DT131: 0 | DU131: 0.8245116946 | DV131: 0 | DW131: 0 | DX131: 0.8134911474 | DY131: 0 | DZ131: 0 | EA131: 0.8477003051 | EB131: 0 | EC131: 0
Z132: 1.01436754 | AA132: 0.5297359888 | AB132: 0.1393756861 | AC132: 0.9809757671 | AD132: 0.5124357783 | AE132: 0.08771830736 | AF132: 0.9809757671 | AG132: 0.5124357783 | AH132: 0.08771830736 | AI132: 0.9837539189 | AJ132: 0.51381422 | AK132: 0.1419483275 | AL132: 1.006862331 | AM132: 0.5258086554 | AN132: 0.1046129378 | AO132: 1.006862331 | AP132: 0.5258086554 | AQ132: 0.1046129378 | AR132: 1.018472008 | AS132: 0.5318706723 | AT132: 0.1371189028 | AU132: 0.9977744972 | AV132: 0.5211139232 | AW132: 0.1359295276 | AX132: 0.9977744972 | AY132: 0.5211139232 | AZ132: 0.1359295276 | BA132: 1.007649818 | BB132: 1.218402547 | BC132: 0.04933548607 | BD132: 1.000594336 | BE132: 1.218550897 | BF132: 0.02050273095 | BG132: 1.000594336 | BH132: 1.218550897 | BI132: 0.02050273095 | BJ132: 1.012175752 | BK132: 1.223865662 | BL132: 0.03866198932 | BM132: 0.9905239681 | BN132: 1.206305177 | BO132: 0.03047180527 | BP132: 0.9905239681 | BQ132: 1.206305177 | BR132: 0.03047180527 | BS132: 1.039297157 | BT132: 1.256476895 | BU132: 0.04575065302 | BV132: 1.002004314 | BW132: 1.220393217 | BX132: 0.02534590772 | BY132: 1.002004314 | BZ132: 1.220393217 | CA132: 0.02534590772 | CB132: 1.157735676 | CC132: 0.01515873711 | CD132: 0 | CE132: 1.155732529 | CF132: 0.01532028423 | CG132: 0 | CH132: 1.183038021 | CI132: 0.0164520075 | CJ132: 0 | CK132: 1.261135596 | CL132: 0.01662598132 | CM132: 0 | CN132: 1.259779857 | CO132: 0.01680588422 | CP132: 0 | CQ132: 1.328471655 | CR132: 0.01857794811 | CS132: 0 | CT132: 1.319077328 | CU132: 0.01744817413 | CV132: 0 | CW132: 1.32027077 | CX132: 0.01766958059 | CY132: 0 | CZ132: 1.432989404 | DA132: 0.02010578265 | DB132: 0 | DC132: 1.141337464 | DD132: 0.02861564521 | DE132: 0 | DF132: 1.17814585 | DG132: 0.02989698393 | DH132: 0 | DI132: 1.205980882 | DJ132: 0.03210550121 | DK132: 0 | DL132: 1.281962462 | DM132: 0.03235796261 | DN132: 0 | DO132: 1.251193751 | DP132: 0.03196197714 | DQ132: 0 | DR132: 1.319417376 | DS132: 0.03533214587 | DT132: 0 | DU132: 1.295153247 | DV132: 0.03280529468 | DW132: 0 | DX132: 1.32321559 | DY132: 0.03390732776 | DZ132: 0 | EA132: 1.436185639 | EB132: 0.03858231713 | EC132: 0
Z133: 0.9759762029 | AA133: 12.35615199 | AB133: 0.04620930863 | AC133: 0.9910002112 | AD133: 12.54438458 | AE133: 0.05255788526 | AF133: 0.9910002112 | AG133: 12.54438458 | AH133: 0.05255788526 | AI133: 0.9801413949 | AJ133: 12.40835782 | AK133: 0.06019247938 | AL133: 0.982094552 | AM133: 12.43268744 | AN133: 0.05424890734 | AO133: 0.982094552 | AP133: 12.43268744 | AQ133: 0.05424890734 | AR133: 0.9878283198 | AS133: 12.50470447 | AT133: 0.07328268726 | AU133: 0.9847373241 | AV133: 12.46583379 | AW133: 0.07980981554 | AX133: 0.9847373241 | AY133: 12.46583379 | AZ133: 0.07980981554 | BA133: 1.004913629 | BB133: 0.5251424241 | BC133: 0.1050228771 | BD133: 1.012000192 | BE133: 0.5302431247 | BF133: 0.09364742493 | BG133: 1.012000192 | BH133: 0.5302431247 | BI133: 0.09364742493 | BJ133: 1.015776962 | BK133: 0.5307933604 | BL133: 0.122508116 | BM133: 1.04596726 | BN133: 0.5480940898 | BO133: 0.1010378598 | BP133: 1.04596726 | BQ133: 0.5480940898 | BR133: 0.1010378598 | BS133: 1.039113703 | BT133: 0.5427671057 | BU133: 0.09978257565 | BV133: 1.076437796 | BW133: 0.5640757015 | BX133: 0.1148857839 | BY133: 1.076437796 | BZ133: 0.5640757015 | CA133: 0.1148857839 | CB133: 0.9286169839 | CC133: 0 | CD133: 0 | CE133: 0.9280703943 | CF133: 0 | CG133: 0 | CH133: 0.9390523795 | CI133: 0 | CJ133: 0 | CK133: 0.8268886392 | CL133: 0 | CM133: 0 | CN133: 0.8262549751 | CO133: 0 | CP133: 0 | CQ133: 0.8558022026 | CR133: 0 | CS133: 0 | CT133: 0.7007660096 | CU133: 0 | CV133: 0 | CW133: 0.7018766513 | CX133: 0 | CY133: 0 | CZ133: 0.7484419508 | DA133: 0 | DB133: 0 | DC133: 0.9514918244 | DD133: 0 | DE133: 0 | DF133: 0.9365146677 | DG133: 0 | DH133: 0 | DI133: 0.9475967447 | DJ133: 0 | DK133: 0 | DL133: 0.8436581669 | DM133: 0 | DN133: 0 | DO133: 0.8413352594 | DP133: 0 | DQ133: 0 | DR133: 0.8714246621 | DS133: 0 | DT133: 0 | DU133: 0.7094143931 | DV133: 0 | DW133: 0 | DX133: 0.7127698374 | DY133: 0 | DZ133: 0 | EA133: 0.7600606422 | EB133: 0 | EC133: 0
Z134: 0.9713919213 | AA134: 0.4716311087 | AB134: 0.1285204672 | AC134: 0.9856513878 | AD134: 0.4785482246 | AE134: 0.08339077224 | AF134: 0.9856513878 | AG134: 0.4785482246 | AH134: 0.08339077224 | AI134: 0.92453157 | AJ134: 0.4491358651 | AK134: 0.1255698144 | AL134: 0.9972636379 | AM134: 0.4840644966 | AN134: 0.1348549179 | AO134: 0.9972636379 | AP134: 0.4840644966 | AQ134: 0.1348549179 | AR134: 0.9663885357 | AS134: 0.4692292407 | AT134: 0.1176205996 | AU134: 1.040138998 | AV134: 0.5044319661 | AW134: 0.1733167376 | AX134: 1.040138998 | AY134: 0.5044319661 | AZ134: 0.1733167376 | BA134: 0.9957402788 | BB134: 1.327042827 | BC134: 0.02803825413 | BD134: 1.002984459 | BE134: 1.345871024 | BF134: 0.02788166177 | BG134: 1.002984459 | BH134: 1.345871024 | BI134: 0.02788166177 | BJ134: 0.9971688806 | BK134: 1.329347297 | BL134: 0.02813125982 | BM134: 0.9959633396 | BN134: 1.336513797 | BO134: 0.02768964265 | BP134: 0.9959633396 | BQ134: 1.336513797 | BR134: 0.02768964265 | BS134: 0.9980448946 | BT134: 1.330451416 | BU134: 0.03433293026 | BV134: 0.9926508319 | BW134: 1.332185356 | BX134: 0.02818028944 | BY134: 0.9926508319 | BZ134: 1.332185356 | CA134: 0.02818028944 | CB134: 1.281885078 | CC134: 0.02751987268 | CD134: 0 | CE134: 1.280860693 | CF134: 0.02772030154 | CG134: 0 | CH134: 1.211183692 | CI134: 0.02651518208 | CJ134: 0 | CK134: 1.829431003 | CL134: 0.03840070657 | CM134: 0 | CN134: 1.822090931 | CO134: 0.03852802073 | CP134: 0 | CQ134: 1.563270053 | CR134: 0.03357558077 | CS134: 0 | CT134: 2.798695065 | CU134: 0.05766192427 | CV134: 0 | CW134: 2.788933485 | CX134: 0.05783470777 | CY134: 0 | CZ134: 2.111232266 | DA134: 0.04456388398 | DB134: 0 | DC134: 1.319637368 | DD134: 0.05835041872 | DE134: 0 | DF134: 1.299506812 | DG134: 0.05792582673 | DH134: 0 | DI134: 1.228815489 | DJ134: 0.05540754457 | DK134: 0 | DL134: 1.978765314 | DM134: 0.08549908736 | DN134: 0 | DO134: 1.827090512 | DP134: 0.07959274229 | DQ134: 0 | DR134: 1.567559463 | DS134: 0.06936179167 | DT134: 0 | DU134: 2.896035044 | DV134: 0.1228864684 | DW134: 0 | DX134: 2.681308451 | DY134: 0.1146531379 | DZ134: 0 | EA134: 2.029759744 | EB134: 0.08834468664 | EC134: 0
Z135: 0.9713919213 | AA135: 0.4716311087 | AB135: 0.1285204672 | AC135: 0.9856513878 | AD135: 0.4785482246 | AE135: 0.08339077224 | AF135: 0.9856513878 | AG135: 0.4785482246 | AH135: 0.08339077224 | AI135: 0.92453157 | AJ135: 0.4491358651 | AK135: 0.1255698144 | AL135: 0.9972636379 | AM135: 0.4840644966 | AN135: 0.1348549179 | AO135: 0.9972636379 | AP135: 0.4840644966 | AQ135: 0.1348549179 | AR135: 0.9663885357 | AS135: 0.4692292407 | AT135: 0.1176205996 | AU135: 1.040138998 | AV135: 0.5044319661 | AW135: 0.1733167376 | AX135: 1.040138998 | AY135: 0.5044319661 | AZ135: 0.1733167376 | BA135: 0.9957402788 | BB135: 1.327042827 | BC135: 0.02803825413 | BD135: 1.002984459 | BE135: 1.345871024 | BF135: 0.02788166177 | BG135: 1.002984459 | BH135: 1.345871024 | BI135: 0.02788166177 | BJ135: 0.9971688806 | BK135: 1.329347297 | BL135: 0.02813125982 | BM135: 0.9959633396 | BN135: 1.336513797 | BO135: 0.02768964265 | BP135: 0.9959633396 | BQ135: 1.336513797 | BR135: 0.02768964265 | BS135: 0.9980448946 | BT135: 1.330451416 | BU135: 0.03433293026 | BV135: 0.9926508319 | BW135: 1.332185356 | BX135: 0.02818028944 | BY135: 0.9926508319 | BZ135: 1.332185356 | CA135: 0.02818028944 | CB135: 1.281885078 | CC135: 0.02751987268 | CD135: 0 | CE135: 1.280860693 | CF135: 0.02772030154 | CG135: 0 | CH135: 1.211183692 | CI135: 0.02651518208 | CJ135: 0 | CK135: 1.829431003 | CL135: 0.03840070657 | CM135: 0 | CN135: 1.822090931 | CO135: 0.03852802073 | CP135: 0 | CQ135: 1.563270053 | CR135: 0.03357558077 | CS135: 0 | CT135: 2.798695065 | CU135: 0.05766192427 | CV135: 0 | CW135: 2.788933485 | CX135: 0.05783470777 | CY135: 0 | CZ135: 2.111232266 | DA135: 0.04456388398 | DB135: 0 | DC135: 1.319637368 | DD135: 0.05835041872 | DE135: 0 | DF135: 1.299506812 | DG135: 0.05792582673 | DH135: 0 | DI135: 1.228815489 | DJ135: 0.05540754457 | DK135: 0 | DL135: 1.978765314 | DM135: 0.08549908736 | DN135: 0 | DO135: 1.827090512 | DP135: 0.07959274229 | DQ135: 0 | DR135: 1.567559463 | DS135: 0.06936179167 | DT135: 0 | DU135: 2.896035044 | DV135: 0.1228864684 | DW135: 0 | DX135: 2.681308451 | DY135: 0.1146531379 | DZ135: 0 | EA135: 2.029759744 | EB135: 0.08834468664 | EC135: 0
Z136: 0.9816592604 | AA136: 1.067545032 | AB136: 0.09841859915 | AC136: 1.036157787 | AD136: 1.127617223 | AE136: 0.09774967072 | AF136: 1.036157787 | AG136: 1.127617223 | AH136: 0.09774967072 | AI136: 1.017262337 | AJ136: 1.106757651 | AK136: 0.09492587854 | AL136: 1.04183389 | AM136: 1.133876391 | AN136: 0.09401427469 | AO136: 1.04183389 | AP136: 1.133876391 | AQ136: 0.09401427469 | AR136: 1.031329124 | AS136: 1.12225057 | AT136: 0.09268324449 | AU136: 1.057905482 | AV136: 1.151598901 | AW136: 0.1234418003 | AX136: 1.057905482 | AY136: 1.151598901 | AZ136: 0.1234418003 | BA136: 1.020335535 | BB136: 0.6889856264 | BC136: 0.05191164925 | BD136: 1.008046931 | BE136: 0.6676372308 | BF136: 0.06602707266 | BG136: 1.008046931 | BH136: 0.6676372308 | BI136: 0.06602707266 | BJ136: 0.9790450362 | BK136: 0.6604734005 | BL136: 0.05911501015 | BM136: 1.002969621 | BN136: 0.6635952299 | BO136: 0.08092238478 | BP136: 1.002969621 | BQ136: 0.6635952299 | BR136: 0.08092238478 | BS136: 1.001664013 | BT136: 0.675706641 | BU136: 0.06272338934 | BV136: 1.019245177 | BW136: 0.6744892868 | BX136: 0.09349138109 | BY136: 1.019245177 | BZ136: 0.6744892868 | CA136: 0.09349138109 | CB136: 1.985955636 | CC136: 0 | CD136: 0 | CE136: 1.98746244 | CF136: 0 | CG136: 0 | CH136: 1.964790844 | CI136: 0 | CJ136: 0 | CK136: 3.851317164 | CL136: 0.00666420501 | CM136: 0 | CN136: 3.854648184 | CO136: 0.006675723728 | CP136: 0 | CQ136: 3.587075181 | CR136: 0 | CS136: 0 | CT136: 6.879822043 | CU136: 0.1887247508 | CV136: 0 | CW136: 6.883135558 | CX136: 0.1886174828 | CY136: 0 | CZ136: 5.764404563 | DA136: 0.1209682287 | DB136: 0 | DC136: 2.023060054 | DD136: 0 | DE136: 0 | DF136: 1.918107904 | DG136: 0 | DH136: 0 | DI136: 1.896227457 | DJ136: 0 | DK136: 0 | DL136: 3.785962604 | DM136: 0.006021376951 | DN136: 0 | DO136: 3.699868302 | DP136: 0.005887523351 | DQ136: 0 | DR136: 3.443039448 | DS136: 0 | DT136: 0 | DU136: 6.670830757 | DV136: 0.1681663221 | DW136: 0 | DX136: 6.506380464 | DY136: 0.1637874807 | DZ136: 0 | EA136: 5.448884294 | EB136: 0.1050437167 | EC136: 0
Z137: 0.9647936707 | AA137: 0.4001706925 | AB137: 0.1744948753 | AC137: 0.9798617325 | AD137: 0.4065132826 | AE137: 0.1591253163 | AF137: 0.9798617325 | AG137: 0.4065132826 | AH137: 0.1591253163 | AI137: 0.9223362509 | AJ137: 0.3824583912 | AK137: 0.2756699411 | AL137: 0.9937184015 | AM137: 0.4122550856 | AN137: 0.2107768618 | AO137: 0.9937184015 | AP137: 0.4122550856 | AQ137: 0.2107768618 | AR137: 0.9431771096 | AS137: 0.3911527388 | AT137: 0.2801232741 | AU137: 1.043819262 | AV137: 0.4330154337 | AW137: 0.2946103665 | AX137: 1.043819262 | AY137: 0.4330154337 | AZ137: 0.2946103665 | BA137: 0.9794442483 | BB137: 1.585998878 | BC137: 0.04605191853 | BD137: 1.015522463 | BE137: 1.618180346 | BF137: 0.05064007707 | BG137: 1.015522463 | BH137: 1.618180346 | BI137: 0.05064007707 | BJ137: 0.9462367759 | BK137: 1.53494776 | BL137: 0.07874029304 | BM137: 1.003480549 | BN137: 1.600179863 | BO137: 0.05964909745 | BP137: 1.003480549 | BQ137: 1.600179863 | BR137: 0.05964909745 | BS137: 0.9618419606 | BT137: 1.560970882 | BU137: 0.09132270501 | BV137: 0.9909158676 | BW137: 1.579547863 | BX137: 0.06808836645 | BY137: 0.9909158676 | BZ137: 1.579547863 | CA137: 0.06808836645 | CB137: 1.113711926 | CC137: 0.1161078707 | CD137: 0 | CE137: 1.116172385 | CF137: 0.1170029007 | CG137: 0 | CH137: 1.111157334 | CI137: 0.1163911382 | CJ137: 0 | CK137: 1.107268442 | CL137: 0.1148272159 | CM137: 0 | CN137: 1.108483556 | CO137: 0.1154732563 | CP137: 0 | CQ137: 1.103616624 | CR137: 0.1148895824 | CS137: 0 | CT137: 1.112212439 | CU137: 0.1158098447 | CV137: 0 | CW137: 1.107586167 | CX137: 0.1152947263 | CY137: 0 | CZ137: 1.104451027 | DA137: 0.1150557343 | DB137: 0 | DC137: 1.183043052 | DD137: 0.514232842 | DE137: 0 | DF137: 1.164283013 | DG137: 0.5093994128 | DH137: 0 | DI137: 1.158646013 | DJ137: 0.5066091738 | DK137: 0 | DL137: 1.241637695 | DM137: 0.5235589276 | DN137: 0 | DO137: 1.140344635 | DP137: 0.4873312014 | DQ137: 0 | DR137: 1.134267028 | DS137: 0.4844984895 | DT137: 0 | DU137: 1.217472294 | DV137: 0.5196421667 | DW137: 0 | DX137: 1.078617611 | DY137: 0.4408249998 | DZ137: 0 | EA137: 1.073830715 | EB137: 0.439345975 | EC137: 0
Z138: 1.058169664 | AA138: 1.06836371 | AB138: 0.08706506813 | AC138: 1.084562131 | AD138: 1.094502916 | AE138: 0.1004132594 | AF138: 1.084562131 | AG138: 1.094502916 | AH138: 0.1004132594 | AI138: 1.068780099 | AJ138: 1.078952647 | AK138: 0.1210622835 | AL138: 1.064077106 | AM138: 1.074107794 | AN138: 0.1091086025 | AO138: 1.064077106 | AP138: 1.074107794 | AQ138: 0.1091086025 | AR138: 1.075220038 | AS138: 1.085379538 | AT138: 0.1738097574 | AU138: 1.073504582 | AV138: 1.083493895 | AW138: 0.1172294521 | AX138: 1.073504582 | AY138: 1.083493895 | AZ138: 0.1172294521 | BA138: 1.002235602 | BB138: 1.480991744 | BC138: 0.0528628245 | BD138: 1.002323502 | BE138: 1.458373592 | BF138: 0.05612771322 | BG138: 1.002323502 | BH138: 1.458373592 | BI138: 0.05612771322 | BJ138: 0.989243464 | BK138: 1.462515157 | BL138: 0.05102105893 | BM138: 1.001367909 | BN138: 1.457347475 | BO138: 0.04689284127 | BP138: 1.001367909 | BQ138: 1.457347475 | BR138: 0.04689284127 | BS138: 0.9888849974 | BT138: 1.462183304 | BU138: 0.04982255495 | BV138: 1.009596336 | BW138: 1.469911302 | BX138: 0.03711459003 | BY138: 1.009596336 | BZ138: 1.469911302 | CA138: 0.03711459003 | CB138: 1.733479354 | CC138: 0.08245171885 | CD138: 0 | CE138: 1.738286589 | CF138: 0.08250526032 | CG138: 0 | CH138: 1.713736297 | CI138: 0.08146727448 | CJ138: 0 | CK138: 1.849385637 | CL138: 0.08805940308 | CM138: 0 | CN138: 1.861911999 | CO138: 0.08847832204 | CP138: 0 | CQ138: 1.805699411 | CR138: 0.08591556834 | CS138: 0 | CT138: 1.981818581 | CU138: 0.09446666686 | CV138: 0 | CW138: 1.991738056 | CX138: 0.09475097306 | CY138: 0 | CZ138: 1.895109738 | DA138: 0.09024038283 | DB138: 0 | DC138: 1.63818659 | DD138: 0.07717570157 | DE138: 0 | DF138: 1.602754272 | DG138: 0.07538148975 | DH138: 0 | DI138: 1.58011814 | DJ138: 0.07443312696 | DK138: 0 | DL138: 1.730370578 | DM138: 0.08161563286 | DN138: 0 | DO138: 1.749790488 | DP138: 0.08237378274 | DQ138: 0 | DR138: 1.696962937 | DS138: 0.07998784558 | DT138: 0 | DU138: 1.843174896 | DV138: 0.08703560697 | DW138: 0 | DX138: 1.855360555 | DY138: 0.08744947574 | DZ138: 0 | EA138: 1.765348533 | EB138: 0.08328647099 | EC138: 0
Z139: 1.058169664 | AA139: 1.06836371 | AB139: 0.08706506813 | AC139: 1.084562131 | AD139: 1.094502916 | AE139: 0.1004132594 | AF139: 1.084562131 | AG139: 1.094502916 | AH139: 0.1004132594 | AI139: 1.068780099 | AJ139: 1.078952647 | AK139: 0.1210622835 | AL139: 1.064077106 | AM139: 1.074107794 | AN139: 0.1091086025 | AO139: 1.064077106 | AP139: 1.074107794 | AQ139: 0.1091086025 | AR139: 1.075220038 | AS139: 1.085379538 | AT139: 0.1738097574 | AU139: 1.073504582 | AV139: 1.083493895 | AW139: 0.1172294521 | AX139: 1.073504582 | AY139: 1.083493895 | AZ139: 0.1172294521 | BA139: 1.002235602 | BB139: 1.480991744 | BC139: 0.0528628245 | BD139: 1.002323502 | BE139: 1.458373592 | BF139: 0.05612771322 | BG139: 1.002323502 | BH139: 1.458373592 | BI139: 0.05612771322 | BJ139: 0.989243464 | BK139: 1.462515157 | BL139: 0.05102105893 | BM139: 1.001367909 | BN139: 1.457347475 | BO139: 0.04689284127 | BP139: 1.001367909 | BQ139: 1.457347475 | BR139: 0.04689284127 | BS139: 0.9888849974 | BT139: 1.462183304 | BU139: 0.04982255495 | BV139: 1.009596336 | BW139: 1.469911302 | BX139: 0.03711459003 | BY139: 1.009596336 | BZ139: 1.469911302 | CA139: 0.03711459003 | CB139: 1.733479354 | CC139: 0.08245171885 | CD139: 0 | CE139: 1.738286589 | CF139: 0.08250526032 | CG139: 0 | CH139: 1.713736297 | CI139: 0.08146727448 | CJ139: 0 | CK139: 1.849385637 | CL139: 0.08805940308 | CM139: 0 | CN139: 1.861911999 | CO139: 0.08847832204 | CP139: 0 | CQ139: 1.805699411 | CR139: 0.08591556834 | CS139: 0 | CT139: 1.981818581 | CU139: 0.09446666686 | CV139: 0 | CW139: 1.991738056 | CX139: 0.09475097306 | CY139: 0 | CZ139: 1.895109738 | DA139: 0.09024038283 | DB139: 0 | DC139: 1.63818659 | DD139: 0.07717570157 | DE139: 0 | DF139: 1.602754272 | DG139: 0.07538148975 | DH139: 0 | DI139: 1.58011814 | DJ139: 0.07443312696 | DK139: 0 | DL139: 1.730370578 | DM139: 0.08161563286 | DN139: 0 | DO139: 1.749790488 | DP139: 0.08237378274 | DQ139: 0 | DR139: 1.696962937 | DS139: 0.07998784558 | DT139: 0 | DU139: 1.843174896 | DV139: 0.08703560697 | DW139: 0 | DX139: 1.855360555 | DY139: 0.08744947574 | DZ139: 0 | EA139: 1.765348533 | EB139: 0.08328647099 | EC139: 0
Z141: 0.9713919213 | AA141: 0.4716311087 | AB141: 0.1285204672 | AC141: 0.9856513878 | AD141: 0.4785482246 | AE141: 0.08339077224 | AF141: 0.9856513878 | AG141: 0.4785482246 | AH141: 0.08339077224 | AI141: 0.92453157 | AJ141: 0.4491358651 | AK141: 0.1255698144 | AL141: 0.9972636379 | AM141: 0.4840644966 | AN141: 0.1348549179 | AO141: 0.9972636379 | AP141: 0.4840644966 | AQ141: 0.1348549179 | AR141: 0.9663885357 | AS141: 0.4692292407 | AT141: 0.1176205996 | AU141: 1.040138998 | AV141: 0.5044319661 | AW141: 0.1733167376 | AX141: 1.040138998 | AY141: 0.5044319661 | AZ141: 0.1733167376 | BA141: 0.9957402788 | BB141: 1.327042827 | BC141: 0.02803825413 | BD141: 1.002984459 | BE141: 1.345871024 | BF141: 0.02788166177 | BG141: 1.002984459 | BH141: 1.345871024 | BI141: 0.02788166177 | BJ141: 0.9971688806 | BK141: 1.329347297 | BL141: 0.02813125982 | BM141: 0.9959633396 | BN141: 1.336513797 | BO141: 0.02768964265 | BP141: 0.9959633396 | BQ141: 1.336513797 | BR141: 0.02768964265 | BS141: 0.9980448946 | BT141: 1.330451416 | BU141: 0.03433293026 | BV141: 0.9926508319 | BW141: 1.332185356 | BX141: 0.02818028944 | BY141: 0.9926508319 | BZ141: 1.332185356 | CA141: 0.02818028944 | CB141: 1.281885078 | CC141: 0.02751987268 | CD141: 0 | CE141: 1.280860693 | CF141: 0.02772030154 | CG141: 0 | CH141: 1.211183692 | CI141: 0.02651518208 | CJ141: 0 | CK141: 1.829431003 | CL141: 0.03840070657 | CM141: 0 | CN141: 1.822090931 | CO141: 0.03852802073 | CP141: 0 | CQ141: 1.563270053 | CR141: 0.03357558077 | CS141: 0 | CT141: 2.798695065 | CU141: 0.05766192427 | CV141: 0 | CW141: 2.788933485 | CX141: 0.05783470777 | CY141: 0 | CZ141: 2.111232266 | DA141: 0.04456388398 | DB141: 0 | DC141: 1.319637368 | DD141: 0.05835041872 | DE141: 0 | DF141: 1.299506812 | DG141: 0.05792582673 | DH141: 0 | DI141: 1.228815489 | DJ141: 0.05540754457 | DK141: 0 | DL141: 1.978765314 | DM141: 0.08549908736 | DN141: 0 | DO141: 1.827090512 | DP141: 0.07959274229 | DQ141: 0 | DR141: 1.567559463 | DS141: 0.06936179167 | DT141: 0 | DU141: 2.896035044 | DV141: 0.1228864684 | DW141: 0 | DX141: 2.681308451 | DY141: 0.1146531379 | DZ141: 0 | EA141: 2.029759744 | EB141: 0.08834468664 | EC141: 0
Z142: 1.029380838 | AA142: 0.154929207 | AB142: 0.2763166164 | AC142: 0.9618849129 | AD142: 0.1448604026 | AE142: 0.2907253737 | AF142: 0.9618849129 | AG142: 0.1448604026 | AH142: 0.2907253737 | AI142: 1.007015422 | AJ142: 0.151592038 | AK142: 0.295828573 | AL142: 0.942787182 | AM142: 0.1420119805 | AN142: 0.3152387966 | AO142: 0.942787182 | AP142: 0.1420119805 | AQ142: 0.3152387966 | AR142: 0.9278227513 | AS142: 0.1397756102 | AT142: 0.3382728178 | AU142: 1.083404162 | AV142: 0.1629849703 | AW142: 0.3395147722 | AX142: 1.083404162 | AY142: 0.1629849703 | AZ142: 0.3395147722 | BA142: 0.9889510572 | BB142: 1.491310265 | BC142: 0.09385990367 | BD142: 1.002404989 | BE142: 1.497054933 | BF142: 0.08103905895 | BG142: 1.002404989 | BH142: 1.497054933 | BI142: 0.08103905895 | BJ142: 0.9651700354 | BK142: 1.45439411 | BL142: 0.1355083769 | BM142: 0.9860020857 | BN142: 1.46937291 | BO142: 0.1257741979 | BP142: 0.9860020857 | BQ142: 1.46937291 | BR142: 0.1257741979 | BS142: 0.9648838622 | BT142: 1.452412736 | BU142: 0.1543919428 | BV142: 0.9847649698 | BW142: 1.465405916 | BX142: 0.1468522863 | BY142: 0.9847649698 | BZ142: 1.465405916 | CA142: 0.1468522863 | CB142: 1.070257311 | CC142: 0.2109237973 | CD142: 0 | CE142: 1.073894544 | CF142: 0.2114278476 | CG142: 0 | CH142: 1.068172177 | CI142: 0.2104981078 | CJ142: 0 | CK142: 1.068806977 | CL142: 0.2106124721 | CM142: 0 | CN142: 1.071159902 | CO142: 0.2108412008 | CP142: 0 | CQ142: 1.064068034 | CR142: 0.2096170787 | CS142: 0 | CT142: 1.081001618 | CU142: 0.213230145 | CV142: 0 | CW142: 1.075089098 | CX142: 0.2116841084 | CY142: 0 | CZ142: 1.067649293 | DA142: 0.2103858613 | DB142: 0 | DC142: 1.039709766 | DD142: 1.361420492 | DE142: 0 | DF142: 1.116448059 | DG142: 1.459528234 | DH142: 0 | DI142: 1.110498941 | DJ142: 1.453110056 | DK142: 0 | DL142: 1.061361081 | DM142: 1.389337295 | DN142: 0 | DO142: 1.136162989 | DP142: 1.484671927 | DQ142: 0 | DR142: 1.128640752 | DS142: 1.476052076 | DT142: 0 | DU142: 1.165094967 | DV142: 1.52551754 | DW142: 0 | DX142: 0.9923250576 | DY142: 1.298795269 | DZ142: 0 | EA142: 0.9854579944 | EB142: 1.290829829 | EC142: 0
Z143: 0.9801528985 | AA143: 0.6527622059 | AB143: 0.08266082487 | AC143: 1.020482529 | AD143: 0.6794402269 | AE143: 0.08653656929 | AF143: 1.020482529 | AG143: 0.6794402269 | AH143: 0.08653656929 | AI143: 1.008382684 | AJ143: 0.6714866659 | AK143: 0.09245095895 | AL143: 1.003320581 | AM143: 0.6681173461 | AN143: 0.06452988136 | AO143: 1.003320581 | AP143: 0.6681173461 | AQ143: 0.06452988136 | AR143: 1.026474968 | AS143: 0.6834870495 | AT143: 0.1191660268 | AU143: 1.028390073 | AV143: 0.6846573607 | AW143: 0.06358363416 | AX143: 1.028390073 | AY143: 0.6846573607 | AZ143: 0.06358363416 | BA143: 1.004928591 | BB143: 1.450199461 | BC143: 0.02455402576 | BD143: 0.9994348725 | BE143: 1.439508436 | BF143: 0.03089392303 | BG143: 0.9994348725 | BH143: 1.439508436 | BI143: 0.03089392303 | BJ143: 1.002420151 | BK143: 1.44656303 | BL143: 0.01918785581 | BM143: 1.005558539 | BN143: 1.44826495 | BO143: 0.02756778343 | BP143: 1.005558539 | BQ143: 1.44826495 | BR143: 0.02756778343 | BS143: 1.002705514 | BT143: 1.446944306 | BU143: 0.02123508114 | BV143: 1.009576755 | BW143: 1.454058157 | BX143: 0.02865875826 | BY143: 1.009576755 | BZ143: 1.454058157 | CA143: 0.02865875826 | CB143: 1.261476669 | CC143: 0.07316707201 | CD143: 0 | CE143: 1.261124806 | CF143: 0.07284997357 | CG143: 0 | CH143: 1.244396782 | CI143: 0.07195518585 | CJ143: 0 | CK143: 1.34619556 | CL143: 0.07961070405 | CM143: 0 | CN143: 1.351086733 | CO143: 0.07968083401 | CP143: 0 | CQ143: 1.311532635 | CR143: 0.07706407815 | CS143: 0 | CT143: 1.434440122 | CU143: 0.08632249491 | CV143: 0 | CW143: 1.440490508 | CX143: 0.08646931376 | CY143: 0 | CZ143: 1.371998661 | DA143: 0.08166541113 | DB143: 0 | DC143: 1.287020291 | DD143: 0.1120884012 | DE143: 0 | DF143: 1.235812246 | DG143: 0.1072205776 | DH143: 0 | DI143: 1.219419977 | DJ143: 0.1059036292 | DK143: 0 | DL143: 1.335004638 | DM143: 0.1185588755 | DN143: 0 | DO143: 1.346615188 | DP143: 0.1192617352 | DQ143: 0 | DR143: 1.307191998 | DS143: 0.115345124 | DT143: 0 | DU143: 1.397442866 | DV143: 0.1262971917 | DW143: 0 | DX143: 1.400723855 | DY143: 0.1262957484 | DZ143: 0 | EA143: 1.334122816 | EB143: 0.1192792422 | EC143: 0
Z144: 0.9713919213 | AA144: 0.4716311087 | AB144: 0.1285204672 | AC144: 0.9856513878 | AD144: 0.4785482246 | AE144: 0.08339077224 | AF144: 0.9856513878 | AG144: 0.4785482246 | AH144: 0.08339077224 | AI144: 0.92453157 | AJ144: 0.4491358651 | AK144: 0.1255698144 | AL144: 0.9972636379 | AM144: 0.4840644966 | AN144: 0.1348549179 | AO144: 0.9972636379 | AP144: 0.4840644966 | AQ144: 0.1348549179 | AR144: 0.9663885357 | AS144: 0.4692292407 | AT144: 0.1176205996 | AU144: 1.040138998 | AV144: 0.5044319661 | AW144: 0.1733167376 | AX144: 1.040138998 | AY144: 0.5044319661 | AZ144: 0.1733167376 | BA144: 0.9957402788 | BB144: 1.327042827 | BC144: 0.02803825413 | BD144: 1.002984459 | BE144: 1.345871024 | BF144: 0.02788166177 | BG144: 1.002984459 | BH144: 1.345871024 | BI144: 0.02788166177 | BJ144: 0.9971688806 | BK144: 1.329347297 | BL144: 0.02813125982 | BM144: 0.9959633396 | BN144: 1.336513797 | BO144: 0.02768964265 | BP144: 0.9959633396 | BQ144: 1.336513797 | BR144: 0.02768964265 | BS144: 0.9980448946 | BT144: 1.330451416 | BU144: 0.03433293026 | BV144: 0.9926508319 | BW144: 1.332185356 | BX144: 0.02818028944 | BY144: 0.9926508319 | BZ144: 1.332185356 | CA144: 0.02818028944 | CB144: 1.281885078 | CC144: 0.02751987268 | CD144: 0 | CE144: 1.280860693 | CF144: 0.02772030154 | CG144: 0 | CH144: 1.211183692 | CI144: 0.02651518208 | CJ144: 0 | CK144: 1.829431003 | CL144: 0.03840070657 | CM144: 0 | CN144: 1.822090931 | CO144: 0.03852802073 | CP144: 0 | CQ144: 1.563270053 | CR144: 0.03357558077 | CS144: 0 | CT144: 2.798695065 | CU144: 0.05766192427 | CV144: 0 | CW144: 2.788933485 | CX144: 0.05783470777 | CY144: 0 | CZ144: 2.111232266 | DA144: 0.04456388398 | DB144: 0 | DC144: 1.319637368 | DD144: 0.05835041872 | DE144: 0 | DF144: 1.299506812 | DG144: 0.05792582673 | DH144: 0 | DI144: 1.228815489 | DJ144: 0.05540754457 | DK144: 0 | DL144: 1.978765314 | DM144: 0.08549908736 | DN144: 0 | DO144: 1.827090512 | DP144: 0.07959274229 | DQ144: 0 | DR144: 1.567559463 | DS144: 0.06936179167 | DT144: 0 | DU144: 2.896035044 | DV144: 0.1228864684 | DW144: 0 | DX144: 2.681308451 | DY144: 0.1146531379 | DZ144: 0 | EA144: 2.029759744 | EB144: 0.08834468664 | EC144: 0
Z145: 0.9834639344 | AA145: 0.3603263234 | AB145: 0.2055858851 | AC145: 1.10318581 | AD145: 0.4023222025 | AE145: 0.1792173803 | AF145: 1.10318581 | AG145: 0.4023222025 | AH145: 0.1792173803 | AI145: 0.9196421077 | AJ145: 0.3379703976 | AK145: 0.1659843924 | AL145: 1.090055281 | AM145: 0.3977152575 | AN145: 0.1768055286 | AO145: 1.090055281 | AP145: 0.3977152575 | AQ145: 0.1768055286 | AR145: 0.8964956781 | AS145: 0.3298625153 | AT145: 0.1697572421 | AU145: 0.8874808611 | AV145: 0.3266404973 | AW145: 0.1925549567 | AX145: 0.8874808611 | AY145: 0.3266404973 | AZ145: 0.1925549567 | BA145: 0.9891659393 | BB145: 0.5780406547 | BC145: 0.07542597746 | BD145: 0.9885132808 | BE145: 0.5902175606 | BF145: 0.07031626881 | BG145: 0.9885132808 | BH145: 0.5902175606 | BI145: 0.07031626881 | BJ145: 1.01987645 | BK145: 0.5946712419 | BL145: 0.08376974422 | BM145: 0.9911867147 | BN145: 0.5922791954 | BO145: 0.074520088 | BP145: 0.9911867147 | BQ145: 0.5922791954 | BR145: 0.074520088 | BS145: 1.0153469 | BT145: 0.5926884281 | BU145: 0.07182841934 | BV145: 0.9997203709 | BW145: 0.5974886162 | BX145: 0.0812599106 | BY145: 0.9997203709 | BZ145: 0.5974886162 | CA145: 0.0812599106 | CB145: 0.9830295913 | CC145: 0.003125265513 | CD145: 0 | CE145: 0.9823197994 | CF145: 0.003111929741 | CG145: 0 | CH145: 0.9834177363 | CI145: 0.003110631299 | CJ145: 0 | CK145: 0.9696837893 | CL145: 0.003097142769 | CM145: 0 | CN145: 0.9680854931 | CO145: 0.00308201973 | CP145: 0 | CQ145: 0.9782735237 | CR145: 0.00309983131 | CS145: 0 | CT145: 0.9528366172 | CU145: 0.003061641816 | CV145: 0 | CW145: 0.9588164734 | CX145: 0.003062543088 | CY145: 0 | CZ145: 0.9740242731 | DA145: 0.003090910244 | DB145: 0 | DC145: 1.019671855 | DD145: 0.00958860702 | DE145: 0 | DF145: 0.8960512662 | DG145: 0.008455829231 | DH145: 0 | DI145: 0.8953534296 | DJ145: 0.008437165374 | DK145: 0 | DL145: 1.096214576 | DM145: 0.0102991895 | DN145: 0 | DO145: 0.9027644669 | DP145: 0.008551307796 | DQ145: 0 | DR145: 0.9110769083 | DS145: 0.008590147471 | DT145: 0 | DU145: 1.111478187 | DV145: 0.01048349479 | DW145: 0 | DX145: 1.136247496 | DY145: 0.0106456514 | DZ145: 0 | EA145: 1.151599716 | EB145: 0.01072089488 | EC145: 0
Z161: 0.97578686 | AA161: 0.226617713 | AB161: 0.06545636971 | AC161: 1.039211442 | AD161: 0.2413999905 | AE161: 0.1453951762 | AF161: 1.039211442 | AG161: 0.2413999905 | AH161: 0.1453951762 | AI161: 0.9987555556 | AJ161: 0.232017811 | AK161: 0.08914431348 | AL161: 1.021566861 | AM161: 0.2373098012 | AN161: 0.09375244173 | AO161: 1.021566861 | AP161: 0.2373098012 | AQ161: 0.09375244173 | AR161: 0.9397132011 | AS161: 0.2181365483 | AT161: 0.09647273022 | AU161: 1.034311594 | AV161: 0.2402641572 | AW161: 0.106727494 | AX161: 1.034311594 | AY161: 0.2402641572 | AZ161: 0.106727494 | BA161: 0.9963917106 | BB161: 0.7616377424 | BC161: 0.04863542684 | BD161: 1.010442911 | BE161: 0.77013041 | BF161: 0.08333761203 | BG161: 1.010442911 | BH161: 0.77013041 | BI161: 0.08333761203 | BJ161: 1.018955986 | BK161: 0.7781504707 | BL161: 0.08539088342 | BM161: 1.031992414 | BN161: 0.7866051197 | BO161: 0.07642647324 | BP161: 1.031992414 | BQ161: 0.7866051197 | BR161: 0.07642647324 | BS161: 1.040356727 | BT161: 0.7944156871 | BU161: 0.09215660414 | BV161: 1.025919322 | BW161: 0.782080678 | BX161: 0.06411304526 | BY161: 1.025919322 | BZ161: 0.782080678 | CA161: 0.06411304526 | CB161: 1.130835538 | CC161: 0 | CD161: 0 | CE161: 1.132568181 | CF161: 0 | CG161: 0 | CH161: 1.129494425 | CI161: 0 | CJ161: 0 | CK161: 1.252480162 | CL161: 0 | CM161: 0 | CN161: 1.264637079 | CO161: 0 | CP161: 0 | CQ161: 1.246566847 | CR161: 0 | CS161: 0 | CT161: 1.353997199 | CU161: 0 | CV161: 0 | CW161: 1.369687147 | CX161: 0 | CY161: 0 | CZ161: 1.31906103 | DA161: 0 | DB161: 0 | DC161: 1.15889605 | DD161: 0 | DE161: 0 | DF161: 1.08983421 | DG161: 0 | DH161: 0 | DI161: 1.086876433 | DJ161: 0 | DK161: 0 | DL161: 1.254040746 | DM161: 0 | DN161: 0 | DO161: 1.237938629 | DP161: 0 | DQ161: 0 | DR161: 1.220249888 | DS161: 0 | DT161: 0 | DU161: 1.440862167 | DV161: 0 | DW161: 0 | DX161: 1.324250018 | DY161: 0 | DZ161: 0 | EA161: 1.275303339 | EB161: 0 | EC161: 0
Z162: 0.9757572104 | AA162: 0.2066983658 | AB162: 0.04619691669 | AC162: 1.027514938 | AD162: 0.2178044225 | AE162: 0.1840877223 | AF162: 1.027514938 | AG162: 0.2178044225 | AH162: 0.1840877223 | AI162: 1.003745801 | AJ162: 0.2127345339 | AK162: 0.05720851867 | AL162: 1.006412096 | AM162: 0.2132964434 | AN162: 0.1174566086 | AO162: 1.006412096 | AP162: 0.2132964434 | AQ162: 0.1174566086 | AR162: 0.9355163553 | AS162: 0.1980198093 | AT162: 0.1190458812 | AU162: 1.022658843 | AV162: 0.2167670657 | AW162: 0.1206894608 | AX162: 1.022658843 | AY162: 0.2167670657 | AZ162: 0.1206894608 | BA162: 1.008864994 | BB162: 0.8707222421 | BC162: 0.05672984625 | BD162: 1.021701277 | BE162: 0.8808668352 | BF162: 0.1084949389 | BG162: 1.021701277 | BH162: 0.8808668352 | BI162: 0.1084949389 | BJ162: 1.029919025 | BK162: 0.8876636326 | BL162: 0.1011712353 | BM162: 1.042073046 | BN162: 0.8984202835 | BO162: 0.1060498075 | BP162: 1.042073046 | BQ162: 0.8984202835 | BR162: 0.1060498075 | BS162: 1.047044855 | BT162: 0.9025089356 | BU162: 0.1045793648 | BV162: 1.036860849 | BW162: 0.894378666 | BX162: 0.08700573452 | BY162: 1.036860849 | BZ162: 0.894378666 | CA162: 0.08700573452 | CB162: 1.090413247 | CC162: 0 | CD162: 0 | CE162: 1.090501366 | CF162: 0 | CG162: 0 | CH162: 1.080703781 | CI162: 0 | CJ162: 0 | CK162: 1.174267577 | CL162: 0 | CM162: 0 | CN162: 1.174694946 | CO162: 0 | CP162: 0 | CQ162: 1.141477084 | CR162: 0 | CS162: 0 | CT162: 1.24474514 | CU162: 0 | CV162: 0 | CW162: 1.24560898 | CX162: 0 | CY162: 0 | CZ162: 1.175705653 | DA162: 0 | DB162: 0 | DC162: 1.117504678 | DD162: 0 | DE162: 0 | DF162: 1.061299768 | DG162: 0 | DH162: 0 | DI162: 1.051764545 | DJ162: 0 | DK162: 0 | DL162: 1.169885419 | DM162: 0 | DN162: 0 | DO162: 1.167210679 | DP162: 0 | DQ162: 0 | DR162: 1.134204456 | DS162: 0 | DT162: 0 | DU162: 1.33054343 | DV162: 0 | DW162: 0 | DX162: 1.218010277 | DY162: 0 | DZ162: 0 | EA162: 1.149655783 | EB162: 0 | EC162: 0
Z163: 0.9675025506 | AA163: 0.2760162175 | AB163: 0.09514803438 | AC163: 1.010337823 | AD163: 0.2884464067 | AE163: 0.09102944848 | AF163: 1.010337823 | AG163: 0.2884464067 | AH163: 0.09102944848 | AI163: 0.9520638528 | AJ163: 0.271524916 | AK163: 0.08532016809 | AL163: 1.002737555 | AM163: 0.2862582645 | AN163: 0.1033633314 | AO163: 1.002737555 | AP163: 0.2862582645 | AQ163: 0.1033633314 | AR163: 0.90420132 | AS163: 0.257601134 | AT163: 0.1084148657 | AU163: 1.014392646 | AV163: 0.2896138037 | AW163: 0.1131899402 | AX163: 1.014392646 | AY163: 0.2896138037 | AZ163: 0.1131899402 | BA163: 1.000483065 | BB163: 0.7350364681 | BC163: 0.07354298052 | BD163: 1.008699789 | BE163: 0.7475917738 | BF163: 0.08318590456 | BG163: 1.008699789 | BH163: 0.7475917738 | BI163: 0.08318590456 | BJ163: 1.029655512 | BK163: 0.756024702 | BL163: 0.105669929 | BM163: 1.003776045 | BN163: 0.7439616736 | BO163: 0.06032693787 | BP163: 1.003776045 | BQ163: 0.7439616736 | BR163: 0.06032693787 | BS163: 1.061542974 | BT163: 0.7788048189 | BU163: 0.1084024426 | BV163: 1.020310996 | BW163: 0.7560136839 | BX163: 0.05857426011 | BY163: 1.020310996 | BZ163: 0.7560136839 | CA163: 0.05857426011 | CB163: 1.006373211 | CC163: 0.0390347689 | CD163: 0 | CE163: 1.006362656 | CF163: 0.03903687881 | CG163: 0 | CH163: 0.9968981 | CI163: 0.03720793924 | CJ163: 0 | CK163: 1.010776615 | CL163: 0.03933191444 | CM163: 0 | CN163: 1.010969198 | CO163: 0.03934773876 | CP163: 0 | CQ163: 0.9678664185 | CR163: 0.03526611954 | CS163: 0 | CT163: 1.019724123 | CU163: 0.0399357001 | CV163: 0 | CW163: 1.01992173 | CX163: 0.03995187607 | CY163: 0 | CZ163: 0.9304648644 | DA163: 0.03276447061 | DB163: 0 | DC163: 1.040176287 | DD163: 0.1414220123 | DE163: 0 | DF163: 0.996065507 | DG163: 0.1353349458 | DH163: 0 | DI163: 0.986697793 | DJ163: 0.1289942893 | DK163: 0 | DL163: 1.061668933 | DM163: 0.1448556361 | DN163: 0 | DO163: 1.00820917 | DP163: 0.1374553808 | DQ163: 0 | DR163: 0.9652240645 | DS163: 0.1231968607 | DT163: 0 | DU163: 1.127762259 | DV163: 0.1550292092 | DW163: 0 | DX163: 1.005450636 | DY163: 0.1379487979 | DZ163: 0 | EA163: 0.9172630226 | EB163: 0.1131315918 | EC163: 0
Z164: 0.9703921437 | AA164: 3.03314732 | AB164: 0.06666553593 | AC164: 0.9925498002 | AD164: 3.103626989 | AE164: 0.09470199157 | AF164: 0.9925498002 | AG164: 3.103626989 | AH164: 0.09470199157 | AI164: 0.9710491162 | AJ164: 3.035232532 | AK164: 0.1045046185 | AL164: 0.9788106492 | AM164: 3.060299435 | AN164: 0.09953849191 | AO164: 0.9788106492 | AP164: 3.060299435 | AQ164: 0.09953849191 | AR164: 0.9171685164 | AS164: 2.864217041 | AT164: 0.09207407542 | AU164: 0.9644433486 | AV164: 3.014990958 | AW164: 0.1162822987 | AX164: 0.9644433486 | AY164: 3.014990958 | AZ164: 0.1162822987 | BA164: 1.012271241 | BB164: 0.4495488735 | BC164: 0.07440153926 | BD164: 0.9988535708 | BE164: 0.4427254008 | BF164: 0.05723800309 | BG164: 0.9988535708 | BH164: 0.4427254008 | BI164: 0.05723800309 | BJ164: 1.033841067 | BK164: 0.4592695052 | BL164: 0.07660648445 | BM164: 1.033910273 | BN164: 0.45807675 | BO164: 0.06593330486 | BP164: 1.033910273 | BQ164: 0.45807675 | BR164: 0.06593330486 | BS164: 1.075198641 | BT164: 0.4778106101 | BU164: 0.06890816528 | BV164: 1.081706105 | BW164: 0.4790820077 | BX164: 0.0616720942 | BY164: 1.081706105 | BZ164: 0.4790820077 | CA164: 0.0616720942 | CB164: 1.195164956 | CC164: 0 | CD164: 0 | CE164: 1.195456038 | CF164: 0 | CG164: 0 | CH164: 1.20485031 | CI164: 0 | CJ164: 0 | CK164: 1.399728433 | CL164: 0 | CM164: 0 | CN164: 1.398308352 | CO164: 0 | CP164: 0 | CQ164: 1.403752422 | CR164: 0 | CS164: 0 | CT164: 1.512125266 | CU164: 0 | CV164: 0 | CW164: 1.509259116 | CX164: 0 | CY164: 0 | CZ164: 1.471812075 | DA164: 0 | DB164: 0 | DC164: 1.236324697 | DD164: 0 | DE164: 0 | DF164: 1.208559644 | DG164: 0 | DH164: 0 | DI164: 1.217818367 | DJ164: 0 | DK164: 0 | DL164: 1.448884193 | DM164: 0 | DN164: 0 | DO164: 1.435836309 | DP164: 0 | DQ164: 0 | DR164: 1.440295074 | DS164: 0 | DT164: 0 | DU164: 1.661571065 | DV164: 0 | DW164: 0 | DX164: 1.575364474 | DY164: 0 | DZ164: 0 | EA164: 1.533702495 | EB164: 0 | EC164: 0
Z165: 0.9703921437 | AA165: 3.03314732 | AB165: 0.06666553593 | AC165: 0.9925498002 | AD165: 3.103626989 | AE165: 0.09470199157 | AF165: 0.9925498002 | AG165: 3.103626989 | AH165: 0.09470199157 | AI165: 0.9710491162 | AJ165: 3.035232532 | AK165: 0.1045046185 | AL165: 0.9788106492 | AM165: 3.060299435 | AN165: 0.09953849191 | AO165: 0.9788106492 | AP165: 3.060299435 | AQ165: 0.09953849191 | AR165: 0.9171685164 | AS165: 2.864217041 | AT165: 0.09207407542 | AU165: 0.9644433486 | AV165: 3.014990958 | AW165: 0.1162822987 | AX165: 0.9644433486 | AY165: 3.014990958 | AZ165: 0.1162822987 | BA165: 1.012271241 | BB165: 0.4495488735 | BC165: 0.07440153926 | BD165: 0.9988535708 | BE165: 0.4427254008 | BF165: 0.05723800309 | BG165: 0.9988535708 | BH165: 0.4427254008 | BI165: 0.05723800309 | BJ165: 1.033841067 | BK165: 0.4592695052 | BL165: 0.07660648445 | BM165: 1.033910273 | BN165: 0.45807675 | BO165: 0.06593330486 | BP165: 1.033910273 | BQ165: 0.45807675 | BR165: 0.06593330486 | BS165: 1.075198641 | BT165: 0.4778106101 | BU165: 0.06890816528 | BV165: 1.081706105 | BW165: 0.4790820077 | BX165: 0.0616720942 | BY165: 1.081706105 | BZ165: 0.4790820077 | CA165: 0.0616720942 | CB165: 1.195164956 | CC165: 0 | CD165: 0 | CE165: 1.195456038 | CF165: 0 | CG165: 0 | CH165: 1.20485031 | CI165: 0 | CJ165: 0 | CK165: 1.399728433 | CL165: 0 | CM165: 0 | CN165: 1.398308352 | CO165: 0 | CP165: 0 | CQ165: 1.403752422 | CR165: 0 | CS165: 0 | CT165: 1.512125266 | CU165: 0 | CV165: 0 | CW165: 1.509259116 | CX165: 0 | CY165: 0 | CZ165: 1.471812075 | DA165: 0 | DB165: 0 | DC165: 1.236324697 | DD165: 0 | DE165: 0 | DF165: 1.208559644 | DG165: 0 | DH165: 0 | DI165: 1.217818367 | DJ165: 0 | DK165: 0 | DL165: 1.448884193 | DM165: 0 | DN165: 0 | DO165: 1.435836309 | DP165: 0 | DQ165: 0 | DR165: 1.440295074 | DS165: 0 | DT165: 0 | DU165: 1.661571065 | DV165: 0 | DW165: 0 | DX165: 1.575364474 | DY165: 0 | DZ165: 0 | EA165: 1.533702495 | EB165: 0 | EC165: 0
Z166: 0.8739737374 | AA166: 0.1959125705 | AB166: 0.1039618762 | AC166: 0.9102329626 | AD166: 0.2041408928 | AE166: 0.1193826772 | AF166: 0.9102329626 | AG166: 0.2041408928 | AH166: 0.1193826772 | AI166: 0.8810164003 | AJ166: 0.1975194413 | AK166: 0.1314311112 | AL166: 0.8766519254 | AM166: 0.1964622524 | AN166: 0.1562948939 | AO166: 0.8766519254 | AP166: 0.1964622524 | AQ166: 0.1562948939 | AR166: 0.8218688293 | AS166: 0.1840241897 | AT166: 0.1358174539 | AU166: 0.8536181713 | AV166: 0.1911953539 | AW166: 0.1547790597 | AX166: 0.8536181713 | AY166: 0.1911953539 | AZ166: 0.1547790597 | BA166: 1.026088251 | BB166: 0.6958519453 | BC166: 0.07194312418 | BD166: 1.030368463 | BE166: 0.7040132098 | BF166: 0.09797187186 | BG166: 1.030368463 | BH166: 0.7040132098 | BI166: 0.09797187186 | BJ166: 1.061527152 | BK166: 0.7198280697 | BL166: 0.08643173686 | BM166: 1.041945826 | BN166: 0.7121102228 | BO166: 0.08008448831 | BP166: 1.041945826 | BQ166: 0.7121102228 | BR166: 0.08008448831 | BS166: 1.099161173 | BT166: 0.7454309908 | BU166: 0.08288756607 | BV166: 1.057854866 | BW166: 0.7228263098 | BX166: 0.0689378287 | BY166: 1.057854866 | BZ166: 0.7228263098 | CA166: 0.0689378287 | CB166: 1.152747956 | CC166: 0.02499223879 | CD166: 0 | CE166: 1.155030333 | CF166: 0.02529558331 | CG166: 0 | CH166: 1.154301369 | CI166: 0.02521800433 | CJ166: 0 | CK166: 1.307546028 | CL166: 0.02983770721 | CM166: 0 | CN166: 1.322137109 | CO166: 0.0305443194 | CP166: 0 | CQ166: 1.303305766 | CR166: 0.02989437204 | CS166: 0 | CT166: 1.417704098 | CU166: 0.0332858603 | CV166: 0 | CW166: 1.428713705 | CX166: 0.03389183433 | CY166: 0 | CZ166: 1.361350329 | DA166: 0.03171604794 | DB166: 0 | DC166: 1.318973221 | DD166: 0.1275683267 | DE166: 0 | DF166: 1.26893925 | DG166: 0.1239123772 | DH166: 0 | DI166: 1.268138396 | DJ166: 0.1235323506 | DK166: 0 | DL166: 1.484133584 | DM166: 0.1510621284 | DN166: 0 | DO166: 1.508166549 | DP166: 0.1554716951 | DQ166: 0 | DR166: 1.486685569 | DS166: 0.1521634394 | DT166: 0 | DU166: 1.724976112 | DV166: 0.1808776354 | DW166: 0 | DX166: 1.673715196 | DY166: 0.1772628552 | DZ166: 0 | EA166: 1.594800082 | EB166: 0.1658829427 | EC166: 0
Z167: 0.8755291878 | AA167: 0.1867902169 | AB167: 0.09795172916 | AC167: 0.9366207858 | AD167: 0.2002611941 | AE167: 0.1597888791 | AF167: 0.9366207858 | AG167: 0.2002611941 | AH167: 0.1597888791 | AI167: 0.8796171027 | AJ167: 0.1876848063 | AK167: 0.1175473894 | AL167: 0.8767418508 | AM167: 0.1872536479 | AN167: 0.1557089175 | AO167: 0.8767418508 | AP167: 0.1872536479 | AQ167: 0.1557089175 | AR167: 0.8018771874 | AS167: 0.1706723911 | AT167: 0.1357201068 | AU167: 0.8697208665 | AV167: 0.1857284742 | AW167: 0.1661659291 | AX167: 0.8697208665 | AY167: 0.1857284742 | AZ167: 0.1661659291 | BA167: 1.003429023 | BB167: 0.8369712505 | BC167: 0.0501833492 | BD167: 1.008921475 | BE167: 0.8523143599 | BF167: 0.1136272549 | BG167: 1.008921475 | BH167: 0.8523143599 | BI167: 0.1136272549 | BJ167: 1.040504164 | BK167: 0.867699651 | BL167: 0.06412730893 | BM167: 1.030692131 | BN167: 0.8707354902 | BO167: 0.1068534557 | BP167: 1.030692131 | BQ167: 0.8707354902 | BR167: 0.1068534557 | BS167: 1.076867335 | BT167: 0.8973538949 | BU167: 0.08529102083 | BV167: 1.041136533 | BW167: 0.8790951136 | BX167: 0.1002764621 | BY167: 1.041136533 | BZ167: 0.8790951136 | CA167: 0.1002764621 | CB167: 1.102261002 | CC167: 0.001734626581 | CD167: 0 | CE167: 1.102757592 | CF167: 0.001814338157 | CG167: 0 | CH167: 1.093826566 | CI167: 0.001306230142 | CJ167: 0 | CK167: 1.197988446 | CL167: 0.003892096408 | CM167: 0 | CN167: 1.212767475 | CO167: 0.00429728508 | CP167: 0 | CQ167: 1.178313141 | CR167: 0.003200741757 | CS167: 0 | CT167: 1.307129753 | CU167: 0.006351882927 | CV167: 0 | CW167: 1.315707634 | CX167: 0.006620666762 | CY167: 0 | CZ167: 1.249110779 | DA167: 0.004788295128 | DB167: 0 | DC167: 1.258965455 | DD167: 0.009286495889 | DE167: 0 | DF167: 1.177378944 | DG167: 0.009059858877 | DH167: 0 | DI167: 1.167843574 | DJ167: 0.006522632344 | DK167: 0 | DL167: 1.361943103 | DM167: 0.02073740803 | DN167: 0 | DO167: 1.383266322 | DP167: 0.02294900595 | DQ167: 0 | DR167: 1.34396817 | DS167: 0.01709308092 | DT167: 0 | DU167: 1.630087217 | DV167: 0.03721681572 | DW167: 0 | DX167: 1.512792994 | DY167: 0.03564702069 | DZ167: 0 | EA167: 1.436220317 | EB167: 0.02578115794 | EC167: 0

Sheet 3.0 Sum Ratios
A1: Summary of Results
C7: Without Shadow Water Cost Modelling | I7: With 2010 Shadow Water Cost Modelling | N7: %age Difference Without and With Water Costs
A8: Company | B8: Ratios | C8: 2013 | D8: 2014 | E8: 2015 | F8: 2016 | G8: 2017 | I8: 2014 | J8: 2015 | K8: 2016 | L8: 2017 | N8: =I8 -> 2014 | O8: =J8 -> 2015 | P8: =K8 -> 2016 | Q8: =L8 -> 2017
A9: Anglo American | B9: EBITDA/Revenues, % | C9: ='8.0 Anglo'!H30 -> 0.3244495944 | D9: ='8.0 Anglo'!I30 -> 0.3263012098 | E9: ='8.0 Anglo'!J30 -> 0.328271949 | F9: ='8.0 Anglo'!K30 -> 0.3303566624 | G9: ='8.0 Anglo'!L30 -> 0.3325503665 | I9: ='8.0 Anglo'!C30 -> 0.3164353702 | J9: ='8.0 Anglo'!D30 -> 0.3182087927 | K9: ='8.0 Anglo'!E30 -> 0.320092243 | L9: ='8.0 Anglo'!F30 -> 0.3220806587 | N9: =(I9-D9)/D9 -> -0.03023537529 | O9: =(J9-E9)/E9 -> -0.03065493825 | P9: =(K9-F9)/F9 -> -0.03107072029 | Q9: =(L9-G9)/G9 -> -0.03148307413
B10: Net debt/EBITDA, X | C10: ='8.0 Anglo'!H34 -> 1.065546218 | D10: ='8.0 Anglo'!I34 -> 1.209690962 | E10: ='8.0 Anglo'!J34 -> 1.307173699 | F10: ='8.0 Anglo'!K34 -> 1.360679083 | G10: ='8.0 Anglo'!L34 -> 1.372851194 | I10: ='8.0 Anglo'!C34 -> 1.278584829 | J10: ='8.0 Anglo'!D34 -> 1.410237898 | K10: ='8.0 Anglo'!E34 -> 1.495954323 | L10: ='8.0 Anglo'!F34 -> 1.538408001 | N10: =ABS(I10-D10)/ABS(D10) -> 0.05695162618 | O10: =ABS(J10-E10)/ABS(E10) -> 0.07884506849 | P10: =ABS(K10-F10)/ABS(F10) -> 0.0994174465 | Q10: =ABS(L10-G10)/ABS(G10) -> 0.1205934097
A11: Barrick Gold | B11: EBITDA/Revenues, % | C11: ='9.0 Barrick'!H30 -> 0.4415314523 | D11: ='9.0 Barrick'!I30 -> 0.4465561568 | E11: ='9.0 Barrick'!J30 -> 0.4515436502 | F11: ='9.0 Barrick'!K30 -> 0.4564939566 | G11: ='9.0 Barrick'!L30 -> 0.46140711 | I11: ='9.0 Barrick'!C30 -> 0.4122948336 | J11: ='9.0 Barrick'!D30 -> 0.4165971006 | K11: ='9.0 Barrick'!E30 -> 0.420848476 | L11: ='9.0 Barrick'!F30 -> 0.4250487198 | N11: =(I11-D11)/D11 -> -0.07672343697 | O11: =(J11-E11)/E11 -> -0.07739351356 | P11: =(K11-F11)/F11 -> -0.07808532859 | Q11: =(L11-G11)/G11 -> -0.07879893792
B12: Net debt/EBITDA, X | C12: ='9.0 Barrick'!H34 -> 1.932657495 | D12: ='9.0 Barrick'!I34 -> 2.230184535 | E12: ='9.0 Barrick'!J34 -> 2.461452064 | F12: ='9.0 Barrick'!K34 -> 2.631634945 | G12: ='9.0 Barrick'!L34 -> 2.745537628 | I12: ='9.0 Barrick'!C34 -> 2.498609912 | J12: ='9.0 Barrick'!D34 -> 2.831664018 | K12: ='9.0 Barrick'!E34 -> 3.096587669 | L12: ='9.0 Barrick'!F34 -> 3.298611686 | N12: 0.1203601643 | O12: 0.1504038855 | P12: 0.1766782752 | Q12: 0.2014447196
A13: BHP Billiton | B13: EBITDA/Revenues, % | C13: ='10.0 BHP'!H30 -> 0.4778293605 | D13: ='10.0 BHP'!I30 -> 0.4795994579 | E13: ='10.0 BHP'!J30 -> 0.4814484724 | F13: ='10.0 BHP'!K30 -> 0.4833728387 | G13: ='10.0 BHP'!L30 -> 0.4853691078 | I13: ='10.0 BHP'!C30 -> 0.4467678966 | J13: ='10.0 BHP'!D30 -> 0.4489356642 | K13: ='10.0 BHP'!E30 -> 0.4511756888 | L13: ='10.0 BHP'!F30 -> 0.4534845516 | N13: =(I13-D13)/D13 -> -0.06845621007 | O13: =(J13-E13)/E13 -> -0.06753123144 | P13: =(K13-F13)/F13 -> -0.06660934852 | Q13: =(L13-G13)/G13 -> -0.06569135877
B14: Net debt/EBITDA, X | C14: ='10.0 BHP'!H34 -> 0.8029769875 | D14: ='10.0 BHP'!I34 -> 0.6590599935 | E14: ='10.0 BHP'!J34 -> 0.4907652028 | F14: ='10.0 BHP'!K34 -> 0.2997792493 | G14: ='10.0 BHP'!L34 -> 0.08772561388 | I14: ='10.0 BHP'!C34 -> 0.7809790709 | J14: ='10.0 BHP'!D34 -> 0.6697313035 | K14: ='10.0 BHP'!E34 -> 0.5310902849 | L14: ='10.0 BHP'!F34 -> 0.3669699372 | N14: 0.1849893463 | O14: 0.3646674616 | P14: 0.7716045596 | Q14: 3.183156104
A15: Fortescue Metals | B15: EBITDA/Revenues, % | C15: ='11.0 Fortescue'!H30 -> 0.4322300689 | D15: ='11.0 Fortescue'!I30 -> 0.4371988478 | E15: ='11.0 Fortescue'!J30 -> 0.4421352177 | F15: ='11.0 Fortescue'!K30 -> 0.4470390321 | G15: ='11.0 Fortescue'!L30 -> 0.4519101594 | I15: ='11.0 Fortescue'!C30 -> 0.4291580033 | J15: ='11.0 Fortescue'!D30 -> 0.4339335563 | K15: ='11.0 Fortescue'!E30 -> 0.4386733375 | L15: ='11.0 Fortescue'!F30 -> 0.443377151 | N15: =(I15-D15)/D15 -> -0.01839173298 | O15: =(J15-E15)/E15 -> -0.01855012003 | P15: =(K15-F15)/F15 -> -0.01871356634 | Q15: =(L15-G15)/G15 -> -0.01888209038
B16: Net debt/EBITDA, X | C16: ='11.0 Fortescue'!H34 -> 1.409251969 | D16: ='11.0 Fortescue'!I34 -> 0.9538785652 | E16: ='11.0 Fortescue'!J34 -> 0.4929500784 | F16: ='11.0 Fortescue'!K34 -> 0.02757784545 | G16: ='11.0 Fortescue'!L34 -> -0.4412213871 | I16: ='11.0 Fortescue'!C34 -> 0.9904870719 | J16: ='11.0 Fortescue'!D34 -> 0.5391583418 | K16: ='11.0 Fortescue'!E34 -> 0.08260386474 | L16: ='11.0 Fortescue'!F34 -> -0.3781160594 | N16: 0.03837858199 | O16: 0.09373822106 | P16: 1.995297979 | Q16: =ABS(L16-G16)/ABS(G16) -> 0.1430241814
A17: Glencore | B17: EBITDA/Revenues, % | C17: ='12.0 Glencore'!H30 -> 0.04497752413 | D17: ='12.0 Glencore'!I30 -> 0.05384345339 | E17: ='12.0 Glencore'!J30 -> 0.06263100299 | F17: ='12.0 Glencore'!K30 -> 0.07134484152 | G17: ='12.0 Glencore'!L30 -> 0.0799853466 | I17: ='12.0 Glencore'!C30 -> 0.03543691676 | J17: ='12.0 Glencore'!D30 -> 0.04385633563 | K17: ='12.0 Glencore'!E30 -> 0.05219468081 | L17: ='12.0 Glencore'!F30 -> 0.06045218268 | N17: =(I17-D17)/D17 -> -0.3418528247 | O17: =(J17-E17)/E17 -> -0.2997663532 | P17: =(K17-F17)/F17 -> -0.2684168933 | Q17: =(L17-G17)/G17 -> -0.2442092803
B18: Net debt/EBITDA, X | C18: ='12.0 Glencore'!H34 -> 3.428434932 | D18: ='12.0 Glencore'!I34 -> 2.550971257 | E18: ='12.0 Glencore'!J34 -> 1.772197971 | F18: ='12.0 Glencore'!K34 -> 1.058421642 | G18: ='12.0 Glencore'!L34 -> 0.3910930489 | I18: ='12.0 Glencore'!C34 -> 4.395406059 | J18: ='12.0 Glencore'!D34 -> 3.366437838 | K18: ='12.0 Glencore'!E34 -> 2.495289587 | L18: ='12.0 Glencore'!F34 -> 1.719520695 | N18: =ABS(I18-D18)/ABS(D18) -> 0.7230323728 | O18: =ABS(J18-E18)/ABS(E18) -> 0.8995833949 | P18: =ABS(K18-F18)/ABS(F18) -> 1.357557224 | Q18: =ABS(L18-G18)/ABS(G18) -> 3.396704824
A19: Rio Tinto | B19: EBITDA/Revenues, % | C19: ='13.0 Rio'!H30 -> 0.3817787419 | D19: ='13.0 Rio'!I30 -> 0.3860850721 | E19: ='13.0 Rio'!J30 -> 0.390398986 | F19: ='13.0 Rio'!K30 -> 0.3947189714 | G19: ='13.0 Rio'!L30 -> 0.3990435726 | I19: ='13.0 Rio'!C30 -> 0.2597630599 | J19: ='13.0 Rio'!D30 -> 0.2640769738 | K19: ='13.0 Rio'!E30 -> 0.2683969592 | L19: ='13.0 Rio'!F30 -> 0.2727215604 | N19: =(I19-D19)/D19 -> -0.327186989 | O19: =(J19-E19)/E19 -> -0.3235715684 | P19: =(K19-F19)/F19 -> -0.3200302528 | Q19: =(L19-G19)/G19 -> -0.3165619518
B20: Net debt/EBITDA, X | C20: ='13.0 Rio'!H34 -> 0.938523751 | D20: ='13.0 Rio'!I34 -> 0.9694776906 | E20: ='13.0 Rio'!J34 -> 0.9567100569 | F20: ='13.0 Rio'!K34 -> 0.9037690181 | G20: ='13.0 Rio'!L34 -> 0.8139695846 | I20: ='13.0 Rio'!C34 -> 1.927228901 | J20: ='13.0 Rio'!D34 -> 2.357128566 | K20: ='13.0 Rio'!E34 -> 2.700366404 | L20: ='13.0 Rio'!F34 -> 2.964368568 | N20: =ABS(I20-D20)/ABS(D20) -> 0.9879043317 | O20: =ABS(J20-E20)/ABS(E20) -> 1.46378571 | P20: =ABS(K20-F20)/ABS(F20) -> 1.987894418 | Q20: =ABS(L20-G20)/ABS(G20) -> 2.641866507
A21: Vale | B21: EBITDA/Revenues, % | C21: ='14.0 Vale'!H30 -> 0.4703316441 | D21: ='14.0 Vale'!I30 -> 0.4756924485 | E21: ='14.0 Vale'!J30 -> 0.4809948452 | F21: ='14.0 Vale'!K30 -> 0.4862395867 | G21: ='14.0 Vale'!L30 -> 0.4914274126 | I21: ='14.0 Vale'!C30 -> 0.4669115499 | J21: ='14.0 Vale'!D30 -> 0.4720383287 | K21: ='14.0 Vale'!E30 -> 0.4771039399 | L21: ='14.0 Vale'!F30 -> 0.4821090528 | N21: =(I21-D21)/D21 -> -0.01845919264 | O21: =(J21-E21)/E21 -> -0.01862081601 | P21: =(K21-F21)/F21 -> -0.01878836503 | Q21: =(L21-G21)/G21 -> -0.01896182335
B22: Net debt/EBITDA, X | C22: ='14.0 Vale'!H34 -> 1.096744863 | D22: ='14.0 Vale'!I34 -> 0.9577020447 | E22: ='14.0 Vale'!J34 -> 0.7884174888 | F22: ='14.0 Vale'!K34 -> 0.591651701 | G22: ='14.0 Vale'!L34 -> 0.3699524963 | I22: ='14.0 Vale'!C34 -> 0.99451926 | J22: ='14.0 Vale'!D34 -> 0.840411434 | K22: ='14.0 Vale'!E34 -> 0.6577028303 | L22: ='14.0 Vale'!F34 -> 0.4490080792 | N22: =ABS(I22-D22)/ABS(D22) -> 0.03844328772 | O22: =ABS(J22-E22)/ABS(E22) -> 0.06594722459 | P22: =ABS(K22-F22)/ABS(F22) -> 0.1116385352 | Q22: =ABS(L22-G22)/ABS(G22) -> 0.213691173
A23: Vedanta | B23: EBITDA/Revenues, % | C23: ='15.0 Vedanta'!H30 -> 0.3362842796 | D23: ='15.0 Vedanta'!I30 -> 0.3405510243 | E23: ='15.0 Vedanta'!J30 -> 0.3448397549 | F23: ='15.0 Vedanta'!K30 -> 0.349148411 | G23: ='15.0 Vedanta'!L30 -> 0.353475006 | I23: ='15.0 Vedanta'!C30 -> 0.27375997 | J23: ='15.0 Vedanta'!D30 -> 0.2767128795 | K23: ='15.0 Vedanta'!E30 -> 0.2796589981 | L23: ='15.0 Vedanta'!F30 -> 0.2825958049 | N23: =(I23-D23)/D23 -> -0.1961264231 | O23: =(J23-E23)/E23 -> -0.1975609668 | P23: =(K23-F23)/F23 -> -0.1990254307 | Q23: =(L23-G23)/G23 -> -0.2005211116
B24: Net debt/EBITDA, X | C24: ='15.0 Vedanta'!H34 -> 3.230910595 | D24: ='15.0 Vedanta'!I34 -> 3.04993871 | E24: ='15.0 Vedanta'!J34 -> 2.837470748 | F24: ='15.0 Vedanta'!K34 -> 2.596483415 | G24: ='15.0 Vedanta'!L34 -> 2.329744816 | I24: ='15.0 Vedanta'!C34 -> 4.038029394 | J24: ='15.0 Vedanta'!D34 -> 4.016601173 | K24: ='15.0 Vedanta'!E34 -> 3.951766439 | L24: ='15.0 Vedanta'!F34 -> 3.847157618 | N24: =ABS(I24-D24)/ABS(D24) -> 0.3239706691 | O24: =ABS(J24-E24)/ABS(E24) -> 0.4155568566 | P24: =ABS(K24-F24)/ABS(F24) -> 0.5219686816 | Q24: =ABS(L24-G24)/ABS(G24) -> 0.6513214631
A26: Consol | B26: EBITDA/Revenues, % | C26: ='16.0 Consol'!H30 -> 0.4246381094 | D26: ='16.0 Consol'!I30 -> 0.4282796309 | E26: ='16.0 Consol'!J30 -> 0.4319424342 | F26: ='16.0 Consol'!K30 -> 0.4356246631 | G26: ='16.0 Consol'!L30 -> 0.4393245274 | I26: ='16.0 Consol'!C30 -> 0.4095892501 | J26: ='16.0 Consol'!D30 -> 0.4128782458 | K26: ='16.0 Consol'!E30 -> 0.4161791909 | L26: ='16.0 Consol'!F30 -> 0.4194901458 | N26: =(I26-D26)/D26 -> -0.04364060161 | O26: =(J26-E26)/E26 -> -0.04413594696 | P26: =(K26-F26)/F26 -> -0.04463813411 | Q26: =(L26-G26)/G26 -> -0.04514744872
B27: Net debt/EBITDA, X | C27: ='16.0 Consol'!H34 -> 2.032294394 | D27: ='16.0 Consol'!I34 -> 2.270410091 | E27: ='16.0 Consol'!J34 -> 2.45058205 | F27: ='16.0 Consol'!K34 -> 2.576861722 | G27: ='16.0 Consol'!L34 -> 2.653078788 | I27: ='16.0 Consol'!C34 -> 2.419645477 | J27: ='16.0 Consol'!D34 -> 2.653858798 | K27: ='16.0 Consol'!E34 -> 2.830791194 | L27: ='16.0 Consol'!F34 -> 2.954420384 | N27: =ABS(I27-D27)/ABS(D27) -> 0.06573058606 | O27: =ABS(J27-E27)/ABS(E27) -> 0.08295039434 | P27: =ABS(K27-F27)/ABS(F27) -> 0.09854214122 | Q27: =ABS(L27-G27)/ABS(G27) -> 0.1135818494
A28: EDF | B28: EBITDA/Revenues, % | C28: ='17.0 EDF'!H30 -> 0.2106913247 | D28: ='17.0 EDF'!I30 -> 0.2211689889 | E28: ='17.0 EDF'!J30 -> 0.2314629532 | F28: ='17.0 EDF'!K30 -> 0.2415773887 | G28: ='17.0 EDF'!L30 -> 0.2515163567 | I28: ='17.0 EDF'!C30 -> 0.1967971096 | J28: ='17.0 EDF'!D30 -> 0.2066036363 | K28: ='17.0 EDF'!E30 -> 0.2162208856 | L28: ='17.0 EDF'!F30 -> 0.2256527234 | N28: =(I28-D28)/D28 -> -0.1101957349 | O28: =(J28-E28)/E28 -> -0.1074008454 | P28: =(K28-F28)/F28 -> -0.1049622372 | Q28: =(L28-G28)/G28 -> -0.1028308202
B29: Net debt/EBITDA, X | C29: ='17.0 EDF'!H34 -> 3.247943743 | D29: ='17.0 EDF'!I34 -> 3.244678763 | E29: ='17.0 EDF'!J34 -> 3.161086642 | F29: ='17.0 EDF'!K34 -> 3.011221996 | G29: ='17.0 EDF'!L34 -> 2.806427497 | I29: ='17.0 EDF'!C34 -> 3.770351109 | J29: ='17.0 EDF'!D34 -> 3.776292609 | K29: ='17.0 EDF'!E34 -> 3.699493417 | L29: ='17.0 EDF'!F34 -> 3.554488583 | N29: =ABS(I29-D29)/ABS(D29) -> 0.1620105978 | O29: =ABS(J29-E29)/ABS(E29) -> 0.1946185085 | P29: =ABS(K29-F29)/ABS(F29) -> 0.2285688074 | Q29: =ABS(L29-G29)/ABS(G29) -> 0.2665527925
A30: Eskom | B30: EBITDA/Revenues, % | C30: ='18.0 Eskom'!H30 -> 0.1672902958 | D30: ='18.0 Eskom'!I30 -> 0.1959058308 | E30: ='18.0 Eskom'!J30 -> 0.2097034387 | F30: ='18.0 Eskom'!K30 -> 0.223192598 | G30: ='18.0 Eskom'!L30 -> 0.2363813855 | I30: ='18.0 Eskom'!C30 -> 0.06647838195 | J30: ='18.0 Eskom'!D30 -> 0.07768744089 | K30: ='18.0 Eskom'!E30 -> 0.08853628018 | L30: ='18.0 Eskom'!F30 -> 0.09903194132 | N30: =(I30-D30)/D30 -> -0.660661545 | O30: =(J30-E30)/E30 -> -0.6295366382 | P30: =(K30-F30)/F30 -> -0.6033189229 | Q30: =(L30-G30)/G30 -> -0.5810501698
B31: Net debt/EBITDA, X | C31: ='18.0 Eskom'!H34 -> 9.801568258 | D31: ='18.0 Eskom'!I34 -> 9.355155286 | E31: ='18.0 Eskom'!J34 -> 9.506820957 | F31: ='18.0 Eskom'!K34 -> 9.516323509 | G31: ='18.0 Eskom'!L34 -> 9.414270522 | I31: ='18.0 Eskom'!C34 -> 29.51571413 | J31: ='18.0 Eskom'!D34 -> 28.9787736 | K31: ='18.0 Eskom'!E34 -> 28.33638295 | L31: ='18.0 Eskom'!F34 -> 27.63072395 | N31: =ABS(I31-D31)/ABS(D31) -> 2.155021294 | O31: =ABS(J31-E31)/ABS(E31) -> 2.048208621 | P31: =ABS(K31-F31)/ABS(F31) -> 1.977660746 | Q31: =ABS(L31-G31)/ABS(G31) -> 1.934983001
A32: GdF | B32: EBITDA/Revenues, % | C32: ='19.0 GdF'!H30 -> 0.1615789474 | D32: ='19.0 GdF'!I30 -> 0.174862523 | E32: ='19.0 GdF'!J30 -> 0.1878673192 | F32: ='19.0 GdF'!K30 -> 0.2006004062 | G32: ='19.0 GdF'!L30 -> 0.2130686583 | I32: ='19.0 GdF'!C30 -> 0.1671168385 | J32: ='19.0 GdF'!D30 -> 0.1799667211 | K32: ='19.0 GdF'!E30 -> 0.1925417961 | L32: ='19.0 GdF'!F30 -> 0.204848876 | N32: =(I32-D32)/D32 -> -0.04429585195 | O32: =(J32-E32)/E32 -> -0.04205413773 | P32: =(K32-F32)/F32 -> -0.04017245145 | Q32: =(L32-G32)/G32 -> -0.03857809191
B33: Net debt/EBITDA, X | C33: ='19.0 GdF'!H34 -> 2.157668584 | D33: ='19.0 GdF'!I34 -> 1.960889548 | E33: ='19.0 GdF'!J34 -> 1.69843031 | F33: ='19.0 GdF'!K34 -> 1.386657016 | G33: ='19.0 GdF'!L34 -> 1.037459648 | I33: ='19.0 GdF'!C34 -> 2.098123571 | J33: ='19.0 GdF'!D34 -> 1.858678245 | K33: ='19.0 GdF'!E34 -> 1.564305054 | L33: ='19.0 GdF'!F34 -> 1.228365445 | N33: =ABS(I33-D33)/ABS(D33) -> 0.06998559566 | O33: =ABS(J33-E33)/ABS(E33) -> 0.09435060943 | P33: =ABS(K33-F33)/ABS(F33) -> 0.1281124576 | Q33: =ABS(L33-G33)/ABS(G33) -> 0.1840127445
A34: RWE | B34: EBITDA/Revenues, % | C34: ='20. RWE'!H30 -> 0.1453310762 | D34: ='20. RWE'!I30 -> 0.1566007913 | E34: ='20. RWE'!J30 -> 0.1676741629 | F34: ='20. RWE'!K30 -> 0.1785556399 | G34: ='20. RWE'!L30 -> 0.1892495537 | I34: ='20. RWE'!C30 -> 0.1370487922 | J34: ='20. RWE'!D30 -> 0.1477311238 | K34: ='20. RWE'!E30 -> 0.1582137401 | L34: ='20. RWE'!F30 -> 0.1685008158 | N34: =(I34-D34)/D34 -> -0.1248524924 | O34: =(J34-E34)/E34 -> -0.1189392494 | P34: =(K34-F34)/F34 -> -0.113924712 | Q34: =(L34-G34)/G34 -> -0.1096369183
B35: Net debt/EBITDA, X | C35: ='20. RWE'!H34 -> 1.97911367 | D35: ='20. RWE'!I34 -> 1.952363374 | E35: ='20. RWE'!J34 -> 1.830362115 | F35: ='20. RWE'!K34 -> 1.635104429 | G35: ='20. RWE'!L34 -> 1.382874107 | I35: ='20. RWE'!C34 -> 2.373560855 | J35: ='20. RWE'!D34 -> 2.340942037 | K35: ='20. RWE'!E34 -> 2.212771315 | L35: ='20. RWE'!F34 -> 2.01125162 | N35: =ABS(I35-D35)/ABS(D35) -> 0.2157372375 | O35: =ABS(J35-E35)/ABS(E35) -> 0.2789502239 | P35: =ABS(K35-F35)/ABS(F35) -> 0.3532905155 | Q35: =ABS(L35-G35)/ABS(G35) -> 0.4543996516
A36: Sempra | B36: EBITDA/Revenues, % | C36: ='21.0 Sempra'!H30 -> 0.2919389978 | D36: ='21.0 Sempra'!I30 -> 0.3052729933 | E36: ='21.0 Sempra'!J30 -> 0.3182876026 | F36: ='21.0 Sempra'!K30 -> 0.3309915105 | G36: ='21.0 Sempra'!L30 -> 0.3433931534 | I36: ='21.0 Sempra'!C30 -> 0.2025353273 | J36: ='21.0 Sempra'!D30 -> 0.2134951833 | K36: ='21.0 Sempra'!E30 -> 0.2241032428 | L36: ='21.0 Sempra'!F30 -> 0.2343671203 | N36: =(I36-D36)/D36 -> -0.3365435799 | O36: =(J36-E36)/E36 -> -0.3292381434 | P36: =(K36-F36)/F36 -> -0.3229335627 | Q36: =(L36-G36)/G36 -> -0.3174962343
B37: Net debt/EBITDA, X | C37: ='21.0 Sempra'!H34 -> 3.534717716 | D37: ='21.0 Sempra'!I34 -> 3.626067571 | E37: ='21.0 Sempra'!J34 -> 3.628188973 | F37: ='21.0 Sempra'!K34 -> 3.555900226 | G37: ='21.0 Sempra'!L34 -> 3.421224266 | I37: ='21.0 Sempra'!C34 -> 5.972677378 | J37: ='21.0 Sempra'!D34 -> 6.367100537 | K37: ='21.0 Sempra'!E34 -> 6.614992951 | L37: ='21.0 Sempra'!F34 -> 6.743362555 | N37: =ABS(I37-D37)/ABS(D37) -> 0.647150049 | O37: =ABS(J37-E37)/ABS(E37) -> 0.7548977148 | P37: =ABS(K37-F37)/ABS(F37) -> 0.860286434 | Q37: =ABS(L37-G37)/ABS(G37) -> 0.9710378601
A38: Southern | B38: EBITDA/Revenues, % | C38: ='22.0 Southern'!H30 -> 0.3249839059 | D38: ='22.0 Southern'!I30 -> 0.3378591912 | E38: ='22.0 Southern'!J30 -> 0.3504253456 | F38: ='22.0 Southern'!K30 -> 0.3626907335 | G38: ='22.0 Southern'!L30 -> 0.3746634815 | I38: ='22.0 Southern'!C30 -> 0.2770727338 | J38: ='22.0 Southern'!D30 -> 0.2884231591 | K38: ='22.0 Southern'!E30 -> 0.2994485031 | L38: ='22.0 Southern'!F30 -> 0.3101564065 | N38: =(I38-D38)/D38 -> -0.1799165422 | O38: =(J38-E38)/E38 -> -0.1769340813 | P38: =(K38-F38)/F38 -> -0.1743695785 | Q38: =(L38-G38)/G38 -> -0.1721733719
B39: Net debt/EBITDA, X | C39: ='22.0 Southern'!H34 -> 3.809472357 | D39: ='22.0 Southern'!I34 -> 3.968896049 | E39: ='22.0 Southern'!J34 -> 4.036200741 | F39: ='22.0 Southern'!K34 -> 4.025350691 | G39: ='22.0 Southern'!L34 -> 3.947907408 | I39: ='22.0 Southern'!C34 -> 5.059012656 | J39: ='22.0 Southern'!D34 -> 5.32344632 | K39: ='22.0 Southern'!E34 -> 5.47904889 | L39: ='22.0 Southern'!F34 -> 5.542736577 | N39: =ABS(I39-D39)/ABS(D39) -> 0.2746649428 | O39: =ABS(J39-E39)/ABS(E39) -> 0.3189250636 | P39: =ABS(K39-F39)/ABS(F39) -> 0.3611357892 | Q39: =ABS(L39-G39)/ABS(G39) -> 0.4039682306
A40: Vattenfall | B40: EBITDA/Revenues, % | C40: ='23.0 Vattenfall'!H30 -> 0.2523182125 | D40: ='23.0 Vattenfall'!I30 -> 0.2561528145 | E40: ='23.0 Vattenfall'!J30 -> 0.2600498186 | F40: ='23.0 Vattenfall'!K30 -> 0.2640057204 | G40: ='23.0 Vattenfall'!L30 -> 0.2680171336 | I40: ='23.0 Vattenfall'!C30 -> 0.2215377433 | J40: ='23.0 Vattenfall'!D30 -> 0.224742446 | K40: ='23.0 Vattenfall'!E30 -> 0.2279922003 | L40: ='23.0 Vattenfall'!F30 -> 0.2312833431 | N40: =(I40-D40)/D40 -> -0.1351344557 | O40: =(J40-E40)/E40 -> -0.1357715717 | P40: =(K40-F40)/F40 -> -0.1364118928 | Q40: =(L40-G40)/G40 -> -0.13705762
B41: Net debt/EBITDA, X | C41: ='23.0 Vattenfall'!H34 -> 2.633567257 | D41: ='23.0 Vattenfall'!I34 -> 2.420285293 | E41: ='23.0 Vattenfall'!J34 -> 2.176896472 | F41: ='23.0 Vattenfall'!K34 -> 1.906479998 | G41: ='23.0 Vattenfall'!L34 -> 1.611903125 | I41: ='23.0 Vattenfall'!C34 -> 2.954701763 | J41: ='23.0 Vattenfall'!D34 -> 2.825526649 | K41: ='23.0 Vattenfall'!E34 -> 2.65904786 | L41: ='23.0 Vattenfall'!F34 -> 2.458777615 | N41: =ABS(I41-D41)/ABS(D41) -> 0.2208072213 | O41: =ABS(J41-E41)/ABS(E41) -> 0.2979609667 | P41: =ABS(K41-F41)/ABS(F41) -> 0.3947420703 | Q41: =ABS(L41-G41)/ABS(G41) -> 0.525387957
A43: Anheuser-Busch | B43: EBITDA/Revenues, % | C43: ='24.0 ABusch'!H30 -> 0.54237759 | D43: ='24.0 ABusch'!I30 -> 0.5478198326 | E43: ='24.0 ABusch'!J30 -> 0.5531796955 | F43: ='24.0 ABusch'!K30 -> 0.5584588515 | G43: ='24.0 ABusch'!L30 -> 0.5636589318 | I43: ='24.0 ABusch'!C30 -> 0.5432071184 | J43: ='24.0 ABusch'!D30 -> 0.548474727 | K43: ='24.0 ABusch'!E30 -> 0.5536597837 | L43: ='24.0 ABusch'!F30 -> 0.5587638826 | N43: =(I43-D43)/D43 -> -0.00842012995 | O43: =(J43-E43)/E43 -> -0.00850531663 | P43: =(K43-F43)/F43 -> -0.008593413498 | Q43: =(L43-G43)/G43 -> -0.008684416965
B44: Net debt/EBITDA, X | C44: ='24.0 ABusch'!H34 -> 1.676925047 | D44: ='24.0 ABusch'!I34 -> 1.879173117 | E44: ='24.0 ABusch'!J34 -> 2.025155893 | F44: ='24.0 ABusch'!K34 -> 2.119270491 | G44: ='24.0 ABusch'!L34 -> 2.165590305 | I44: ='24.0 ABusch'!C34 -> 1.903621991 | J44: ='24.0 ABusch'!D34 -> 2.059271642 | K44: ='24.0 ABusch'!E34 -> 2.162411509 | L44: ='24.0 ABusch'!F34 -> 2.217152657 | N44: =ABS(I44-D44)/ABS(D44) -> 0.01301044288 | O44: =ABS(J44-E44)/ABS(E44) -> 0.01684598679 | P44: =ABS(K44-F44)/ABS(F44) -> 0.02035654168 | Q44: =ABS(L44-G44)/ABS(G44) -> 0.02380983721
A45: Carlsberg | B45: EBITDA/Revenues, % | C45: ='25.0 Carlsberg'!H30 -> 0.1475803354 | D45: ='25.0 Carlsberg'!I30 -> 0.166777497 | E45: ='25.0 Carlsberg'!J30 -> 0.1854701839 | F45: ='25.0 Carlsberg'!K30 -> 0.2036725589 | G45: ='25.0 Carlsberg'!L30 -> 0.2213983773 | I45: ='25.0 Carlsberg'!C30 -> 0.1624433741 | J45: ='25.0 Carlsberg'!D30 -> 0.1810493786 | K45: ='25.0 Carlsberg'!E30 -> 0.1991633374 | L45: ='25.0 Carlsberg'!F30 -> 0.2167989714 | N45: =(I45-D45)/D45 -> -0.0259874563 | O45: =(J45-E45)/E45 -> -0.02383566609 | P45: =(K45-F45)/F45 -> -0.02213956315 | Q45: =(L45-G45)/G45 -> -0.02077434337
B46: Net debt/EBITDA, X | C46: ='25.0 Carlsberg'!H34 -> 2.638400925 | D46: ='25.0 Carlsberg'!I34 -> 2.021856539 | E46: ='25.0 Carlsberg'!J34 -> 1.424341953 | F46: ='25.0 Carlsberg'!K34 -> 0.8420355038 | G46: ='25.0 Carlsberg'!L34 -> 0.2725084327 | I46: ='25.0 Carlsberg'!C34 -> 2.102482158 | J46: ='25.0 Carlsberg'!D34 -> 1.506780404 | K46: ='25.0 Carlsberg'!E34 -> 0.9258035149 | L46: ='25.0 Carlsberg'!F34 -> 0.3572138034 | N46: =ABS(I46-D46)/ABS(D46) -> 0.0398770229 | O46: =ABS(J46-E46)/ABS(E46) -> 0.05787827175 | P46: =ABS(K46-F46)/ABS(F46) -> 0.09948275415 | Q46: =ABS(L46-G46)/ABS(G46) -> 0.310835778
A47: Diageo | B47: EBITDA/Revenues, % | C47: ='26.0 Diageo'!H30 -> 0.3252095925 | D47: ='26.0 Diageo'!I30 -> 0.3372371457 | E47: ='26.0 Diageo'!J30 -> 0.3489884259 | F47: ='26.0 Diageo'!K30 -> 0.3604707609 | G47: ='26.0 Diageo'!L30 -> 0.3716912723 | I47: ='26.0 Diageo'!C30 -> 0.3356028835 | J47: ='26.0 Diageo'!D30 -> 0.3473214784 | K47: ='26.0 Diageo'!E30 -> 0.3587704745 | L47: ='26.0 Diageo'!F30 -> 0.3699569802 | N47: =(I47-D47)/D47 -> -0.004846032582 | O47: =(J47-E47)/E47 -> -0.004776512102 | P47: =(K47-F47)/F47 -> -0.004716849667 | Q47: =(L47-G47)/G47 -> -0.004665947914
B48: Net debt/EBITDA, X | C48: ='26.0 Diageo'!H34 -> 2.575539568 | D48: ='26.0 Diageo'!I34 -> 2.353764636 | E48: ='26.0 Diageo'!J34 -> 2.092159999 | F48: ='26.0 Diageo'!K34 -> 1.797093765 | G48: ='26.0 Diageo'!L34 -> 1.473886392 | I48: ='26.0 Diageo'!C34 -> 2.370096232 | J48: ='26.0 Diageo'!D34 -> 2.111568906 | K48: ='26.0 Diageo'!E34 -> 1.819154401 | L48: ='26.0 Diageo'!F34 -> 1.498235289 | N48: =ABS(I48-D48)/ABS(D48) -> 0.006938500093 | O48: =ABS(J48-E48)/ABS(E48) -> 0.009276971034 | P48: =ABS(K48-F48)/ABS(F48) -> 0.01227572904 | Q48: =ABS(L48-G48)/ABS(G48) -> 0.01652019934
A49: Femsa | B49: EBITDA/Revenues, % | C49: ='27.0 Femsa'!H30 -> 0.154224816 | D49: ='27.0 Femsa'!I30 -> 0.1676914095 | E49: ='27.0 Femsa'!J30 -> 0.1808741956 | F49: ='27.0 Femsa'!K30 -> 0.1937803882 | G49: ='27.0 Femsa'!L30 -> 0.2064170007 | I49: ='27.0 Femsa'!C30 -> 0.1137964149 | J49: ='27.0 Femsa'!D30 -> 0.1259013012 | K49: ='27.0 Femsa'!E30 -> 0.1377080359 | L49: ='27.0 Femsa'!F30 -> 0.1492232014 | N49: =(I49-D49)/D49 -> -0.3213938906 | O49: =(J49-E49)/E49 -> -0.3039288949 | P49: =(K49-F49)/F49 -> -0.2893603053 | Q49: =(L49-G49)/G49 -> -0.2770789186
B50: Net debt/EBITDA, X | C50: ='27.0 Femsa'!H34 -> 1.243172096 | D50: ='27.0 Femsa'!I34 -> 1.208615274 | E50: ='27.0 Femsa'!J34 -> 1.076734591 | F50: ='27.0 Femsa'!K34 -> 0.8718514356 | G50: ='27.0 Femsa'!L34 -> 0.6113801084 | I50: ='27.0 Femsa'!C34 -> 2.254635117 | J50: ='27.0 Femsa'!D34 -> 2.39911448 | K50: ='27.0 Femsa'!E34 -> 2.390514128 | L50: ='27.0 Femsa'!F34 -> 2.271570383 | N50: =ABS(I50-D50)/ABS(D50) -> 0.8654696536 | O50: =ABS(J50-E50)/ABS(E50) -> 1.228139135 | P50: =ABS(K50-F50)/ABS(F50) -> 1.741882425 | Q50: =ABS(L50-G50)/ABS(G50) -> 2.715479701
A51: Heineken | B51: EBITDA/Revenues, % | C51: ='28.0 Heineken'!H30 -> 0.2179328165 | D51: ='28.0 Heineken'!I30 -> 0.2286164421 | E51: ='28.0 Heineken'!J30 -> 0.2391063217 | F51: ='28.0 Heineken'!K30 -> 0.2494069581 | G51: ='28.0 Heineken'!L30 -> 0.2595227344 | I51: ='28.0 Heineken'!C30 -> 0.224194823 | J51: ='28.0 Heineken'!D30 -> 0.2345962701 | K51: ='28.0 Heineken'!E30 -> 0.2448067055 | L51: ='28.0 Heineken'!F30 -> 0.2548304768 | N51: =(I51-D51)/D51 -> -0.01934077503 | O51: =(J51-E51)/E51 -> -0.01886211761 | P51: =(K51-F51)/F51 -> -0.01844476444 | Q51: =(L51-G51)/G51 -> -0.01808033371
B52: Net debt/EBITDA, X | C52: ='28.0 Heineken'!H34 -> 2.490396016 | D52: ='28.0 Heineken'!I34 -> 2.050188305 | E52: ='28.0 Heineken'!J34 -> 1.594810631 | F52: ='28.0 Heineken'!K34 -> 1.128003762 | G52: ='28.0 Heineken'!L34 -> 0.6527762899 | I52: ='28.0 Heineken'!C34 -> 2.110344784 | J52: ='28.0 Heineken'!D34 -> 1.662994 | K52: ='28.0 Heineken'!E34 -> 1.202903041 | L52: ='28.0 Heineken'!F34 -> 0.7332968035 | N52: =ABS(I52-D52)/ABS(D52) -> 0.02934192854 | O52: =ABS(J52-E52)/ABS(E52) -> 0.04275326924 | P52: =ABS(K52-F52)/ABS(F52) -> 0.06639984883 | Q52: =ABS(L52-G52)/ABS(G52) -> 0.1233508553
A53: Nestle | B53: EBITDA/Revenues, % | C53: ='29.0 Nestle'!H30 -> 0.1830729759 | D53: ='29.0 Nestle'!I30 -> 0.1967536851 | E53: ='29.0 Nestle'!J30 -> 0.2101341143 | F53: ='29.0 Nestle'!K30 -> 0.2232220562 | G53: ='29.0 Nestle'!L30 -> 0.2360250858 | I53: ='29.0 Nestle'!C30 -> 0.1938879238 | J53: ='29.0 Nestle'!D30 -> 0.2072110378 | K53: ='29.0 Nestle'!E30 -> 0.2202405182 | L53: ='29.0 Nestle'!F30 -> 0.232983917 | N53: =(I53-D53)/D53 -> -0.01456522284 | O53: =(J53-E53)/E53 -> -0.01391052806 | P53: =(K53-F53)/F53 -> -0.01335682537 | Q53: =(L53-G53)/G53 -> -0.01288493879
B54: Net debt/EBITDA, X | C54: ='29.0 Nestle'!H34 -> 0.906392289 | D54: ='29.0 Nestle'!I34 -> 0.5986670919 | E54: ='29.0 Nestle'!J34 -> 0.2531559951 | F54: ='29.0 Nestle'!K34 -> -0.1206964063 | G54: ='29.0 Nestle'!L34 -> -0.5158875453 | I54: ='29.0 Nestle'!C34 -> 0.6222961975 | J54: ='29.0 Nestle'!D34 -> 0.2842613039 | K54: ='29.0 Nestle'!E34 -> -0.08364205156 | L54: ='29.0 Nestle'!F34 -> -0.4740613867 | N54: =ABS(I54-D54)/ABS(D54) -> 0.03946952479 | O54: =ABS(J54-E54)/ABS(E54) -> 0.1228701253 | P54: =ABS(K54-F54)/ABS(F54) -> 0.3070046232 | Q54: =ABS(L54-G54)/ABS(G54) -> 0.08107611623
A55: Pernod Ricard | B55: EBITDA/Revenues, % | C55: ='30.0 PRicard'!H30 -> 0.2765014577 | D55: ='30.0 PRicard'!I30 -> 0.2902737128 | E55: ='30.0 PRicard'!J30 -> 0.3037157131 | F55: ='30.0 PRicard'!K30 -> 0.3168363894 | G55: ='30.0 PRicard'!L30 -> 0.3296444194 | I55: ='30.0 PRicard'!C30 -> 0.2890791842 | J55: ='30.0 PRicard'!D30 -> 0.3024972939 | K55: ='30.0 PRicard'!E30 -> 0.3155936019 | L55: ='30.0 PRicard'!F30 -> 0.3283767761 | N55: =(I55-D55)/D55 -> -0.004115179972 | O55: =(J55-E55)/E55 -> -0.004011709268 | P55: =(K55-F55)/F55 -> -0.003922489856 | Q55: =(L55-G55)/G55 -> -0.003845486833
B56: Net debt/EBITDA, X | C56: ='30.0 PRicard'!H34 -> 3.670603121 | D56: ='30.0 PRicard'!I34 -> 3.134536249 | E56: ='30.0 PRicard'!J34 -> 2.595130439 | F56: ='30.0 PRicard'!K34 -> 2.054184799 | G56: ='30.0 PRicard'!L34 -> 1.513129363 | I56: ='30.0 PRicard'!C34 -> 3.151620917 | J56: ='30.0 PRicard'!D34 -> 2.613445024 | K56: ='30.0 PRicard'!E34 -> 2.073528004 | L56: ='30.0 PRicard'!F34 -> 1.533331708 | N56: =ABS(I56-D56)/ABS(D56) -> 0.005450460894 | O56: =ABS(J56-E56)/ABS(E56) -> 0.00705728857 | P56: =ABS(K56-F56)/ABS(F56) -> 0.009416487222 | Q56: =ABS(L56-G56)/ABS(G56) -> 0.01335136711
A57: SABMiller | B57: EBITDA/Revenues, % | C57: ='31.0 SAB'!H30 -> 0.2475460535 | D57: ='31.0 SAB'!I30 -> 0.2548514316 | E57: ='31.0 SAB'!J30 -> 0.2620858838 | F57: ='31.0 SAB'!K30 -> 0.2692500985 | G57: ='31.0 SAB'!L30 -> 0.2763447577 | I57: ='31.0 SAB'!C30 -> 0.2456596414 | J57: ='31.0 SAB'!D30 -> 0.2527102577 | K57: ='31.0 SAB'!E30 -> 0.2596869599 | L57: ='31.0 SAB'!F30 -> 0.2665903564 | N57: =(I57-D57)/D57 -> -0.0360672497 | O57: =(J57-E57)/E57 -> -0.03577310572 | P57: =(K57-F57)/F57 -> -0.03551767892 | Q57: =(L57-G57)/G57 -> -0.03529794232
B58: Net debt/EBITDA, X | C58: ='31.0 SAB'!H34 -> 2.709759189 | D58: ='31.0 SAB'!I34 -> 2.491121937 | E58: ='31.0 SAB'!J34 -> 2.235014878 | F58: ='31.0 SAB'!K34 -> 1.946697628 | G58: ='31.0 SAB'!L34 -> 1.630741703 | I58: ='31.0 SAB'!C34 -> 2.621748442 | J58: ='31.0 SAB'!D34 -> 2.390348335 | K58: ='31.0 SAB'!E34 -> 2.123627463 | L58: ='31.0 SAB'!F34 -> 1.826529459 | N58: =ABS(I58-D58)/ABS(D58) -> 0.05243681712 | O58: =ABS(J58-E58)/ABS(E58) -> 0.06949996538 | P58: =ABS(K58-F58)/ABS(F58) -> 0.09088716853 | Q58: =ABS(L58-G58)/ABS(G58) -> 0.1200605565

Sheet 4.0 Graphs Ratios
A1: Table and Graphs of Credit Ratios before and after water cost (all company data from 2014)
B2: Sector
A3: Company | C3: Water Use (`000m3) | D3: Shadow price 2010 ($/m3) | E3: Shadow price 2040 ($/m3) | F3: EBITDA/Revenues before water cost (%) | G3: EBITDA/Revenues after 2010 water cost (%) | H3: Net debt/EBITDA before water cost (X) | I3: Net debt/EBITDA after 2010 water cost (X)
A4: Glencore | B4: Mining | C4: ='12.0 Glencore'!C45 -> 988380 | D4: ='12.0 Glencore'!B48 -> 4.333445269 | E4: ='12.0 Glencore'!B51 -> 5.413397414 | F4: ='3.0 Sum Ratios'!D17 -> 0.05384345339 | G4: ='3.0 Sum Ratios'!I17 -> 0.03543691676 | H4: ='3.0 Sum Ratios'!D18 -> 2.550971257 | I4: ='3.0 Sum Ratios'!I18 -> 4.395406059
A5: Rio Tinto | B5: Mining | C5: ='13.0 Rio'!C45 -> 745620 | D5: ='13.0 Rio'!B48 -> 8.66932712 | E5: ='13.0 Rio'!B51 -> 8.698858377 | F5: ='3.0 Sum Ratios'!D19 -> 0.3860850721 | G5: ='3.0 Sum Ratios'!I19 -> 0.2597630599 | H5: ='3.0 Sum Ratios'!D20 -> 0.9694776906 | I5: ='3.0 Sum Ratios'!I20 -> 1.927228901
A6: EdF | B6: Power | C6: ='17.0 EDF'!C45 -> 510000 | D6: ='17.0 EDF'!B48 -> 4.099507447 | E6: ='17.0 EDF'!B51 -> 4.383704898 | F6: ='3.0 Sum Ratios'!D28 -> 0.2211689889 | G6: ='3.0 Sum Ratios'!I28 -> 0.1967971096 | H6: ='3.0 Sum Ratios'!D29 -> 3.244678763 | I6: ='3.0 Sum Ratios'!I29 -> 3.770351109
A7: Southern | B7: Power | C7: ='22.0 Southern'!C45 -> 396033.972 | D7: ='22.0 Southern'!B48 -> 2.622649246 | E7: ='22.0 Southern'!B51 -> 2.725639121 | F7: ='3.0 Sum Ratios'!D38 -> 0.3378591912 | G7: ='3.0 Sum Ratios'!I38 -> 0.2770727338 | H7: ='3.0 Sum Ratios'!D39 -> 3.968896049 | I7: ='3.0 Sum Ratios'!I39 -> 5.059012656
A8: Vale | B8: Mining | C8: ='14.0 Vale'!C45 -> 381276 | D8: ='14.0 Vale'!B48 -> 1.07705778 | E8: ='14.0 Vale'!B51 -> 1.126576183 | F8: ='3.0 Sum Ratios'!D21 -> 0.4756924485 | G8: ='3.0 Sum Ratios'!I21 -> 0.4669115499 | H8: ='3.0 Sum Ratios'!D22 -> 0.9577020447 | I8: ='3.0 Sum Ratios'!I22 -> 0.99451926
A9: BHP Billiton | B9: Mining | C9: ='10.0 BHP'!C45 -> 354450 | D9: ='10.0 BHP'!B48 -> 6.411827455 | E9: ='10.0 BHP'!B51 -> 6.435313406 | F9: ='3.0 Sum Ratios'!D13 -> 0.4795994579 | G9: ='3.0 Sum Ratios'!I13 -> 0.4467678966 | H9: ='3.0 Sum Ratios'!D14 -> 0.6590599935 | I9: ='3.0 Sum Ratios'!I14 -> 0.7809790709
A10: Vedanta | B10: Mining | C10: ='15.0 Vedanta'!C45 -> 351745.776 | D10: ='15.0 Vedanta'!B48 -> 2.458054244 | E10: ='15.0 Vedanta'!B51 -> 3.763004063 | F10: ='3.0 Sum Ratios'!D23 -> 0.3405510243 | G10: ='3.0 Sum Ratios'!I23 -> 0.27375997 | H10: ='3.0 Sum Ratios'!D24 -> 3.04993871 | I10: ='3.0 Sum Ratios'!I24 -> 4.038029394
A11: Eskom | B11: Power | C11: ='18.0 Eskom'!C45 -> 340960.5 | D11: ='18.0 Eskom'!B48 -> 4.611486414 | E11: ='18.0 Eskom'!B51 -> 5.249237702 | F11: ='3.0 Sum Ratios'!D30 -> 0.1959058308 | G11: ='3.0 Sum Ratios'!I30 -> 0.06647838195 | H11: ='3.0 Sum Ratios'!D31 -> 9.355155286 | I11: ='3.0 Sum Ratios'!I31 -> 29.51571413
A12: RWE | B12: Mining | C12: ='20. RWE'!C45 -> 321198 | D12: ='20. RWE'!B48 -> 3.550159109 | E12: ='20. RWE'!B51 -> 3.843807784 | F12: ='3.0 Sum Ratios'!D34 -> 0.1566007913 | G12: ='3.0 Sum Ratios'!I34 -> 0.1370487922 | H12: ='3.0 Sum Ratios'!D35 -> 1.952363374 | I12: ='3.0 Sum Ratios'!I35 -> 2.373560855
A13: Anglo American | B13: Mining | C13: ='8.0 Anglo'!C45 -> 205519.8 | D13: ='8.0 Anglo'!B48 -> 1.408542942 | E13: ='8.0 Anglo'!B51 -> 1.885373943 | F13: ='3.0 Sum Ratios'!D9 -> 0.3263012098 | G13: ='3.0 Sum Ratios'!I9 -> 0.3164353702 | H13: ='3.0 Sum Ratios'!D10 -> 1.209690962 | I13: ='3.0 Sum Ratios'!I10 -> 1.278584829
A14: Vattenfall | B14: Power | C14: ='23.0 Vattenfall'!C45 -> 165240 | D14: ='23.0 Vattenfall'!B48 -> 4.300385442 | E14: ='23.0 Vattenfall'!B51 -> 4.284718322 | F14: ='3.0 Sum Ratios'!D40 -> 0.2561528145 | G14: ='3.0 Sum Ratios'!I40 -> 0.2215377433 | H14: ='3.0 Sum Ratios'!D41 -> 2.420285293 | I14: ='3.0 Sum Ratios'!I41 -> 2.954701763
A15: Fortescue Metals | B15: Mining | C15: ='11.0 Fortescue'!C45 -> 142208.4 | D15: ='11.0 Fortescue'!B48 -> 0.6645461521 | E15: ='11.0 Fortescue'!B51 -> 0.6645461521 | F15: ='3.0 Sum Ratios'!D15 -> 0.4371988478 | G15: ='3.0 Sum Ratios'!I15 -> 0.4291580033 | H15: ='3.0 Sum Ratios'!D16 -> 0.9538785652 | I15: ='3.0 Sum Ratios'!I16 -> 0.9904870719
A16: GdF | B16: Power | C16: ='19.0 GdF'!C45 -> 135252 | D16: ='19.0 GdF'!B48 -> 5.803541225 | E16: ='19.0 GdF'!B51 -> 6.385897517 | F16: ='3.0 Sum Ratios'!D32 -> 0.174862523 | G16: ='3.0 Sum Ratios'!I32 -> 0.1671168385 | H16: ='3.0 Sum Ratios'!D33 -> 1.960889548 | I16: ='3.0 Sum Ratios'!I33 -> 2.098123571
A17: Sempra | B17: Power | C17: ='21.0 Sempra'!C45 -> 123175.302 | D17: ='21.0 Sempra'!B48 -> 8.805349145 | E17: ='21.0 Sempra'!B51 -> 8.619186394 | F17: ='3.0 Sum Ratios'!D36 -> 0.3052729933 | G17: ='3.0 Sum Ratios'!I36 -> 0.2025353273 | H17: ='3.0 Sum Ratios'!D37 -> 3.626067571 | I17: ='3.0 Sum Ratios'!I37 -> 5.972677378
A18: Barrick Gold | B18: Ming | C18: ='9.0 Barrick'!C45 -> 102927.18 | D18: ='9.0 Barrick'!B48 -> 4.164530826 | E18: ='9.0 Barrick'!B51 -> 4.547222504 | F18: ='3.0 Sum Ratios'!D11 -> 0.4465561568 | G18: ='3.0 Sum Ratios'!I11 -> 0.4122948336 | H18: ='3.0 Sum Ratios'!D12 -> 2.230184535 | I18: ='3.0 Sum Ratios'!I12 -> 2.498609912
A19: SAB | B19: Beverages | C19: ='31.0 SAB'!C45 -> 63342 | D19: ='31.0 SAB'!B48 -> 3.23763114 | E19: ='31.0 SAB'!B51 -> 3.683117472 | F19: ='3.0 Sum Ratios'!D57 -> 0.2548514316 | G19: ='3.0 Sum Ratios'!I57 -> 0.2456596414 | H19: ='3.0 Sum Ratios'!D58 -> 2.491121937 | I19: ='3.0 Sum Ratios'!I58 -> 2.621748442
A20: Nestle | B20: Beverages | C20: ='29.0 Nestle'!C45 -> 62286.3 | D20: ='29.0 Nestle'!B48 -> 4.478435374 | E20: ='29.0 Nestle'!B51 -> 4.8338527 | F20: ='3.0 Sum Ratios'!D53 -> 0.1967536851 | G20: ='3.0 Sum Ratios'!I53 -> 0.1938879238 | H20: ='3.0 Sum Ratios'!D54 -> 0.5986670919 | I20: ='3.0 Sum Ratios'!I54 -> 0.6222961975
A21: A Busch | B21: Beverages | C21: ='24.0 ABusch'!C45 -> 40235.94 | D21: ='24.0 ABusch'!B48 -> 4.951945674 | E21: ='24.0 ABusch'!B51 -> 5.374190946 | F21: ='3.0 Sum Ratios'!D43 -> 0.5478198326 | G21: ='3.0 Sum Ratios'!I43 -> 0.5432071184 | H21: ='3.0 Sum Ratios'!D44 -> 1.879173117 | I21: ='3.0 Sum Ratios'!I44 -> 1.903621991
A22: Heineken | B22: Beverages | C22: ='28.0 Heineken'!C45 -> 28223.4 | D22: ='28.0 Heineken'!B48 -> 3.440158758 | E22: ='28.0 Heineken'!B51 -> 3.816517421 | F22: ='3.0 Sum Ratios'!D51 -> 0.2286164421 | G22: ='3.0 Sum Ratios'!I51 -> 0.224194823 | H22: ='3.0 Sum Ratios'!D52 -> 2.050188305 | I22: ='3.0 Sum Ratios'!I52 -> 2.110344784
A23: Consol | B23: Power | C23: ='16.0 Consol'!C45 -> 16802.868 | D23: ='16.0 Consol'!B48 -> 3.670347764 | E23: ='16.0 Consol'!B51 -> 4.029324789 | F23: ='3.0 Sum Ratios'!D26 -> 0.4282796309 | G23: ='3.0 Sum Ratios'!I26 -> 0.4095892501 | H23: ='3.0 Sum Ratios'!D27 -> 2.270410091 | I23: ='3.0 Sum Ratios'!I27 -> 2.419645477
A24: Femsa | B24: Beverages | C24: ='27.0 Femsa'!C45 -> 15249 | D24: ='27.0 Femsa'!B48 -> 4.667826268 | E24: ='27.0 Femsa'!B51 -> 5.383423904 | F24: ='3.0 Sum Ratios'!D49 -> 0.1676914095 | G24: ='3.0 Sum Ratios'!I49 -> 0.1137964149 | H24: ='3.0 Sum Ratios'!D50 -> 1.208615274 | I24: ='3.0 Sum Ratios'!I50 -> 2.254635117
A25: Carlsberg | B25: Beverages | C25: ='25.0 Carlsberg'!C45 -> 14586 | D25: ='25.0 Carlsberg'!B48 -> 4.23343613 | E25: ='25.0 Carlsberg'!B51 -> 4.578749196 | F25: ='3.0 Sum Ratios'!D45 -> 0.166777497 | G25: ='3.0 Sum Ratios'!I45 -> 0.1624433741 | H25: ='3.0 Sum Ratios'!D46 -> 2.021856539 | I25: ='3.0 Sum Ratios'!I46 -> 2.102482158
A26: Diageo | B26: Beverages | C26: ='26.0 Diageo'!C45 -> 5692.314 | D26: ='26.0 Diageo'!B48 -> 4.558578626 | E26: ='26.0 Diageo'!B51 -> 4.952453867 | F26: ='3.0 Sum Ratios'!D47 -> 0.3372371457 | G26: ='3.0 Sum Ratios'!I47 -> 0.3356028835 | H26: ='3.0 Sum Ratios'!D48 -> 2.353764636 | I26: ='3.0 Sum Ratios'!I48 -> 2.370096232
A27: Pernod Ricard | B27: Beverages | C27: ='30.0 PRicard'!C45 -> 2454.324 | D27: ='30.0 PRicard'!B48 -> 4.397770516 | E27: ='30.0 PRicard'!B51 -> 4.659580489 | F27: ='3.0 Sum Ratios'!D55 -> 0.2902737128 | G27: ='3.0 Sum Ratios'!I55 -> 0.2890791842 | H27: ='3.0 Sum Ratios'!D56 -> 3.134536249 | I27: ='3.0 Sum Ratios'!I56 -> 3.151620917

Sheet 5.0 Graph Financials
A1: Graph tool for Company financials after water cost
A3: Select Company Sheet
A6: Select Graph Item

Sheet 6.0 New Company
A1: New Company
B2: With water opex and capex (edit yellow cells) | H2: No water costs added (BAU) | N2: Please make a copy of this sheet and change the name before making edits.
A3: P&L, US$ MILLION | B3: 2013 | C3: 2014 | D3: 2015 | E3: 2016 | F3: 2017 | H3: 2013 | I3: 2014 | J3: 2015 | K3: 2016 | L3: 2017
A4: Revenues | B4: 171684 | C4: =B4*(1+$B37) -> 176834.52 | D4: =C4*(1+$B37) -> 182139.5556 | E4: =D4*(1+$B37) -> 187603.7423 | F4: =E4*(1+$B37) -> 193231.8545 | H4: =B4 -> 171684 | I4: =H4*(1+$B37) -> 176834.52 | J4: =I4*(1+$B37) -> 182139.5556 | K4: =J4*(1+$B37) -> 187603.7423 | L4: =K4*(1+$B37) -> 193231.8545
A5: COGs | B5: -158693 | C5: =B5*(1+$B38) -> -161866.86 | D5: =C5*(1+$B38) -> -165104.1972 | E5: -168406.2811 | F5: -171774.4068 | H5: =B5 -> -158693 | I5: =H5*(1+$B38) -> -161866.86 | J5: =I5*(1+$B38) -> -165104.1972 | K5: -168406.2811 | L5: -171774.4068
A6: Other income | B6: 2230 | C6: 2230 | D6: 2230 | E6: 2230 | F6: 2230 | H6: 2230 | I6: =C6 -> 2230 | J6: 2230 | K6: 2230 | L6: 2230 | N6: Note that default water opex for 2014 - 2017 is the 2010 shadow price. To change this to shadow price for 2020, 2030 or 2040 edit the formula in C7 - F7
A7: Additional water opex (from model 2010 price) | B7: 0 | C7: =-C45/1000*C53 -> -2216.340741 | D7: =-D45/1000*D53 -> -2328.487582 | E7: =-E45/1000*E53 -> -2446.309054 | F7: =-F45/1000*F53 -> -2570.092292
A8: Selling expenses | B8: -6470 | C8: -6470 | D8: -6470 | E8: -6470 | F8: -6470 | H8: =B8 -> -6470 | I8: =C8 -> -6470 | J8: =D8 -> -6470 | K8: =E8 -> -6470 | L8: =F8 -> -6470
A9: Administrative expenses | B9: -14195 | C9: -14194 | D9: -14193 | E9: -14192 | F9: -14191 | H9: =B9 -> -14195 | I9: -14194 | J9: -14193 | K9: -14192 | L9: -14191
A10: Other | B10: =-846-947+784 -> -1009 | C10: =-846-947+784 -> -1009 | D10: =-846-947+784 -> -1009 | E10: =-846-947+784 -> -1009 | F10: =-846-947+784 -> -1009 | H10: -1009 | I10: -1009 | J10: -1009 | K10: -1009 | L10: -1009
A11: EBIT | B11: =SUM(B4:B10) -> -6453 | C11: =SUM(C4:C10) -> -6691.680741 | D11: =SUM(D4:D10) -> -4735.129182 | E11: =SUM(E4:E10) -> -2689.84793 | F11: =SUM(F4:F10) -> -552.6445228 | H11: =SUM(H4:H10) -> -6453 | I11: =SUM(I4:I10) -> -4475.34 | J11: =SUM(J4:J10) -> -2406.6416 | K11: =SUM(K4:K10) -> -243.538876 | L11: =SUM(L4:L10) -> 2017.447769
A12: Cash Flow
A13: D&A | B13: 49772 | C13: 49772 | D13: 49772 | E13: 49772 | F13: 49772 | H13: =B13 -> 49772 | I13: =C13 -> 49772 | J13: =D13 -> 49772 | K13: =E13 -> 49772 | L13: =F13 -> 49772
A14: EBITDA | B14: =B11+B13 -> 43319 | C14: =C11+C13 -> 43080.31926 | D14: =D11+D13 -> 45036.87082 | E14: =E11+E13 -> 47082.15207 | F14: =F11+F13 -> 49219.35548 | H14: =H11+H13 -> 43319 | I14: =I11+I13 -> 45296.66 | J14: =J11+J13 -> 47365.3584 | K14: =K11+K13 -> 49528.46112 | L14: =L11+L13 -> 51789.44777
A15: Cash interest | B15: -4719 | C15: -4719 | D15: -4719 | E15: -4719 | F15: -4719 | H15: =B15 -> -4719 | I15: =C15 -> -4719 | J15: =D15 -> -4719 | K15: =E15 -> -4719 | L15: =F15 -> -4719
A16: Cash tax | B16: -4090 | C16: -4090 | D16: -4090 | E16: -4090 | F16: -4090 | H16: =B16 -> -4090 | I16: -4090 | J16: -4090 | K16: -4090 | L16: -4090
A17: FFO | B17: =SUM(B14:B16) -> 34510 | C17: =SUM(C14:C16) -> 34271.31926 | D17: =SUM(D14:D16) -> 36227.87082 | E17: =SUM(E14:E16) -> 38273.15207 | F17: =SUM(F14:F16) -> 40410.35548 | H17: =SUM(H14:H16) -> 34510 | I17: =SUM(I14:I16) -> 36487.66 | J17: =SUM(J14:J16) -> 38556.3584 | K17: =SUM(K14:K16) -> 40719.46112 | L17: =SUM(L14:L16) -> 42980.44777
A18: WC | B18: =1361-3966+5145 -> 2540 | C18: =1361-3966+5145 -> 2540 | D18: =1361-3966+5145 -> 2540 | E18: =1361-3966+5145 -> 2540 | F18: =1361-3966+5145 -> 2540 | H18: =B18 -> 2540 | I18: =C18 -> 2540 | J18: =D18 -> 2540 | K18: =E18 -> 2540 | L18: =F18 -> 2540
A19: CFO | B19: =B17+B18 -> 37050 | C19: =C17+C18 -> 36811.31926 | D19: =D17+D18 -> 38767.87082 | E19: =E17+E18 -> 40813.15207 | F19: =F17+F18 -> 42950.35548 | H19: =H17+H18 -> 37050 | I19: =I17+I18 -> 39027.66 | J19: =J17+J18 -> 41096.3584 | K19: =K17+K18 -> 43259.46112 | L19: =L17+L18 -> 45520.44777
A20: Capex | B20: -27735 | C20: -27735 | D20: -27735 | E20: -27735 | F20: -27735 | H20: =B20 -> -27735 | I20: =C20 -> -27735 | J20: =D20 -> -27735 | K20: =E20 -> -27735 | L20: =F20 -> -27735
A21: Additional water capex (user adjustable) | B21: 0 | C21: 0 | D21: 0 | E21: 0 | F21: 0
A22: FCF | B22: =SUM(B19:B21) -> 9315 | C22: =SUM(C19:C21) -> 9076.319259 | D22: 11032.87082 | E22: 13078.15207 | F22: 15215.35548 | H22: =SUM(H19:H21) -> 9315 | I22: =SUM(I19:I21) -> 11292.66 | J22: 13361.3584 | K22: 15524.46112 | L22: 17785.44777
A23: Dividends | B23: -6840 | C23: -6840 | D23: -6840 | E23: -6840 | F23: -6840 | H23: =B23 -> -6840 | I23: =C23 -> -6840 | J23: =D23 -> -6840 | K23: =E23 -> -6840 | L23: =F23 -> -6840
A24: FCF after dividends | B24: =SUM(B22:B23) -> 2475 | C24: =SUM(C22:C23) -> 2236.319259 | D24: =SUM(D22:D23) -> 4192.870818 | E24: =SUM(E22:E23) -> 6238.15207 | F24: =SUM(F22:F23) -> 8375.355477 | H24: =SUM(H22:H23) -> 2475 | I24: =SUM(I22:I23) -> 4452.66 | J24: =SUM(J22:J23) -> 6521.3584 | K24: =SUM(K22:K23) -> 8684.461124 | L24: =SUM(L22:L23) -> 10945.44777
A25: Balance Sheet
A26: Gross debt | B26: =98004+27456+(8835/2) -> 129877.5 | C26: =98004+27456+(8835/2) -> 129877.5 | D26: =98004+27456+(8835/2) -> 129877.5 | E26: =98004+27456+(8835/2) -> 129877.5 | F26: =98004+27456+(8835/2) -> 129877.5 | H26: =B26 -> 129877.5 | I26: =C26 -> 129877.5 | J26: =D26 -> 129877.5 | K26: =E26 -> 129877.5 | L26: =F26 -> 129877.5
A27: Cash and securities | B27: 15794 | C27: =B27+C24 -> 18030.31926 | D27: =C27+D24 -> 22223.19008 | E27: =D27+E24 -> 28461.34215 | F27: =E27+F24 -> 36836.69762 | H27: =B27 -> 15794 | I27: 18030.31926 | J27: 22223.19008 | K27: 28461.34215 | L27: 36836.69762
A28: Net debt | B28: =B26-B27 -> 114083.5 | C28: =C26-C27 -> 111847.1807 | D28: =D26-D27 -> 107654.3099 | E28: =E26-E27 -> 101416.1579 | F28: =F26-F27 -> 93040.80238 | H28: =H26-H27 -> 114083.5 | I28: =I26-I27 -> 111847.1807 | J28: =J26-J27 -> 107654.3099 | K28: =K26-K27 -> 101416.1579 | L28: =L26-L27 -> 93040.80238
A29: Ratios
A30: EBITDA/Revenues, % | B30: =B14/B4 -> 0.2523182125 | C30: =C14/C4 -> 0.2436193977 | D30: =D14/D4 -> 0.2472657335 | E30: =E14/E4 -> 0.2509659536 | F30: =F14/F4 -> 0.2547165714 | H30: =H14/H4 -> 0.2523182125 | I30: =I14/I4 -> 0.2561528145 | J30: =J14/J4 -> 0.2600498186 | K30: =K14/K4 -> 0.2640057204 | L30: =L14/L4 -> 0.2680171336
A31: FFO/Gross debt, % | B31: =B17/B26 -> 0.2657119208 | C31: =C17/C26 -> 0.2638741834 | D31: =D17/D26 -> 0.2789387755 | E31: =E17/E26 -> 0.2946865475 | F31: =F17/F26 -> 0.3111420799 | H31: =H17/H26 -> 0.2657119208 | I31: =I17/I26 -> 0.2809390387 | J31: =J17/J26 -> 0.2968671125 | K31: =K17/K26 -> 0.3135220583 | L31: =L17/L26 -> 0.3309306675
A32: FFO/Net debt, % | B32: =B17/B28 -> 0.3024977319 | C32: =C17/C28 -> 0.3064120082 | D32: =D17/D28 -> 0.3365203942 | E32: =E17/E28 -> 0.3773871233 | F32: =F17/F28 -> 0.4343293958 | H32: =H17/H28 -> 0.3024977319 | I32: =I17/I28 -> 0.3262278026 | J32: =J17/J28 -> 0.3581496963 | K32: =K17/K28 -> 0.4015086155 | L32: =L17/L28 -> 0.4619526774
A33: Gross debt/EBITDA, X | B33: =B26/B14 -> 2.998164778 | C33: =C26/C14 -> 3.014775708 | D33: =D26/D14 -> 2.883803818 | E33: =E26/E14 -> 2.758529385 | F33: =F26/F14 -> 2.638748491 | H33: =H26/H14 -> 2.998164778 | I33: =I26/I14 -> 2.867264385 | J33: =J26/J14 -> 2.742035622 | K33: =K26/K14 -> 2.622280141 | L33: =L26/L14 -> 2.507798511
A34: Net debt/EBITDA, X | B34: =B28/B14 -> 2.633567257 | C34: =C28/C14 -> 2.596247722 | D34: =D28/D14 -> 2.390359454 | E34: =E28/E14 -> 2.154025536 | F34: =F28/F14 -> 1.890329556 | H34: =H28/H14 -> 2.633567257 | I34: =I28/I14 -> 2.469214744 | J34: =J28/J14 -> 2.272849052 | K34: =K28/K14 -> 2.047633937 | L34: =L28/L14 -> 1.796520457
A36: User-adjustable assumptions | B36: Percent
A37: % Revenue growth per annum | B37: 0.03
A38: % COGs growth per annum | B38: 0.02
A39: % Water use growth per annum | B39: 0.02
A40: % Water price growth per annum | B40: 0.03
A42: Water use data and price | B42: 2013 | C42: 2014 | D42: 2015 | E42: 2016 | F42: 2017
A43: Total Water Use, Thousand Cubic Metres | B43: 1406300
A44: Total Water Recycled, Thousand Cubic Metres | B44: 1090100
A45: Total Water Withdrawal, Thousand Cubic Metres | B45: =B43-B44 -> 316200 | C45: =B45*(1+$B39) -> 322524 | D45: =C45*(1+$B39) -> 328974.48 | E45: =D45*(1+$B39) -> 335553.9696 | F45: =E45*(1+$B39) -> 342265.049
A46: % Water Not Recyled | B46: =B45/B43 -> 0.2248453388
A47: Shadow price US$
A48: 2010 shadow price, US$/Cubic Metre | B48: =K74 -> 6.671711646
A49: 2020 shadow price, US$/Cubic Metre | B49: =L74 -> 6.583394233
A50: 2030 shadow price, US$/Cubic Metre | B50: =M74 -> 6.930192562
A51: 2040 shadow price, US$/Cubic Metre | B51: =N74 -> 7.176263189
A52: Shadow price company currency
A53: 2010 shadow price, Currency/Cubic Metre | B53: =B48*'2.0 Companies'!$C$31 -> 6.671711646 | C53: =B53*(1+$B$40) -> 6.871862995 | D53: =C53*(1+$B$40) -> 7.078018885 | E53: =D53*(1+$B$40) -> 7.290359452 | F53: =E53*(1+$B$40) -> 7.509070235
A54: 2020 shadow price, Currency/Cubic Metre | B54: =B49*'2.0 Companies'!$C$31 -> 6.583394233 | C54: =B54*(1+$B$40) -> 6.78089606 | D54: 6.984322942 | E54: 7.19385263 | F54: 7.409668209
A55: 2030 shadow price, Currency/Cubic Metre | B55: =B50*'2.0 Companies'!$C$31 -> 6.930192562 | C55: 7.138098339 | D55: 7.352241289 | E55: 7.572808528 | F55: 7.799992784
A56: 2040 shadow price, Currency/Cubic Metre | B56: =B51*'2.0 Companies'!$C$31 -> 7.176263189 | C56: 7.391551084 | D56: 7.613297617 | E56: 7.841696546 | F56: 8.076947442
A58: To obtain shadow price by location and production for 2010 - 2040 add information in yellow boxes. For more production locations add more lines. | H58: Click the button to obtain shadow prices for each location
A61: Production location, volume and water price | B61: Latitude | C61: Longitude | D61: Water Use (1,000 m3) | E61: 2010 price (US$/m3) | F61: 2020 price (US$/m3) | G61: 2030 price (US$/m3) | H61: 2040 price (US$/m3) | I61: Production (by unit) | J61: Production by location (%) | K61: Shadow price by production by location
A62: Location Name | K62: 2010 | L62: 2020 | M62: 2030 | N62: 2040
A63: Buzwagi, Tanzania | B63: -6.76 | C63: 39.28 | D63: =B$45*(I63/I$74) -> 65615.27288 | E63: 4.489996075 | F63: 4.896363661 | G63: 5.758347046 | H63: 6.821523612 | I63: 3000 | J63: =I63/I$74 -> 0.2075119319 | K63: =E63*$J63 -> 0.9317277599 | L63: =F63*$J63 -> 1.016053883 | M63: 1.19492572 | N63: 1.415547543
A64: Boxberg Saxony Germany | B64: 49.4818 | C64: 9.637525 | D64: 56319.77589 | E64: 5.616242025 | F64: 5.307870439 | G64: 5.186053318 | H64: 4.948149219 | I64: 2575 | J64: 0.1781144082 | K64: 1.000333625 | L64: 0.9454082022 | M64: 0.9237108178 | N64: 0.8813366701
A65: Lippendorf Saxony Germany | B65: 51.189581 | C65: 12.362564 | D65: 38975.47209 | E65: 8.017401134 | F65: 7.698299835 | G65: 7.65578868 | H65: 7.44929816 | I65: 1782 | J65: 0.1232620876 | K65: 0.9882416007 | L65: 0.9489085084 | M65: 0.9436684947 | N65: 0.9182160422
A66: Schwarze Pumpe Brandenburg Germany | B66: 51.521111 | C66: 14.332778 | D66: 34994.8122 | E66: 5.507657719 | F66: 5.20936576 | G66: 4.950718668 | H66: 4.4971316 | I66: 1600 | J66: 0.1106730304 | K66: 0.6095491699 | L66: 0.576536295 | M66: 0.5479110375 | N66: 0.4977111821
A67: Moorburg Hamburg Germany | B67: 53.489 | C67: 9.9436 | D67: 10935.87881 | E67: 3.649049193 | F67: 3.461222141 | G67: 3.480071316 | H67: 3.255302255 | I67: 500 | J67: 0.03458532199 | K67: 0.1262035413 | L67: 0.1197074822 | M67: 0.120359387 | N67: 0.1125856767
A68: Isibonelo South Africa | B68: -29.7263 | C68: 30.94793 | D68: 109358.7881 | E68: 8.719467611 | F68: 8.607061294 | G68: 9.251372898 | H68: 9.688694167 | I68: 5000 | J68: 0.3458532199 | K68: 3.015655949 | L68: 2.976779862 | M68: 3.199617105 | N68: 3.350866074
A74: TOTAL | D74: =SUM(D63:D73) -> 316200 | I74: =SUM(I63:I73) -> 14457 | J74: 1 | K74: 6.671711646 | L74: 6.583394233 | M74: 6.930192562 | N74: 7.176263189

Sheet 7.0 Blank Sheet

Sheet 8.0 Anglo
A1: Anglo American (AAL_LN Equity)
B2: With water opex and capex | H2: No water costs added (BAU)
A3: P&L, US$ MILLION | B3: 2013 | C3: 2014 | D3: 2015 | E3: 2016 | F3: 2017 | H3: 2013 | I3: 2014 | J3: 2015 | K3: 2016 | L3: 2017
A4: Revenues | B4: 29342 | C4: =B4*(1+$B37) -> 30222.26 | D4: =C4*(1+$B37) -> 31128.9278 | E4: =D4*(1+$B37) -> 32062.79563 | F4: =E4*(1+$B37) -> 33024.6795 | H4: =B4 -> 29342 | I4: =H4*(1+$B37) -> 30222.26 | J4: =I4*(1+$B37) -> 31128.9278 | K4: =J4*(1+$B37) -> 32062.79563 | L4: =K4*(1+$B37) -> 33024.6795
A5: COGs
A6: Operating costs | B6: -26935 | C6: =B6*(1+$B38) -> -27473.7 | D6: =C6*(1+$B38) -> -28023.174 | E6: =D6*(1+$B38) -> -28583.63748 | F6: =E6*(1+$B38) -> -29155.31023 | H6: =B6 -> -26935 | I6: =H6*(1+$B38) -> -27473.7 | J6: =I6*(1+$B38) -> -28023.174 | K6: =J6*(1+$B38) -> -28583.63748 | L6: =K6*(1+$B38) -> -29155.31023
A7: Additional water opex (from model) | B7: 0 | C7: =-C45/1000*C53 -> -298.1679676 | D7: =-D45/1000*D53 -> -313.2552667 | E7: =-E45/1000*E53 -> -329.1059832 | F7: =-F45/1000*F53 -> -345.758746
A8: Non operating special items | B8: -469 | C8: -469 | D8: -469 | E8: -469 | F8: -469 | H8: =B8 -> -469 | I8: =C8 -> -469 | J8: -469 | K8: -469 | L8: -469
A9: Share of net income from assocs and JVs | B9: 168 | C9: 168 | D9: 168 | E9: 168 | F9: 168 | H9: =B9 -> 168 | I9: 168 | J9: 168 | K9: 168 | L9: 168
A10: Other special items | B10: =209+75+469+3761 -> 4514 | C10: =209+75+469+3761 -> 4514 | D10: =209+75+469+3761 -> 4514 | E10: =209+75+469+3761 -> 4514 | F10: =209+75+469+3761 -> 4514 | H10: =B10 -> 4514 | I10: 4514 | J10: 4514 | K10: 4514 | L10: 4514
A11: EBIT, Underlying | B11: =SUM(B4:B10) -> 6620 | C11: =SUM(C4:C10) -> 6663.392032 | D11: =SUM(D4:D10) -> 7005.498533 | E11: =SUM(E4:E10) -> 7363.052171 | F11: =SUM(F4:F10) -> 7736.610527 | H11: =SUM(H4:H10) -> 6620 | I11: =SUM(I4:I10) -> 6961.56 | J11: =SUM(J4:J10) -> 7318.7538 | K11: =SUM(K4:K10) -> 7692.158154 | L11: =SUM(L4:L10) -> 8082.369273
A12: Cash Flow
A13: D&A | B13: =262+2638 -> 2900 | C13: =262+2638 -> 2900 | D13: =262+2638 -> 2900 | E13: =262+2638 -> 2900 | F13: =262+2638 -> 2900 | H13: =B13 -> 2900 | I13: =C13 -> 2900 | J13: 2900 | K13: 2900 | L13: 2900
A14: EBITDA, Underlying | B14: =SUM(B11,B13) -> 9520 | C14: =SUM(C11,C13) -> 9563.392032 | D14: =SUM(D11,D13) -> 9905.498533 | E14: =SUM(E11,E13) -> 10263.05217 | F14: =SUM(F11,F13) -> 10636.61053 | H14: =SUM(H11,H13) -> 9520 | I14: =SUM(I11,I13) -> 9861.56 | J14: =SUM(J11,J13) -> 10218.7538 | K14: =SUM(K11,K13) -> 10592.15815 | L14: =SUM(L11,L13) -> 10982.36927
A15: Cash interest | B15: -907 | C15: -907 | D15: -907 | E15: -907 | F15: -907 | H15: =B15 -> -907 | I15: =C15 -> -907 | J15: -907 | K15: -907 | L15: -907
A16: Cash tax | B16: -1201 | C16: -1201 | D16: -1201 | E16: -1201 | F16: -1201 | H16: =B16 -> -1201 | I16: -1201 | J16: -1201 | K16: -1201 | L16: -1201
A17: FFO | B17: =SUM(B14:B16) -> 7412 | C17: =SUM(C14:C16) -> 7455.392032 | D17: =SUM(D14:D16) -> 7797.498533 | E17: =SUM(E14:E16) -> 8155.052171 | F17: =SUM(F14:F16) -> 8528.610527 | H17: =SUM(H14:H16) -> 7412 | I17: =SUM(I14:I16) -> 7753.56 | J17: =SUM(J14:J16) -> 8110.7538 | K17: =SUM(K14:K16) -> 8484.158154 | L17: =SUM(L14:L16) -> 8874.369273
A18: WC | B18: =-56-562-541-18 -> -1177 | C18: =-56-562-541-18 -> -1177 | D18: =-56-562-541-18 -> -1177 | E18: =-56-562-541-18 -> -1177 | F18: =-56-562-541-18 -> -1177 | H18: =B18 -> -1177 | I18: =C18 -> -1177 | J18: -1177 | K18: -1177 | L18: -1177
A19: CFO | B19: =SUM(B17:B18) -> 6235 | C19: =SUM(C17:C18) -> 6278.392032 | D19: =SUM(D17:D18) -> 6620.498533 | E19: =SUM(E17:E18) -> 6978.052171 | F19: =SUM(F17:F18) -> 7351.610527 | H19: =SUM(H17:H18) -> 6235 | I19: =SUM(I17:I18) -> 6576.56 | J19: =SUM(J17:J18) -> 6933.7538 | K19: =SUM(K17:K18) -> 7307.158154 | L19: =SUM(L17:L18) -> 7697.369273
A20: Capex | B20: =-6125 -> -6125 | C20: -6125 | D20: -6125 | E20: -6125 | F20: -6125 | H20: =B20 -> -6125 | I20: =C20 -> -6125 | J20: -6125 | K20: -6125 | L20: -6125
A21: Additional water capex (user adjustable) | B21: 0 | C21: 0 | D21: 0 | E21: 0 | F21: 0
A22: FCF | B22: =B19+B20+B21 -> 110 | C22: =C19+C20+C21 -> 153.3920324 | D22: 495.4985333 | E22: 853.0521708 | F22: 1226.610527 | H22: =H19+H20 -> 110 | I22: =I19+I20 -> 451.56 | J22: =J19+J20 -> 808.7538 | K22: =K19+K20 -> 1182.158154 | L22: =L19+L20 -> 1572.369273
A23: Dividends | B23: =-1078-1159 -> -2237 | C23: =-1078-1159 -> -2237 | D23: =-1078-1159 -> -2237 | E23: =-1078-1159 -> -2237 | F23: =-1078-1159 -> -2237 | H23: =B23 -> -2237 | I23: =C23 -> -2237 | J23: -2237 | K23: -2237 | L23: -2237
A24: FCF after dividends | B24: =SUM(B22:B23) -> -2127 | C24: =SUM(C22:C23) -> -2083.607968 | D24: =SUM(D22:D23) -> -1741.501467 | E24: =SUM(E22:E23) -> -1383.947829 | F24: =SUM(F22:F23) -> -1010.389473 | H24: =SUM(H22:H23) -> -2127 | I24: =SUM(I22:I23) -> -1785.44 | J24: =SUM(J22:J23) -> -1428.2462 | K24: =SUM(K22:K23) -> -1054.841846 | L24: =SUM(L22:L23) -> -664.6307266
A25: Balance Sheet
A26: Gross debt | B26: =15740+2108 -> 17848 | C26: =B26 -> 17848 | D26: =C26 -> 17848 | E26: =D26 -> 17848 | F26: =E26 -> 17848 | H26: =B26 -> 17848 | I26: =C26 -> 17848 | J26: 17848 | K26: 17848 | L26: 17848
A27: Cash and securities | B27: 7704 | C27: =B27+C24 -> 5620.392032 | D27: =C27+D24 -> 3878.890566 | E27: =D27+E24 -> 2494.942736 | F27: =E27+F24 -> 1484.553264 | H27: =B27 -> 7704 | I27: =H27+I24 -> 5918.56 | J27: =I27+J24 -> 4490.3138 | K27: =J27+K24 -> 3435.471954 | L27: =K27+L24 -> 2770.841227
A28: Net debt | B28: =B26-B27 -> 10144 | C28: =C26-C27 -> 12227.60797 | D28: =D26-D27 -> 13969.10943 | E28: =E26-E27 -> 15353.05726 | F28: =F26-F27 -> 16363.44674 | H28: =H26-H27 -> 10144 | I28: =I26-I27 -> 11929.44 | J28: =J26-J27 -> 13357.6862 | K28: =K26-K27 -> 14412.52805 | L28: =L26-L27 -> 15077.15877
A29: Ratios
A30: EBITDA/Revenues, % | B30: =B14/B4 -> 0.3244495944 | C30: =C14/C4 -> 0.3164353702 | D30: =D14/D4 -> 0.3182087927 | E30: =E14/E4 -> 0.320092243 | F30: =F14/F4 -> 0.3220806587 | H30: =H14/H4 -> 0.3244495944 | I30: =I14/I4 -> 0.3263012098 | J30: =J14/J4 -> 0.328271949 | K30: =K14/K4 -> 0.3303566624 | L30: =L14/L4 -> 0.3325503665
A31: FFO/Gross debt, % | B31: =B17/B26 -> 0.4152846257 | C31: =C17/C26 -> 0.4177158243 | D31: =D17/D26 -> 0.4368836023 | E31: =E17/E26 -> 0.456916863 | F31: =F17/F26 -> 0.4778468471 | H31: =H17/H26 -> 0.4152846257 | I31: =I17/I26 -> 0.434421784 | J31: =J17/J26 -> 0.4544348835 | K31: =K17/K26 -> 0.475356239 | L31: =L17/L26 -> 0.4972192556
A32: FFO/Net debt, % | B32: =B17/B28 -> 0.7306782334 | C32: =C17/C28 -> 0.6097179475 | D32: =D17/D28 -> 0.5581958227 | E32: =E17/E28 -> 0.5311679642 | F32: =F17/F28 -> 0.5211989054 | H32: =H17/H28 -> 0.7306782334 | I32: =I17/I28 -> 0.6499517161 | J32: =J17/J28 -> 0.60719751 | K32: =K17/K28 -> 0.5886655087 | L32: =L17/L28 -> 0.5885969238
A33: Gross debt/EBITDA, X | B33: =B26/B14 -> 1.874789916 | C33: =C26/C14 -> 1.866283421 | D33: =D26/D14 -> 1.801827534 | E33: =E26/E14 -> 1.739053812 | F33: =F26/F14 -> 1.677978145 | H33: =H26/H14 -> 1.874789916 | I33: =I26/I14 -> 1.809855642 | J33: =J26/J14 -> 1.746592623 | K33: =K26/K14 -> 1.685020157 | L33: =L26/L14 -> 1.625150234
A34: Net debt/EBITDA, X | B34: =B28/B14 -> 1.065546218 | C34: =C28/C14 -> 1.278584829 | D34: =D28/D14 -> 1.410237898 | E34: =E28/E14 -> 1.495954323 | F34: =F28/F14 -> 1.538408001 | H34: =H28/H14 -> 1.065546218 | I34: =I28/I14 -> 1.209690962 | J34: =J28/J14 -> 1.307173699 | K34: =K28/K14 -> 1.360679083 | L34: =L28/L14 -> 1.372851194
A36: User-adjustable assumptions | B36: Percent
A37: % Revenue growth per annum | B37: 0.03
A38: % COGs growth per annum | B38: 0.02
A39: % Water use growth per annum | B39: 0.02
A40: % Water price growth per annum | B40: 0.03
A42: Water use data and price | B42: 2013 | C42: 2014 | D42: 2015 | E42: 2016 | F42: 2017
A43: Total Water Use, Thousand Cubic Metres | B43: =B44+B45 -> 618650
A44: Total Water Recycled, Thousand Cubic Metres | B44: 417160
A45: Total Water Withdrawal, Thousand Cubic Metres | B45: 201490 | C45: =B45*(1+$B$39) -> 205519.8 | D45: =C45*(1+$B$39) -> 209630.196 | E45: =D45*(1+$B$39) -> 213822.7999 | F45: =E45*(1+$B$39) -> 218099.2559
A46: % Water Not Recyled | B46: =B45/B43 -> 0.3256930413
A47: Shadow price US$
A48: 2010 shadow price, US$/Cubic Metre | B48: =+K79 -> 1.408542942
A49: 2020 shadow price, US$/Cubic Metre | B49: =+L79 -> 1.693721043
A50: 2030 shadow price, US$/Cubic Metre | B50: =+M79 -> 1.792838773
A51: 2040 shadow price, US$/Cubic Metre | B51: =+N79 -> 1.885373943
A52: Shadow price company currency
A53: 2010 shadow price, Currency/Cubic Metre | B53: =B48*'2.0 Companies'!C$31 -> 1.408542942 | C53: =B53*(1+$B40) -> 1.45079923 | D53: =C53*(1+$B40) -> 1.494323207 | E53: =D53*(1+$B40) -> 1.539152903 | F53: =E53*(1+$B40) -> 1.58532749
A54: 2020 shadow price, Currency/Cubic Metre | B54: =B49*'2.0 Companies'!C$31 -> 1.693721043 | C54: =B54*(1+$B$40) -> 1.744532674 | D54: 1.796868654 | E54: 1.850774714 | F54: 1.906297955
A55: 2030 shadow price, Currency/Cubic Metre | B55: =B50*'2.0 Companies'!C$31 -> 1.792838773 | C55: 1.846623936 | D55: 1.902022654 | E55: 1.959083334 | F55: 2.017855834
A56: 2040 shadow price, Currency/Cubic Metre | B56: =B51*'2.0 Companies'!C$31 -> 1.885373943 | C56: 1.941935162 | D56: 2.000193217 | E56: 2.060199013 | F56: 2.122004983
A58: Production location, volume and water price | B58: Latitude | C58: Longitude | D58: Water Use (1,000 m3) | E58: 2010 price (US$/m3) | F58: 2020 price (US$/m3) | G58: 2030 price (US$/m3) | H58: 2040 price (US$/m3) | I58: Reserves (Mt) | J58: Reserves by location (%) | K58: Shadow price by use by location
A59: Location Name | K59: 2010 | L59: 2020 | M59: 2030 | N59: 2040
A60: Grootegeluk South Africa | B60: -30.559482 | C60: 22.937 | D60: =B$45*(I60/I$79) -> 92587.91561 | E60: ='32.0 Location Data'!E17 -> 0.1100001 | F60: ='32.0 Location Data'!F17 -> 0.1100001 | G60: ='32.0 Location Data'!G17 -> 0.1100001 | H60: ='32.0 Location Data'!H17 -> 0.1100001 | I60: 2912 | J60: =I60/I$79 -> 0.4595161825 | K60: =E60*J60 -> 0.05054682602 | L60: =F60*J60 -> 0.05054682602 | M60: =G60*J60 -> 0.05054682602 | N60: =H60*J60 -> 0.05054682602
A61: Cerrejon Colombia | B61: 11.0058 | C61: -72.672778 | D61: 23528.52251 | E61: ='32.0 Location Data'!E18 -> 1.652653877 | F61: ='32.0 Location Data'!F18 -> 3.725263864 | G61: ='32.0 Location Data'!G18 -> 3.8475226 | H61: ='32.0 Location Data'!H18 -> 3.908228036 | I61: 740 | J61: 0.1167726563 | K61: 0.1929847831 | L61: 0.4350089567 | M61: 0.449285434 | N61: 0.4563741691
A62: Dawson Australia | B62: -32.804 | C62: 138.975 | D62: 12969.30315 | E62: ='32.0 Location Data'!E19 -> 3.29125015 | F62: ='32.0 Location Data'!F19 -> 3.29125015 | G62: ='32.0 Location Data'!G19 -> 3.29125015 | H62: ='32.0 Location Data'!H19 -> 3.29125015 | I62: 407.9 | J62: 0.06436698174 | K62: 0.2118478383 | L62: 0.2118478383 | M62: 0.2118478383 | N62: 0.2118478383
A63: New Vaal South Africa | B63: -26.63 | C63: 27.80176 | D63: 11067.94417 | E63: ='32.0 Location Data'!E20 -> 5.257745164 | F63: ='32.0 Location Data'!F20 -> 5.855863166 | G63: ='32.0 Location Data'!G20 -> 6.477762488 | H63: ='32.0 Location Data'!H20 -> 7.176484103 | I63: 348.1 | J63: 0.05493048871 | K63: 0.2888105114 | L63: 0.3216654255 | M63: 0.3558266592 | N63: 0.394207779
A64: Callide Australia | B64: -24.302 | C64: 150.4629 | D64: 7764.412428 | E64: ='32.0 Location Data'!E21 -> 0.8130009751 | F64: ='32.0 Location Data'!F21 -> 1.111304274 | G64: ='32.0 Location Data'!G21 -> 1.497161456 | H64: ='32.0 Location Data'!H21 -> 1.826170225 | I64: 244.2 | J64: 0.03853497657 | K64: 0.03132897352 | L64: 0.04282408416 | M64: 0.05769308164 | N64: 0.07037142684
A65: Matla South Africa | B65: -26.2833 | C65: 29.13333 | D65: 7694.462767 | E65: ='32.0 Location Data'!E22 -> 4.880063473 | F65: ='32.0 Location Data'!F22 -> 4.809179608 | G65: ='32.0 Location Data'!G22 -> 4.961586762 | H65: ='32.0 Location Data'!H22 -> 5.065622367 | I65: 242 | J65: 0.03818781462 | K65: 0.1863589592 | L65: 0.1836520593 | M65: 0.1894721555 | N65: 0.1934450478
A66: German Creek Australia | B66: -22.9003 | C66: 148.542397 | D66: 6139.672563 | E66: ='32.0 Location Data'!E23 -> 0.1100001 | F66: ='32.0 Location Data'!F23 -> 0.1100001 | G66: ='32.0 Location Data'!G23 -> 0.1100001 | H66: ='32.0 Location Data'!H23 -> 0.1100001 | I66: 193.1 | J66: 0.03047135125 | K66: 0.003351851685 | L66: 0.003351851685 | M66: 0.003351851685 | N66: 0.003351851685
A67: German Creek Australia | B67: -22.9003 | C67: 148.542397 | D67: 4950.528317 | E67: ='32.0 Location Data'!E24 -> 0.1100001 | F67: ='32.0 Location Data'!F24 -> 0.1100001 | G67: ='32.0 Location Data'!G24 -> 0.1100001 | H67: ='32.0 Location Data'!H24 -> 0.1100001 | I67: 155.7 | J67: 0.02456959808 | K67: 0.002702658246 | L67: 0.002702658246 | M67: 0.002702658246 | N67: 0.002702658246
A68: Leeuwpan South Africa | B68: -26.534822 | C68: 25.600672 | D68: 4642.113901 | E68: ='32.0 Location Data'!E25 -> 3.739994918 | F68: ='32.0 Location Data'!F25 -> 3.738744845 | G68: ='32.0 Location Data'!G25 -> 3.769916836 | H68: ='32.0 Location Data'!H25 -> 4.26323616 | I68: 146 | J68: 0.02303892948 | K68: 0.08616547917 | L68: 0.08613667882 | M68: 0.08685484814 | N68: 0.09822039725
A69: Zongdagsfontein South Africa | B69: =B60 -> -30.559482 | C69: =C60 -> 22.937 | D69: 3653.280049 | E69: ='32.0 Location Data'!E26 -> 0.1100001 | F69: ='32.0 Location Data'!F26 -> 0.1100001 | G69: ='32.0 Location Data'!G26 -> 0.1100001 | H69: ='32.0 Location Data'!H26 -> 0.1100001 | I69: 114.9 | J69: 0.0181313219 | K69: 0.001994447222 | L69: 0.001994447222 | M69: 0.001994447222 | N69: 0.001994447222
A70: New Denmark South Africa | B70: =B69 -> -30.559482 | C70: =C69 -> 22.937 | D70: 3561.073677 | E70: ='32.0 Location Data'!E27 -> 0.1100001 | F70: ='32.0 Location Data'!F27 -> 0.1100001 | G70: ='32.0 Location Data'!G27 -> 0.1100001 | H70: ='32.0 Location Data'!H27 -> 0.1100001 | I70: 112 | J70: 0.01767369933 | K70: 0.001944108693 | L70: 0.001944108693 | M70: 0.001944108693 | N70: 0.001944108693
A71: Goedehoop South Africa | B71: -26.133333 | C71: 29.833333 | D71: 3532.457907 | E71: ='32.0 Location Data'!E28 -> 3.665572971 | F71: ='32.0 Location Data'!F28 -> 3.648736783 | G71: ='32.0 Location Data'!G28 -> 4.05895174 | H71: ='32.0 Location Data'!H28 -> 4.316462559 | I71: 111.1 | J71: 0.01753167853 | K71: 0.06426364694 | L71: 0.0639684803 | M71: 0.07116023707 | N71: 0.07567483396
A72: Moranbah Australia | B72: -22.000914 | C72: 148.045765 | D72: 3332.147512 | E72: ='32.0 Location Data'!E29 -> 0.5100001 | F72: ='32.0 Location Data'!F29 -> 0.5100001 | G72: ='32.0 Location Data'!G29 -> 0.5100001 | H72: ='32.0 Location Data'!H29 -> 0.5100001 | I72: 104.8 | J72: 0.01653753294 | K72: 0.008434143454 | L72: 0.008434143454 | M72: 0.008434143454 | N72: 0.008434143454
A73: Kriel South Africa | B73: -26.255 | C73: 29.263398 | D73: 3309.890802 | E73: ='32.0 Location Data'!E30 -> 4.880063473 | F73: ='32.0 Location Data'!F30 -> 4.809179608 | G73: ='32.0 Location Data'!G30 -> 4.961586762 | H73: ='32.0 Location Data'!H30 -> 5.065622367 | I73: 104.1 | J73: 0.01642707232 | K73: 0.0801651556 | L73: 0.07900074121 | M73: 0.08150434457 | N73: 0.08321334496
A74: Lake Lindsay Australia | B74: -22.9987 | C74: 148.811423 | D74: 3243.12067 | E74: ='32.0 Location Data'!E31 -> 0.1100001 | F74: ='32.0 Location Data'!F31 -> 0.1100001 | G74: ='32.0 Location Data'!G31 -> 0.1100001 | H74: ='32.0 Location Data'!H31 -> 0.1100001 | I74: 102 | J74: 0.01609569046 | K74: 0.00177052756 | L74: 0.00177052756 | M74: 0.00177052756 | N74: 0.00177052756
A75: Mafube South Africa | B75: -27.2912 | C75: 28.579798 | D75: 2632.650897 | E75: ='32.0 Location Data'!E32 -> 1.447000441 | F75: ='32.0 Location Data'!F32 -> 1.786667838 | G75: ='32.0 Location Data'!G32 -> 2.38516671 | H75: ='32.0 Location Data'!H32 -> 2.773864889 | I75: 82.8 | J75: 0.01306591343 | K75: 0.0189063825 | L75: 0.0233444473 | M75: 0.03116438174 | N75: 0.03624307851
A76: Dawson Central Australia | B76: -32.804 | C76: 138.975627 | D76: 2384.647552 | E76: ='32.0 Location Data'!E33 -> 3.29125015 | F76: ='32.0 Location Data'!F33 -> 3.29125015 | G76: ='32.0 Location Data'!G33 -> 3.29125015 | H76: ='32.0 Location Data'!H33 -> 3.29125015 | I76: 75 | J76: 0.01183506651 | K76: 0.03895216444 | L76: 0.03895216444 | M76: 0.03895216444 | N76: 0.03895216444
A77: Goedehoop South Africa | B77: -26.133333 | C77: 29.833333 | D77: 2254.286819 | E77: ='32.0 Location Data'!E34 -> 3.665572971 | F77: ='32.0 Location Data'!F34 -> 3.648736783 | G77: ='32.0 Location Data'!G34 -> 4.05895174 | H77: ='32.0 Location Data'!H34 -> 4.316462559 | I77: 70.9 | J77: 0.01118808288 | K77: 0.04101073419 | L77: 0.04082236952 | M77: 0.04541188846 | N77: 0.04829294084
A78: Isibonelo South Africa | B78: -29.7263 | C78: 30.94793 | D78: 2241.568699 | E78: ='32.0 Location Data'!E35 -> 8.719467611 | F78: ='32.0 Location Data'!F35 -> 8.607061294 | G78: ='32.0 Location Data'!G35 -> 9.251372898 | H78: ='32.0 Location Data'!H35 -> 9.688694167 | I78: 70.5 | J78: 0.01112496252 | K78: 0.09700375039 | L78: 0.09575323433 | M78: 0.1029211768 | N78: 0.1077863595
I79: =SUM(I60:I78) -> 6337.1 | K79: =SUM(K60:K78) -> 1.408542942 | L79: =SUM(L60:L78) -> 1.693721043 | M79: =SUM(M60:M78) -> 1.792838773 | N79: =SUM(N60:N78) -> 1.885373943

Sheet 9.0 Barrick
A1: Barrick Gold (ABX_US Equity)
B2: With water opex and capex | H2: No water costs added (BAU)
A3: P&L, US$ MILLION | B3: 2013 | C3: 2014 | D3: 2015 | E3: 2016 | F3: 2017 | H3: 2013 | I3: 2014 | J3: 2015 | K3: 2016 | L3: 2017
A4: Revenues | B4: 12511 | C4: =B4*(1+$B37) -> 12886.33 | D4: 13272.9199 | E4: 13671.1075 | F4: 14081.24072 | H4: =B4 -> 12511 | I4: =H4*(1+$B37) -> 12886.33 | J4: 13272.9199 | K4: 13671.1075 | L4: 14081.24072
A5: COGs | B5: -7243 | C5: -7387.86 | D5: -7535.6172 | E5: -7686.329544 | F5: -7840.056135 | H5: =B5 -> -7243 | I5: -7387.86 | J5: -7535.6172 | K5: -7686.329544 | L5: -7840.056135
A6: Exploration and evaluation | B6: -208 | C6: -208 | D6: -208 | E6: -208 | F6: -208 | H6: =B6 -> -208 | I6: =C6 -> -208 | J6: -208 | K6: -208 | L6: -208
A7: Additional water opex (from model) | B7: 0 | C7: =-C45/1000*C53 -> -441.5027163 | D7: =-D45/1000*D53 -> -463.8427538 | E7: =-E45/1000*E53 -> -487.3131971 | F7: =-F45/1000*F53 -> -511.9712449
A8: General and administrative | B8: -390 | C8: -390 | D8: -390 | E8: -390 | F8: -390 | H8: =B8 -> -390 | I8: =C8 -> -390 | J8: -390 | K8: -390 | L8: -390
A9: Other expense | B9: -878 | C9: -878 | D9: -878 | E9: -878 | F9: -878 | H9: =B9 -> -878 | I9: -878 | J9: -878 | K9: -878 | L9: -878
A10: Impairment charge | B10: -12687 | H10: =B10 -> -12687
A11: EBIT | B11: =SUM(B4:B10) -> -8895 | C11: =SUM(C4:C10) -> 3580.967284 | D11: =SUM(D4:D10) -> 3797.459946 | E11: =SUM(E4:E10) -> 4021.464756 | F11: =SUM(F4:F10) -> 4253.213342 | H11: =SUM(H4:H10) -> -8895 | I11: =SUM(I4:I10) -> 4022.47 | J11: =SUM(J4:J10) -> 4261.3027 | K11: =SUM(K4:K10) -> 4508.777953 | L11: =SUM(L4:L10) -> 4765.184587
A12: Cash Flow
A13: D&A, Impairment | B13: =-B10+1732 -> 14419 | C13: 1732 | D13: 1732 | E13: 1732 | F13: 1732 | H13: =B13 -> 14419 | I13: =C13 -> 1732 | J13: 1732 | K13: 1732 | L13: 1732
A14: EBITDA | B14: =B11+B13 -> 5524 | C14: =C11+C13 -> 5312.967284 | D14: =D11+D13 -> 5529.459946 | E14: =E11+E13 -> 5753.464756 | F14: =F11+F13 -> 5985.213342 | H14: =H11+H13 -> 5524 | I14: =I11+I13 -> 5754.47 | J14: =J11+J13 -> 5993.3027 | K14: =K11+K13 -> 6240.777953 | L14: =L11+L13 -> 6497.184587
A15: Cash interest | B15: -662 | C15: -662 | D15: -662 | E15: -662 | F15: -662 | H15: =B15 -> -662 | I15: =C15 -> -662 | J15: -662 | K15: -662 | L15: -662
A16: Cash tax | B16: -1109 | C16: -1109 | D16: -1109 | E16: -1109 | F16: -1109 | H16: =B16 -> -1109 | I16: -1109 | J16: -1109 | K16: -1109 | L16: -1109
A17: FFO | B17: =SUM(B14:B16) -> 3753 | C17: =SUM(C14:C16) -> 3541.967284 | D17: =SUM(D14:D16) -> 3758.459946 | E17: =SUM(E14:E16) -> 3982.464756 | F17: =SUM(F14:F16) -> 4214.213342 | H17: =SUM(H14:H16) -> 3753 | I17: =SUM(I14:I16) -> 3983.47 | J17: =SUM(J14:J16) -> 4222.3027 | K17: =SUM(K14:K16) -> 4469.777953 | L17: =SUM(L14:L16) -> 4726.184587
A18: WC | B18: =(449-385)-(2679-2585)+(2165-2267) -> -132 | C18: =(449-385)-(2679-2585)+(2165-2267) -> -132 | D18: =(449-385)-(2679-2585)+(2165-2267) -> -132 | E18: =(449-385)-(2679-2585)+(2165-2267) -> -132 | F18: =(449-385)-(2679-2585)+(2165-2267) -> -132 | H18: =B18 -> -132 | I18: =C18 -> -132 | J18: -132 | K18: -132 | L18: -132
A19: CFO | B19: =SUM(B17:B18) -> 3621 | C19: =SUM(C17:C18) -> 3409.967284 | D19: =SUM(D17:D18) -> 3626.459946 | E19: =SUM(E17:E18) -> 3850.464756 | F19: =SUM(F17:F18) -> 4082.213342 | H19: =SUM(H17:H18) -> 3621 | I19: =SUM(I17:I18) -> 3851.47 | J19: =SUM(J17:J18) -> 4090.3027 | K19: =SUM(K17:K18) -> 4337.777953 | L19: =SUM(L17:L18) -> 4594.184587
A20: Capex | B20: -5501 | C20: -5501 | D20: -5501 | E20: -5501 | F20: -5501 | H20: =B20 -> -5501 | I20: =C20 -> -5501 | J20: -5501 | K20: -5501 | L20: -5501
A21: Additional water capex (user adjustable) | B21: 0 | C21: 0 | D21: 0 | E21: 0 | F21: 0
A22: FCF | B22: =SUM(B19:B21) -> -1880 | C22: =SUM(C19:C21) -> -2091.032716 | D22: -1874.540054 | E22: -1650.535244 | F22: -1418.786658 | H22: =SUM(H19:H20) -> -1880 | I22: =SUM(I19:I20) -> -1649.53 | J22: =SUM(J19:J20) -> -1410.6973 | K22: =SUM(K19:K20) -> -1163.222047 | L22: =SUM(L19:L20) -> -906.815413
A23: Dividends | B23: -508 | C23: -508 | D23: -508 | E23: -508 | F23: -508 | H23: =B23 -> -508 | I23: =C23 -> -508 | J23: -508 | K23: -508 | L23: -508
A24: FCF after dividends | B24: =SUM(B22:B23) -> -2388 | C24: =SUM(C22:C23) -> -2599.032716 | D24: =SUM(D22:D23) -> -2382.540054 | E24: =SUM(E22:E23) -> -2158.535244 | F24: =SUM(F22:F23) -> -1926.786658 | H24: =SUM(H22:H23) -> -2388 | I24: =SUM(I22:I23) -> -2157.53 | J24: =SUM(J22:J23) -> -1918.6973 | K24: =SUM(K22:K23) -> -1671.222047 | L24: =SUM(L22:L23) -> -1414.815413
A25: Balance Sheet
A26: Gross debt | B26: =12901+179 -> 13080 | C26: =B26 -> 13080 | D26: =C26 -> 13080 | E26: 13080 | F26: 13080 | H26: =B26 -> 13080 | I26: =H26 -> 13080 | J26: =I26 -> 13080 | K26: 13080 | L26: 13080
A27: Cash and securities | B27: 2404 | C27: =B27+C24 -> -195.0327163 | D27: =C27+D24 -> -2577.57277 | E27: =D27+E24 -> -4736.108014 | F27: =E27+F24 -> -6662.894672 | H27: =B27 -> 2404 | I27: =H27+I24 -> 246.47 | J27: =I27+J24 -> -1672.2273 | K27: =J27+K24 -> -3343.449347 | L27: =K27+L24 -> -4758.26476
A28: Net debt | B28: =B26-B27 -> 10676 | C28: =C26-C27 -> 13275.03272 | D28: =D26-D27 -> 15657.57277 | E28: =E26-E27 -> 17816.10801 | F28: =F26-F27 -> 19742.89467 | H28: =H26-H27 -> 10676 | I28: =I26-I27 -> 12833.53 | J28: =J26-J27 -> 14752.2273 | K28: =K26-K27 -> 16423.44935 | L28: =L26-L27 -> 17838.26476
A29: Ratios
A30: EBITDA/Revenues, % | B30: =B14/B4 -> 0.4415314523 | C30: =C14/C4 -> 0.4122948336 | D30: =D14/D4 -> 0.4165971006 | E30: =E14/E4 -> 0.420848476 | F30: =F14/F4 -> 0.4250487198 | H30: =H14/H4 -> 0.4415314523 | I30: =I14/I4 -> 0.4465561568 | J30: =J14/J4 -> 0.4515436502 | K30: =K14/K4 -> 0.4564939566 | L30: =L14/L4 -> 0.46140711
A31: FFO/Gross debt, % | B31: =B17/B26 -> 0.2869266055 | C31: =C17/C26 -> 0.2707926058 | D31: =D17/D26 -> 0.2873440326 | E31: =E17/E26 -> 0.3044697826 | F31: =F17/F26 -> 0.3221875644 | H31: =H17/H26 -> 0.2869266055 | I31: =I17/I26 -> 0.3045466361 | J31: =J17/J26 -> 0.3228060168 | K31: =K17/K26 -> 0.3417261432 | L31: =L17/L26 -> 0.3613290969
A32: FFO/Net debt, % | B32: =B17/B28 -> 0.3515361559 | C32: =C17/C28 -> 0.2668142037 | D32: =D17/D28 -> 0.2400410333 | E32: =E17/E28 -> 0.2235316912 | F32: =F17/F28 -> 0.2134546839 | H32: =H17/H28 -> 0.3515361559 | I32: =I17/I28 -> 0.310395503 | J32: =J17/J28 -> 0.2862145908 | K32: =K17/K28 -> 0.2721582938 | L32: =L17/L28 -> 0.2649464312
A33: Gross debt/EBITDA, X | B33: =B26/B14 -> 2.367849385 | C33: =C26/C14 -> 2.4619011 | D33: =D26/D14 -> 2.365511303 | E33: =E26/E14 -> 2.273412727 | F33: =F26/F14 -> 2.185385759 | H33: =H26/H14 -> 2.367849385 | I33: =I26/I14 -> 2.273015586 | J33: =J26/J14 -> 2.182436072 | K33: =K26/K14 -> 2.095892547 | L33: =L26/L14 -> 2.013179682
A34: Net debt/EBITDA, X | B34: =B28/B14 -> 1.932657495 | C34: =C28/C14 -> 2.498609912 | D34: =D28/D14 -> 2.831664018 | E34: =E28/E14 -> 3.096587669 | F34: =F28/F14 -> 3.298611686 | H34: =H28/H14 -> 1.932657495 | I34: =I28/I14 -> 2.230184535 | J34: =J28/J14 -> 2.461452064 | K34: =K28/K14 -> 2.631634945 | L34: =L28/L14 -> 2.745537628
A36: User-adjustable assumptions | B36: Percent
A37: % Revenue growth per annum | B37: 0.03
A38: % COGs growth per annum | B38: 0.02
A39: % Water use growth per annum | B39: 0.02
A40: % Water price growth per annum | B40: 0.03
A42: Water use data and price | B42: 2013 | C42: 2014 | D42: 2015 | E42: 2016 | F42: 2017
A43: Total Water Use, Thousand Cubic Metres
A44: Total Water Recycled, Thousand Cubic Metres
A45: Total Water Withdrawal, Thousand Cubic Metres | B45: =D70 -> 100909 | C45: =B45*(1+$B39) -> 102927.18 | D45: =C45*(1+$B39) -> 104985.7236 | E45: =D45*(1+$B39) -> 107085.4381 | F45: =E45*(1+$B39) -> 109227.1468
A46: % Water Not Recyled
A47: Shadow price US$
A48: 2010 shadow price, US$/Cubic Metre | B48: =+K70 -> 4.164530826
A49: 2020 shadow price, US$/Cubic Metre | B49: =+L70 -> 4.356989678
A50: 2030 shadow price, US$/Cubic Metre | B50: =+M70 -> 4.442226863
A51: 2040 shadow price, US$/Cubic Metre | B51: =+N70 -> 4.547222504
A52: Shadow price company currency
A53: 2010 shadow price, Currency/Cubic Metre | B53: =B48*'2.0 Companies'!C$31 -> 4.164530826 | C53: =B53*(1+$B40) -> 4.289466751 | D53: =C53*(1+$B40) -> 4.418150753 | E53: =D53*(1+$B40) -> 4.550695276 | F53: =E53*(1+$B40) -> 4.687216134
A54: 2020 shadow price, Currency/Cubic Metre | B54: =B49*'2.0 Companies'!C$31 -> 4.356989678 | C54: =B54*(1+$B$40) -> 4.487699369 | D54: 4.62233035 | E54: 4.76100026 | F54: 4.903830268
A55: 2030 shadow price, Currency/Cubic Metre | B55: =B50*'2.0 Companies'!C$31 -> 4.442226863 | C55: 4.575493669 | D55: 4.712758479 | E55: 4.854141233 | F55: 4.99976547
A56: 2040 shadow price, Currency/Cubic Metre | B56: =B51*'2.0 Companies'!C$31 -> 4.547222504 | C56: 4.683639179 | D56: 4.824148354 | E56: 4.968872805 | F56: 5.117938989
A58: Production location, volume and water price | B58: Latitude | C58: Longitude | D58: Water Use (1,000 m3) | E58: 2010 price (US$/m3) | F58: 2020 price (US$/m3) | G58: 2030 price (US$/m3) | H58: 2040 price (US$/m3) | I58: Reserves (Mt) | J58: Reserves by location (%) | K58: Shadow price by use by location
A59: Location Name | K59: 2010 | L59: 2020 | M59: 2030 | N59: 2040
A60: Buzwagi, Tanzania | B60: -6.76 | C60: 39.28 | D60: 3330 | E60: ='32.0 Location Data'!E36 -> 4.489996075 | F60: ='32.0 Location Data'!F36 -> 4.896363661 | G60: ='32.0 Location Data'!G36 -> 5.758347046 | H60: ='32.0 Location Data'!H36 -> 6.821523612 | J60: =D60/D$70 -> 0.03300002973 | K60: =E60*$J60 -> 0.148170004 | L60: =F60*$J60 -> 0.1615801464 | M60: =G60*$J60 -> 0.1900256237 | N60: =H60*$J60 -> 0.225110482
A61: Hemlo, Ontario, Canada | B61: 48.68 | C61: -85.98 | D61: 1042 | E61: ='32.0 Location Data'!E37 -> 0.1100001 | F61: ='32.0 Location Data'!F37 -> 0.1100001 | G61: ='32.0 Location Data'!G37 -> 0.1100001 | H61: ='32.0 Location Data'!H37 -> 0.1100001 | J61: =D61/D$70 -> 0.01032613543 | K61: =E61*$J61 -> 0.00113587593 | L61: 0.00113587593 | M61: 0.00113587593 | N61: 0.00113587593
A62: Lagunas Norte, Peru | B62: -12.06 | C62: -77.1 | D62: 732 | E62: ='32.0 Location Data'!E38 -> 11.82944614 | F62: ='32.0 Location Data'!F38 -> 11.40679557 | G62: ='32.0 Location Data'!G38 -> 11.44648668 | H62: ='32.0 Location Data'!H38 -> 11.27356043 | J62: =D62/D$70 -> 0.007254060589 | K62: 0.08581151903 | L62: 0.0827455862 | M62: 0.08303350794 | N62: 0.08177909043
A63: Lumwana Copper, Zambia | B63: -11.82 | C63: 25.13 | D63: 2729 | E63: ='32.0 Location Data'!E39 -> 0.1100001 | F63: ='32.0 Location Data'!F39 -> 0.1100001 | G63: ='32.0 Location Data'!G39 -> 0.1100001 | H63: ='32.0 Location Data'!H39 -> 0.1100001 | J63: 0.02704416851 | K63: 0.00297486124 | L63: 0.00297486124 | M63: 0.00297486124 | N63: 0.00297486124
A64: Nevada, USA | B64: 38.8 | C64: -116.42 | D64: 15158 | E64: ='32.0 Location Data'!E40 -> 3.29125015 | F64: ='32.0 Location Data'!F40 -> 3.29125015 | G64: ='32.0 Location Data'!G40 -> 3.29125015 | H64: ='32.0 Location Data'!H40 -> 3.29125015 | J64: 0.1502145497 | K64: 0.4943936594 | L64: 0.4943936594 | M64: 0.4943936594 | N64: 0.4943936594
A65: Porgera, Papua New Guinea | B65: -5.46 | C65: 143.15 | D65: 32410 | E65: ='32.0 Location Data'!E41 -> 0.5100001 | F65: ='32.0 Location Data'!F41 -> 0.5100001 | G65: ='32.0 Location Data'!G41 -> 0.5100001 | H65: ='32.0 Location Data'!H41 -> 0.5100001 | J65: 0.3211804695 | K65: 0.1638020716 | L65: 0.1638020716 | M65: 0.1638020716 | N65: 0.1638020716
A66: Pueblo Viejo, Dominican Republic | B66: 18.4 | C66: -70.77 | D66: 18484 | E66: ='32.0 Location Data'!E42 -> 4.953663237 | F66: ='32.0 Location Data'!F42 -> 5.264529858 | G66: ='32.0 Location Data'!G42 -> 5.572998831 | H66: ='32.0 Location Data'!H42 -> 5.961508309 | J66: 0.1831749398 | K66: 0.9073869652 | L66: 0.9643299398 | M66: 1.020833725 | N66: 1.091998926
A67: Super Pit, Australia | B67: -30.79 | C67: 121.5 | D67: 18631 | E67: ='32.0 Location Data'!E43 -> 8.16250015 | F67: ='32.0 Location Data'!F43 -> 8.16250015 | G67: ='32.0 Location Data'!G43 -> 8.16250015 | H67: ='32.0 Location Data'!H43 -> 8.16250015 | J67: 0.1846316979 | K67: 1.507056262 | L67: 1.507056262 | M67: 1.507056262 | N67: 1.507056262
A68: Veladero, Argentina | B68: -27.91 | C68: -68.92 | D68: 1473 | E68: ='32.0 Location Data'!E44 -> 3.29125015 | F68: ='32.0 Location Data'!F44 -> 3.29125015 | G68: ='32.0 Location Data'!G44 -> 3.29125015 | H68: ='32.0 Location Data'!H44 -> 3.29125015 | J68: 0.01459731045 | K68: 0.0480434002 | L68: 0.0480434002 | M68: 0.0480434002 | N68: 0.0480434002
A69: Zaldivar Copper, Chile | B69: -33.23 | C69: -70.8 | D69: 6920 | E69: ='32.0 Location Data'!E45 -> 11.74971867 | F69: ='32.0 Location Data'!F45 -> 13.57500015 | G69: ='32.0 Location Data'!G45 -> 13.57500015 | H69: ='32.0 Location Data'!H45 -> 13.57500015 | J69: 0.06857663836 | K69: 0.8057562077 | L69: 0.930927876 | M69: 0.930927876 | N69: 0.930927876
D70: =SUM(D60:D69) -> 100909 | J70: 1 | K70: =SUM(K60:K69) -> 4.164530826 | L70: =SUM(L60:L69) -> 4.356989678 | M70: =SUM(M60:M69) -> 4.442226863 | N70: =SUM(N60:N69) -> 4.547222504

Sheet 10.0 BHP
A1: BHP Billition (BHP_US Equity)
B2: With water opex and capex | H2: No water costs added (BAU)
A3: P&L, US$ MILLION | B3: 2013 | C3: 2014 | D3: 2015 | E3: 2016 | F3: 2017 | H3: 2013 | I3: 2014 | J3: 2015 | K3: 2016 | L3: 2017
A4: Revenues | B4: 67206 | C4: =B4*(1+$B$37) -> 69222.18 | D4: =C4*(1+$B$37) -> 71298.8454 | E4: =D4*(1+$B$37) -> 73437.81076 | F4: =E4*(1+$B$37) -> 75640.94508 | H4: =B4 -> 67206 | I4: =H4*(1+$B$37) -> 69222.18 | J4: =I4*(1+$B$37) -> 71298.8454 | K4: =J4*(1+$B$37) -> 73437.81076 | L4: =K4*(1+$B$37) -> 75640.94508
A5: Expenses excluding net finance costs | B5: -46513 | C5: =B5*(1+$B38) -> -47443.26 | D5: =C5*(1+$B38) -> -48392.1252 | E5: =D5*(1+$B38) -> -49359.9677 | F5: =E5*(1+$B38) -> -50347.16706 | H5: =B5 -> -46513 | I5: =H5*(1+$B38) -> -47443.26 | J5: =I5*(1+$B38) -> -48392.1252 | K5: =J5*(1+$B38) -> -49359.9677 | L5: =K5*(1+$B38) -> -50347.16706
A6: Other income | B6: 1524 | C6: 1524 | D6: 1524 | E6: 1524 | F6: 1524 | H6: =B6 -> 1524 | I6: =C6 -> 1524 | J6: 1524 | K6: 1524 | L6: 1524
A7: Additional water opex (from model) | B7: 0 | C7: =-C45/1000*C53 -> -2272.672242 | D7: =-D45/1000*D53 -> -2318.125686 | E7: =-E45/1000*E53 -> -2364.4882 | F7: =-F45/1000*F53 -> -2411.777964
A8: Distribution Costs
A9: Administrative expenses
A10: Share of op. profit of equity accounted investments | B10: 1195 | C10: 1195 | D10: 1195 | E10: 1195 | F10: 1195 | H10: =B10 -> 1195 | I10: =C10 -> 1195 | J10: 1195 | K10: 1195 | L10: 1195
A11: EBIT | B11: =SUM(B4:B10) -> 23412 | C11: =SUM(C4:C10) -> 22225.24776 | D11: =SUM(D4:D10) -> 23307.59451 | E11: =SUM(E4:E10) -> 24432.35486 | F11: =SUM(F4:F10) -> 25601.00006 | H11: =SUM(H4:H10) -> 23412 | I11: =SUM(I4:I10) -> 24497.92 | J11: =SUM(J4:J10) -> 25625.7202 | K11: =SUM(K4:K10) -> 26796.84306 | L11: =SUM(L4:L10) -> 28012.77803
A12: Cash Flow
A13: D&A | B13: 8701 | C13: 8701 | D13: 8701 | E13: 8701 | F13: 8701 | H13: =B13 -> 8701 | I13: =C13 -> 8701 | J13: 8701 | K13: 8701 | L13: 8701
A14: EBITDA | B14: =B11+B13 -> 32113 | C14: =C11+C13 -> 30926.24776 | D14: =D11+D13 -> 32008.59451 | E14: =E11+E13 -> 33133.35486 | F14: =F11+F13 -> 34302.00006 | H14: =H11+H13 -> 32113 | I14: =I11+I13 -> 33198.92 | J14: =J11+J13 -> 34326.7202 | K14: =K11+K13 -> 35497.84306 | L14: =L11+L13 -> 36713.77803
A15: Cash interest | B15: =-975+136 -> -839 | C15: =-975+136 -> -839 | D15: =-975+136 -> -839 | E15: =-975+136 -> -839 | F15: =-975+136 -> -839 | H15: =B15 -> -839 | I15: =C15 -> -839 | J15: -839 | K15: -839 | L15: -839
A16: Cash tax | B16: =-6445+852 -> -5593 | C16: =-6445+852 -> -5593 | D16: =-6445+852 -> -5593 | E16: =-6445+852 -> -5593 | F16: =-6445+852 -> -5593 | H16: =B16 -> -5593 | I16: -5593 | J16: -5593 | K16: -5593 | L16: -5593
A17: FFO | B17: =SUM(B14:B16) -> 25681 | C17: =SUM(C14:C16) -> 24494.24776 | D17: =SUM(D14:D16) -> 25576.59451 | E17: =SUM(E14:E16) -> 26701.35486 | F17: =SUM(F14:F16) -> 27870.00006 | H17: =SUM(H14:H16) -> 25681 | I17: =SUM(I14:I16) -> 26766.92 | J17: =SUM(J14:J16) -> 27894.7202 | K17: =SUM(K14:K16) -> 29065.84306 | L17: =SUM(L14:L16) -> 30281.77803
A18: WC | B18: =-252-54+77 -> -229 | C18: =-252-54+77 -> -229 | D18: =-252-54+77 -> -229 | E18: =-252-54+77 -> -229 | F18: =-252-54+77 -> -229 | H18: =B18 -> -229 | I18: =C18 -> -229 | J18: -229 | K18: -229 | L18: -229
A19: CFO | B19: =SUM(B17:B18) -> 25452 | C19: =SUM(C17:C18) -> 24265.24776 | D19: =SUM(D17:D18) -> 25347.59451 | E19: =SUM(E17:E18) -> 26472.35486 | F19: =SUM(F17:F18) -> 27641.00006 | H19: =SUM(H17:H18) -> 25452 | I19: =SUM(I17:I18) -> 26537.92 | J19: =SUM(J17:J18) -> 27665.7202 | K19: =SUM(K17:K18) -> 28836.84306 | L19: =SUM(L17:L18) -> 30052.77803
A20: Capex | B20: -15993 | C20: -15993 | D20: -15993 | E20: -15993 | F20: -15993 | H20: =B20 -> -15993 | I20: =C20 -> -15993 | J20: -15993 | K20: -15993 | L20: -15993
A21: Additional water capex (user adjustable) | B21: 0 | C21: 0 | D21: 0 | E21: 0 | F21: 0
A22: FCF | B22: =SUM(B19:B21) -> 9459 | C22: =SUM(C19:C21) -> 8272.247758 | D22: 9354.594514 | E22: 10479.35486 | F22: 11648.00006 | H22: =SUM(H19:H20) -> 9459 | I22: =SUM(I19:I20) -> 10544.92 | J22: =SUM(J19:J20) -> 11672.7202 | K22: =SUM(K19:K20) -> 12843.84306 | L22: =SUM(L19:L20) -> 14059.77803
A23: Dividends | B23: =-6387-252 -> -6639 | C23: =-6387-252 -> -6639 | D23: =-6387-252 -> -6639 | E23: =-6387-252 -> -6639 | F23: =-6387-252 -> -6639 | H23: =B23 -> -6639 | I23: =C23 -> -6639 | J23: -6639 | K23: -6639 | L23: -6639
A24: FCF after dividends | B24: =SUM(B22:B23) -> 2820 | C24: =SUM(C22:C23) -> 1633.247758 | D24: =SUM(D22:D23) -> 2715.594514 | E24: =SUM(E22:E23) -> 3840.354858 | F24: =SUM(F22:F23) -> 5009.000063 | H24: =SUM(H22:H23) -> 2820 | I24: =SUM(I22:I23) -> 3905.92 | J24: =SUM(J22:J23) -> 5033.7202 | K24: =SUM(K22:K23) -> 6204.843058 | L24: =SUM(L22:L23) -> 7420.778027
A25: Balance Sheet
A26: Gross debt | B26: =30327+4262 -> 34589 | C26: =B26 -> 34589 | D26: =C26 -> 34589 | E26: =D26 -> 34589 | F26: =E26 -> 34589 | H26: =B26 -> 34589 | I26: =C26 -> 34589 | J26: 34589 | K26: 34589 | L26: 34589
A27: Cash and securities | B27: 8803 | C27: =B27+C24 -> 10436.24776 | D27: =C27+D24 -> 13151.84227 | E27: =D27+E24 -> 16992.19713 | F27: =E27+F24 -> 22001.19719 | H27: =B27 -> 8803 | I27: =H27+I24 -> 12708.92 | J27: =I27+J24 -> 17742.6402 | K27: =J27+K24 -> 23947.48326 | L27: =K27+L24 -> 31368.26128
A28: Net debt | B28: =B26-B27 -> 25786 | C28: =C26-C27 -> 24152.75224 | D28: =D26-D27 -> 21437.15773 | E28: =E26-E27 -> 17596.80287 | F28: =F26-F27 -> 12587.80281 | H28: =H26-H27 -> 25786 | I28: =I26-I27 -> 21880.08 | J28: =J26-J27 -> 16846.3598 | K28: =K26-K27 -> 10641.51674 | L28: =L26-L27 -> 3220.738715
A29: Ratios
A30: EBITDA/Revenues, % | B30: =B14/B4 -> 0.4778293605 | C30: =C14/C4 -> 0.4467678966 | D30: =D14/D4 -> 0.4489356642 | E30: =E14/E4 -> 0.4511756888 | F30: =F14/F4 -> 0.4534845516 | H30: =H14/H4 -> 0.4778293605 | I30: =I14/I4 -> 0.4795994579 | J30: =J14/J4 -> 0.4814484724 | K30: =K14/K4 -> 0.4833728387 | L30: =L14/L4 -> 0.4853691078
A31: FFO/Gross debt, % | B31: =B17/B26 -> 0.7424614762 | C31: =C17/C26 -> 0.7081513706 | D31: =D17/D26 -> 0.739443017 | E31: =E17/E26 -> 0.7719608794 | F31: =F17/F26 -> 0.8057474938 | H31: =H17/H26 -> 0.7424614762 | I31: =I17/I26 -> 0.7738564283 | J31: =J17/J26 -> 0.8064621758 | K31: =K17/K26 -> 0.8403204215 | L31: =L17/L26 -> 0.8754742267
A32: FFO/Net debt, % | B32: =B17/B28 -> 0.995928023 | C32: =C17/C28 -> 1.01413899 | D32: =D17/D28 -> 1.193096344 | E32: =E17/E28 -> 1.517398078 | F32: =F17/F28 -> 2.214048034 | H32: =H17/H28 -> 0.995928023 | I32: =I17/I28 -> 1.223346533 | J32: =J17/J28 -> 1.655830727 | K32: =K17/K28 -> 2.731362809 | L32: =L17/L28 -> 9.402121906
A33: Gross debt/EBITDA, X | B33: =B26/B14 -> 1.077102731 | C33: =C26/C14 -> 1.118435068 | D33: =D26/D14 -> 1.08061602 | E33: =E26/E14 -> 1.043932923 | F33: =F26/F14 -> 1.008366857 | H33: =H26/H14 -> 1.077102731 | I33: =I26/I14 -> 1.041871242 | J33: =J26/J14 -> 1.007640689 | K33: =K26/K14 -> 0.9743972315 | L33: =L26/L14 -> 0.9421258682
A34: Net debt/EBITDA, X | B34: =B28/B14 -> 0.8029769875 | C34: =C28/C14 -> 0.7809790709 | D34: =D28/D14 -> 0.6697313035 | E34: =E28/E14 -> 0.5310902849 | F34: =F28/F14 -> 0.3669699372 | H34: =H28/H14 -> 0.8029769875 | I34: =I28/I14 -> 0.6590599935 | J34: =J28/J14 -> 0.4907652028 | K34: =K28/K14 -> 0.2997792493 | L34: =L28/L14 -> 0.08772561388
A36: User-adjustable assumptions | B36: Percent
A37: % Revenue growth per annum | B37: 0.03
A38: % COGs growth per annum | B38: 0.02
A39: % Water use growth per annum | B39: 0.02
A40: % Water price growth per annum | B40: 0.03
A42: Water use data and price | B42: 2013 | C42: 2014 | D42: 2015 | E42: 2016 | F42: 2017
A43: Total Water Use, Thousand Cubic Metres | B43: =B45+71900+150000+98899+26800 -> 695099
A44: Total Water Recycled, Thousand Cubic Metres
A45: Total Water Withdrawal, Thousand Cubic Metres | B45: 347500 | C45: =B45*(1+$B39) -> 354450 | D45: =C45*(1+$B39) -> 361539 | E45: =D45*(1+$B39) -> 368769.78 | F45: =E45*(1+$B39) -> 376145.1756
A46: % Water Not Recyled | B46: =B45/B43 -> 0.4999287871
A47: Shadow price US$
A48: 2010 shadow price, US$/Cubic Metre | B48: =+K78 -> 6.411827455
A49: 2020 shadow price, US$/Cubic Metre | B49: =+L78 -> 6.404460211
A50: 2030 shadow price, US$/Cubic Metre | B50: =+M78 -> 6.419019033
A51: 2040 shadow price, US$/Cubic Metre | B51: =+N78 -> 6.435313406
A52: Shadow price company currency
A53: 2010 shadow price, Currency/Cubic Metre | B53: =B48*'2.0 Companies'!C$31 -> 6.411827455 | C53: =B53*(1+$B41) -> 6.411827455 | D53: =C53*(1+$B41) -> 6.411827455 | E53: =D53*(1+$B41) -> 6.411827455 | F53: =E53*(1+$B41) -> 6.411827455
A54: 2020 shadow price, Currency/Cubic Metre | B54: =B49*'2.0 Companies'!C$31 -> 6.404460211 | C54: =B54*(1+$B$40) -> 6.596594017 | D54: 6.794491838 | E54: 6.998326593 | F54: 7.208276391
A55: 2030 shadow price, Currency/Cubic Metre | B55: =B50*'2.0 Companies'!C$31 -> 6.419019033 | C55: 6.611589604 | D55: 6.809937292 | E55: 7.014235411 | F55: 7.224662473
A56: 2040 shadow price, Currency/Cubic Metre | B56: =B51*'2.0 Companies'!C$31 -> 6.435313406 | C56: 6.628372808 | D56: 6.827223992 | E56: 7.032040712 | F56: 7.243001933
A58: Production location, volume and water price | B58: Latitude | C58: Longitude | D58: Water Use (1,000 m3) | E58: 2010 price (US$/m3) | F58: 2020 price (US$/m3) | G58: 2030 price (US$/m3) | H58: 2040 price (US$/m3) | I58: Reserves (Mt) | J58: Reserves by location (%) | K58: Shadow price by use by location
A59: Location Name | K59: 2010 | L59: 2020 | M59: 2030 | N59: 2040
A60: Escondida Chile | B60: -23.705424 | C60: -70.41779 | D60: =B$45*(I60/SUM(I$60:I$77)) -> 114983.4043 | E60: ='32.0 Location Data'!E46 -> 10.86875015 | F60: ='32.0 Location Data'!F46 -> 10.86875015 | G60: ='32.0 Location Data'!G46 -> 10.86875015 | H60: ='32.0 Location Data'!H46 -> 10.86875015 | I60: 7098 | J60: =I60/I$78 -> 0.3308874945 | K60: =E60*$J60 -> 3.596333506 | L60: =F60*$J60 -> 3.596333506 | M60: 3.596333506 | N60: 3.596333506
A61: Escondida Chile | B61: -23.705424 | C61: -70.41779 | D61: 38505.99495 | E61: ='32.0 Location Data'!E47 -> 10.86875015 | F61: ='32.0 Location Data'!F47 -> 10.86875015 | G61: ='32.0 Location Data'!G47 -> 10.86875015 | H61: ='32.0 Location Data'!H47 -> 10.86875015 | I61: 2377 | J61: 0.1108086186 | K61: =E61*$J61 -> 1.20435119 | L61: 1.20435119 | M61: 1.20435119 | N61: 1.20435119
A62: Alegria Brazil | B62: -27.8395 | C62: -54.056256 | D62: 32875.08041 | E62: ='32.0 Location Data'!E48 -> 0.1100001 | F62: ='32.0 Location Data'!F48 -> 0.1100001 | G62: ='32.0 Location Data'!G48 -> 0.1100001 | H62: ='32.0 Location Data'!H48 -> 0.1100001 | I62: 2029.4 | J62: 0.09460454795 | K62: 0.01040650974 | L62: 0.01040650974 | M62: 0.01040650974 | N62: 0.01040650974
A63: Escondida Norte Chile | B63: =B61 -> -23.705424 | C63: =C61 -> -70.41779 | D63: 26874.81936 | E63: ='32.0 Location Data'!E49 -> 10.86875015 | F63: ='32.0 Location Data'!F49 -> 10.86875015 | G63: ='32.0 Location Data'!G49 -> 10.86875015 | H63: ='32.0 Location Data'!H49 -> 10.86875015 | I63: 1659 | J63: 0.07733760967 | K63: 0.8405631567 | L63: 0.8405631567 | M63: 0.8405631567 | N63: 0.8405631567
A64: Germano Brazil | B64: -4.284756 | C64: -41.787796 | D64: 25757.06015 | E64: ='32.0 Location Data'!E50 -> 1.0100001 | F64: ='32.0 Location Data'!F50 -> 1.0100001 | G64: ='32.0 Location Data'!G50 -> 1.0100001 | H64: ='32.0 Location Data'!H50 -> 1.0100001 | I64: 1590 | J64: 0.07412103639 | K64: 0.07486225417 | L64: 0.07486225417 | M64: 0.07486225417 | N64: 0.07486225417
A65: Mount Newman Australia | B65: -28.5008 | C65: 121.09 | D65: 20751.4428 | E65: ='32.0 Location Data'!E51 -> 3.29125015 | F65: ='32.0 Location Data'!F51 -> 3.29125015 | G65: ='32.0 Location Data'!G51 -> 3.29125015 | H65: ='32.0 Location Data'!H51 -> 3.29125015 | I65: 1281 | J65: 0.05971638215 | K65: 0.1965415517 | L65: 0.1965415517 | M65: 0.1965415517 | N65: 0.1965415517
A66: Yandi Australia | B66: -27.75658 | C66: 114.7883 | D66: 15227.44436 | E66: ='32.0 Location Data'!E52 -> 3.29125015 | F66: ='32.0 Location Data'!F52 -> 3.29125015 | G66: ='32.0 Location Data'!G52 -> 3.29125015 | H66: ='32.0 Location Data'!H52 -> 3.29125015 | I66: 940 | J66: 0.04381998378 | K66: 0.1442225282 | L66: 0.1442225282 | M66: 0.1442225282 | N66: 0.1442225282
A67: Mount Whaleback Australia | B67: -13.273889 | C67: 131.2125 | D67: 15081.64968 | E67: ='32.0 Location Data'!E53 -> 0.1100001 | F67: ='32.0 Location Data'!F53 -> 0.1100001 | G67: ='32.0 Location Data'!G53 -> 0.1100001 | H67: ='32.0 Location Data'!H53 -> 0.1100001 | I67: 931 | J67: 0.04340043074 | K67: 0.004774051722 | L67: 0.004774051722 | M67: 0.004774051722 | N67: 0.004774051722
A68: Area C Iron Ore Mine Australia | B68: -33.801685 | C68: 116.608822 | D68: 12311.55076 | E68: ='32.0 Location Data'!E54 -> 0.1100001 | F68: ='32.0 Location Data'!F54 -> 0.1100001 | G68: ='32.0 Location Data'!G54 -> 0.6862984758 | H68: ='32.0 Location Data'!H54 -> 1.080567887 | I68: 760 | J68: 0.03542892305 | K68: 0.003897185079 | L68: 0.003897185079 | M68: 0.02431481589 | N68: 0.03828335652
A69: Antamina Peru | B69: -9.766667 | C69: -77.1 | D69: 12052.36022 | E69: ='32.0 Location Data'!E55 -> 1.527226024 | F69: ='32.0 Location Data'!F55 -> 1.314809751 | G69: ='32.0 Location Data'!G55 -> 1.145885488 | H69: ='32.0 Location Data'!H55 -> 1.212945113 | I69: 744 | J69: 0.03468305099 | K69: 0.05296885807 | L69: 0.04560161364 | M69: 0.03974280481 | N69: 0.04206863719
A70: Olympic Dam Australia | B70: -30.4758 | C70: 136.88776 | D70: 8942.073711 | E70: ='32.0 Location Data'!E56 -> 3.29125015 | F70: ='32.0 Location Data'!F56 -> 3.29125015 | G70: ='32.0 Location Data'!G56 -> 3.29125015 | H70: ='32.0 Location Data'!H56 -> 3.29125015 | I70: 552 | J70: 0.02573258622 | K70: 0.08469237825 | L70: 0.08469237825 | M70: 0.08469237825 | N70: 0.08469237825
A71: Jimblebar Australia | B71: -23.466272 | C71: 120.184 | D71: 7548.924546 | E71: ='32.0 Location Data'!E57 -> 0.1100001 | F71: ='32.0 Location Data'!F57 -> 0.1100001 | G71: ='32.0 Location Data'!G57 -> 0.1100001 | H71: ='32.0 Location Data'!H57 -> 0.1100001 | I71: 466 | J71: 0.02172352387 | K71: 0.002389589798 | L71: 0.002389589798 | M71: 0.002389589798 | N71: 0.002389589798
A72: SpenceCopper Chile | B72: -22.815242 | C72: -69.262936 | D72: 4908.420896 | E72: ='32.0 Location Data'!E58 -> 3.29125015 | F72: ='32.0 Location Data'!F58 -> 3.29125015 | G72: ='32.0 Location Data'!G58 -> 3.29125015 | H72: ='32.0 Location Data'!H58 -> 3.29125015 | I72: 303 | J72: 0.01412495222 | K72: 0.0464887511 | L72: 0.0464887511 | M72: 0.0464887511 | N72: 0.0464887511
A73: Cerro Colorado Chile | B73: -22.5925 | C73: -67.921667 | D73: 3288.480006 | E73: ='32.0 Location Data'!E59 -> 3.29125015 | F73: ='32.0 Location Data'!F59 -> 3.29125015 | G73: ='32.0 Location Data'!G59 -> 3.29125015 | H73: ='32.0 Location Data'!H59 -> 3.29125015 | I73: 203 | J73: 0.009463251816 | K73: 0.03114592896 | L73: 0.03114592896 | M73: 0.03114592896 | N73: 0.03114592896
A74: Escondida Copper Chile | B74: =B61 -> -23.705424 | C74: =C61 -> -70.41779 | D74: 2462.310152 | E74: ='32.0 Location Data'!E60 -> 10.86875015 | F74: ='32.0 Location Data'!F60 -> 10.86875015 | G74: ='32.0 Location Data'!G60 -> 10.86875015 | H74: ='32.0 Location Data'!H60 -> 10.86875015 | I74: 152 | J74: 0.007085784611 | K74: 0.07701362255 | L74: 0.07701362255 | M74: 0.07701362255 | N74: 0.07701362255
A75: Mount Keith Australia | B75: -27.264947 | C75: 120.502731 | D75: 2235.518428 | E75: ='32.0 Location Data'!E61 -> 3.29125015 | F75: ='32.0 Location Data'!F61 -> 3.29125015 | G75: ='32.0 Location Data'!G61 -> 3.29125015 | H75: ='32.0 Location Data'!H61 -> 3.29125015 | I75: 138 | J75: 0.006433146555 | K75: 0.02117309456 | L75: 0.02117309456 | M75: 0.02117309456 | N75: 0.02117309456
A76: Orebody 18 Australia | B76: -25.274 | C76: 133.775 | D76: 2057.32493 | E76: ='32.0 Location Data'!E62 -> 3.29125015 | F76: ='32.0 Location Data'!F62 -> 3.29125015 | G76: ='32.0 Location Data'!G62 -> 3.29125015 | H76: ='32.0 Location Data'!H62 -> 3.29125015 | I76: 127 | J76: 0.00592035951 | K76: 0.01948538413 | L76: =F76*$J76 -> 0.01948538413 | M76: 0.01948538413 | N76: 0.01948538413
A77: Montelibano Colombia | B77: 7.912351 | C77: -75.876633 | D77: 1636.140299 | E77: ='32.0 Location Data'!E63 -> 0.1100001 | F77: ='32.0 Location Data'!F63 -> 0.1100001 | G77: ='32.0 Location Data'!G63 -> 0.1100001 | H77: ='32.0 Location Data'!H63 -> 0.1100001 | I77: 101 | J77: 0.004708317406 | K77: 0.0005179153855 | L77: 0.0005179153855 | M77: 0.0005179153855 | N77: 0.0005179153855
I78: =SUM(I60:I77) -> 21451.4 | J78: 1 | K78: =SUM(K60:K77) -> 6.411827455 | L78: =SUM(L60:L77) -> 6.404460211 | M78: =SUM(M60:M77) -> 6.419019033 | N78: =SUM(N60:N77) -> 6.435313406
Y186: 1.103669132 | Z186: 0.07873828711 | AA186: 0.154652752 | AB186: 1.083792386 | AC186: 0.07743425256 | AD186: 0.2060943413 | AE186: 1.083792386 | AF186: 0.07743425256 | AG186: 0.2060943413 | AH186: 1.0971976 | AI186: 0.07828873042 | AJ186: 0.2457324682 | AK186: 1.046453833 | AL186: 0.07480626661 | AM186: 0.2542472674 | AN186: 1.046453833 | AO186: 0.07480626661 | AP186: 0.2542472674 | AQ186: 1.103886481 | AR186: 0.0787533856 | AS186: 0.2357990921 | AT186: 1.021862351 | AU186: 0.07307545315 | AV186: 0.3092755871 | AW186: 1.021862351 | AX186: 0.07307545315 | AY186: 0.3092755871 | AZ186: 1.004901051 | BA186: 0.9511871514 | BB186: 0.07784623936 | BC186: 1.030403612 | BD186: 0.9690270391 | BE186: 0.1160568582 | BF186: 1.030403612 | BG186: 0.9690270391 | BH186: 0.1160568582 | BI186: 0.9810441493 | BJ186: 0.9286267237 | BK186: 0.07178246603 | BL186: 1.024840445 | BM186: 0.9646365085 | BN186: 0.08619673207 | BO186: 1.024840445 | BP186: 0.9646365085 | BQ186: 0.08619673207 | BR186: 0.9889158145 | BS186: 0.9359516626 | BT186: 0.05937642166 | BU186: 1.010692686 | BV186: 0.9534586387 | BW186: 0.07516830276 | BX186: 1.010692686 | BY186: 0.9534586387 | BZ186: 0.07516830276 | CA186: 1.04040633 | CB186: 0.05375892986 | CC186: 0 | CD186: 1.035304941 | CE186: 0.05351211582 | CF186: 0 | CG186: 1.018334702 | CH186: 0.05252424357 | CI186: 0 | CJ186: 1.069249752 | CK186: 0.0548722423 | CL186: 0 | CM186: 1.062741979 | CN186: 0.05457047117 | CO186: 0 | CP186: 1.05271668 | CQ186: 0.05384481572 | CR186: 0 | CS186: 1.058318941 | CT186: 0.05445032954 | CU186: 0 | CV186: 1.082090697 | CW186: 0.05531682794 | CX186: 0 | CY186: 1.080845931 | CZ186: 0.05492522784 | DA186: 0 | DB186: 0.9426795581 | DC186: 0.6827546272 | DD186: 0 | DE186: 0.9552613163 | DF186: 0.6910651818 | DG186: 0 | DH186: 0.9396031153 | DI186: 0.6783076201 | DJ186: 0 | DK186: 0.9745279715 | DL186: 0.7008957995 | DM186: 0 | DN186: 1.015565088 | DO186: 0.7294906382 | DP186: 0 | DQ186: 1.005984829 | DR186: 0.7197901749 | DS186: 0 | DT186: 0.95872081 | DU186: 0.6914030314 | DV186: 0 | DW186: 1.058939784 | DX186: 0.7569823458 | DY186: 0 | DZ186: 1.057721649 | EA186: 0.7516234997 | EB186: 0
Y187: 1.047703039 | Z187: 0.1036568594 | AA187: 0.1549471492 | AB187: 1.059008429 | AC187: 0.1047951327 | AD187: 0.1240514143 | AE187: 1.059008429 | AF187: 0.1047951327 | AG187: 0.1240514143 | AH187: 0.9885434003 | AI187: 0.09784741252 | AJ187: 0.1534459606 | AK187: 1.003331506 | AL187: 0.099301183 | AM187: 0.1202396213 | AN187: 1.003331506 | AO187: 0.099301183 | AP187: 0.1202396213 | AQ187: 1.031113617 | AR187: 0.1020277865 | AS187: 0.1326545316 | AT187: 0.9221477024 | AU187: 0.09129032832 | AV187: 0.124371604 | AW187: 0.9221477024 | AX187: 0.09129032832 | AY187: 0.124371604 | AZ187: 0.9880736333 | BA187: 0.8895731764 | BB187: 0.04921226617 | BC187: 1.008371419 | BD187: 0.9131672964 | BE187: 0.04687632376 | BF187: 1.008371419 | BG187: 0.9131672964 | BH187: 0.04687632376 | BI187: 0.9758164243 | BJ187: 0.8784180239 | BK187: 0.06525106519 | BL187: 1.005830921 | BM187: 0.9111375653 | BN187: 0.04540063407 | BO187: 1.005830921 | BP187: 0.9111375653 | BQ187: 0.04540063407 | BR187: 0.9918475046 | BS187: 0.893347699 | BT187: 0.08735665937 | BU187: 1.017450282 | BV187: 0.9216459817 | BW187: 0.04692506755 | BX187: 1.017450282 | BY187: 0.9216459817 | BZ187: 0.04692506755 | CA187: 1.232135243 | CB187: 0.01045443606 | CC187: 0 | CD187: 1.234145535 | CE187: 0.01045171282 | CF187: 0 | CG187: 1.192058217 | CH187: 0.00932373777 | CI187: 0 | CJ187: 1.496911925 | CK187: 0.01239590266 | CL187: 0 | CM187: 1.502433852 | CN187: 0.01241683124 | CO187: 0 | CP187: 1.496989001 | CQ187: 0.01144322341 | CR187: 0 | CS187: 1.572896464 | CT187: 0.01295305687 | CU187: 0 | CV187: 1.589405341 | CW187: 0.01305386709 | CX187: 0 | CY187: 1.65425748 | CZ187: 0.01253635111 | DA187: 0 | DB187: 1.176034808 | DC187: 0.1008561914 | DD187: 0 | DE187: 1.165378388 | DF187: 0.09973471618 | DG187: 0 | DH187: 1.125636194 | DI187: 0.08897109558 | DJ187: 0 | DK187: 1.514260197 | DL187: 0.1266860547 | DM187: 0 | DN187: 1.497445105 | DO187: 0.1250421281 | DP187: 0 | DQ187: 1.492018332 | DR187: 0.1152375336 | DS187: 0 | DT187: 1.525434673 | DU187: 0.1269561687 | DV187: 0 | DW187: 1.723590849 | DX187: 0.1429928814 | DY187: 0 | DZ187: 1.793918128 | EA187: 0.1373239788 | EB187: 0
Y189: 1.047703039 | Z189: 0.1036568594 | AA189: 0.1549471492 | AB189: 1.059008429 | AC189: 0.1047951327 | AD189: 0.1240514143 | AE189: 1.059008429 | AF189: 0.1047951327 | AG189: 0.1240514143 | AH189: 0.9885434003 | AI189: 0.09784741252 | AJ189: 0.1534459606 | AK189: 1.003331506 | AL189: 0.099301183 | AM189: 0.1202396213 | AN189: 1.003331506 | AO189: 0.099301183 | AP189: 0.1202396213 | AQ189: 1.031113617 | AR189: 0.1020277865 | AS189: 0.1326545316 | AT189: 0.9221477024 | AU189: 0.09129032832 | AV189: 0.124371604 | AW189: 0.9221477024 | AX189: 0.09129032832 | AY189: 0.124371604 | AZ189: 0.9880736333 | BA189: 0.8895731764 | BB189: 0.04921226617 | BC189: 1.008371419 | BD189: 0.9131672964 | BE189: 0.04687632376 | BF189: 1.008371419 | BG189: 0.9131672964 | BH189: 0.04687632376 | BI189: 0.9758164243 | BJ189: 0.8784180239 | BK189: 0.06525106519 | BL189: 1.005830921 | BM189: 0.9111375653 | BN189: 0.04540063407 | BO189: 1.005830921 | BP189: 0.9111375653 | BQ189: 0.04540063407 | BR189: 0.9918475046 | BS189: 0.893347699 | BT189: 0.08735665937 | BU189: 1.017450282 | BV189: 0.9216459817 | BW189: 0.04692506755 | BX189: 1.017450282 | BY189: 0.9216459817 | BZ189: 0.04692506755 | CA189: 1.232135243 | CB189: 0.01045443606 | CC189: 0 | CD189: 1.234145535 | CE189: 0.01045171282 | CF189: 0 | CG189: 1.192058217 | CH189: 0.00932373777 | CI189: 0 | CJ189: 1.496911925 | CK189: 0.01239590266 | CL189: 0 | CM189: 1.502433852 | CN189: 0.01241683124 | CO189: 0 | CP189: 1.496989001 | CQ189: 0.01144322341 | CR189: 0 | CS189: 1.572896464 | CT189: 0.01295305687 | CU189: 0 | CV189: 1.589405341 | CW189: 0.01305386709 | CX189: 0 | CY189: 1.65425748 | CZ189: 0.01253635111 | DA189: 0 | DB189: 1.176034808 | DC189: 0.1008561914 | DD189: 0 | DE189: 1.165378388 | DF189: 0.09973471618 | DG189: 0 | DH189: 1.125636194 | DI189: 0.08897109558 | DJ189: 0 | DK189: 1.514260197 | DL189: 0.1266860547 | DM189: 0 | DN189: 1.497445105 | DO189: 0.1250421281 | DP189: 0 | DQ189: 1.492018332 | DR189: 0.1152375336 | DS189: 0 | DT189: 1.525434673 | DU189: 0.1269561687 | DV189: 0 | DW189: 1.723590849 | DX189: 0.1429928814 | DY189: 0 | DZ189: 1.793918128 | EA189: 0.1373239788 | EB189: 0
Y190: 1.047703039 | Z190: 0.1036568594 | AA190: 0.1549471492 | AB190: 1.059008429 | AC190: 0.1047951327 | AD190: 0.1240514143 | AE190: 1.059008429 | AF190: 0.1047951327 | AG190: 0.1240514143 | AH190: 0.9885434003 | AI190: 0.09784741252 | AJ190: 0.1534459606 | AK190: 1.003331506 | AL190: 0.099301183 | AM190: 0.1202396213 | AN190: 1.003331506 | AO190: 0.099301183 | AP190: 0.1202396213 | AQ190: 1.031113617 | AR190: 0.1020277865 | AS190: 0.1326545316 | AT190: 0.9221477024 | AU190: 0.09129032832 | AV190: 0.124371604 | AW190: 0.9221477024 | AX190: 0.09129032832 | AY190: 0.124371604 | AZ190: 0.9880736333 | BA190: 0.8895731764 | BB190: 0.04921226617 | BC190: 1.008371419 | BD190: 0.9131672964 | BE190: 0.04687632376 | BF190: 1.008371419 | BG190: 0.9131672964 | BH190: 0.04687632376 | BI190: 0.9758164243 | BJ190: 0.8784180239 | BK190: 0.06525106519 | BL190: 1.005830921 | BM190: 0.9111375653 | BN190: 0.04540063407 | BO190: 1.005830921 | BP190: 0.9111375653 | BQ190: 0.04540063407 | BR190: 0.9918475046 | BS190: 0.893347699 | BT190: 0.08735665937 | BU190: 1.017450282 | BV190: 0.9216459817 | BW190: 0.04692506755 | BX190: 1.017450282 | BY190: 0.9216459817 | BZ190: 0.04692506755 | CA190: 1.232135243 | CB190: 0.01045443606 | CC190: 0 | CD190: 1.234145535 | CE190: 0.01045171282 | CF190: 0 | CG190: 1.192058217 | CH190: 0.00932373777 | CI190: 0 | CJ190: 1.496911925 | CK190: 0.01239590266 | CL190: 0 | CM190: 1.502433852 | CN190: 0.01241683124 | CO190: 0 | CP190: 1.496989001 | CQ190: 0.01144322341 | CR190: 0 | CS190: 1.572896464 | CT190: 0.01295305687 | CU190: 0 | CV190: 1.589405341 | CW190: 0.01305386709 | CX190: 0 | CY190: 1.65425748 | CZ190: 0.01253635111 | DA190: 0 | DB190: 1.176034808 | DC190: 0.1008561914 | DD190: 0 | DE190: 1.165378388 | DF190: 0.09973471618 | DG190: 0 | DH190: 1.125636194 | DI190: 0.08897109558 | DJ190: 0 | DK190: 1.514260197 | DL190: 0.1266860547 | DM190: 0 | DN190: 1.497445105 | DO190: 0.1250421281 | DP190: 0 | DQ190: 1.492018332 | DR190: 0.1152375336 | DS190: 0 | DT190: 1.525434673 | DU190: 0.1269561687 | DV190: 0 | DW190: 1.723590849 | DX190: 0.1429928814 | DY190: 0 | DZ190: 1.793918128 | EA190: 0.1373239788 | EB190: 0
Y191: 1.103669132 | Z191: 0.07873828711 | AA191: 0.154652752 | AB191: 1.083792386 | AC191: 0.07743425256 | AD191: 0.2060943413 | AE191: 1.083792386 | AF191: 0.07743425256 | AG191: 0.2060943413 | AH191: 1.0971976 | AI191: 0.07828873042 | AJ191: 0.2457324682 | AK191: 1.046453833 | AL191: 0.07480626661 | AM191: 0.2542472674 | AN191: 1.046453833 | AO191: 0.07480626661 | AP191: 0.2542472674 | AQ191: 1.103886481 | AR191: 0.0787533856 | AS191: 0.2357990921 | AT191: 1.021862351 | AU191: 0.07307545315 | AV191: 0.3092755871 | AW191: 1.021862351 | AX191: 0.07307545315 | AY191: 0.3092755871 | AZ191: 1.004901051 | BA191: 0.9511871514 | BB191: 0.07784623936 | BC191: 1.030403612 | BD191: 0.9690270391 | BE191: 0.1160568582 | BF191: 1.030403612 | BG191: 0.9690270391 | BH191: 0.1160568582 | BI191: 0.9810441493 | BJ191: 0.9286267237 | BK191: 0.07178246603 | BL191: 1.024840445 | BM191: 0.9646365085 | BN191: 0.08619673207 | BO191: 1.024840445 | BP191: 0.9646365085 | BQ191: 0.08619673207 | BR191: 0.9889158145 | BS191: 0.9359516626 | BT191: 0.05937642166 | BU191: 1.010692686 | BV191: 0.9534586387 | BW191: 0.07516830276 | BX191: 1.010692686 | BY191: 0.9534586387 | BZ191: 0.07516830276 | CA191: 1.04040633 | CB191: 0.05375892986 | CC191: 0 | CD191: 1.035304941 | CE191: 0.05351211582 | CF191: 0 | CG191: 1.018334702 | CH191: 0.05252424357 | CI191: 0 | CJ191: 1.069249752 | CK191: 0.0548722423 | CL191: 0 | CM191: 1.062741979 | CN191: 0.05457047117 | CO191: 0 | CP191: 1.05271668 | CQ191: 0.05384481572 | CR191: 0 | CS191: 1.058318941 | CT191: 0.05445032954 | CU191: 0 | CV191: 1.082090697 | CW191: 0.05531682794 | CX191: 0 | CY191: 1.080845931 | CZ191: 0.05492522784 | DA191: 0 | DB191: 0.9426795581 | DC191: 0.6827546272 | DD191: 0 | DE191: 0.9552613163 | DF191: 0.6910651818 | DG191: 0 | DH191: 0.9396031153 | DI191: 0.6783076201 | DJ191: 0 | DK191: 0.9745279715 | DL191: 0.7008957995 | DM191: 0 | DN191: 1.015565088 | DO191: 0.7294906382 | DP191: 0 | DQ191: 1.005984829 | DR191: 0.7197901749 | DS191: 0 | DT191: 0.95872081 | DU191: 0.6914030314 | DV191: 0 | DW191: 1.058939784 | DX191: 0.7569823458 | DY191: 0 | DZ191: 1.057721649 | EA191: 0.7516234997 | EB191: 0
Y192: 0.9186831706 | Z192: 0.07044433352 | AA192: 0.200621701 | AB192: 0.9656669903 | AC192: 0.07407879838 | AD192: 0.1479765361 | AE192: 0.9656669903 | AF192: 0.07407879838 | AG192: 0.1479765361 | AH192: 0.837093525 | AI192: 0.06415570451 | AJ192: 0.1451310672 | AK192: 0.9610391651 | AL192: 0.07372387186 | AM192: 0.1751178309 | AN192: 0.9610391651 | AO192: 0.07372387186 | AP192: 0.1751178309 | AQ192: 0.8264518174 | AR192: 0.06333548092 | AS192: 0.1875548635 | AT192: 0.8721688406 | AU192: 0.06690804951 | AV192: 0.1358768158 | AW192: 0.8721688406 | AX192: 0.06690804951 | AY192: 0.1358768158 | AZ192: 1.005846478 | BA192: 0.8863790164 | BB192: 0.1838851371 | BC192: 0.9859310672 | BD192: 0.8749190357 | BE192: 0.145652168 | BF192: 0.9859310672 | BG192: 0.8749190357 | BH192: 0.145652168 | BI192: 1.006558335 | BJ192: 0.8885323725 | BK192: 0.1682635034 | BL192: 0.9937261064 | BM192: 0.8827082366 | BN192: 0.1582363567 | BO192: 0.9937261064 | BP192: 0.8827082366 | BQ192: 0.1582363567 | BR192: 1.008537544 | BS192: 0.8938885659 | BT192: 0.1402790978 | BU192: 1.003518575 | BV192: 0.889274994 | BW192: 0.1658843769 | BX192: 1.003518575 | BY192: 0.889274994 | BZ192: 0.1658843769 | CA192: 0.9988500324 | CB192: 0.2442691456 | CC192: 0 | CD192: 0.9991940002 | CE192: 0.2443169463 | CF192: 0 | CG192: 0.9898471701 | CH192: 0.2447777458 | CI192: 0 | CJ192: 1.00072733 | CK192: 0.2446343435 | CL192: 0 | CM192: 1.003528706 | CN192: 0.245160152 | CO192: 0 | CP192: 0.9890458881 | CQ192: 0.2446209593 | CR192: 0 | CS192: 1.002575141 | CT192: 0.2449938053 | CU192: 0 | CV192: 1.008669412 | CW192: 0.2461601442 | CX192: 0 | CY192: 0.9920458099 | CZ192: 0.2452079528 | DA192: 0 | DB192: 1.087262796 | DC192: 3.467548536 | DD192: 0 | DE192: 1.034719018 | DF192: 3.298068431 | DG192: 0 | DH192: 1.025039874 | DI192: 3.304288827 | DJ192: 0 | DK192: 1.195478522 | DL192: 3.813134707 | DM192: 0 | DN192: 1.044212081 | DO192: 3.325383567 | DP192: 0 | DQ192: 1.029142124 | DR192: 3.318069888 | DS192: 0 | DT192: 1.213107794 | DU192: 3.868192074 | DV192: 0 | DW192: 1.156507049 | DX192: 3.679081157 | DY192: 0 | DZ192: 1.137446976 | EA192: 3.664849813 | EB192: 0
Y193: 1.154679682 | Z193: 0.1671345707 | AA193: 0.2088334904 | AB193: 1.180667549 | AC193: 0.1709201895 | AD193: 0.1494011903 | AE193: 1.180667549 | AF193: 0.1709201895 | AG193: 0.1494011903 | AH193: 1.130508692 | AI193: 0.1636018407 | AJ193: 0.2345824294 | AK193: 1.078954681 | AL193: 0.1560613919 | AM193: 0.1788916926 | AN193: 1.078954681 | AO193: 0.1560613919 | AP193: 0.1788916926 | AQ193: 1.131084387 | AR193: 0.1636859819 | AS193: 0.1845901058 | AT193: 1.016691179 | AU193: 0.1469655835 | AV193: 0.2625114686 | AW193: 1.016691179 | AX193: 0.1469655835 | AY193: 0.2625114686 | AZ193: 0.9938614714 | BA193: 0.7754598492 | BB193: 0.07019301718 | BC193: 1.024642926 | BD193: 0.8221176032 | BE193: 0.0719179467 | BF193: 1.024642926 | BG193: 0.8221176032 | BH193: 0.0719179467 | BI193: 1.039081593 | BJ193: 0.8100997285 | BK193: 0.07816721598 | BL193: 1.012984693 | BM193: 0.8127715411 | BN193: 0.071950005 | BO193: 1.012984693 | BP193: 0.8127715411 | BQ193: 0.071950005 | BR193: 1.056722604 | BS193: 0.8237340615 | BT193: 0.07714486637 | BU193: 0.98937936 | BV193: 0.7944843633 | BW193: 0.07502060821 | BX193: 0.98937936 | BY193: 0.7944843633 | BZ193: 0.07502060821 | CA193: 1.156131415 | CB193: 0.05944392706 | CC193: 0 | CD193: 1.161238535 | CE193: 0.06001797907 | CF193: 0 | CG193: 1.103635959 | CH193: 0.05981459424 | CI193: 0 | CJ193: 1.284535543 | CK193: 0.06649288212 | CL193: 0 | CM193: 1.29019758 | CN193: 0.06711492129 | CO193: 0 | CP193: 1.180427321 | CQ193: 0.06414891116 | CR193: 0 | CS193: 1.375290528 | CT193: 0.07147502571 | CU193: 0 | CV193: 1.385516199 | CW193: 0.07236054578 | CX193: 0 | CY193: 1.224700844 | CZ193: 0.06664783132 | DA193: 0 | DB193: 1.00125726 | DC193: 0.3556650597 | DD193: 0 | DE193: 0.9835440432 | DF193: 0.3511462236 | DG193: 0 | DH193: 0.9347559014 | DI193: 0.3499562833 | DJ193: 0 | DK193: 1.136245615 | DL193: 0.406431137 | DM193: 0 | DN193: 1.195784775 | DO193: 0.4300546118 | DP193: 0 | DQ193: 1.094047175 | DR193: 0.4110492057 | DS193: 0 | DT193: 1.215904439 | DU193: 0.4366594186 | DV193: 0 | DW193: 1.362769961 | DX193: 0.492363886 | DY193: 0 | DZ193: 1.204594737 | EA193: 0.4534927821 | EB193: 0
Y194: 1.017530042 | Z194: 0.2563086947 | AA194: 0.1765477503 | AB194: 1.125008046 | AC194: 0.2827777205 | AD194: 0.1684808149 | AE194: 1.125008046 | AF194: 0.2827777205 | AG194: 0.1684808149 | AH194: 0.9367325779 | AI194: 0.2364685985 | AJ194: 0.1493216528 | AK194: 1.081429607 | AL194: 0.2720498915 | AM194: 0.1396440228 | AN194: 1.081429607 | AO194: 0.2720498915 | AP194: 0.1396440228 | AQ194: 0.9378473944 | AR194: 0.2367423455 | AS194: 0.1636130871 | AT194: 0.8946758162 | AU194: 0.2260761769 | AV194: 0.1731567155 | AW194: 0.8946758162 | AX194: 0.2260761769 | AY194: 0.1731567155 | AZ194: 1.002492356 | BA194: 0.6095411846 | BB194: 0.07115326237 | BC194: 0.9995066888 | BD194: 0.6198571753 | BE194: 0.06368325651 | BF194: 0.9995066888 | BG194: 0.6198571753 | BH194: 0.06368325651 | BI194: 1.027732679 | BJ194: 0.6243419407 | BK194: 0.06529194364 | BL194: 1.010413407 | BM194: 0.6266983534 | BN194: 0.06174592648 | BO194: 1.010413407 | BP194: 0.6266983534 | BQ194: 0.06174592648 | BR194: 1.028361831 | BS194: 0.6252726966 | BT194: 0.06288056941 | BU194: 1.028343442 | BV194: 0.637909971 | BW194: 0.06706533395 | BX194: 1.028343442 | BY194: 0.637909971 | BZ194: 0.06706533395 | CA194: 1.09886248 | CB194: 0.02673117659 | CC194: 0 | CD194: 1.097885824 | CE194: 0.02636047668 | CF194: 0 | CG194: 1.0915138 | CH194: 0.02625682255 | CI194: 0 | CJ194: 1.107891825 | CK194: 0.02687029135 | CL194: 0 | CM194: 1.104079769 | CN194: 0.02645485649 | CO194: 0 | CP194: 1.111164827 | CQ194: 0.02655619205 | CR194: 0 | CS194: 1.080697561 | CT194: 0.02645131043 | CU194: 0 | CV194: 1.097518841 | CW194: 0.02635488481 | CX194: 0 | CY194: 1.117064611 | CZ194: 0.02664607109 | DA194: 0 | DB194: 1.093217363 | DC194: 0.1142795245 | DD194: 0 | DE194: 0.9784075804 | DF194: 0.1012181862 | DG194: 0 | DH194: 0.9709168705 | DI194: 0.1006377889 | DJ194: 0 | DK194: 1.218379633 | DL194: 0.1265601116 | DM194: 0 | DN194: 1.035554274 | DO194: 0.1067645161 | DP194: 0 | DQ194: 1.040728401 | DR194: 0.1070265687 | DS194: 0 | DT194: 1.188913509 | DU194: 0.1246402532 | DV194: 0 | DW194: 1.278944006 | DX194: 0.131320089 | DY194: 0 | DZ194: 1.29862735 | EA194: 0.1324633049 | EB194: 0
Y195: 1.064780433 | Z195: 0.05634825812 | AA195: 0.2440783929 | AB195: 1.208956339 | AC195: 0.06391470358 | AD195: 0.2072416642 | AE195: 1.208956339 | AF195: 0.06391470358 | AG195: 0.2072416642 | AH195: 0.9760073838 | AI195: 0.05170962338 | AJ195: 0.1920496824 | AK195: 1.111461579 | AL195: 0.05880500387 | AM195: 0.1568993231 | AN195: 1.111461579 | AO195: 0.05880500387 | AP195: 0.1568993231 | AQ195: 0.9754264164 | AR195: 0.05167926624 | AS195: 0.2027563564 | AT195: 0.942466683 | AU195: 0.04994798247 | AV195: 0.2367716452 | AW195: 0.942466683 | AX195: 0.04994798247 | AY195: 0.2367716452 | AZ195: 1.030407716 | BA195: 0.6207070364 | BB195: 0.08464361514 | BC195: 1.016807238 | BD195: 0.6184591217 | BE195: 0.07450939836 | BF195: 1.016807238 | BG195: 0.6184591217 | BH195: 0.07450939836 | BI195: 1.059377751 | BJ195: 0.6370538751 | BK195: 0.08890987854 | BL195: 1.03267298 | BM195: 0.6280505971 | BN195: 0.06826856991 | BO195: 1.03267298 | BP195: 0.6280505971 | BQ195: 0.06826856991 | BR195: 1.020063982 | BS195: 0.6135812481 | BT195: 0.08650267417 | BU195: 1.049199828 | BV195: 0.6378303528 | BW195: 0.08870174599 | BX195: 1.049199828 | BY195: 0.6378303528 | BZ195: 0.08870174599 | CA195: 1.195698275 | CB195: 0.01474189793 | CC195: 0 | CD195: 1.195581376 | CE195: 0.01444833294 | CF195: 0 | CG195: 1.178771005 | CH195: 0.01422196027 | CI195: 0 | CJ195: 1.261400489 | CK195: 0.01536057131 | CL195: 0 | CM195: 1.267075863 | CN195: 0.01511202476 | CO195: 0 | CP195: 1.238277487 | CQ195: 0.01477244543 | CR195: 0 | CS195: 1.293528526 | CT195: 0.01566309934 | CU195: 0 | CV195: 1.326506819 | CW195: 0.01566372939 | CX195: 0 | CY195: 1.282272956 | CZ195: 0.01517944065 | DA195: 0 | DB195: 1.1229529 | DC195: 0.2616211826 | DD195: 0 | DE195: 0.9889367693 | DF195: 0.2260564805 | DG195: 0 | DH195: 0.9750319075 | DI195: 0.2225146871 | DJ195: 0 | DK195: 1.292408756 | DL195: 0.297054403 | DM195: 0 | DN195: 1.140008694 | DO195: 0.2569853545 | DP195: 0 | DQ195: 1.114098328 | DR195: 0.2512106872 | DS195: 0 | DT195: 1.326115947 | DU195: 0.3030828507 | DV195: 0 | DW195: 1.407484045 | DX195: 0.3136008426 | DY195: 0 | DZ195: 1.360549905 | EA195: 0.3039049808 | EB195: 0
Y196: 1.064780433 | Z196: 0.05634825812 | AA196: 0.2440783929 | AB196: 1.208956339 | AC196: 0.06391470358 | AD196: 0.2072416642 | AE196: 1.208956339 | AF196: 0.06391470358 | AG196: 0.2072416642 | AH196: 0.9760073838 | AI196: 0.05170962338 | AJ196: 0.1920496824 | AK196: 1.111461579 | AL196: 0.05880500387 | AM196: 0.1568993231 | AN196: 1.111461579 | AO196: 0.05880500387 | AP196: 0.1568993231 | AQ196: 0.9754264164 | AR196: 0.05167926624 | AS196: 0.2027563564 | AT196: 0.942466683 | AU196: 0.04994798247 | AV196: 0.2367716452 | AW196: 0.942466683 | AX196: 0.04994798247 | AY196: 0.2367716452 | AZ196: 1.030407716 | BA196: 0.6207070364 | BB196: 0.08464361514 | BC196: 1.016807238 | BD196: 0.6184591217 | BE196: 0.07450939836 | BF196: 1.016807238 | BG196: 0.6184591217 | BH196: 0.07450939836 | BI196: 1.059377751 | BJ196: 0.6370538751 | BK196: 0.08890987854 | BL196: 1.03267298 | BM196: 0.6280505971 | BN196: 0.06826856991 | BO196: 1.03267298 | BP196: 0.6280505971 | BQ196: 0.06826856991 | BR196: 1.020063982 | BS196: 0.6135812481 | BT196: 0.08650267417 | BU196: 1.049199828 | BV196: 0.6378303528 | BW196: 0.08870174599 | BX196: 1.049199828 | BY196: 0.6378303528 | BZ196: 0.08870174599 | CA196: 1.195698275 | CB196: 0.01474189793 | CC196: 0 | CD196: 1.195581376 | CE196: 0.01444833294 | CF196: 0 | CG196: 1.178771005 | CH196: 0.01422196027 | CI196: 0 | CJ196: 1.261400489 | CK196: 0.01536057131 | CL196: 0 | CM196: 1.267075863 | CN196: 0.01511202476 | CO196: 0 | CP196: 1.238277487 | CQ196: 0.01477244543 | CR196: 0 | CS196: 1.293528526 | CT196: 0.01566309934 | CU196: 0 | CV196: 1.326506819 | CW196: 0.01566372939 | CX196: 0 | CY196: 1.282272956 | CZ196: 0.01517944065 | DA196: 0 | DB196: 1.1229529 | DC196: 0.2616211826 | DD196: 0 | DE196: 0.9889367693 | DF196: 0.2260564805 | DG196: 0 | DH196: 0.9750319075 | DI196: 0.2225146871 | DJ196: 0 | DK196: 1.292408756 | DL196: 0.297054403 | DM196: 0 | DN196: 1.140008694 | DO196: 0.2569853545 | DP196: 0 | DQ196: 1.114098328 | DR196: 0.2512106872 | DS196: 0 | DT196: 1.326115947 | DU196: 0.3030828507 | DV196: 0 | DW196: 1.407484045 | DX196: 0.3136008426 | DY196: 0 | DZ196: 1.360549905 | EA196: 0.3039049808 | EB196: 0
Y197: 0.9689794658 | Z197: 0.09266051963 | AA197: 0.1612266891 | AB197: 1.099370572 | AC197: 0.1059702337 | AD197: 0.1435154075 | AE197: 1.099370572 | AF197: 0.1059702337 | AG197: 0.1435154075 | AH197: 0.8806054534 | AI197: 0.0836494556 | AJ197: 0.2842031854 | AK197: 0.9962158655 | AL197: 0.09543713418 | AM197: 0.2181482619 | AN197: 0.9962158655 | AO197: 0.09543713418 | AP197: 0.2181482619 | AQ197: 0.9799435108 | AR197: 0.09377846945 | AS197: 0.2693101766 | AT197: 0.9676620971 | AU197: 0.09252151653 | AV197: 0.3495104839 | AW197: 0.9676620971 | AX197: 0.09252151653 | AY197: 0.3495104839 | AZ197: 1.024720955 | BA197: 0.4479087075 | BB197: 0.07162247827 | BC197: 0.9963778772 | BD197: 0.4389168341 | BE197: 0.07249702812 | BF197: 0.9963778772 | BG197: 0.4389168341 | BH197: 0.07249702812 | BI197: 0.997338668 | BJ197: 0.4362233661 | BK197: 0.07810993717 | BL197: 1.010312366 | BM197: 0.4448215455 | BN197: 0.08080607267 | BO197: 1.010312366 | BP197: 0.4448215455 | BQ197: 0.08080607267 | BR197: 1.006403997 | BS197: 0.439434093 | BT197: 0.08676134005 | BU197: 1.039199724 | BV197: 0.4572451313 | BW197: 0.09945884081 | BX197: 1.039199724 | BY197: 0.4572451313 | BZ197: 0.09945884081 | CA197: 1.336750243 | CB197: 0.02044577341 | CC197: 0 | CD197: 1.351888326 | CE197: 0.02042941846 | CF197: 0 | CG197: 1.302974298 | CH197: 0.02053117325 | CI197: 0 | CJ197: 1.429483584 | CK197: 0.02211827825 | CL197: 0 | CM197: 1.447063558 | CN197: 0.02213425383 | CO197: 0 | CP197: 1.341571902 | CQ197: 0.02123894654 | CR197: 0 | CS197: 1.483029972 | CT197: 0.02308402143 | CU197: 0 | CV197: 1.485858436 | CW197: 0.02282917078 | CX197: 0 | CY197: 1.32375002 | CZ197: 0.02091214252 | DA197: 0 | DB197: 1.379544449 | DC197: 0.2206524796 | DD197: 0 | DE197: 1.229693027 | DF197: 0.1927844995 | DG197: 0 | DH197: 1.18520027 | DI197: 0.19374472 | DJ197: 0 | DK197: 1.623296311 | DL197: 0.2644162844 | DM197: 0 | DN197: 1.452560241 | DO197: 0.2319249632 | DP197: 0 | DQ197: 1.346667875 | DR197: 0.2225438423 | DS197: 0 | DT197: 1.513383124 | DU197: 0.2461548111 | DV197: 0 | DW197: 1.53551373 | DX197: 0.2467444507 | DY197: 0 | DZ197: 1.367987879 | EA197: 0.2260246406 | EB197: 0
Y203: 0.9037677785 | Z203: 0.08684007169 | AA203: 0.1337418019 | AB203: 0.8905965865 | AC203: 0.0854156185 | AD203: 0.1468617373 | AE203: 0.8905965865 | AF203: 0.0854156185 | AG203: 0.1468617373 | AH203: 0.8323915882 | AI203: 0.07971299629 | AJ203: 0.2173365666 | AK203: 0.7815837161 | AL203: 0.07442154523 | AM203: 0.2054735552 | AN203: 0.7815837161 | AO203: 0.07442154523 | AP203: 0.2054735552 | AQ203: 0.8142501658 | AR203: 0.07790153389 | AS203: 0.2146320936 | AT203: 0.7502887221 | AU203: 0.07126540913 | AV203: 0.2577765635 | AW203: 0.7502887221 | AX203: 0.07126540913 | AY203: 0.2577765635 | AZ203: 0.9784242411 | BA203: 1.019976496 | BB203: 0.1218536845 | BC203: 0.9945275893 | BD203: 1.031728488 | BE203: 0.130634559 | BF203: 0.9945275893 | BG203: 1.031728488 | BH203: 0.130634559 | BI203: 0.9655195577 | BJ203: 1.006690291 | BK203: 0.1340963326 | BL203: 0.9769097859 | BM203: 1.014144156 | BN203: 0.1186193283 | BO203: 0.9769097859 | BP203: 1.014144156 | BQ203: 0.1186193283 | BR203: 0.9733096781 | BS203: 1.016982787 | BT203: 0.117440476 | BU203: 0.9381084381 | BV203: 0.9715926554 | BW203: 0.1390639467 | BX203: 0.9381084381 | BY203: 0.9715926554 | BZ203: 0.1390639467 | CA203: 1.127350777 | CB203: 0.2070096688 | CC203: 0 | CD203: 1.130066258 | CE203: 0.2078425646 | CF203: 0 | CG203: 1.132175732 | CH203: 0.2075999559 | CI203: 0 | CJ203: 1.296022661 | CK203: 0.2449398108 | CL203: 0 | CM203: 1.301085818 | CN203: 0.246318485 | CO203: 0 | CP203: 1.329239179 | CQ203: 0.251868935 | CR203: 0 | CS203: 1.459275915 | CT203: 0.2816514367 | CU203: 0 | CV203: 1.464540652 | CW203: 0.2830924961 | CX203: 0 | CY203: 1.516194726 | CZ203: 0.2938672423 | DA203: 0 | DB203: 1.247389876 | DC203: 2.383803522 | DD203: 0 | DE203: 1.268886806 | DF203: 2.433308665 | DG203: 0 | DH203: 1.271255414 | DI203: 2.430468333 | DJ203: 0 | DK203: 1.556986735 | DL203: 3.072771344 | DM203: 0 | DN203: 1.664678768 | DO203: 3.30977386 | DP203: 0 | DQ203: 1.700699684 | DR203: 3.384355084 | DS203: 0 | DT203: 1.792171469 | DU203: 3.615479987 | DV203: 0 | DW203: 1.951969433 | DX203: 3.972368917 | DY203: 0 | DZ203: 2.02081503 | EA203: 4.123560727 | EB203: 0
Y204: 0.9037677785 | Z204: 0.08684007169 | AA204: 0.1337418019 | AB204: 0.8905965865 | AC204: 0.0854156185 | AD204: 0.1468617373 | AE204: 0.8905965865 | AF204: 0.0854156185 | AG204: 0.1468617373 | AH204: 0.8323915882 | AI204: 0.07971299629 | AJ204: 0.2173365666 | AK204: 0.7815837161 | AL204: 0.07442154523 | AM204: 0.2054735552 | AN204: 0.7815837161 | AO204: 0.07442154523 | AP204: 0.2054735552 | AQ204: 0.8142501658 | AR204: 0.07790153389 | AS204: 0.2146320936 | AT204: 0.7502887221 | AU204: 0.07126540913 | AV204: 0.2577765635 | AW204: 0.7502887221 | AX204: 0.07126540913 | AY204: 0.2577765635 | AZ204: 0.9784242411 | BA204: 1.019976496 | BB204: 0.1218536845 | BC204: 0.9945275893 | BD204: 1.031728488 | BE204: 0.130634559 | BF204: 0.9945275893 | BG204: 1.031728488 | BH204: 0.130634559 | BI204: 0.9655195577 | BJ204: 1.006690291 | BK204: 0.1340963326 | BL204: 0.9769097859 | BM204: 1.014144156 | BN204: 0.1186193283 | BO204: 0.9769097859 | BP204: 1.014144156 | BQ204: 0.1186193283 | BR204: 0.9733096781 | BS204: 1.016982787 | BT204: 0.117440476 | BU204: 0.9381084381 | BV204: 0.9715926554 | BW204: 0.1390639467 | BX204: 0.9381084381 | BY204: 0.9715926554 | BZ204: 0.1390639467 | CA204: 1.127350777 | CB204: 0.2070096688 | CC204: 0 | CD204: 1.130066258 | CE204: 0.2078425646 | CF204: 0 | CG204: 1.132175732 | CH204: 0.2075999559 | CI204: 0 | CJ204: 1.296022661 | CK204: 0.2449398108 | CL204: 0 | CM204: 1.301085818 | CN204: 0.246318485 | CO204: 0 | CP204: 1.329239179 | CQ204: 0.251868935 | CR204: 0 | CS204: 1.459275915 | CT204: 0.2816514367 | CU204: 0 | CV204: 1.464540652 | CW204: 0.2830924961 | CX204: 0 | CY204: 1.516194726 | CZ204: 0.2938672423 | DA204: 0 | DB204: 1.247389876 | DC204: 2.383803522 | DD204: 0 | DE204: 1.268886806 | DF204: 2.433308665 | DG204: 0 | DH204: 1.271255414 | DI204: 2.430468333 | DJ204: 0 | DK204: 1.556986735 | DL204: 3.072771344 | DM204: 0 | DN204: 1.664678768 | DO204: 3.30977386 | DP204: 0 | DQ204: 1.700699684 | DR204: 3.384355084 | DS204: 0 | DT204: 1.792171469 | DU204: 3.615479987 | DV204: 0 | DW204: 1.951969433 | DX204: 3.972368917 | DY204: 0 | DZ204: 2.02081503 | EA204: 4.123560727 | EB204: 0
Y205: 0.9005732462 | Z205: 0.05112528331 | AA205: 0.1789532941 | AB205: 0.8969663146 | AC205: 0.05082362681 | AD205: 0.2242131571 | AE205: 0.8969663146 | AF205: 0.05082362681 | AG205: 0.2242131571 | AH205: 0.7800592857 | AI205: 0.04394768645 | AJ205: 0.302642588 | AK205: 0.7667087282 | AL205: 0.04295593927 | AM205: 0.2618655263 | AN205: 0.7667087282 | AO205: 0.04295593927 | AP205: 0.2618655263 | AQ205: 0.7519296197 | AR205: 0.04227233364 | AS205: 0.2722656442 | AT205: 0.7464862973 | AU205: 0.04173448436 | AV205: 0.3253944315 | AW205: 0.7464862973 | AX205: 0.04173448436 | AY205: 0.3253944315 | AZ205: 0.9459168836 | BA205: 0.8620513509 | BB205: 0.1685985416 | BC205: 0.9827610438 | BD205: 0.8949358875 | BE205: 0.1665647111 | BF205: 0.9827610438 | BG205: 0.8949358875 | BH205: 0.1665647111 | BI205: 0.8925258569 | BJ205: 0.813404884 | BK205: 0.2207417864 | BL205: 0.9618852498 | BM205: 0.8792778207 | BN205: 0.1380553621 | BO205: 0.9618852498 | BP205: 0.8792778207 | BQ205: 0.1380553621 | BR205: 0.8925464298 | BS205: 0.8174920452 | BT205: 0.2127788662 | BU205: 0.9094802789 | BV205: 0.8291484051 | BW205: 0.1693208979 | BX205: 0.9094802789 | BY205: 0.8291484051 | BZ205: 0.1693208979 | CA205: 1.112828285 | CB205: 0.1975185194 | CC205: 0 | CD205: 1.11603023 | CE205: 0.1980647127 | CF205: 0 | CG205: 1.135609456 | CH205: 0.2008507506 | CI205: 0 | CJ205: 1.334709694 | CK205: 0.2251388446 | CL205: 0 | CM205: 1.341340474 | CN205: 0.2261275845 | CO205: 0 | CP205: 1.393168916 | CQ205: 0.2329722286 | CR205: 0 | CS205: 1.578484309 | CT205: 0.2554844882 | CU205: 0 | CV205: 1.586454675 | CW205: 0.2566570811 | CX205: 0 | CY205: 1.622345159 | CZ205: 0.2615538993 | DA205: 0 | DB205: 1.235688812 | DC205: 3.863421513 | DD205: 0 | DE205: 1.244227583 | DF205: 3.897099148 | DG205: 0 | DH205: 1.266055856 | DI205: 3.951916918 | DJ205: 0 | DK205: 1.711036223 | DL205: 5.122882745 | DM205: 0 | DN205: 1.74947855 | DO205: 5.264175067 | DP205: 0 | DQ205: 1.817077156 | DR205: 5.42351611 | DS205: 0 | DT205: 2.099244754 | DU205: 6.043775354 | DV205: 0 | DW205: 2.125229466 | DX205: 6.149760445 | DY205: 0 | DZ205: 2.173308693 | EA205: 6.267093108 | EB205: 0
Y206: 0.8864386917 | Z206: 0.1295101821 | AA206: 0.1233886745 | AB206: 0.8592485802 | AC206: 0.1252578586 | AD206: 0.121730389 | AE206: 0.8592485802 | AF206: 0.1252578586 | AG206: 0.121730389 | AH206: 0.8784186751 | AI206: 0.1283091089 | AJ206: 0.1607840063 | AK206: 0.7846761806 | AL206: 0.1139943861 | AM206: 0.1672600249 | AN206: 0.7846761806 | AO206: 0.1139943861 | AP206: 0.1672600249 | AQ206: 0.8645804062 | AR206: 0.1262366973 | AS206: 0.1830104268 | AT206: 0.7493691447 | AU206: 0.1086615843 | AV206: 0.2095571991 | AW206: 0.7493691447 | AX206: 0.1086615843 | AY206: 0.2095571991 | AZ206: 1.00352867 | BA206: 1.211149325 | BB206: 0.1033674454 | BC206: 1.001508865 | BD206: 1.189972839 | BE206: 0.1095641259 | BF206: 1.001508865 | BG206: 1.189972839 | BH206: 0.1095641259 | BI206: 1.013045617 | BJ206: 1.225571524 | BK206: 0.08622893188 | BL206: 0.9981210853 | BM206: 1.185347289 | BN206: 0.1124378362 | BO206: 0.9981210853 | BP206: 1.185347289 | BQ206: 0.1124378362 | BR206: 1.016312607 | BS206: 1.231020574 | BT206: 0.07628419424 | BU206: 0.9851989671 | BV206: 1.168695782 | BW206: 0.1221372458 | BX206: 0.9851989671 | BY206: 1.168695782 | BZ206: 0.1221372458 | CA206: 1.091281532 | CB206: 0.283796065 | CC206: 0 | CD206: 1.094255736 | CE206: 0.2845741842 | CF206: 0 | CG206: 1.090449879 | CH206: 0.283295792 | CI206: 0 | CJ206: 1.212412068 | CK206: 0.3105999883 | CL206: 0 | CM206: 1.21775386 | CN206: 0.3119090859 | CO206: 0 | CP206: 1.200688526 | CQ206: 0.307672867 | CR206: 0 | CS206: 1.33786114 | CT206: 0.3383595229 | CU206: 0 | CV206: 1.343329487 | CW206: 0.3397038193 | CX206: 0 | CY206: 1.29527193 | CZ206: 0.3285880978 | DA206: 0 | DB206: 1.231085175 | DC206: 2.191303111 | DD206: 0 | DE206: 1.273503106 | DF206: 2.271906827 | DG206: 0 | DH206: 1.269073821 | DI206: 2.261700743 | DJ206: 0 | DK206: 1.380221189 | DL206: 2.420716588 | DM206: 0 | DN206: 1.551918983 | DO206: 2.736179355 | DP206: 0 | DQ206: 1.530170732 | DR206: 2.69901771 | DS206: 0 | DT206: 1.547410895 | DU206: 2.680357852 | DV206: 0 | DW206: 1.792613823 | DX206: 3.126254982 | DY206: 0 | DZ206: 1.728483138 | EA206: 3.023958282 | EB206: 0
Y207: 0.9037677785 | Z207: 0.08684007169 | AA207: 0.1337418019 | AB207: 0.8905965865 | AC207: 0.0854156185 | AD207: 0.1468617373 | AE207: 0.8905965865 | AF207: 0.0854156185 | AG207: 0.1468617373 | AH207: 0.8323915882 | AI207: 0.07971299629 | AJ207: 0.2173365666 | AK207: 0.7815837161 | AL207: 0.07442154523 | AM207: 0.2054735552 | AN207: 0.7815837161 | AO207: 0.07442154523 | AP207: 0.2054735552 | AQ207: 0.8142501658 | AR207: 0.07790153389 | AS207: 0.2146320936 | AT207: 0.7502887221 | AU207: 0.07126540913 | AV207: 0.2577765635 | AW207: 0.7502887221 | AX207: 0.07126540913 | AY207: 0.2577765635 | AZ207: 0.9784242411 | BA207: 1.019976496 | BB207: 0.1218536845 | BC207: 0.9945275893 | BD207: 1.031728488 | BE207: 0.130634559 | BF207: 0.9945275893 | BG207: 1.031728488 | BH207: 0.130634559 | BI207: 0.9655195577 | BJ207: 1.006690291 | BK207: 0.1340963326 | BL207: 0.9769097859 | BM207: 1.014144156 | BN207: 0.1186193283 | BO207: 0.9769097859 | BP207: 1.014144156 | BQ207: 0.1186193283 | BR207: 0.9733096781 | BS207: 1.016982787 | BT207: 0.117440476 | BU207: 0.9381084381 | BV207: 0.9715926554 | BW207: 0.1390639467 | BX207: 0.9381084381 | BY207: 0.9715926554 | BZ207: 0.1390639467 | CA207: 1.127350777 | CB207: 0.2070096688 | CC207: 0 | CD207: 1.130066258 | CE207: 0.2078425646 | CF207: 0 | CG207: 1.132175732 | CH207: 0.2075999559 | CI207: 0 | CJ207: 1.296022661 | CK207: 0.2449398108 | CL207: 0 | CM207: 1.301085818 | CN207: 0.246318485 | CO207: 0 | CP207: 1.329239179 | CQ207: 0.251868935 | CR207: 0 | CS207: 1.459275915 | CT207: 0.2816514367 | CU207: 0 | CV207: 1.464540652 | CW207: 0.2830924961 | CX207: 0 | CY207: 1.516194726 | CZ207: 0.2938672423 | DA207: 0 | DB207: 1.247389876 | DC207: 2.383803522 | DD207: 0 | DE207: 1.268886806 | DF207: 2.433308665 | DG207: 0 | DH207: 1.271255414 | DI207: 2.430468333 | DJ207: 0 | DK207: 1.556986735 | DL207: 3.072771344 | DM207: 0 | DN207: 1.664678768 | DO207: 3.30977386 | DP207: 0 | DQ207: 1.700699684 | DR207: 3.384355084 | DS207: 0 | DT207: 1.792171469 | DU207: 3.615479987 | DV207: 0 | DW207: 1.951969433 | DX207: 3.972368917 | DY207: 0 | DZ207: 2.02081503 | EA207: 4.123560727 | EB207: 0
Y208: 0.9005732462 | Z208: 0.05112528331 | AA208: 0.1789532941 | AB208: 0.8969663146 | AC208: 0.05082362681 | AD208: 0.2242131571 | AE208: 0.8969663146 | AF208: 0.05082362681 | AG208: 0.2242131571 | AH208: 0.7800592857 | AI208: 0.04394768645 | AJ208: 0.302642588 | AK208: 0.7667087282 | AL208: 0.04295593927 | AM208: 0.2618655263 | AN208: 0.7667087282 | AO208: 0.04295593927 | AP208: 0.2618655263 | AQ208: 0.7519296197 | AR208: 0.04227233364 | AS208: 0.2722656442 | AT208: 0.7464862973 | AU208: 0.04173448436 | AV208: 0.3253944315 | AW208: 0.7464862973 | AX208: 0.04173448436 | AY208: 0.3253944315 | AZ208: 0.9459168836 | BA208: 0.8620513509 | BB208: 0.1685985416 | BC208: 0.9827610438 | BD208: 0.8949358875 | BE208: 0.1665647111 | BF208: 0.9827610438 | BG208: 0.8949358875 | BH208: 0.1665647111 | BI208: 0.8925258569 | BJ208: 0.813404884 | BK208: 0.2207417864 | BL208: 0.9618852498 | BM208: 0.8792778207 | BN208: 0.1380553621 | BO208: 0.9618852498 | BP208: 0.8792778207 | BQ208: 0.1380553621 | BR208: 0.8925464298 | BS208: 0.8174920452 | BT208: 0.2127788662 | BU208: 0.9094802789 | BV208: 0.8291484051 | BW208: 0.1693208979 | BX208: 0.9094802789 | BY208: 0.8291484051 | BZ208: 0.1693208979 | CA208: 1.112828285 | CB208: 0.1975185194 | CC208: 0 | CD208: 1.11603023 | CE208: 0.1980647127 | CF208: 0 | CG208: 1.135609456 | CH208: 0.2008507506 | CI208: 0 | CJ208: 1.334709694 | CK208: 0.2251388446 | CL208: 0 | CM208: 1.341340474 | CN208: 0.2261275845 | CO208: 0 | CP208: 1.393168916 | CQ208: 0.2329722286 | CR208: 0 | CS208: 1.578484309 | CT208: 0.2554844882 | CU208: 0 | CV208: 1.586454675 | CW208: 0.2566570811 | CX208: 0 | CY208: 1.622345159 | CZ208: 0.2615538993 | DA208: 0 | DB208: 1.235688812 | DC208: 3.863421513 | DD208: 0 | DE208: 1.244227583 | DF208: 3.897099148 | DG208: 0 | DH208: 1.266055856 | DI208: 3.951916918 | DJ208: 0 | DK208: 1.711036223 | DL208: 5.122882745 | DM208: 0 | DN208: 1.74947855 | DO208: 5.264175067 | DP208: 0 | DQ208: 1.817077156 | DR208: 5.42351611 | DS208: 0 | DT208: 2.099244754 | DU208: 6.043775354 | DV208: 0 | DW208: 2.125229466 | DX208: 6.149760445 | DY208: 0 | DZ208: 2.173308693 | EA208: 6.267093108 | EB208: 0
Y209: 0.8864386917 | Z209: 0.1295101821 | AA209: 0.1233886745 | AB209: 0.8592485802 | AC209: 0.1252578586 | AD209: 0.121730389 | AE209: 0.8592485802 | AF209: 0.1252578586 | AG209: 0.121730389 | AH209: 0.8784186751 | AI209: 0.1283091089 | AJ209: 0.1607840063 | AK209: 0.7846761806 | AL209: 0.1139943861 | AM209: 0.1672600249 | AN209: 0.7846761806 | AO209: 0.1139943861 | AP209: 0.1672600249 | AQ209: 0.8645804062 | AR209: 0.1262366973 | AS209: 0.1830104268 | AT209: 0.7493691447 | AU209: 0.1086615843 | AV209: 0.2095571991 | AW209: 0.7493691447 | AX209: 0.1086615843 | AY209: 0.2095571991 | AZ209: 1.00352867 | BA209: 1.211149325 | BB209: 0.1033674454 | BC209: 1.001508865 | BD209: 1.189972839 | BE209: 0.1095641259 | BF209: 1.001508865 | BG209: 1.189972839 | BH209: 0.1095641259 | BI209: 1.013045617 | BJ209: 1.225571524 | BK209: 0.08622893188 | BL209: 0.9981210853 | BM209: 1.185347289 | BN209: 0.1124378362 | BO209: 0.9981210853 | BP209: 1.185347289 | BQ209: 0.1124378362 | BR209: 1.016312607 | BS209: 1.231020574 | BT209: 0.07628419424 | BU209: 0.9851989671 | BV209: 1.168695782 | BW209: 0.1221372458 | BX209: 0.9851989671 | BY209: 1.168695782 | BZ209: 0.1221372458 | CA209: 1.091281532 | CB209: 0.283796065 | CC209: 0 | CD209: 1.094255736 | CE209: 0.2845741842 | CF209: 0 | CG209: 1.090449879 | CH209: 0.283295792 | CI209: 0 | CJ209: 1.212412068 | CK209: 0.3105999883 | CL209: 0 | CM209: 1.21775386 | CN209: 0.3119090859 | CO209: 0 | CP209: 1.200688526 | CQ209: 0.307672867 | CR209: 0 | CS209: 1.33786114 | CT209: 0.3383595229 | CU209: 0 | CV209: 1.343329487 | CW209: 0.3397038193 | CX209: 0 | CY209: 1.29527193 | CZ209: 0.3285880978 | DA209: 0 | DB209: 1.231085175 | DC209: 2.191303111 | DD209: 0 | DE209: 1.273503106 | DF209: 2.271906827 | DG209: 0 | DH209: 1.269073821 | DI209: 2.261700743 | DJ209: 0 | DK209: 1.380221189 | DL209: 2.420716588 | DM209: 0 | DN209: 1.551918983 | DO209: 2.736179355 | DP209: 0 | DQ209: 1.530170732 | DR209: 2.69901771 | DS209: 0 | DT209: 1.547410895 | DU209: 2.680357852 | DV209: 0 | DW209: 1.792613823 | DX209: 3.126254982 | DY209: 0 | DZ209: 1.728483138 | EA209: 3.023958282 | EB209: 0
Y210: 0.8704311574 | Z210: 0.08872253643 | AA210: 0.1257887197 | AB210: 0.8487491605 | AC210: 0.08629824212 | AD210: 0.1279521994 | AE210: 0.8487491605 | AF210: 0.08629824212 | AG210: 0.1279521994 | AH210: 0.8824146583 | AI210: 0.08997419029 | AJ210: 0.1431041763 | AK210: 0.7937212075 | AL210: 0.08049259304 | AM210: 0.160168057 | AN210: 0.7937212075 | AO210: 0.08049259304 | AP210: 0.160168057 | AQ210: 0.8626015313 | AR210: 0.08790474688 | AS210: 0.174071664 | AT210: 0.7621117805 | AU210: 0.07715768359 | AV210: 0.1961328596 | AW210: 0.7621117805 | AX210: 0.07715768359 | AY210: 0.1961328596 | AZ210: 1.012276749 | BA210: 1.003725504 | BB210: 0.1321845014 | BC210: 1.009102285 | BD210: 0.9968895556 | BE210: 0.1335621899 | BF210: 1.009102285 | BG210: 0.9968895556 | BH210: 0.1335621899 | BI210: 1.032011536 | BJ210: 1.02645002 | BK210: 0.1193894229 | BL210: 1.002301186 | BM210: 0.9903786167 | BN210: 0.1322825987 | BO210: 1.002301186 | BP210: 0.9903786167 | BQ210: 0.1322825987 | BR210: 1.036189969 | BS210: 1.032316858 | BT210: 0.1040349828 | BU210: 0.9861613452 | BV210: 0.973394368 | BW210: 0.1443090173 | BX210: 0.9861613452 | BY210: 0.973394368 | BZ210: 0.1443090173 | CA210: 1.213663791 | CB210: 0.2697684475 | CC210: 0 | CD210: 1.219442142 | CE210: 0.2704449154 | CF210: 0 | CG210: 1.213519382 | CH210: 0.2685857104 | CI210: 0 | CJ210: 1.252089895 | CK210: 0.2763106424 | CL210: 0 | CM210: 1.26170859 | CN210: 0.2776350916 | CO210: 0 | CP210: 1.267139294 | CQ210: 0.277686656 | CR210: 0 | CS210: 1.285009308 | CT210: 0.2819153018 | CU210: 0 | CV210: 1.295263148 | CW210: 0.2833432405 | CX210: 0 | CY210: 1.321524022 | CZ210: 0.2869174143 | DA210: 0 | DB210: 1.394324848 | DC210: 3.040585384 | DD210: 0 | DE210: 1.436752104 | DF210: 3.133840375 | DG210: 0 | DH210: 1.429773882 | DI210: 3.112296424 | DJ210: 0 | DK210: 1.418935965 | DL210: 3.070998933 | DM210: 0 | DN210: 1.589611791 | DO210: 3.449200493 | DP210: 0 | DQ210: 1.596453871 | DR210: 3.449841104 | DS210: 0 | DT210: 1.489690502 | DU210: 3.20705436 | DV210: 0 | DW210: 1.699571088 | DX210: 3.672262143 | DY210: 0 | DZ210: 1.734029122 | EA210: 3.718585123 | EB210: 0
Y211: 0.9006862749 | Z211: 0.003273552945 | AA211: 0.1549122988 | AB211: 0.8886880253 | AC211: 0.003227192584 | AD211: 0.1439361286 | AE211: 0.8886880253 | AF211: 0.003227192584 | AG211: 0.1439361286 | AH211: 0.8519725556 | AI211: 0.003093081623 | AJ211: 0.1842098126 | AK211: 0.8587677396 | AL211: 0.0031158325 | AM211: 0.1851959336 | AN211: 0.8587677396 | AO211: 0.0031158325 | AP211: 0.1851959336 | AQ211: 0.8349665812 | AR211: 0.003030079029 | AS211: 0.09426635495 | AT211: 0.8423220359 | AU211: 0.00305462336 | AV211: 0.2156703711 | AW211: 0.8423220359 | AX211: 0.00305462336 | AY211: 0.2156703711 | AZ211: 0.9822246388 | BA211: 0.6261432029 | BB211: 0.1461135858 | BC211: 0.9833337094 | BD211: 0.6320534781 | BE211: 0.137850032 | BF211: 0.9833337094 | BG211: 0.6320534781 | BH211: 0.137850032 | BI211: 0.9656784712 | BJ211: 0.6141476286 | BK211: 0.1670045187 | BL211: 0.9880327104 | BM211: 0.6371175497 | BN211: 0.1086755731 | BO211: 0.9880327104 | BP211: 0.6371175497 | BQ211: 0.1086755731 | BR211: 0.9599520234 | BS211: 0.6119449352 | BT211: 0.1426510839 | BU211: 0.9390313796 | BV211: 0.6053106018 | BW211: 0.1297873602 | BX211: 0.9390313796 | BY211: 0.6053106018 | BZ211: 0.1297873602 | CA211: 1.195606621 | CB211: 0.01647687021 | CC211: 0 | CD211: 1.195833039 | CE211: 0.01650026912 | CF211: 0 | CG211: 1.18000576 | CH211: 0.0158373585 | CI211: 0 | CJ211: 1.317817594 | CK211: 0.01784667438 | CL211: 0 | CM211: 1.320355689 | CN211: 0.01789716678 | CO211: 0 | CP211: 1.281249 | CQ211: 0.01695056629 | CR211: 0 | CS211: 1.366868363 | CT211: 0.01839646093 | CU211: 0 | CV211: 1.373160194 | CW211: 0.01848952879 | CX211: 0 | CY211: 1.325090403 | CZ211: 0.01743261914 | DA211: 0 | DB211: 1.327439591 | DC211: 5.033329377 | DD211: 0 | DE211: 1.34561624 | DF211: 5.112886415 | DG211: 0 | DH211: 1.327806527 | DI211: 4.907472387 | DJ211: 0 | DK211: 1.54678409 | DL211: 5.769868551 | DM211: 0 | DN211: 1.537500337 | DO211: 5.743943803 | DP211: 0 | DQ211: 1.491962193 | DR211: 5.44014041 | DS211: 0 | DT211: 1.637033618 | DU211: 6.071280898 | DV211: 0 | DW211: 1.630208085 | DX211: 6.052965166 | DY211: 0 | DZ211: 1.573139899 | EA211: 5.7069619 | EB211: 0
Y212: 0.9037677785 | Z212: 0.08684007169 | AA212: 0.1337418019 | AB212: 0.8905965865 | AC212: 0.0854156185 | AD212: 0.1468617373 | AE212: 0.8905965865 | AF212: 0.0854156185 | AG212: 0.1468617373 | AH212: 0.8323915882 | AI212: 0.07971299629 | AJ212: 0.2173365666 | AK212: 0.7815837161 | AL212: 0.07442154523 | AM212: 0.2054735552 | AN212: 0.7815837161 | AO212: 0.07442154523 | AP212: 0.2054735552 | AQ212: 0.8142501658 | AR212: 0.07790153389 | AS212: 0.2146320936 | AT212: 0.7502887221 | AU212: 0.07126540913 | AV212: 0.2577765635 | AW212: 0.7502887221 | AX212: 0.07126540913 | AY212: 0.2577765635 | AZ212: 0.9784242411 | BA212: 1.019976496 | BB212: 0.1218536845 | BC212: 0.9945275893 | BD212: 1.031728488 | BE212: 0.130634559 | BF212: 0.9945275893 | BG212: 1.031728488 | BH212: 0.130634559 | BI212: 0.9655195577 | BJ212: 1.006690291 | BK212: 0.1340963326 | BL212: 0.9769097859 | BM212: 1.014144156 | BN212: 0.1186193283 | BO212: 0.9769097859 | BP212: 1.014144156 | BQ212: 0.1186193283 | BR212: 0.9733096781 | BS212: 1.016982787 | BT212: 0.117440476 | BU212: 0.9381084381 | BV212: 0.9715926554 | BW212: 0.1390639467 | BX212: 0.9381084381 | BY212: 0.9715926554 | BZ212: 0.1390639467 | CA212: 1.127350777 | CB212: 0.2070096688 | CC212: 0 | CD212: 1.130066258 | CE212: 0.2078425646 | CF212: 0 | CG212: 1.132175732 | CH212: 0.2075999559 | CI212: 0 | CJ212: 1.296022661 | CK212: 0.2449398108 | CL212: 0 | CM212: 1.301085818 | CN212: 0.246318485 | CO212: 0 | CP212: 1.329239179 | CQ212: 0.251868935 | CR212: 0 | CS212: 1.459275915 | CT212: 0.2816514367 | CU212: 0 | CV212: 1.464540652 | CW212: 0.2830924961 | CX212: 0 | CY212: 1.516194726 | CZ212: 0.2938672423 | DA212: 0 | DB212: 1.247389876 | DC212: 2.383803522 | DD212: 0 | DE212: 1.268886806 | DF212: 2.433308665 | DG212: 0 | DH212: 1.271255414 | DI212: 2.430468333 | DJ212: 0 | DK212: 1.556986735 | DL212: 3.072771344 | DM212: 0 | DN212: 1.664678768 | DO212: 3.30977386 | DP212: 0 | DQ212: 1.700699684 | DR212: 3.384355084 | DS212: 0 | DT212: 1.792171469 | DU212: 3.615479987 | DV212: 0 | DW212: 1.951969433 | DX212: 3.972368917 | DY212: 0 | DZ212: 2.02081503 | EA212: 4.123560727 | EB212: 0
Y213: 0.8864386917 | Z213: 0.1295101821 | AA213: 0.1233886745 | AB213: 0.8592485802 | AC213: 0.1252578586 | AD213: 0.121730389 | AE213: 0.8592485802 | AF213: 0.1252578586 | AG213: 0.121730389 | AH213: 0.8784186751 | AI213: 0.1283091089 | AJ213: 0.1607840063 | AK213: 0.7846761806 | AL213: 0.1139943861 | AM213: 0.1672600249 | AN213: 0.7846761806 | AO213: 0.1139943861 | AP213: 0.1672600249 | AQ213: 0.8645804062 | AR213: 0.1262366973 | AS213: 0.1830104268 | AT213: 0.7493691447 | AU213: 0.1086615843 | AV213: 0.2095571991 | AW213: 0.7493691447 | AX213: 0.1086615843 | AY213: 0.2095571991 | AZ213: 1.00352867 | BA213: 1.211149325 | BB213: 0.1033674454 | BC213: 1.001508865 | BD213: 1.189972839 | BE213: 0.1095641259 | BF213: 1.001508865 | BG213: 1.189972839 | BH213: 0.1095641259 | BI213: 1.013045617 | BJ213: 1.225571524 | BK213: 0.08622893188 | BL213: 0.9981210853 | BM213: 1.185347289 | BN213: 0.1124378362 | BO213: 0.9981210853 | BP213: 1.185347289 | BQ213: 0.1124378362 | BR213: 1.016312607 | BS213: 1.231020574 | BT213: 0.07628419424 | BU213: 0.9851989671 | BV213: 1.168695782 | BW213: 0.1221372458 | BX213: 0.9851989671 | BY213: 1.168695782 | BZ213: 0.1221372458 | CA213: 1.091281532 | CB213: 0.283796065 | CC213: 0 | CD213: 1.094255736 | CE213: 0.2845741842 | CF213: 0 | CG213: 1.090449879 | CH213: 0.283295792 | CI213: 0 | CJ213: 1.212412068 | CK213: 0.3105999883 | CL213: 0 | CM213: 1.21775386 | CN213: 0.3119090859 | CO213: 0 | CP213: 1.200688526 | CQ213: 0.307672867 | CR213: 0 | CS213: 1.33786114 | CT213: 0.3383595229 | CU213: 0 | CV213: 1.343329487 | CW213: 0.3397038193 | CX213: 0 | CY213: 1.29527193 | CZ213: 0.3285880978 | DA213: 0 | DB213: 1.231085175 | DC213: 2.191303111 | DD213: 0 | DE213: 1.273503106 | DF213: 2.271906827 | DG213: 0 | DH213: 1.269073821 | DI213: 2.261700743 | DJ213: 0 | DK213: 1.380221189 | DL213: 2.420716588 | DM213: 0 | DN213: 1.551918983 | DO213: 2.736179355 | DP213: 0 | DQ213: 1.530170732 | DR213: 2.69901771 | DS213: 0 | DT213: 1.547410895 | DU213: 2.680357852 | DV213: 0 | DW213: 1.792613823 | DX213: 3.126254982 | DY213: 0 | DZ213: 1.728483138 | EA213: 3.023958282 | EB213: 0
Y230: 0.9850771314 | Z230: 0.01606825975 | AA230: 0.6066456973 | AB230: 1.006705573 | AC230: 0.01636594991 | AD230: 0.3693264288 | AE230: 1.006705573 | AF230: 0.01636594991 | AG230: 0.3693264288 | AH230: 1.048702845 | AI230: 0.01694169947 | AJ230: 0.6378252514 | AK230: 0.7963278464 | AL230: 0.01345346914 | AM230: 0.3303782955 | AN230: 0.7963278464 | AO230: 0.01345346914 | AP230: 0.3303782955 | AQ230: 1.084870892 | AR230: 0.01743820641 | AS230: 0.4761050028 | AT230: 0.9250285406 | AU230: 0.0152352086 | AV230: 0.4067520801 | AW230: 0.9250285406 | AX230: 0.0152352086 | AY230: 0.4067520801 | AZ230: 1.063752393 | BA230: 0.2057424132 | BB230: 0.4018219989 | BC230: 1.058082263 | BD230: 0.2027359895 | BE230: 0.4200993697 | BF230: 1.058082263 | BG230: 0.2027359895 | BH230: 0.4200993697 | BI230: 1.15563595 | BJ230: 0.2243749461 | BK230: 0.4122528215 | BL230: 1.046269446 | BM230: 0.2004094762 | BN230: 0.4402446525 | BO230: 1.046269446 | BP230: 0.2004094762 | BQ230: 0.4402446525 | BR230: 1.127944255 | BS230: 0.2154392069 | BT230: 0.4254538768 | BU230: 1.070551318 | BV230: 0.2058848608 | BW230: 0.4216629123 | BX230: 1.070551318 | BY230: 0.2058848608 | BZ230: 0.4216629123 | CA230: 1.429644882 | CB230: 0.009944253799 | CC230: 0 | CD230: 1.429308068 | CE230: 0.009909702607 | CF230: 0 | CG230: 1.426495957 | CH230: 0.009624495903 | CI230: 0 | CJ230: 1.728830178 | CK230: 0.0142236293 | CL230: 0 | CM230: 1.730658745 | CN230: 0.01421636207 | CO230: 0 | CP230: 1.701302785 | CQ230: 0.01352406328 | CR230: 0 | CS230: 1.989250187 | CT230: 0.01794852829 | CU230: 0 | CV230: 1.993389359 | CW230: 0.01797109493 | CX230: 0 | CY230: 1.955085355 | CZ230: 0.01712529195 | DA230: 0 | DB230: 1.451302478 | DC230: 0.618875594 | DD230: 0 | DE230: 1.419787579 | DF230: 0.6055073282 | DG230: 0 | DH230: 1.416994198 | DI230: 0.5880804936 | DJ230: 0 | DK230: 1.648541516 | DL230: 0.839563311 | DM230: 0 | DN230: 2.173299292 | DO230: 1.056706038 | DP230: 0 | DQ230: 2.136435129 | DR230: 1.005247282 | DS230: 0 | DT230: 1.833628501 | DU230: 1.029264585 | DV230: 0 | DW230: 2.154949033 | DX230: 1.179576559 | DY230: 0 | DZ230: 2.113540576 | EA230: 1.124060221 | EB230: 0
Y231: 0.9851460348 | Z231: 0.01605534198 | AA231: 0.6069799905 | AB231: 1.006610081 | AC231: 0.01635037803 | AD231: 0.3696227573 | AE231: 1.006610081 | AF231: 0.01635037803 | AG231: 0.3696227573 | AH231: 1.048839625 | AI231: 0.01692857126 | AJ231: 0.6381570486 | AK231: 0.7959624229 | AL231: 0.01343797963 | AM231: 0.3307956718 | AN231: 0.7959624229 | AO231: 0.01343797963 | AP231: 0.3307956718 | AQ231: 1.084964016 | AR231: 0.01742383108 | AS231: 0.4762193254 | AT231: 0.9248313619 | AU231: 0.01521971171 | AV231: 0.407061975 | AW231: 0.9248313619 | AX231: 0.01521971171 | AY231: 0.407061975 | AZ231: 1.063691699 | BA231: 0.2062288321 | BB231: 0.4021449024 | BC231: 1.05814353 | BD231: 0.2032588029 | BE231: 0.4203594718 | BF231: 1.05814353 | BG231: 0.2032588029 | BH231: 0.4203594718 | BI231: 1.155595016 | BJ231: 0.2249165203 | BK231: 0.4126706904 | BL231: 1.046227089 | BM231: 0.2009122742 | BN231: 0.4404301565 | BO231: 1.046227089 | BP231: 0.2009122742 | BQ231: 0.4404301565 | BR231: 1.127837399 | BS231: 0.2159250161 | BT231: 0.4258809026 | BU231: 1.070472063 | BV231: 0.2063988206 | BW231: 0.4217703714 | BX231: 1.070472063 | BY231: 0.2063988206 | BZ231: 0.4217703714 | CA231: 2.312727841 | CB231: 0 | CC231: 0 | CD231: 2.310563951 | CE231: 0 | CF231: 0 | CG231: 2.331188912 | CH231: 0 | CI231: 0 | CJ231: 3.086464208 | CK231: 0 | CL231: 0 | CM231: 3.087840704 | CN231: 0 | CO231: 0 | CP231: 3.133729111 | CQ231: 0 | CR231: 0 | CS231: 4.455994167 | CT231: 0 | CU231: 0 | CV231: 4.467270874 | CW231: 0 | CX231: 0 | CY231: 5.053437469 | CZ231: 0 | DA231: 0 | DB231: 2.347598995 | DC231: 0 | DD231: 0 | DE231: 2.295391229 | DF231: 0 | DG231: 0 | DH231: 2.315880752 | DI231: 0 | DJ231: 0 | DK231: 2.942741802 | DL231: 0 | DM231: 0 | DN231: 3.87938 | DO231: 0 | DP231: 0 | DQ231: 3.937031474 | DR231: 0 | DS231: 0 | DT231: 4.107043277 | DU231: 0 | DV231: 0 | DW231: 4.830362656 | DX231: 0 | DY231: 0 | DZ231: 5.464171824 | EA231: 0 | EB231: 0
Y232: 0.959812068 | Z232: 0.02590210051 | AA232: 0.4915000574 | AB232: 1.041522489 | AC232: 0.02813057991 | AD232: 0.2773479986 | AE232: 1.041522489 | AF232: 0.02813057991 | AG232: 0.2773479986 | AH232: 0.9986157553 | AI232: 0.02695519072 | AJ232: 0.5221035504 | AK232: 0.9302813213 | AL232: 0.0250822877 | AM232: 0.2477285692 | AN232: 0.9302813213 | AO232: 0.0250822877 | AP232: 0.2477285692 | AQ232: 1.050819989 | AR232: 0.0283719573 | AS232: 0.4481180226 | AT232: 0.9972678949 | AU232: 0.02691789097 | AV232: 0.3114298338 | AW232: 0.9972678949 | AX232: 0.02691789097 | AY232: 0.3114298338 | AZ232: 1.108816906 | BA232: 0.2822855898 | BB232: 0.196739772 | BC232: 1.09387214 | BD232: 0.2774969219 | BE232: 0.2074038076 | BF232: 1.09387214 | BG232: 0.2774969219 | BH232: 0.2074038076 | BI232: 1.206526768 | BJ232: 0.3096548267 | BK232: 0.2002077305 | BL232: 1.11298187 | BM232: 0.2762931045 | BN232: 0.2940259837 | BO232: 1.11298187 | BP232: 0.2762931045 | BQ232: 0.2940259837 | BR232: 1.189289214 | BS232: 0.3045463441 | BT232: 0.2044558325 | BU232: 1.088289983 | BV232: 0.2765708757 | BW232: 0.2452061124 | BX232: 1.088289983 | BY232: 0.2765708757 | BZ232: 0.2452061124 | CA232: 1.183612873 | CB232: 0 | CC232: 0 | CD232: 1.182181522 | CE232: 0 | CF232: 0 | CG232: 1.170490808 | CH232: 0 | CI232: 0 | CJ232: 1.3006213 | CK232: 0.00630451012 | CL232: 0 | CM232: 1.302193622 | CN232: 0.006132176163 | CO232: 0 | CP232: 1.271995328 | CQ232: 0.003650627871 | CR232: 0 | CS232: 1.392297346 | CT232: 0.01238413656 | CU232: 0 | CV232: 1.396607357 | CW232: 0.01238201273 | CX232: 0 | CY232: 1.35363577 | CZ232: 0.009037581035 | DA232: 0 | DB232: 1.233171484 | DC232: 0 | DD232: 0 | DE232: 1.135051364 | DF232: 0 | DG232: 0 | DH232: 1.123826725 | DI232: 0 | DJ232: 0 | DK232: 1.302424174 | DL232: 0.2338885369 | DM232: 0 | DN232: 1.399784766 | DO232: 0.244482331 | DP232: 0 | DQ232: 1.367323302 | DR232: 0.1455460489 | DS232: 0 | DT232: 1.324962753 | DU232: 0.4364921472 | DV232: 0 | DW232: 1.400433489 | DX232: 0.4599919341 | DY232: 0 | DZ232: 1.357344177 | EA232: 0.3357462531 | EB232: 0
Y233: 0.9591544849 | Z233: 0.02310285691 | AA233: 0.4956287431 | AB233: 1.03909406 | AC233: 0.0250300628 | AD233: 0.2822138696 | AE233: 1.03909406 | AF233: 0.0250300628 | AG233: 0.2822138696 | AH233: 1.000248239 | AI233: 0.02408887205 | AJ233: 0.5295294898 | AK233: 0.9223270418 | AL233: 0.02220110261 | AM233: 0.2503785504 | AN233: 0.9223270418 | AO233: 0.02220110261 | AP233: 0.2503785504 | AQ233: 1.053236685 | AR233: 0.02536029178 | AS233: 0.4496027722 | AT233: 0.9923719686 | AU233: 0.02389810843 | AV233: 0.3167374422 | AW233: 0.9923719686 | AX233: 0.02389810843 | AY233: 0.3167374422 | AZ233: 1.107201019 | BA233: 0.2586864406 | BB233: 0.2007397538 | BC233: 1.0936484 | BD233: 0.253721655 | BE233: 0.2143941476 | BF233: 1.0936484 | BG233: 0.253721655 | BH233: 0.2143941476 | BI233: 1.201363944 | BJ233: 0.2830409331 | BK233: 0.2024314778 | BL233: 1.115321395 | BM233: 0.2536147005 | BN233: 0.2968519325 | BO233: 1.115321395 | BP233: 0.2536147005 | BQ233: 0.2968519325 | BR233: 1.180237342 | BS233: 0.2774016659 | BT233: 0.2046756384 | BU233: 1.092233995 | BV233: 0.2541462298 | BW233: 0.2519779383 | BX233: 1.092233995 | BY233: 0.2541462298 | BZ233: 0.2519779383 | CA233: 1.012730547 | CB233: 0.01670068081 | CC233: 0 | CD233: 1.010476273 | CE233: 0.01607359992 | CF233: 0 | CG233: 1.00135483 | CH233: 0.01514990707 | CI233: 0 | CJ233: 1.010934227 | CK233: 0.01654074299 | CL233: 0 | CM233: 1.012456943 | CN233: 0.01624953152 | CO233: 0 | CP233: 0.9937827593 | CQ233: 0.01447775279 | CR233: 0 | CS233: 1.006630056 | CT233: 0.01615751535 | CU233: 0 | CV233: 1.011573008 | CW233: 0.01617101659 | CX233: 0 | CY233: 0.982990921 | CZ233: 0.01351978755 | DA233: 0 | DB233: 1.055857595 | DC233: 0.7228837919 | DD233: 0 | DE233: 0.9724589061 | DF233: 0.6421717775 | DG233: 0 | DH233: 0.9636806409 | DI233: 0.6052684402 | DJ233: 0 | DK233: 1.010683335 | DL233: 0.6866549398 | DM233: 0 | DN233: 1.097720112 | DO233: 0.731924527 | DP233: 0 | DQ233: 1.077473298 | DR233: 0.6521186379 | DS233: 0 | DT233: 0.9557491397 | DU233: 0.6371186692 | DV233: 0 | DW233: 1.019348631 | DX233: 0.6766651277 | DY233: 0 | DZ233: 0.9905468434 | EA233: 0.565726262 | EB233: 0
Y234: 1.059607536 | Z234: 0.01117822034 | AA234: 0.6116166246 | AB234: 1.019627667 | AC234: 0.01086461849 | AD234: 0.3395772225 | AE234: 1.019627667 | AF234: 0.01086461849 | AG234: 0.3395772225 | AH234: 1.131423804 | AI234: 0.01174304598 | AJ234: 0.6724973982 | AK234: 0.8129072413 | AL234: 0.009229998739 | AM234: 0.2617473222 | AN234: 0.8129072413 | AO234: 0.009229998739 | AP234: 0.2617473222 | AQ234: 1.086762513 | AR234: 0.01139179072 | AS234: 0.5046466385 | AT234: 0.9633328377 | AU234: 0.01041947312 | AV234: 0.433073128 | AW234: 0.9633328377 | AX234: 0.01041947312 | AY234: 0.433073128 | AZ234: 1.108069556 | BA234: 0.2505039976 | BB234: 0.3310614157 | BC234: 1.042222564 | BD234: 0.2224748914 | BE234: 0.3166018657 | BF234: 1.042222564 | BG234: 0.2224748914 | BH234: 0.3166018657 | BI234: 1.135335714 | BJ234: 0.2602789796 | BK234: 0.3332456034 | BL234: 0.9639806305 | BM234: 0.2033608431 | BN234: 0.331267522 | BO234: 0.9639806305 | BP234: 0.2033608431 | BQ234: 0.331267522 | BR234: 1.047001805 | BS234: 0.2363639048 | BT234: 0.2789019021 | BU234: 1.084127563 | BV234: 0.2347603808 | BW234: 0.3455294355 | BX234: 1.084127563 | BY234: 0.2347603808 | BZ234: 0.3455294355 | CA234: 1.008392368 | CB234: 0.000707199888 | CC234: 0 | CD234: 1.004214363 | CE234: 0.0005555767768 | CF234: 0 | CG234: 0.9954428938 | CH234: 0.0003482070511 | CI234: 0 | CJ234: 0.983422869 | CK234: 0.0001452535325 | CL234: 0 | CM234: 0.9860897545 | CN234: 0.0001481976705 | CO234: 0 | CP234: 0.9676673312 | CQ234: 0 | CR234: 0 | CS234: 0.9737621186 | CT234: 0 | CU234: 0 | CV234: 0.9821031949 | CW234: 5.859346806e-05 | CX234: 0 | CY234: 0.967738536 | CZ234: 0 | DA234: 0 | DB234: 0.9516659083 | DC234: 0.06326587475 | DD234: 0 | DE234: 0.9848833993 | DF234: 0.05113633556 | DG234: 0 | DH234: 0.9762807794 | DI234: 0.03204963445 | DJ234: 0 | DK234: 0.8691905413 | DL234: 0.01236932332 | DM234: 0 | DN234: 1.213040928 | DO234: 0.01605608784 | DP234: 0 | DQ234: 1.190378535 | DR234: 0 | DS234: 0 | DT234: 0.8960210779 | DU234: 0 | DV234: 0 | DW234: 1.01948481 | DX234: 0.005623457864 | DY234: 0 | DZ234: 1.004573392 | EA234: 0 | EB234: 0
Y235: 1.059607536 | Z235: 0.01117822034 | AA235: 0.6116166246 | AB235: 1.019627667 | AC235: 0.01086461849 | AD235: 0.3395772225 | AE235: 1.019627667 | AF235: 0.01086461849 | AG235: 0.3395772225 | AH235: 1.131423804 | AI235: 0.01174304598 | AJ235: 0.6724973982 | AK235: 0.8129072413 | AL235: 0.009229998739 | AM235: 0.2617473222 | AN235: 0.8129072413 | AO235: 0.009229998739 | AP235: 0.2617473222 | AQ235: 1.086762513 | AR235: 0.01139179072 | AS235: 0.5046466385 | AT235: 0.9633328377 | AU235: 0.01041947312 | AV235: 0.433073128 | AW235: 0.9633328377 | AX235: 0.01041947312 | AY235: 0.433073128 | AZ235: 1.108069556 | BA235: 0.2505039976 | BB235: 0.3310614157 | BC235: 1.042222564 | BD235: 0.2224748914 | BE235: 0.3166018657 | BF235: 1.042222564 | BG235: 0.2224748914 | BH235: 0.3166018657 | BI235: 1.135335714 | BJ235: 0.2602789796 | BK235: 0.3332456034 | BL235: 0.9639806305 | BM235: 0.2033608431 | BN235: 0.331267522 | BO235: 0.9639806305 | BP235: 0.2033608431 | BQ235: 0.331267522 | BR235: 1.047001805 | BS235: 0.2363639048 | BT235: 0.2789019021 | BU235: 1.084127563 | BV235: 0.2347603808 | BW235: 0.3455294355 | BX235: 1.084127563 | BY235: 0.2347603808 | BZ235: 0.3455294355 | CA235: 1.008392368 | CB235: 0.000707199888 | CC235: 0 | CD235: 1.004214363 | CE235: 0.0005555767768 | CF235: 0 | CG235: 0.9954428938 | CH235: 0.0003482070511 | CI235: 0 | CJ235: 0.983422869 | CK235: 0.0001452535325 | CL235: 0 | CM235: 0.9860897545 | CN235: 0.0001481976705 | CO235: 0 | CP235: 0.9676673312 | CQ235: 0 | CR235: 0 | CS235: 0.9737621186 | CT235: 0 | CU235: 0 | CV235: 0.9821031949 | CW235: 5.859346806e-05 | CX235: 0 | CY235: 0.967738536 | CZ235: 0 | DA235: 0 | DB235: 0.9516659083 | DC235: 0.06326587475 | DD235: 0 | DE235: 0.9848833993 | DF235: 0.05113633556 | DG235: 0 | DH235: 0.9762807794 | DI235: 0.03204963445 | DJ235: 0 | DK235: 0.8691905413 | DL235: 0.01236932332 | DM235: 0 | DN235: 1.213040928 | DO235: 0.01605608784 | DP235: 0 | DQ235: 1.190378535 | DR235: 0 | DS235: 0 | DT235: 0.8960210779 | DU235: 0 | DV235: 0 | DW235: 1.01948481 | DX235: 0.005623457864 | DY235: 0 | DZ235: 1.004573392 | EA235: 0 | EB235: 0
Y238: 0.9957303105 | Z238: 0.001583267524 | AA238: 0.372940326 | AB238: 0.845303281 | AC238: 0.00134763552 | AD238: 0.3601481262 | AE238: 0.845303281 | AF238: 0.00134763552 | AG238: 0.3601481262 | AH238: 1.011185492 | AI238: 0.001608066486 | AJ238: 0.2974714862 | AK238: 0.8916581742 | AL238: 0.001420295594 | AM238: 0.3612049034 | AN238: 0.8916581742 | AO238: 0.001420295594 | AP238: 0.3612049034 | AQ238: 1.077503795 | AR238: 0.001714479019 | AS238: 0.2706575759 | AT238: 1.028694035 | AU238: 0.001635095695 | AV238: 0.3993876953 | AW238: 1.028694035 | AX238: 0.001635095695 | AY238: 0.3993876953 | AZ238: 0.9987528007 | BA238: 0.3825211001 | BB238: 0.005938841742 | BC238: 1.003298058 | BD238: 0.3846757729 | BE238: 0.007186212133 | BF238: 1.003298058 | BG238: 0.3846757729 | BH238: 0.007186212133 | BI238: 0.9974870575 | BJ238: 0.3820366218 | BK238: 0.004389507059 | BL238: 1.001537568 | BM238: 0.3840010412 | BN238: 0.007163774479 | BO238: 1.001537568 | BP238: 0.3840010412 | BQ238: 0.007163774479 | BR238: 0.9954309821 | BS238: 0.3812493166 | BT238: 0.003647754158 | BU238: 0.9958734258 | BV238: 0.3818288143 | BW238: 0.007507605393 | BX238: 0.9958734258 | BY238: 0.3818288143 | BZ238: 0.007507605393 | CA238: 0.9485139372 | CB238: 0.01077577073 | CC238: 0 | CD238: 0.9497587268 | CE238: 0.01112788269 | CF238: 0 | CG238: 0.9166955142 | CH238: 0.01043432202 | CI238: 0 | CJ238: 0.9888974788 | CK238: 0.01162007618 | CL238: 0 | CM238: 0.9900721156 | CN238: 0.01197746366 | CO238: 0 | CP238: 0.9773764572 | CQ238: 0.01171323938 | CR238: 0 | CS238: 1.137267534 | CT238: 0.01472207374 | CU238: 0 | CV238: 1.140929088 | CW238: 0.01515668564 | CX238: 0 | CY238: 1.194936331 | CZ238: 0.01629855208 | DA238: 0 | DB238: 0.952581163 | DC238: 6.806032817 | DD238: 0 | DE238: 1.123571561 | DF238: 8.257338525 | DG238: 0 | DH238: 1.084457537 | DI238: 7.742688483 | DJ238: 0 | DK238: 0.9779585316 | DL238: 7.226116761 | DM238: 0 | DN238: 1.110371827 | DO238: 8.433078093 | DP238: 0 | DQ238: 1.096133569 | DR238: 8.247043382 | DS238: 0 | DT238: 1.055464992 | DU238: 8.586908075 | DV238: 0 | DW238: 1.109104407 | DX238: 9.269601579 | DY238: 0 | DZ238: 1.161605191 | EA238: 9.967949968 | EB238: 0
Y239: 1.148530227 | Z239: 0.4992907321 | AA239: 0.1893578257 | AB239: 1.148453435 | AC239: 0.4993480883 | AD239: 0.1889995734 | AE239: 1.148453435 | AF239: 0.4993480883 | AG239: 0.1889995734 | AH239: 1.130019834 | AI239: 0.4911771456 | AJ239: 0.2073107732 | AK239: 1.164508063 | AL239: 0.5063950922 | AM239: 0.1436633181 | AN239: 1.164508063 | AO239: 0.5063950922 | AP239: 0.1436633181 | AQ239: 1.116205099 | AR239: 0.4851217882 | AS239: 0.1567663187 | AT239: 1.246814105 | AU239: 0.5425224315 | AV239: 0.1593904217 | AW239: 1.246814105 | AX239: 0.5425224315 | AY239: 0.1593904217 | AZ239: 1.003116716 | BA239: 1.18220071 | BB239: 0.13268384 | BC239: 0.9851508934 | BD239: 1.119476534 | BE239: 0.1081120105 | BF239: 0.9851508934 | BG239: 1.119476534 | BH239: 0.1081120105 | BI239: 1.013012915 | BJ239: 1.193940136 | BK239: 0.131022848 | BL239: 0.9750605907 | BM239: 1.108932743 | BN239: 0.09039364167 | BO239: 0.9750605907 | BP239: 1.108932743 | BQ239: 0.09039364167 | BR239: 1.000080591 | BS239: 1.178281239 | BT239: 0.1365601928 | BU239: 0.9783253329 | BV239: 1.11419854 | BW239: 0.07159147369 | BX239: 0.9783253329 | BY239: 1.11419854 | BZ239: 0.07159147369 | CA239: 1.213646676 | CB239: 0.01521163261 | CC239: 0 | CD239: 1.22432609 | CE239: 0.01533021973 | CF239: 0 | CG239: 1.164911865 | CH239: 0.01462404461 | CI239: 0 | CJ239: 1.491601373 | CK239: 0.01838657056 | CL239: 0 | CM239: 1.500162078 | CN239: 0.01848053527 | CO239: 0 | CP239: 1.370821185 | CQ239: 0.01697310379 | CR239: 0 | CS239: 1.807533813 | CT239: 0.02199530934 | CU239: 0 | CV239: 1.815545071 | CW239: 0.02208251612 | CX239: 0 | CY239: 1.608203612 | CZ239: 0.01968121515 | DA239: 0 | DB239: 1.05669546 | DC239: 0.03046648301 | DD239: 0 | DE239: 1.066065069 | DF239: 0.03070046744 | DG239: 0 | DH239: 1.014330951 | DI239: 0.02928627334 | DJ239: 0 | DK239: 1.319978046 | DL239: 0.03743368501 | DM239: 0 | DN239: 1.288236746 | DO239: 0.0364943017 | DP239: 0 | DQ239: 1.17716762 | DR239: 0.03351751242 | DS239: 0 | DT239: 1.619356348 | DU239: 0.04533976803 | DV239: 0 | DW239: 1.456147362 | DX239: 0.04070341583 | DY239: 0 | DZ239: 1.289850351 | EA239: 0.03627723759 | EB239: 0
Y240: 1.057556359 | Z240: 0.1593136706 | AA240: 0.1741266194 | AB240: 1.001219024 | AC240: 0.1509779203 | AD240: 0.1555075827 | AE240: 1.001219024 | AF240: 0.1509779203 | AG240: 0.1555075827 | AH240: 0.9685623634 | AI240: 0.1461459208 | AJ240: 0.1532920601 | AK240: 0.9405455839 | AL240: 0.1419981937 | AM240: 0.142757018 | AN240: 0.9405455839 | AO240: 0.1419981937 | AP240: 0.142757018 | AQ240: 0.943957134 | AR240: 0.1425052763 | AS240: 0.1452896924 | AT240: 0.9666928497 | AU240: 0.1458680138 | AV240: 0.1386659453 | AW240: 0.9666928497 | AX240: 0.1458680138 | AY240: 0.1386659453 | AZ240: 0.9690730089 | BA240: 0.4836903901 | BB240: 0.05411776903 | BC240: 0.9969041167 | BD240: 0.4896418662 | BE240: 0.05710304806 | BF240: 0.9969041167 | BG240: 0.4896418662 | BH240: 0.05710304806 | BI240: 0.9622249339 | BJ240: 0.4800463307 | BK240: 0.07227519383 | BL240: 0.9843812488 | BM240: 0.4832828706 | BN240: 0.05948028426 | BO240: 0.9843812488 | BP240: 0.4832828706 | BQ240: 0.05948028426 | BR240: 1.025059432 | BS240: 0.5113464463 | BT240: 0.07452108349 | BU240: 0.9964276965 | BV240: 0.4887965728 | BW240: 0.06449757083 | BX240: 0.9964276965 | BY240: 0.4887965728 | BZ240: 0.06449757083 | CA240: 0.9220826567 | CB240: 0.1583952944 | CC240: 0 | CD240: 0.9221991892 | CE240: 0.1584380502 | CF240: 0 | CG240: 0.924628245 | CH240: 0.1610329306 | CI240: 0 | CJ240: 0.8336702792 | CK240: 0.1478125723 | CL240: 0 | CM240: 0.8337610598 | CN240: 0.1478509203 | CO240: 0 | CP240: 0.8125020506 | CQ240: 0.1474758153 | CR240: 0 | CS240: 0.7576015349 | CT240: 0.1387073498 | CU240: 0 | CV240: 0.7575140561 | CW240: 0.1387232179 | CX240: 0 | CY240: 0.7042000386 | CZ240: 0.1343810798 | DA240: 0 | DB240: 0.8718993075 | DC240: 0.9942354212 | DD240: 0 | DE240: 0.9210763747 | DF240: 1.049412059 | DG240: 0 | DH240: 0.923502473 | DI240: 1.066599211 | DJ240: 0 | DK240: 0.860729583 | DL240: 1.011404023 | DM240: 0 | DN240: 0.886465339 | DO240: 1.041216909 | DP240: 0 | DQ240: 0.8638624906 | DR240: 1.038575291 | DS240: 0 | DT240: 0.8025804431 | DU240: 0.9733488708 | DV240: 0 | DW240: 0.7836140056 | DX240: 0.9510187622 | DY240: 0 | DZ240: 0.7284630676 | EA240: 0.9212511797 | EB240: 0
Y241: 1.061772279 | Z241: 0.2149738896 | AA241: 0.1001659237 | AB241: 1.076007601 | AC241: 0.2178525179 | AD241: 0.1282637506 | AE241: 1.076007601 | AF241: 0.2178525179 | AG241: 0.1282637506 | AH241: 1.00367137 | AI241: 0.202969351 | AJ241: 0.1014977428 | AK241: 1.044581187 | AL241: 0.2113852248 | AM241: 0.1906843903 | AN241: 1.044581187 | AO241: 0.2113852248 | AP241: 0.1906843903 | AQ241: 0.9626395914 | AR241: 0.1944915564 | AS241: 0.1090103372 | AT241: 1.074940598 | AU241: 0.2176329374 | AV241: 0.1769629845 | AW241: 1.074940598 | AX241: 0.2176329374 | AY241: 0.1769629845 | AZ241: 0.987614247 | BA241: 0.4366259024 | BB241: 0.09060881737 | BC241: 1.010244485 | BD241: 0.4457288049 | BE241: 0.08091258736 | BF241: 1.010244485 | BG241: 0.4457288049 | BH241: 0.08091258736 | BI241: 0.9989828264 | BJ241: 0.4412047508 | BK241: 0.0936602706 | BL241: 0.9902731976 | BM241: 0.4370466558 | BN241: 0.08525867217 | BO241: 0.9902731976 | BP241: 0.4370466558 | BQ241: 0.08525867217 | BR241: 1.051674613 | BS241: 0.4640364668 | BT241: 0.1020692294 | BU241: 0.9951875046 | BV241: 0.4393322286 | BW241: 0.08576394267 | BX241: 0.9951875046 | BY241: 0.4393322286 | BZ241: 0.08576394267 | CA241: 0.9241956791 | CB241: 0.06970412432 | CC241: 0 | CD241: 0.9241603111 | CE241: 0.06970448842 | CF241: 0 | CG241: 0.9293287962 | CH241: 0.06986323862 | CI241: 0 | CJ241: 0.8339829166 | CK241: 0.06169779819 | CL241: 0 | CM241: 0.834023245 | CN241: 0.0617047162 | CO241: 0 | CP241: 0.8232397955 | CQ241: 0.06046420717 | CR241: 0 | CS241: 0.7542441722 | CT241: 0.0546210346 | CU241: 0 | CV241: 0.7541712649 | CW241: 0.05461775765 | CX241: 0 | CY241: 0.7201262514 | CZ241: 0.05132878844 | DA241: 0 | DB241: 0.870427395 | DC241: 0.3242446069 | DD241: 0 | DE241: 0.85887898 | DF241: 0.3199618214 | DG241: 0 | DH241: 0.8636823708 | DI241: 0.3206905264 | DJ241: 0 | DK241: 0.8309322567 | DL241: 0.3039759347 | DM241: 0 | DN241: 0.798428361 | DO241: 0.2919064768 | DP241: 0 | DQ241: 0.7881051333 | DR241: 0.2860380012 | DS241: 0 | DT241: 0.7835166754 | DU241: 0.2808401331 | DV241: 0 | DW241: 0.7015934337 | DX241: 0.250962737 | DY241: 0 | DZ241: 0.6699219036 | EA241: 0.2358502764 | EB241: 0
Y242: 1.080677447 | Z242: 0.170035507 | AA242: 0.15720259 | AB242: 1.062679329 | AC242: 0.1672970763 | AD242: 0.1250062582 | AE242: 1.062679329 | AF242: 0.1672970763 | AG242: 0.1250062582 | AH242: 1.01567804 | AI242: 0.160075853 | AJ242: 0.1096859606 | AK242: 1.015634609 | AL242: 0.1600740283 | AM242: 0.1406283515 | AN242: 1.015634609 | AO242: 0.1600740283 | AP242: 0.1406283515 | AQ242: 0.9622925842 | AR242: 0.151895768 | AS242: 0.1417306315 | AT242: 1.035704445 | AU242: 0.1631554664 | AV242: 0.148069346 | AW242: 1.035704445 | AX242: 0.1631554664 | AY242: 0.148069346 | AZ242: 0.9657775152 | BA242: 0.4959634829 | BB242: 0.08784248475 | BC242: 0.9953525934 | BD242: 0.5115644174 | BE242: 0.09353295768 | BF242: 0.9953525934 | BG242: 0.5115644174 | BH242: 0.09353295768 | BI242: 0.994914441 | BJ242: 0.5104912877 | BK242: 0.08619322383 | BL242: 0.9811447136 | BM242: 0.5044652218 | BN242: 0.07474489036 | BO242: 0.9811447136 | BP242: 0.5044652218 | BQ242: 0.07474489036 | BR242: 1.057765984 | BS242: 0.5417311962 | BT242: 0.09404527391 | BU242: 0.9944220574 | BV242: 0.5110854694 | BW242: 0.07994726798 | BX242: 0.9944220574 | BY242: 0.5110854694 | BZ242: 0.07994726798 | CA242: 0.917599202 | CB242: 0.01043402212 | CC242: 0 | CD242: 0.917763286 | CE242: 0.01046340161 | CF242: 0 | CG242: 0.9227532804 | CH242: 0.01053961797 | CI242: 0 | CJ242: 0.8224728032 | CK242: 0.005236406633 | CL242: 0 | CM242: 0.8228579888 | CN242: 0.005276856659 | CO242: 0 | CP242: 0.8121599575 | CQ242: 0.004507028791 | CR242: 0 | CS242: 0.73888049 | CT242: 0.0006690025591 | CU242: 0 | CV242: 0.7390552322 | CW242: 0.0006970621036 | CX242: 0 | CY242: 0.7059433763 | CZ242: 0 | DA242: 0 | DB242: 0.8490962819 | DC242: 0.06136378396 | DD242: 0 | DE242: 0.8636314464 | DF242: 0.0625438402 | DG242: 0 | DH242: 0.8683271192 | DI242: 0.0629994152 | DJ242: 0 | DK242: 0.8097770855 | DL242: 0.03271203329 | DM242: 0 | DN242: 0.81019097 | DO242: 0.03296510193 | DP242: 0 | DQ242: 0.7996576235 | DR242: 0.02815590286 | DS242: 0 | DT242: 0.7678335074 | DU242: 0.004404352851 | DV242: 0 | DW242: 0.7135773487 | DX242: 0.004272379706 | DY242: 0 | DZ242: 0.6816069772 | EA242: 0 | EB242: 0
Y243: 1.057556359 | Z243: 0.1593136706 | AA243: 0.1741266194 | AB243: 1.017530042 | AC243: 0.2563086947 | AD243: 0.1765477503 | AE243: 1.125008046 | AF243: 0.2827777205 | AG243: 0.1684808149 | AH243: 1.125008046 | AI243: 0.2827777205 | AJ243: 0.1684808149 | AK243: 0.9367325779 | AL243: 0.2364685985 | AM243: 0.1493216528 | AN243: 1.081429607 | AO243: 0.2720498915 | AP243: 0.1396440228 | AQ243: 1.081429607 | AR243: 0.2720498915 | AS243: 0.1396440228 | AT243: 0.9378473944 | AU243: 0.2367423455 | AV243: 0.1636130871 | AW243: 0.8946758162 | AX243: 0.2260761769 | AY243: 0.1731567155 | AZ243: 0.8946758162 | BA243: 0.2260761769 | BB243: 0.1731567155 | BC243: 1.002492356 | BD243: 0.6095411846 | BE243: 0.07115326237 | BF243: 0.9995066888 | BG243: 0.6198571753 | BH243: 0.06368325651 | BI243: 0.9995066888 | BJ243: 0.6198571753 | BK243: 0.06368325651 | BL243: 1.027732679 | BM243: 0.6243419407 | BN243: 0.06529194364 | BO243: 1.010413407 | BP243: 0.6266983534 | BQ243: 0.06174592648 | BR243: 1.010413407 | BS243: 0.6266983534 | BT243: 0.06174592648 | BU243: 1.028361831 | BV243: 0.6252726966 | BW243: 0.06288056941 | BX243: 1.028343442 | BY243: 0.637909971 | BZ243: 0.06706533395 | CA243: 1.028343442 | CB243: 0.637909971 | CC243: 0.06706533395 | CD243: 1.09886248 | CE243: 0.007129082471 | CF243: 0 | CG243: 1.097885824 | CH243: 0.007097440683 | CI243: 0 | CJ243: 1.0915138 | CK243: 0.007000060353 | CL243: 0 | CM243: 1.107891825 | CN243: 0.007268197228 | CO243: 0 | CP243: 1.104079769 | CQ243: 0.007191820498 | CR243: 0 | CS243: 1.111164827 | CT243: 0.007299429855 | CU243: 0 | CV243: 1.080697561 | CW243: 0.006849216313 | CX243: 0 | CY243: 1.097518841 | CZ243: 0.007091848815 | DA243: 0 | DB243: 1.117064611 | DC243: 0.007389308898 | DD243: 0 | DE243: 1.093217363 | DF243: 0.03047782624 | DG243: 0 | DH243: 0.9784075804 | DI243: Low (<10%) | DJ243: 0.02725254483 | DK243: 0 | DL243: 0.9709168705 | DM243: 0.02683000179 | DN243: 0 | DO243: 1.218379633 | DP243: 0.03423349009 | DQ243: 0 | DR243: 1.035554274 | DS243: Low (<10%) | DT243: 0.02902420717 | DU243: 0 | DV243: 1.040728401 | DW243: 0.0294181082 | DX243: 0 | DY243: 1.188913509 | DZ243: 0.03227394187 | EA243: 0 | EB243: 1.278944006 | EC243: Low (<10%) | ED243: 0.03533698683 | EE243: 0 | EF243: 1.29862735 | EG243: 0.0367338312 | EH243: 0
Y244: 1.062261425 | Z244: 1.2734955 | AA244: 0.1508935886 | AB244: 1.047703039 | AC244: 0.1036568594 | AD244: 0.1549471492 | AE244: 1.059008429 | AF244: 0.1047951327 | AG244: 0.1240514143 | AH244: 1.059008429 | AI244: 0.1047951327 | AJ244: 0.1240514143 | AK244: 0.9885434003 | AL244: 0.09784741252 | AM244: 0.1534459606 | AN244: 1.003331506 | AO244: 0.099301183 | AP244: 0.1202396213 | AQ244: 1.003331506 | AR244: 0.099301183 | AS244: 0.1202396213 | AT244: 1.031113617 | AU244: 0.1020277865 | AV244: 0.1326545316 | AW244: 0.9221477024 | AX244: 0.09129032832 | AY244: 0.124371604 | AZ244: 0.9221477024 | BA244: 0.09129032832 | BB244: 0.124371604 | BC244: 0.9880736333 | BD244: 0.8895731764 | BE244: 0.04921226617 | BF244: 1.008371419 | BG244: 0.9131672964 | BH244: 0.04687632376 | BI244: 1.008371419 | BJ244: 0.9131672964 | BK244: 0.04687632376 | BL244: 0.9758164243 | BM244: 0.8784180239 | BN244: 0.06525106519 | BO244: 1.005830921 | BP244: 0.9111375653 | BQ244: 0.04540063407 | BR244: 1.005830921 | BS244: 0.9111375653 | BT244: 0.04540063407 | BU244: 0.9918475046 | BV244: 0.893347699 | BW244: 0.08735665937 | BX244: 1.017450282 | BY244: 0.9216459817 | BZ244: 0.04692506755 | CA244: 1.017450282 | CB244: 0.9216459817 | CC244: 0.04692506755 | CD244: 1.232135243 | CE244: 0.00761474891 | CF244: 0 | CG244: 1.234145535 | CH244: 0.007627659073 | CI244: 0 | CJ244: 1.192058217 | CK244: 0.007247565723 | CL244: 0 | CM244: 1.496911925 | CN244: 0.00955621551 | CO244: 0 | CP244: 1.502433852 | CQ244: 0.009592777495 | CR244: 0 | CS244: 1.496989001 | CT244: 0.009367051366 | CU244: 0 | CV244: 1.572896464 | CW244: 0.01011336973 | CX244: 0 | CY244: 1.589405341 | CZ244: 0.01022981334 | DA244: 0 | DB244: 1.65425748 | DC244: 0.01046017906 | DD244: 0 | DE244: 1.176034808 | DF244: 0.07346111925 | DG244: 0 | DH244: 1.165378388 | DI244: Low (<10%) | DJ244: 0.07278638688 | DK244: 0 | DL244: 1.125636194 | DM244: 0.06915937349 | DN244: 0 | DO244: 1.514260197 | DP244: 0.09766446821 | DQ244: 0 | DR244: 1.497445105 | DS244: Low (<10%) | DT244: 0.0966028521 | DU244: 0 | DV244: 1.492018332 | DW244: 0.09432970568 | DX244: 0 | DY244: 1.525434673 | DZ244: 0.09912368065 | EA244: 0 | EB244: 1.723590849 | EC244: Low-medium (10-20%) | ED244: 0.112058019 | EE244: 0 | EF244: 1.793918128 | EG244: 0.1145814595 | EH244: 0
AB245: 1.047703039 | AC245: 0.1036568594 | AD245: 0.1549471492 | AE245: 1.059008429 | AF245: 0.1047951327 | AG245: 0.1240514143 | AH245: 1.059008429 | AI245: 0.1047951327 | AJ245: 0.1240514143 | AK245: 0.9885434003 | AL245: 0.09784741252 | AM245: 0.1534459606 | AN245: 1.003331506 | AO245: 0.099301183 | AP245: 0.1202396213 | AQ245: 1.003331506 | AR245: 0.099301183 | AS245: 0.1202396213 | AT245: 1.031113617 | AU245: 0.1020277865 | AV245: 0.1326545316 | AW245: 0.9221477024 | AX245: 0.09129032832 | AY245: 0.124371604 | AZ245: 0.9221477024 | BA245: 0.09129032832 | BB245: 0.124371604 | BC245: 0.9880736333 | BD245: 0.8895731764 | BE245: 0.04921226617 | BF245: 1.008371419 | BG245: 0.9131672964 | BH245: 0.04687632376 | BI245: 1.008371419 | BJ245: 0.9131672964 | BK245: 0.04687632376 | BL245: 0.9758164243 | BM245: 0.8784180239 | BN245: 0.06525106519 | BO245: 1.005830921 | BP245: 0.9111375653 | BQ245: 0.04540063407 | BR245: 1.005830921 | BS245: 0.9111375653 | BT245: 0.04540063407 | BU245: 0.9918475046 | BV245: 0.893347699 | BW245: 0.08735665937 | BX245: 1.017450282 | BY245: 0.9216459817 | BZ245: 0.04692506755 | CA245: 1.017450282 | CB245: 0.9216459817 | CC245: 0.04692506755 | CD245: 1.232135243 | CE245: 0.00761474891 | CF245: 0 | CG245: 1.234145535 | CH245: 0.007627659073 | CI245: 0 | CJ245: 1.192058217 | CK245: 0.007247565723 | CL245: 0 | CM245: 1.496911925 | CN245: 0.00955621551 | CO245: 0 | CP245: 1.502433852 | CQ245: 0.009592777495 | CR245: 0 | CS245: 1.496989001 | CT245: 0.009367051366 | CU245: 0 | CV245: 1.572896464 | CW245: 0.01011336973 | CX245: 0 | CY245: 1.589405341 | CZ245: 0.01022981334 | DA245: 0 | DB245: 1.65425748 | DC245: 0.01046017906 | DD245: 0 | DE245: 1.176034808 | DF245: 0.07346111925 | DG245: 0 | DH245: 1.165378388 | DI245: Low (<10%) | DJ245: 0.07278638688 | DK245: 0 | DL245: 1.125636194 | DM245: 0.06915937349 | DN245: 0 | DO245: 1.514260197 | DP245: 0.09766446821 | DQ245: 0 | DR245: 1.497445105 | DS245: Low (<10%) | DT245: 0.0966028521 | DU245: 0 | DV245: 1.492018332 | DW245: 0.09432970568 | DX245: 0 | DY245: 1.525434673 | DZ245: 0.09912368065 | EA245: 0 | EB245: 1.723590849 | EC245: Low-medium (10-20%) | ED245: 0.112058019 | EE245: 0 | EF245: 1.793918128 | EG245: 0.1145814595 | EH245: 0
AB246: 1.103669132 | AC246: 0.07873828711 | AD246: 0.154652752 | AE246: 1.083792386 | AF246: 0.07743425256 | AG246: 0.2060943413 | AH246: 1.083792386 | AI246: 0.07743425256 | AJ246: 0.2060943413 | AK246: 1.0971976 | AL246: 0.07828873042 | AM246: 0.2457324682 | AN246: 1.046453833 | AO246: 0.07480626661 | AP246: 0.2542472674 | AQ246: 1.046453833 | AR246: 0.07480626661 | AS246: 0.2542472674 | AT246: 1.103886481 | AU246: 0.0787533856 | AV246: 0.2357990921 | AW246: 1.021862351 | AX246: 0.07307545315 | AY246: 0.3092755871 | AZ246: 1.021862351 | BA246: 0.07307545315 | BB246: 0.3092755871 | BC246: 1.004901051 | BD246: 0.9511871514 | BE246: 0.07784623936 | BF246: 1.030403612 | BG246: 0.9690270391 | BH246: 0.1160568582 | BI246: 1.030403612 | BJ246: 0.9690270391 | BK246: 0.1160568582 | BL246: 0.9810441493 | BM246: 0.9286267237 | BN246: 0.07178246603 | BO246: 1.024840445 | BP246: 0.9646365085 | BQ246: 0.08619673207 | BR246: 1.024840445 | BS246: 0.9646365085 | BT246: 0.08619673207 | BU246: 0.9889158145 | BV246: 0.9359516626 | BW246: 0.05937642166 | BX246: 1.010692686 | BY246: 0.9534586387 | BZ246: 0.07516830276 | CA246: 1.010692686 | CB246: 0.9534586387 | CC246: 0.07516830276 | CD246: 1.04040633 | CE246: 0.02655729028 | CF246: 0 | CG246: 1.035304941 | CH246: 0.02635951867 | CI246: 0 | CJ246: 1.018334702 | CK246: 0.02570188187 | CL246: 0 | CM246: 1.069249752 | CN246: 0.02767060272 | CO246: 0 | CP246: 1.062741979 | CQ246: 0.02741787402 | CR246: 0 | CS246: 1.05271668 | CT246: 0.02702245402 | CU246: 0 | CV246: 1.058318941 | CW246: 0.02724868996 | CX246: 0 | CY246: 1.082090697 | CZ246: 0.02816423079 | DA246: 0 | DB246: 1.080845931 | DC246: 0.02810286614 | DD246: 0 | DE246: 0.9426795581 | DF246: 0.3372855983 | DG246: 0 | DH246: 0.9552613163 | DI246: Medium-high (20-40%) | DJ246: 0.3404116111 | DK246: 0 | DL246: 0.9396031153 | DM246: 0.33191877 | DN246: 0 | DO246: 0.9745279715 | DP246: 0.3534429868 | DQ246: 0 | DR246: 1.015565088 | DS246: Medium-high (20-40%) | DT246: 0.3665184116 | DU246: 0 | DV246: 1.005984829 | DW246: 0.3612324909 | DX246: 0 | DY246: 0.95872081 | DZ246: 0.3460002354 | EA246: 0 | EB246: 1.058939784 | EC246: Medium-high (20-40%) | ED246: 0.3854130159 | EE246: 0 | EF246: 1.057721649 | EG246: 0.3845732723 | EH246: 0
Y247: 1.077286032 | Z247: 0.2252845665 | AA247: 0.08386478962 | AB247: 0.9186831706 | AC247: 0.07044433352 | AD247: 0.200621701 | AE247: 0.9656669903 | AF247: 0.07407879838 | AG247: 0.1479765361 | AH247: 0.9656669903 | AI247: 0.07407879838 | AJ247: 0.1479765361 | AK247: 0.837093525 | AL247: 0.06415570451 | AM247: 0.1451310672 | AN247: 0.9610391651 | AO247: 0.07372387186 | AP247: 0.1751178309 | AQ247: 0.9610391651 | AR247: 0.07372387186 | AS247: 0.1751178309 | AT247: 0.8264518174 | AU247: 0.06333548092 | AV247: 0.1875548635 | AW247: 0.8721688406 | AX247: 0.06690804951 | AY247: 0.1358768158 | AZ247: 0.8721688406 | BA247: 0.06690804951 | BB247: 0.1358768158 | BC247: 1.005846478 | BD247: 0.8863790164 | BE247: 0.1838851371 | BF247: 0.9859310672 | BG247: 0.8749190357 | BH247: 0.145652168 | BI247: 0.9859310672 | BJ247: 0.8749190357 | BK247: 0.145652168 | BL247: 1.006558335 | BM247: 0.8885323725 | BN247: 0.1682635034 | BO247: 0.9937261064 | BP247: 0.8827082366 | BQ247: 0.1582363567 | BR247: 0.9937261064 | BS247: 0.8827082366 | BT247: 0.1582363567 | BU247: 1.008537544 | BV247: 0.8938885659 | BW247: 0.1402790978 | BX247: 1.003518575 | BY247: 0.889274994 | BZ247: 0.1658843769 | CA247: 1.003518575 | CB247: 0.889274994 | CC247: 0.1658843769 | CD247: 0.9988500324 | CE247: 0.1443511538 | CF247: 0 | CG247: 0.9991940002 | CH247: 0.1444180749 | CI247: 0 | CJ247: 0.9898471701 | CK247: 0.1425882612 | CL247: 0 | CM247: 1.00072733 | CN247: 0.1447163517 | CO247: 0 | CP247: 1.003528706 | CQ247: 0.1452612806 | CR247: 0 | CS247: 0.9890458881 | CT247: 0.1424314747 | CU247: 0 | CV247: 1.002575141 | CW247: 0.1450758136 | CX247: 0 | CY247: 1.008669412 | CZ247: 0.1462612728 | DA247: 0 | DB247: 0.9920458099 | DC247: 0.1430184682 | DD247: 0 | DE247: 1.087262796 | DF247: 2.049152098 | DG247: 0 | DH247: 1.034719018 | DI247: Extremely high (>80%) | DJ247: 1.949519674 | DK247: 0 | DL247: 1.025039874 | DM247: 1.924818765 | DN247: 0 | DO247: 1.195478522 | DP247: 2.255705129 | DQ247: 0 | DR247: 1.044212081 | DS247: Extremely high (>80%) | DT247: 1.970342535 | DU247: 0 | DV247: 1.029142124 | DW247: 1.931958687 | DX247: 0 | DY247: 1.213107794 | DZ247: 2.290593068 | EA247: 0 | EB247: 1.156507049 | EC247: Extremely high (>80%) | ED247: 2.186004133 | EE247: 0 | EF247: 1.137446976 | EG247: 2.13753755 | EH247: 0
Y248: 1.077286032 | Z248: 0.2252845665 | AA248: 0.08386478962 | AB248: 1.154679682 | AC248: 0.1671345707 | AD248: 0.2088334904 | AE248: 1.180667549 | AF248: 0.1709201895 | AG248: 0.1494011903 | AH248: 1.180667549 | AI248: 0.1709201895 | AJ248: 0.1494011903 | AK248: 1.130508692 | AL248: 0.1636018407 | AM248: 0.2345824294 | AN248: 1.078954681 | AO248: 0.1560613919 | AP248: 0.1788916926 | AQ248: 1.078954681 | AR248: 0.1560613919 | AS248: 0.1788916926 | AT248: 1.131084387 | AU248: 0.1636859819 | AV248: 0.1845901058 | AW248: 1.016691179 | AX248: 0.1469655835 | AY248: 0.2625114686 | AZ248: 1.016691179 | BA248: 0.1469655835 | BB248: 0.2625114686 | BC248: 0.9938614714 | BD248: 0.7754598492 | BE248: 0.07019301718 | BF248: 1.024642926 | BG248: 0.8221176032 | BH248: 0.0719179467 | BI248: 1.024642926 | BJ248: 0.8221176032 | BK248: 0.0719179467 | BL248: 1.039081593 | BM248: 0.8100997285 | BN248: 0.07816721598 | BO248: 1.012984693 | BP248: 0.8127715411 | BQ248: 0.071950005 | BR248: 1.012984693 | BS248: 0.8127715411 | BT248: 0.071950005 | BU248: 1.056722604 | BV248: 0.8237340615 | BW248: 0.07714486637 | BX248: 0.98937936 | BY248: 0.7944843633 | BZ248: 0.07502060821 | CA248: 0.98937936 | CB248: 0.7944843633 | CC248: 0.07502060821 | CD248: 1.156131415 | CE248: 0.06749152991 | CF248: 0 | CG248: 1.161238535 | CH248: 0.06779380417 | CI248: 0 | CJ248: 1.103635959 | CK248: 0.06476994036 | CL248: 0 | CM248: 1.284535543 | CN248: 0.07454048497 | CO248: 0 | CP248: 1.29019758 | CQ248: 0.07489074639 | CR248: 0 | CS248: 1.180427321 | CT248: 0.06910425728 | CU248: 0 | CV248: 1.375290528 | CW248: 0.07952262856 | CX248: 0 | CY248: 1.385516199 | CZ248: 0.08013637088 | DA248: 0 | DB248: 1.224700844 | DC248: 0.07160317744 | DD248: 0 | DE248: 1.00125726 | DF248: 0.403815498 | DG248: 0 | DH248: 0.9835440432 | DI248: Medium-high (20-40%) | DJ248: 0.3966401183 | DK248: 0 | DL248: 0.9347559014 | DM248: 0.378948447 | DN248: 0 | DO248: 1.136245615 | DP248: 0.45562131 | DQ248: 0 | DR248: 1.195784775 | DS248: High (40-80%) | DT248: 0.4798800363 | DU248: 0 | DV248: 1.094047175 | DW248: 0.4428017491 | DX248: 0 | DY248: 1.215904439 | DZ248: 0.4858243059 | EA248: 0 | EB248: 1.362769961 | EC248: High (40-80%) | ED248: 0.5452730428 | EE248: 0 | EF248: 1.204594737 | EG248: 0.4872105138 | EH248: 0
Y249: 1.004716424 | Z249: 2.541265681 | AA249: 0.05796638262 | AB249: 1.017530042 | AC249: 0.2563086947 | AD249: 0.1765477503 | AE249: 1.125008046 | AF249: 0.2827777205 | AG249: 0.1684808149 | AH249: 1.125008046 | AI249: 0.2827777205 | AJ249: 0.1684808149 | AK249: 0.9367325779 | AL249: 0.2364685985 | AM249: 0.1493216528 | AN249: 1.081429607 | AO249: 0.2720498915 | AP249: 0.1396440228 | AQ249: 1.081429607 | AR249: 0.2720498915 | AS249: 0.1396440228 | AT249: 0.9378473944 | AU249: 0.2367423455 | AV249: 0.1636130871 | AW249: 0.8946758162 | AX249: 0.2260761769 | AY249: 0.1731567155 | AZ249: 0.8946758162 | BA249: 0.2260761769 | BB249: 0.1731567155 | BC249: 1.002492356 | BD249: 0.6095411846 | BE249: 0.07115326237 | BF249: 0.9995066888 | BG249: 0.6198571753 | BH249: 0.06368325651 | BI249: 0.9995066888 | BJ249: 0.6198571753 | BK249: 0.06368325651 | BL249: 1.027732679 | BM249: 0.6243419407 | BN249: 0.06529194364 | BO249: 1.010413407 | BP249: 0.6266983534 | BQ249: 0.06174592648 | BR249: 1.010413407 | BS249: 0.6266983534 | BT249: 0.06174592648 | BU249: 1.028361831 | BV249: 0.6252726966 | BW249: 0.06288056941 | BX249: 1.028343442 | BY249: 0.637909971 | BZ249: 0.06706533395 | CA249: 1.028343442 | CB249: 0.637909971 | CC249: 0.06706533395 | CD249: 1.09886248 | CE249: 0.007129082471 | CF249: 0 | CG249: 1.097885824 | CH249: 0.007097440683 | CI249: 0 | CJ249: 1.0915138 | CK249: 0.007000060353 | CL249: 0 | CM249: 1.107891825 | CN249: 0.007268197228 | CO249: 0 | CP249: 1.104079769 | CQ249: 0.007191820498 | CR249: 0 | CS249: 1.111164827 | CT249: 0.007299429855 | CU249: 0 | CV249: 1.080697561 | CW249: 0.006849216313 | CX249: 0 | CY249: 1.097518841 | CZ249: 0.007091848815 | DA249: 0 | DB249: 1.117064611 | DC249: 0.007389308898 | DD249: 0 | DE249: 1.093217363 | DF249: 0.03047782624 | DG249: 0 | DH249: 0.9784075804 | DI249: Low (<10%) | DJ249: 0.02725254483 | DK249: 0 | DL249: 0.9709168705 | DM249: 0.02683000179 | DN249: 0 | DO249: 1.218379633 | DP249: 0.03423349009 | DQ249: 0 | DR249: 1.035554274 | DS249: Low (<10%) | DT249: 0.02902420717 | DU249: 0 | DV249: 1.040728401 | DW249: 0.0294181082 | DX249: 0 | DY249: 1.188913509 | DZ249: 0.03227394187 | EA249: 0 | EB249: 1.278944006 | EC249: Low (<10%) | ED249: 0.03533698683 | EE249: 0 | EF249: 1.29862735 | EG249: 0.0367338312 | EH249: 0
AB250: 1.064780433 | AC250: 0.05634825812 | AD250: 0.2440783929 | AE250: 1.208956339 | AF250: 0.06391470358 | AG250: 0.2072416642 | AH250: 1.208956339 | AI250: 0.06391470358 | AJ250: 0.2072416642 | AK250: 0.9760073838 | AL250: 0.05170962338 | AM250: 0.1920496824 | AN250: 1.111461579 | AO250: 0.05880500387 | AP250: 0.1568993231 | AQ250: 1.111461579 | AR250: 0.05880500387 | AS250: 0.1568993231 | AT250: 0.9754264164 | AU250: 0.05167926624 | AV250: 0.2027563564 | AW250: 0.942466683 | AX250: 0.04994798247 | AY250: 0.2367716452 | AZ250: 0.942466683 | BA250: 0.04994798247 | BB250: 0.2367716452 | BC250: 1.030407716 | BD250: 0.6207070364 | BE250: 0.08464361514 | BF250: 1.016807238 | BG250: 0.6184591217 | BH250: 0.07450939836 | BI250: 1.016807238 | BJ250: 0.6184591217 | BK250: 0.07450939836 | BL250: 1.059377751 | BM250: 0.6370538751 | BN250: 0.08890987854 | BO250: 1.03267298 | BP250: 0.6280505971 | BQ250: 0.06826856991 | BR250: 1.03267298 | BS250: 0.6280505971 | BT250: 0.06826856991 | BU250: 1.020063982 | BV250: 0.6135812481 | BW250: 0.08650267417 | BX250: 1.049199828 | BY250: 0.6378303528 | BZ250: 0.08870174599 | CA250: 1.049199828 | CB250: 0.6378303528 | CC250: 0.08870174599 | CD250: 1.195698275 | CE250: 0.007776268356 | CF250: 0 | CG250: 1.195581376 | CH250: 0.007749115017 | CI250: 0 | CJ250: 1.178771005 | CK250: 0.0075872925 | CL250: 0 | CM250: 1.261400489 | CN250: 0.008394941733 | CO250: 0 | CP250: 1.267075863 | CQ250: 0.008412806842 | CR250: 0 | CS250: 1.238277487 | CT250: 0.008137777665 | CU250: 0 | CV250: 1.293528526 | CW250: 0.008697469763 | CX250: 0 | CY250: 1.326506819 | CZ250: 0.008964511468 | DA250: 0 | DB250: 1.282272956 | DC250: 0.008544772881 | DD250: 0 | DE250: 1.1229529 | DF250: 0.1380037044 | DG250: 0 | DH250: 0.9889367693 | DI250: Low-medium (10-20%) | DJ250: 0.1212415076 | DK250: 0 | DL250: 0.9750319075 | DM250: 0.1187096564 | DN250: 0 | DO250: 1.292408756 | DP250: 0.162347764 | DQ250: 0 | DR250: 1.140008694 | DS250: Low-medium (10-20%) | DT250: 0.1430627717 | DU250: 0 | DV250: 1.114098328 | DW250: 0.1383858027 | DX250: 0 | DY250: 1.326115947 | DZ250: 0.1682970831 | EA250: 0 | EB250: 1.407484045 | EC250: Low-medium (10-20%) | ED250: 0.1794769483 | EE250: 0 | EF250: 1.360549905 | EG250: 0.171073434 | EH250: 0
Y251: 1.080677447 | Z251: 0.170035507 | AA251: 0.15720259 | AB251: 1.064780433 | AC251: 0.05634825812 | AD251: 0.2440783929 | AE251: 1.208956339 | AF251: 0.06391470358 | AG251: 0.2072416642 | AH251: 1.208956339 | AI251: 0.06391470358 | AJ251: 0.2072416642 | AK251: 0.9760073838 | AL251: 0.05170962338 | AM251: 0.1920496824 | AN251: 1.111461579 | AO251: 0.05880500387 | AP251: 0.1568993231 | AQ251: 1.111461579 | AR251: 0.05880500387 | AS251: 0.1568993231 | AT251: 0.9754264164 | AU251: 0.05167926624 | AV251: 0.2027563564 | AW251: 0.942466683 | AX251: 0.04994798247 | AY251: 0.2367716452 | AZ251: 0.942466683 | BA251: 0.04994798247 | BB251: 0.2367716452 | BC251: 1.030407716 | BD251: 0.6207070364 | BE251: 0.08464361514 | BF251: 1.016807238 | BG251: 0.6184591217 | BH251: 0.07450939836 | BI251: 1.016807238 | BJ251: 0.6184591217 | BK251: 0.07450939836 | BL251: 1.059377751 | BM251: 0.6370538751 | BN251: 0.08890987854 | BO251: 1.03267298 | BP251: 0.6280505971 | BQ251: 0.06826856991 | BR251: 1.03267298 | BS251: 0.6280505971 | BT251: 0.06826856991 | BU251: 1.020063982 | BV251: 0.6135812481 | BW251: 0.08650267417 | BX251: 1.049199828 | BY251: 0.6378303528 | BZ251: 0.08870174599 | CA251: 1.049199828 | CB251: 0.6378303528 | CC251: 0.08870174599 | CD251: 1.195698275 | CE251: 0.007776268356 | CF251: 0 | CG251: 1.195581376 | CH251: 0.007749115017 | CI251: 0 | CJ251: 1.178771005 | CK251: 0.0075872925 | CL251: 0 | CM251: 1.261400489 | CN251: 0.008394941733 | CO251: 0 | CP251: 1.267075863 | CQ251: 0.008412806842 | CR251: 0 | CS251: 1.238277487 | CT251: 0.008137777665 | CU251: 0 | CV251: 1.293528526 | CW251: 0.008697469763 | CX251: 0 | CY251: 1.326506819 | CZ251: 0.008964511468 | DA251: 0 | DB251: 1.282272956 | DC251: 0.008544772881 | DD251: 0 | DE251: 1.1229529 | DF251: 0.1380037044 | DG251: 0 | DH251: 0.9889367693 | DI251: Low-medium (10-20%) | DJ251: 0.1212415076 | DK251: 0 | DL251: 0.9750319075 | DM251: 0.1187096564 | DN251: 0 | DO251: 1.292408756 | DP251: 0.162347764 | DQ251: 0 | DR251: 1.140008694 | DS251: Low-medium (10-20%) | DT251: 0.1430627717 | DU251: 0 | DV251: 1.114098328 | DW251: 0.1383858027 | DX251: 0 | DY251: 1.326115947 | DZ251: 0.1682970831 | EA251: 0 | EB251: 1.407484045 | EC251: Low-medium (10-20%) | ED251: 0.1794769483 | EE251: 0 | EF251: 1.360549905 | EG251: 0.171073434 | EH251: 0
Y252: 1.061524305 | Z252: 0.4330842064 | AA252: 0.1663213612 | AB252: 0.9689794658 | AC252: 0.09266051963 | AD252: 0.1612266891 | AE252: 1.099370572 | AF252: 0.1059702337 | AG252: 0.1435154075 | AH252: 1.099370572 | AI252: 0.1059702337 | AJ252: 0.1435154075 | AK252: 0.8806054534 | AL252: 0.0836494556 | AM252: 0.2842031854 | AN252: 0.9962158655 | AO252: 0.09543713418 | AP252: 0.2181482619 | AQ252: 0.9962158655 | AR252: 0.09543713418 | AS252: 0.2181482619 | AT252: 0.9799435108 | AU252: 0.09377846945 | AV252: 0.2693101766 | AW252: 0.9676620971 | AX252: 0.09252151653 | AY252: 0.3495104839 | AZ252: 0.9676620971 | BA252: 0.09252151653 | BB252: 0.3495104839 | BC252: 1.024720955 | BD252: 0.4479087075 | BE252: 0.07162247827 | BF252: 0.9963778772 | BG252: 0.4389168341 | BH252: 0.07249702812 | BI252: 0.9963778772 | BJ252: 0.4389168341 | BK252: 0.07249702812 | BL252: 0.997338668 | BM252: 0.4362233661 | BN252: 0.07810993717 | BO252: 1.010312366 | BP252: 0.4448215455 | BQ252: 0.08080607267 | BR252: 1.010312366 | BS252: 0.4448215455 | BT252: 0.08080607267 | BU252: 1.006403997 | BV252: 0.439434093 | BW252: 0.08676134005 | BX252: 1.039199724 | BY252: 0.4572451313 | BZ252: 0.09945884081 | CA252: 1.039199724 | CB252: 0.4572451313 | CC252: 0.09945884081 | CD252: 1.336750243 | CE252: 0.02777250965 | CF252: 0 | CG252: 1.351888326 | CH252: 0.02800223775 | CI252: 0 | CJ252: 1.302974298 | CK252: 0.02725471517 | CL252: 0 | CM252: 1.429483584 | CN252: 0.02944501448 | CO252: 0 | CP252: 1.447063558 | CQ252: 0.02970707312 | CR252: 0 | CS252: 1.341571902 | CT252: 0.02796248846 | CU252: 0 | CV252: 1.483029972 | CW252: 0.03041075767 | CX252: 0 | CY252: 1.485858436 | CZ252: 0.03040199006 | DA252: 0 | DB252: 1.32375002 | DC252: 0.02763568444 | DD252: 0 | DE252: 1.379544449 | DF252: 0.2997232237 | DG252: 0 | DH252: 1.229693027 | DI252: Medium-high (20-40%) | DJ252: 0.2642462584 | DK252: 0 | DL252: 1.18520027 | DM252: 0.2571921778 | DN252: 0 | DO252: 1.623296311 | DP252: 0.3520048549 | DQ252: 0 | DR252: 1.452560241 | DS252: Medium-high (20-40%) | DT252: 0.311273734 | DU252: 0 | DV252: 1.346667875 | DW252: 0.2929937985 | DX252: 0 | DY252: 1.513383124 | DZ252: 0.3242829388 | EA252: 0 | EB252: 1.53551373 | EC252: Medium-high (20-40%) | ED252: 0.3285937283 | EE252: 0 | EF252: 1.367987879 | EG252: 0.2986946764 | EH252: 0
Y253: 1.077286032 | Z253: 0.2252845665 | AA253: 0.08386478962 | AB253: 0.9525643044 | AC253: 0.3647777027 | AD253: 0.08589025647 | AE253: 0.9974668481 | AF253: 0.3822370126 | AG253: 0.1014717141 | AH253: 0.9974668481 | AI253: 0.3822370126 | AJ253: 0.1014717141 | AK253: 0.9417150414 | AL253: 0.3605619339 | AM253: 0.07430652547 | AN253: 0.9822020458 | AO253: 0.3763731753 | AP253: 0.08028545381 | AQ253: 0.9822020458 | AR253: 0.3763731753 | AS253: 0.08028545381 | AT253: 0.8986794004 | AU253: 0.3438392943 | AV253: 0.1085458808 | AW253: 0.9935881065 | AX253: 0.3807470287 | AY253: 0.08501972751 | AZ253: 0.9935881065 | BA253: 0.3807470287 | BB253: 0.08501972751 | BC253: 0.9967589311 | BD253: 0.7092501595 | BE253: 0.09282261032 | BF253: 1.009368641 | BG253: 0.7255991595 | BH253: 0.1263063285 | BI253: 1.009368641 | BJ253: 0.7255991595 | BK253: 0.1263063285 | BL253: 1.025514666 | BM253: 0.7286536939 | BN253: 0.1294857218 | BO253: 1.007266187 | BP253: 0.7241667686 | BQ253: 0.1000699462 | BR253: 1.007266187 | BS253: 0.7241667686 | BT253: 0.1000699462 | BU253: 1.05856797 | BV253: 0.7515519159 | BW253: 0.1354180624 | BX253: 1.017621009 | BY253: 0.7315373581 | BZ253: 0.09386039769 | CA253: 1.017621009 | CB253: 0.7315373581 | CC253: 0.09386039769 | CD253: 1.12473475 | CE253: 0.1702479089 | CF253: 0 | CG253: 1.124759056 | CH253: 0.1702496873 | CI253: 0 | CJ253: 1.110363298 | CK253: 0.1689798996 | CL253: 0 | CM253: 1.277358652 | CN253: 0.1821117095 | CO253: 0 | CP253: 1.2774705 | CQ253: 0.182120157 | CR253: 0 | CS253: 1.216028179 | CT253: 0.1770490091 | CU253: 0 | CV253: 1.465999371 | CW253: 0.1967751786 | CX253: 0 | CY253: 1.466004702 | CZ253: 0.1967751786 | DA253: 0 | DB253: 1.324400326 | DC253: 0.1853248592 | DD253: 0 | DE253: 1.180744171 | DF253: 0.4667168733 | DG253: 0 | DH253: 1.127615477 | DI253: High (40-80%) | DJ253: 0.4454034583 | DK253: 0 | DL253: 1.11318316 | DM253: 0.4420814679 | DN253: 0 | DO253: 1.356417384 | DP253: 0.5050774705 | DQ253: 0 | DR253: 1.300618855 | DS253: High (40-80%) | DT253: 0.4838818729 | DU253: 0 | DV253: 1.23806317 | DW253: 0.47040815 | DX253: 0 | DY253: 1.631281823 | DZ253: 0.5722882227 | EA253: 0 | EB253: 1.475465228 | EC253: High (40-80%) | ED253: 0.516813432 | EE253: 0 | EF253: 1.332947041 | EG253: 0.4867401327 | EH253: 0
Y254: 1.016704551 | Z254: 0.4568025308 | AA254: 0.03930798355 | AB254: 0.9622955645 | AC254: 0.3421538338 | AD254: 0.05948797096 | AE254: 1.027703237 | AF254: 0.3655799199 | AG254: 0.1252886041 | AH254: 1.027703237 | AI254: 0.3655799199 | AJ254: 0.1252886041 | AK254: 0.9653071664 | AL254: 0.3432381355 | AM254: 0.0603891036 | AN254: 1.004537511 | AO254: 0.3573424776 | AP254: 0.08505609363 | AQ254: 1.004537511 | AR254: 0.3573424776 | AS254: 0.08505609363 | AT254: 0.9345632461 | AU254: 0.3321690483 | AV254: 0.1036514009 | AW254: 1.013680236 | AX254: 0.3605935159 | AY254: 0.07812149712 | AZ254: 1.013680236 | BA254: 0.3605935159 | BB254: 0.07812149712 | BC254: 0.9835967616 | BD254: 0.5104977232 | BE254: 0.06659470186 | BF254: 1.015650028 | BG254: 0.5306379297 | BH254: 0.0887961545 | BI254: 1.015650028 | BJ254: 0.5306379297 | BK254: 0.0887961545 | BL254: 1.013868665 | BM254: 0.5252288171 | BN254: 0.09845851979 | BO254: 1.024795654 | BP254: 0.5355521686 | BQ254: 0.07127757349 | BR254: 1.024795654 | BS254: 0.5355521686 | BT254: 0.07127757349 | BU254: 1.044986644 | BV254: 0.54107329 | BW254: 0.1067912197 | BX254: 1.02476956 | BY254: 0.5354527249 | BZ254: 0.070887134 | CA254: 1.02476956 | CB254: 0.5354527249 | CC254: 0.070887134 | CD254: 1.059115717 | CE254: 0.2451810407 | CF254: 0 | CG254: 1.059186277 | CH254: 0.2452002704 | CI254: 0 | CJ254: 1.036829711 | CK254: 0.239292314 | CL254: 0 | CM254: 1.123565197 | CN254: 0.2623457693 | CO254: 0 | CP254: 1.123913514 | CQ254: 0.2624394524 | CR254: 0 | CS254: 1.049012924 | CT254: 0.2425524882 | CU254: 0 | CV254: 1.19362059 | CW254: 0.2810035117 | CX254: 0 | CY254: 1.194116917 | CZ254: 0.2811371335 | DA254: 0 | DB254: 1.049250618 | DC254: 0.2426160942 | DD254: 0 | DE254: 1.100613737 | DF254: 0.7165813049 | DG254: 0 | DH254: 1.030634368 | DI254: High (40-80%) | DJ254: 0.6707159147 | DK254: 0 | DL254: 1.008880457 | DM254: 0.654555409 | DN254: 0 | DO254: 1.163945775 | DP254: 0.7643258198 | DQ254: 0 | DR254: 1.11883678 | DS254: High (40-80%) | DT254: 0.7344199721 | DU254: 0 | DV254: 1.044274516 | DW254: 0.6787675785 | DX254: 0 | DY254: 1.277196161 | DZ254: 0.8459653696 | EA254: 0 | EB254: 1.178001578 | EC254: High (40-80%) | ED254: 0.7796511059 | EE254: 0 | EF254: 1.035090338 | EG254: 0.6728243394 | EH254: 0
